Workbook

Sheet HOME
D3: Click on the sheets below | E3: Schedules for filing Income Tax Return | F3: Description | G3: Select applicable sheets below by choosing Y/N and Click on Apply | H3: Select sheets to print and click apply
C4: 1 | D4: PART A- GENERAL | E4: Personal Info., Filing Status | F4: Details of personal information and filing status | G4: Y | H4: Y
C5: =C4+1 -> 2 | D5: SALARY | E5: Schedule S | F5: Details of Income from Salary | G5: Y | H5: Y
C6: =C5+1 -> 3 | D6: HOUSE_PROPERTY | E6: Schedule HP | F6: Details of Income from House Property | G6: Y | H6: Y
C7: 4 | D7: CG | E7: Schedule CG | F7: Details of Capital Gains | G7: Y | H7: Y
C8: 5 | D8: Schedule 112A | E8: 112A | F8: From sale of equity share in a company or unit of equity oriented fund or unit of a business trust on which STT is paid under section 112A | G8: Y | H8: Y
C9: 6 | D9: Schedule 115AD(1)(iii) proviso | E9: 115AD(1)(iii) proviso | F9: For NON-RESIDENTS - From sale of equity share in a company or unit of equity oriented fund or unit of a business trust on which STT is paid under section 112A | G9: Y | H9: Y
C10: 7 | D10: OS | E10: Schedule OS | F10: Income from other sources | G10: Y | H10: Y
C11: 8 | D11: CYLA-BFLA | E11: Schedule CYLA, Schedule BFLA | F11: Details of Income after set-off of current years losses and Brought Forward Losses of earlier years | G11: Y | H11: Y
C12: 9 | D12: CFL | E12: Schedule CFL | F12: Details of Losses to be carried forward to future Years | G12: Y | H12: Y
C13: 10 | D13: DI | E13: Schedule DI | F13: Details of investments | G13: Y | H13: Y
C14: 11 | D14: 80D | E14: Schedule 80D | F14: Details of health insurance for deduction under Section 80D | G14: Y | H14: Y
C15: 12 | D15: 80G | E15: Schedule 80G | F15: Details of donations entitled for deduction under section 80G | G15: Y | H15: Y
C16: 13 | D16: 80GGA | E16: Schedule 80GGA | F16: Details of donations for scientific research or rural development | G16: Y | H16: Y
C17: 14 | D17: AMT | E17: Schedule AMT | F17: Computation of Alternate Minimum Tax payable under section 115JC | G17: Y | H17: Y
C18: 15 | D18: AMTC | E18: Schedule AMTC | F18: Computation of tax credit under section 115JD | G18: Y | H18: Y
C19: 16 | D19: VIA | E19: Schedule VIA | F19: Details of Deductions under Chapter VI-A | G19: Y | H19: Y
C20: 17 | D20: SPI - SI | E20: Schedule SPI, Schedule SI, Schedule IF | F20: Details of Income of specified person, Income chargeable to Income tax at special rates and details of firm | G20: Y | H20: Y
C21: 18 | D21: EI | E21: Schedule EI | F21: Details of Exempt Income (Income not to be included in Total Income) | G21: Y | H21: Y
C22: 19 | D22: PTI | E22: Schedule PTI | F22: Pass Through Income details from business trust or investment fund as per section 115UA, 115UB | G22: Y | H22: Y
C23: 20 | D23: FSI | E23: Schedule FSI | F23: Details of Income accruing or arising outside India | G23: Y | H23: Y
C24: 21 | D24: TR_FA | E24: Schedule TR, Schedule FA | F24: Schedule TR Details of Tax Relief claimed under Section 90 or Section 90A or Section 91, Schedule FA Details of foreign assets | G24: Y | H24: Y
C25: 22 | D25: SCH5A | E25: Schedule 5A | F25: Information regarding apportionment of income between spouses governed by Portuguese Civil Code | G25: Y | H25: Y
C26: 23 | D26: AL | E26: Schedule AL | F26: Details of Assets and Liabilities | G26: Y | H26: Y
C27: 24 | D27: PARTB - TI - TTI | E27: Part B-TI ,Part B-TTI, Verification | F27: Computation of total income, tax liability and details of income from salary | G27: Y | H27: Y
C28: 25 | D28: IT | E28: Tax Payments | F28: Details of Advance Tax and Self Assessment Tax Payments of Income-tax | G28: Y | H28: Y
C29: 26 | D29: TDS | E29: Tax Payments (TDS1, TDS2, TDS3) | F29: Details of Tax Deducted/Collected at Source on Income | G29: Y | H29: Y
C30: 27 | D30: TCS | E30: Tax Payments (TCS) | F30: Details of Tax Collected at Source [As per Form 27D issued by the Collector(s)] | G30: Y | H30: Y
C31: 28 | D31: VERIFICATION | E31: Verification | F31: Verification | G31: Y | H31: Y
C33: Instructions: 1. Green cells are for data entry 2. Red labels indicate Mandatory fields 3. Do not use CTRL X/CTRL V or Cut/Copy/paste while data entry.

Sheet PART A- GENERAL
C3: FORM | E3: ITR-2 | K3: INDIAN INCOME TAX RETURN | AP3: Assessment Year 2020-21
K4: [For Individuals and HUFs not having income from profits and gains of business or profession
K5: (Please see rule 12 of the Income-tax Rules,1962) (Please refer instructions)
C7: PERSONAL INFORMATION | E7: First Name | O7: Middle Name | W7: Last Name | AM7: PAN
E8: RAMAN | O8: K. | W8: MEHTA | AM8: ABNPM2312P
E9: Flat / Door / Block No. | W9: Name of Premises / Building / Village | AM9: Status
E10: 94A / 117 | AM10: Individual
E11: Road / Street / Post Office | T11: Area / Locality | AE11: Town / City / District | AR11: Date of Birth / Formation (dd/mm/yyyy)
T12: MARATHWADA STREET | AE12: PUNE | AR12: 10/01/1972
E13: State | T13: Country | AE13: PIN Code | AN13: No ZIP Code? | AS13: ZIP Code
E14: 19-MAHARASHTRA | T14: 91-INDIA | AE14: 412105
E15: Email Address-1 (self) | O15: Email Address-2 | X15: Mobile No. 1 | AF15: STD / ISD Code | AK15: Residential / Office Phone No. with STD Code | AR15: Mobile No. 2
E16: RAMAN184@GMAIL.COM | O16: RATHORE_INCOMETAX@YAHOO.CO.IN | X16: 91 | Y16: 7254122548 | AR16: 91 | AS16: 9811116835
E17: Aadhaar Number | Y17: Aadhaar Enrolment Id | AJ17: Filed u/s Filed in response to notice u/s
E18: 321065409870 | AJ18: 139(1)-On or before due date | BO18: =VLOOKUP(sheet1.ReturnFileSec,ReturnFileSectionTable,2,FALSE) -> 11
E19: Are you filing return of income under Seventh proviso to section 139(1) but otherwise not required to furnish return of income? If yes, please furnish following information | AO19: No
E20: [Note: To be filled only if a person is not required to furnish a return of income under section 139(1) but filing return of income due to fulfilling one or more conditions mentioned in the seventh proviso to section 139(1)]
E21: Have you deposited amount or aggregate of amounts exceeding Rs. 1 Crore in one or more current account during the previous year? (Yes/No)
E22: Have you incurred expenditure of an amount or aggregate of amount exceeding Rs. 2 lakhs for travel to a foreign country for yourself or for any other person? (Yes/ No)
E23: Have you incurred expenditure of amount or aggregate of amount exceeding Rs. 1 lakh on consumption of electricity during the previous year? (Yes/No)
E24: If Revised / Defective / Modified then enter Receipt No | AE24: Date of filing of Original Return
E25: If filed, in response to a notice u/s 139(9)/142(1)/148/153A/153C or order u/s 119(2)(b) enter Unique Number/ Document Identification Number (DIN) | AE25: If filed, in response to a notice u/s 139(9)/142(1)/148/153A/153C or order u/s 119(2)(b) enter date of such notice/order, or if filed u/s 92CD, enter date of advance pricing agreement
E26: Are you governed by Portuguese Civil code as per section 5A? (If yes, please fill schedule 5A) | AF26: No | AK26: Residential Status in India (for individuals) | AR26: RES-Resident
E27: Conditions for Residential Status (Applicable for Individuals Only) | W27: You were in India for 182 days or more during the previous year [section 6(1)(a)]
E28: (i) Please specify the jurisdiction(s) of residence during the previous year -
G29: Sl. No. | L29: Jurisdiction(s) of residence | AI29: Taxpayer Identification Number(s)
G30: 1
G31: =G30+1 -> 2
E33: (ii) In case you are a Citizen of India or a Person of Indian Origin (POI), please specify -
G34: Total period of stay in India during the previous year (in days)
G35: Total period of stay in India during the 4 preceding years (in days)
E36: Do you want to claim the benefit u/s 115H (applicable in case of Resident)? Yes / No | AP36: No
E37: Whether this return is being filed by a Representative Assessee? If yes, please furnish following information | AP37: No | AQ37: No | AR37: No | AS37: No | AT37: No | AU37: No | AV37: No | AW37: No
E38: a | G38: Name of the representative
E39: b | G39: Capacity of representative
E40: c | G40: Address of the representative
E41: d | G41: Permanent Account Number (PAN) of the representative
E42: e | G42: Aadhaar No. of the representative
E43: Whether you are Director in a company at any time during the previous year? If yes, please furnish following information | AP43: No
E44: Sl. No. | H44: Name of Company | T44: Type of Company | AA44: PAN | AG44: Whether its shares are listed or unlisted | AP44: Director Identification Number (DIN)
E45: 1
E46: =E45+1 -> 2
E47: =E46+1 -> 3
E49: Whether you have held unlisted shares at any time during the previous year? If yes, please furnish following information | AP49: No
C50: Sl. No. | E50: Name of Company | Q50: Type of Company | U50: PAN | Y50: Opening Balance | AD50: Shares acquired during the year | AO50: Shares transferred during the year | AT50: Closing Balance
Y51: No. of shares | AB51: Cost of acquisition | AD51: No. of shares | AF51: Date of subscription / purchase | AH51: Face value per share | AJ51: Issue price per share (in case of fresh issue) | AM51: Purchase price per share (in case of purchase from existing shareholder) | AO51: No. of shares transferred | AR51: Sale consideration | AT51: No. of shares | AV51: Cost of acquisition
C52: 1
C53: =C52+1 -> 2
C54: =C53+1 -> 3

Sheet SALARY
C3: Schedule S | F3: Details of Income from Salary
C4: 1 | D4: Name of employer | F4: AMAR CONSULTANTS | G4: Nature of employer | H4: Others | I4: TAN of employer (mandatory if tax is deducted) | L4: RTKA55484C
D5: Address of employer | F5: 4/95/10, SHIV STREET, STATION ROAD | G5: Town/City | H5: PUNE | J5: PIN Code | L5: ZIP Code | Q5: 1
D6: State | F6: 19-MAHARASHTRA | J6: 412107 | Q6: 24
D7: 1 | E7: Gross Salary (1a + 1b + 1c) | K7: 1 | L7: =SUM(J8:J22) -> 16965600
E8: 1a | F8: Salary as per section 17(1) | I8: 1a | J8: =SUM(SAL.SalaryAmount1) -> 16917600
E9: Sl.No. | F9: Nature of salary | G9: Description | H9: Amount
E10: 1 | F10: Basic Salary | H10: 16800000
E11: =E10+1 -> 2 | F11: Conveyance Allowance | H11: 24000
E12: =E11+1 -> 3 | F12: House Rent Allowance | H12: 36000
E13: =E12+1 -> 4 | F13: Children Education Allowance | H13: 2400
E14: =E13+1 -> 5 | F14: Other Allowance | H14: 37200
E15: =E14+1 -> 6 | F15: Leave Encashment | H15: 18000
D16: 1
E17: 1b | F17: Value of perquisites as per section 17(2) | I17: 1b | J17: =SUM(SAL.ValueOfPerquisitesAmount1) -> 48000
E18: Sl.No. | F18: Nature of perquisites | G18: Description | H18: Amount
E19: 1 | F19: Free or concessional travel | H19: 48000
E20: =E19+1 -> 2 | F20: (Select)
D21: 1
E22: 1c | F22: Profit in lieu of salary as per section 17(3) | I22: 1c | J22: =SUM(SAL.ProfitsinLieuOfSalaryAmount1) -> 0
E23: Sl.No. | F23: Nature of Profit in lieu of Salary | G23: Description | H23: Amount
E24: 1
E25: =E24+1 -> 2
D26: 1
D29: 2 | E29: Total gross salary from all employers | K29: 2 | L29: 16965600
D30: 3 | E30: Less : Allowances to the extent exempt u/s 10 (Ensure that it is included in Total Gross salary in (2) above) | K30: 3 | L30: =SUM(SAL.ExemptUSectionOth1) -> 52400
E31: Sl.No. | F31: Nature of exempt allowance | G31: Description('If any other is selected') | J31: Amount
E32: 1 | F32: Sec10(5)-Travel concession/assistance received | I32: 1 | J32: 42000
E33: =E32+1 -> 2 | F33: Sec10(14)(i)-Allowances or benefits not in a nature of perquisite specifically granted and incurred in performance of duties of office or employment | I33: =I32+1 -> 2 | J33: 8000
E34: =E33+1 -> 3 | F34: Sec10(14)(ii)-Allowances or benefits not in a nature of perquisite specifically granted in performance of duties of office or employment. | I34: =I33+1 -> 3 | J34: 2400
D36: 4 | E36: Net Salary (2 – 3) | K36: 4 | L36: =MAX(0,SUM(L29,-L30)) -> 16913200
D37: 5 | E37: Deduction u/s 16 (5a + 5b + 5c) | K37: 5 | L37: =SUM(J38:J40) -> 50000
E38: 5a | F38: Standard deduction u/s 16(ia) | I38: 5a | J38: =IF(L36>0,MIN(L36,50000),0) -> 50000
E39: 5b | F39: Entertainment allowance u/s 16(ii) | I39: 5b | Q39: 16800000
E40: 5c | F40: Professional tax u/s 16(iii) | I40: 5c
D41: 6 | E41: Income chargeable under the Head ‘Salaries’ (4 – 5) | K41: 6 | L41: =MAX(0,SUM(L36,-L37)) -> 16863200

Sheet HOUSE_PROPERTY
C3: Schedule HP | F3: Details of Income from House Property (Fields marked in RED must not be left Blank)
C4: 1 | D4: Address of property | G4: Town/ City | H4: State | I4: Country | J4: PIN Code | K4: Zip Code | O4: 1
F5: 94A/117, MARATHWADA STREET | G5: PUNE | H5: 19-MAHARASHTRA | I5: 91-INDIA | J5: 412105
D6: Owner of the Property | G6: Self | H6: If Others, Please specify,
D7: Is the property co-owned? | G7: No | H7: Your percentage of share in the Property(%) | K7: 100
E8: Sl.No. | F8: Name of Other Co-owner(s) | G8: PAN of Other Co-owner(s) | H8: Aadhaar No. of Other Co-owner(s) | I8: Percentage share of other co-owner(s) in property (%) | O8: 29
E9: 1
E10: =E9+1 -> 2
E11: =E10+1 -> 3
E12: =E11+1 -> 4
E13: =E12+1 -> 5
D14: 1
E15: Type of House Property ? | H15: Self-Occupied
E16: Sl.No. | F16: Name(s) of Tenant (if let out) | G16: PAN of Tenant(s) (if available) | H16: Aadhaar No. of Tenant(s) (if available) | I16: PAN/TAN of Tenant(s) (if TDS credit is claimed)
E17: 1
E18: =E17+1 -> 2
E19: =E18+1 -> 3
D20: 1
D21: a | E21: Gross rent received or receivable or letable value | J21: a
D22: b | E22: The amount of rent which cannot be realized
D23: c | E23: Tax paid to local authorities
D24: d | E24: Total (b + c) | I24: =SUM(I22:I23) -> 0
D25: e | E25: Annual value (a – d) (nil, if self -occupied etc. as per section 23(2)of the Act) | J25: e | K25: =SUM(K21,-I24) -> 0
D26: f | E26: Annual value of the property owned (own percentage share x e) | J26: f | K26: =ROUND((K7/100)*K25,0) -> 0
D27: g | E27: 30% of f | I27: =MAX(0,ROUND((30/100)*K26,0)) -> 0
D28: h | E28: Interest payable on borrowed capital | I28: 200000
D29: i | E29: Total (g + h) | J29: i | K29: =SUM(I27,I28) -> 200000
D30: j | E30: Arrears/Unrealized Rent received during the year Less 30% | J30: j
D31: k | E31: Income from house property (f - i + j) | J31: k | K31: =SUM(K26,-K29+K30) -> -200000
C34: 2 | D34: Pass through income/Loss if any * | J34: =C34 -> 2
C35: 3 | D35: Income under the head “Income from house property” (1k+….. + 2) (if negative take the figure to 2i of schedule CYLA) | J35: =C35 -> 3 | K35: -200000 | O35: =MAX(HP.TotalIncomeChargeableUnHP,-200000) -> -200000
C37: Note | E37: Please include the income of the specified persons referred to in Schedule SPI and Pass through income referred to in schedule PTI while computing the income under this head | O37: =MAX(0,(-HP.TotalIncomeChargeableUnHP-200000)) -> 0
C38: Furnishing of PAN of tenant is mandatory, if tax is deducted under section 194-IB. Furnishing of TAN of tenant is mandatory, if tax is deducted under section 194-I

Sheet CG
C3: Schedule CG | G3: Capital Gains
D4: A | E4: Short-term Capital Gains (STCG) (Items 3 and 4 are not applicable for residents) | Y4: CG A Count | Z4: 1 | AA4: Sum of A1e | AB4: 0
E5: 1 | F5: From sale of land or building or both (fill up details separately for each property) | Y5: CG_A_frmsize | Z5: 17 | AA5: Sum of aiii | AB5: 0
F6: a | G6: i | H6: Full value of consideration received/receivable | P6: ai | Y6: STCG DTAA Total | Z6: =SUM(STCG.A7_StcgAmt) -> 0
G7: ii | H7: Value of property as per stamp valuation authority | P7: aii | Y7: A1e | Z7: =IF(MID(sheet1.ResidentialStatus1,1,3)="NRI",SUMIFS(Section_AmountStcgA7,STCG.A7_CertiStatus,"=Yes",Section_CodeStcgA7,Y7),SUMIF(Section_CodeStcgA7,Y7,Section_AmountStcgA7)) -> 0 | AA7: =SUMIF(Section_CodeStcgA7,Y8,Section_AmountStcgA7) -> 0
G8: iii | H8: Full value of consideration adopted as per section 50C for the purpose of Capital Gains [in case (aii) does not exceed 1.05 times (ai), take this figure as (ai), or else take (aii)] | P8: aiii | Q8: =IF(Q7>(1.05*Q6),Q7,Q6) -> 0 | Y8: A2e-111A | Z8: 0
F9: b | G9: Deductions under section 48 | Y9: A2e-115AD | Z9: 0
G10: i | H10: Cost of acquisition without indexation | P10: bi | Y10: A3a | Z10: 0
G11: ii | H11: Cost of Improvement without indexation | P11: bii | Y11: A3b | Z11: 0
G12: iii | H12: Expenditure wholly and exclusively in connection with transfer | P12: biii | Y12: A4e | Z12: 0
G13: iv | H13: Total (bi + bii + biii) | P13: biv | Q13: =SUM(Q10:Q12) -> 0 | Y13: A5e | Z13: 0
F14: c | G14: Balance (aiii – biv) | P14: 1c | Q14: =SUM(Q8,-Q13) -> 0 | Y14: A6 | Z14: 0
F15: d | G15: Deduction under section 54B (Specify details in item D below) | P15: 1d | Y15: A7a | Z15: 0
F16: e | G16: Short-term Capital Gains on Immovable property (1c - 1d) | R16: A1e | S16: =IF( Q14<0,Q14,IF(Q14<Q15,0,Q14-Q15)) -> 0 | Y16: A7b | Z16: 0
F17: f | G17: In case of transfer of immovable property, please furnish the following details (see note) | Y17: A7c | Z17: 0
G18: Sl. No. | H18: Name of Buyer | I18: PAN of Buyer | J18: Aadhaar No. of buyer(s) | K18: Percentage share | L18: Amount | M18: Address of Property | N18: PIN Code
G19: 1
G20: =G19+1 -> 2
E21: 1
E24: Note 1 | G24: Furnishing of PAN is mandatory, if the tax is deduced under section 194-IA or is quoted by buyer in the documents.
E25: Note 2 | G25: In case of more than one buyer, please indicate the respective percentage share and amount.
E26: 2 | F26: (i) From sale of equity share or unit of equity oriented Mutual Fund (MF) or unit of a business trust on which STT is paid under section 111A
F27: ia | G27: Full value of consideration | P27: 2ia | Q27: 0
F28: ib | G28: Deductions under section 48
G29: i | H29: Cost of acquisition without indexation | P29: bi
G30: ii | H30: Cost of Improvement without indexation | P30: bii
G31: iii | H31: Expenditure wholly and exclusively in connection with transfer | P31: biii
G32: iv | H32: Total ( i + ii + iii) | P32: ibiv | Q32: =SUM(Q29,Q30,Q31) -> 0
F33: ic | G33: Balance (2ia – 2ibiv) | P33: 2ic | Q33: =SUM(Q27,-Q32) -> 0
F34: id | G34: Loss to be disallowed u/s 94(7) or 94(8)- for example if asset bought/acquired within 3 months prior to record date and dividend/income/bonus units are received, then loss arising out of sale of such asset to be ignored (Enter positive value only) | P34: 2id
F35: ie | G35: Short-term capital gain on equity share or equity oriented MF (STT paid) u/s 111A [for others] (2ic +2id) | R35: A2ie | S35: =SUM(Q33,Q34) -> 0
F36: (ii) From sale of equity share or unit of equity oriented Mutual Fund (MF) on which STT is paid u/s 115AD(1)(b)(ii) [for Foreign Institutional Investors]
F37: iia | G37: Full value of consideration | P37: 2iia
F38: iib | G38: Deductions under section 48
G39: i | H39: Cost of acquisition without indexation | P39: bi
G40: ii | H40: Cost of Improvement without indexation | P40: bii
G41: iii | H41: Expenditure wholly and exclusively in connection with transfer | P41: biii
G42: iv | H42: Total ( i + ii + iii) | P42: iibiv | Q42: =SUM(Q39,Q40,Q41) -> 0
F43: iic | G43: Balance (2iia – 2iibiv) | P43: 2iic | Q43: =SUM(Q37,-Q42) -> 0
F44: iid | G44: Loss to be disallowed u/s 94(7) or 94(8)- for example if asset bought/acquired within 3 months prior to record date and dividend/income/bonus units are received, then loss arising out of sale of such asset to be ignored (Enter positive value only) | P44: 2iid
F45: iie | G45: Short-term capital gain on equity share or equity oriented MF (STT paid) u/s 115AD(1)(b)(ii) [for Foreign Institutional Investors] (2iic +2iid) | R45: A2iie | S45: =SUM(Q43,Q44) -> 0
E46: 3 | F46: For NON-RESIDENT, not being an FII- from sale of shares or debentures of an Indian company (to be computed with foreign exchange adjustment under first proviso to section 48)
F47: a | G47: STCG on transactions on which securities transaction tax (STT) is paid | R47: A3a
F48: b | G48: STCG on transactions on which securities transaction tax (STT) is not paid | R48: A3b
E49: 4 | F49: For NON-RESIDENT- from sale of securities (other than those at A2) by an FII as per section 115AD
F50: a | G50: In case securities sold include shares of a company other than quoted shares, enter the following details
G51: i | H51: a) Full value of consideration received/receivable in respect of unquoted shares | P51: ia
H52: b) Fair market value of unquoted shares determined in the prescribed manner | P52: ib
H53: c) Full value of consideration in respect of unquoted shares adopted as per section 50CA for the purpose of Capital Gains (higher of a or b) | P53: ic | Q53: =MAX(IF(Q51>Q52,Q51,Q52),0) -> 0
G54: ii | H54: Full value of consideration in respect of securities other than unquoted shares | P54: aii
G55: iii | H55: Total (ic + ii) | P55: aiii | Q55: =SUM(Q53,Q54) -> 0
F56: b | G56: Deductions under section 48
G57: i | H57: Cost of acquisition without indexation | P57: bi
G58: ii | H58: Cost of improvement without indexation | P58: bii
G59: iii | H59: Expenditure wholly and exclusively in connection with transfer | P59: biii
G60: iv | H60: Total (i + ii + iii) | P60: biv | Q60: =SUM(Q57,Q58,Q59) -> 0
F61: c | G61: Balance (4aiii – biv) | P61: 4c | Q61: =SUM(Q55,-Q60) -> 0
F62: d | G62: Loss to be disallowed u/s 94(7) or 94(8)- for example if security bought/acquired within 3 months prior to record date and dividend/income/bonus units are received, then loss arising out of sale of such security to be ignored (Enter positive value only) | P62: 4d
F63: e | G63: Short-term capital gain on sale of securities by an FII (other than those at A2) (4c +4d) | R63: A4e | S63: =SUM(Q61,Q62) -> 0
E64: 5 | F64: From sale of assets other than at A1 or A2 or A3 or A4 above
F65: a | G65: In case assets sold include shares of a company other than quoted shares, enter the following details
G66: i | H66: a) Full value of consideration received/receivable in respect of unquoted shares | P66: ia
H67: b) Fair market value of unquoted shares determined in the prescribed manner | P67: ib
H68: c) Full value of consideration in respect of unquoted shares adopted as per section 50CA for the purpose of Capital Gains (higher of a or b) | P68: ic | Q68: =MAX(IF(Q66>Q67,Q66,Q67),0) -> 0
G69: ii | H69: Full value of consideration in respect of assets other than unquoted shares | P69: aii
G70: iii | H70: Total (ic + ii) | P70: aiii | Q70: =SUM(Q68,Q69) -> 0
F71: b | G71: Deductions under section 48
G72: i | H72: Cost of acquisition without indexation | P72: bi
G73: ii | H73: Cost of Improvement without indexation | P73: bii
G74: iii | H74: Expenditure wholly and exclusively in connection with transfer | P74: biii
G75: iv | H75: Total (i + ii + iii) | P75: biv | Q75: =SUM(Q72,Q73,Q74) -> 0
F76: c | G76: Balance (5aiii – biv) | P76: 5c | Q76: =SUM(Q70,-Q75) -> 0
F77: d | G77: In case of asset (security/unit)loss to be disallowed u/s 94(7) or 94(8)- for example if asset bought/acquired within 3 months prior to record date and dividend/income/bonus units are received, then loss arising out of sale of such asset to be under (Enter positive value only) | P77: 5d
F78: e | G78: STCG on assets other than at A1 or A2 or A3 or A4 above (5c + 5d) | R78: A5e | S78: =SUM(Q76,Q77) -> 0
E79: 6 | F79: Amount deemed to be short-term capital gains
E80: a | F80: Whether any amount of unutilized capital gain on asset transferred during the previous years shown below was deposited in the Capital Gains Accounts Scheme within due date for that year? If yes, then provide the details below Note: In case any amount is utilised out of Capital Gains account please fill sl no "B" of Schedule DI | Q80: (Select)
G81: Sl. No. | H81: Previous year in which asset transferred | I81: Section under which deduction claimed in that year | J81: New asset acquired/constructed | L81: Amount not used for new asset or remained unutilized in Capital gains account (X)
J82: Year in which asset acquired/constructed | K82: Amount utilised out of Capital Gains account
F83: i | G83: 1 | H83: (Select) | I83: (Select)
E88: b | F88: Amount deemed to be short term capital gains, other than at ‘a’
F89: iii | G89: Total amount deemed to be short term capital gains (axi + b) | R89: A6 | S89: =SUM(STCG.A6_AmtNotUsed_1,STCG.A6_AmtNotUsed_2,STCG.A6_DeemedAmtNotIn6a) -> 0
E90: 7 | F90: Pass Through Income/Loss in the nature of Short Term Capital Gain, (Fill up schedule PTI) (A7a + A7b + A7c) | R90: A7 | S90: =SUM(Q91,Q92,Q93) -> 0
F91: a | G91: Pass Through Income/Loss in the nature of Short Term Capital Gain, chargeable @ 15% | P91: A7a
F92: b | G92: Pass Through Income/Loss in the nature of Short Term Capital Gain, chargeable @ 30% | P92: A7b
F93: c | G93: Pass Through Income/Loss in the nature of Short Term Capital Gain, chargeable at applicable rates | P93: A7c
E94: 8 | F94: Amount of STCG included in A1-A7 but not chargeable to tax or chargeable at special rates in India as per DTAA
G95: Sl. No. (1) | H95: Amount of income (2) | I95: Item No. A1 to A7 above in which included (3) | J95: Country name, code (4) | K95: Article of DTAA (5) | L95: Rate as per Treaty (enter NIL, if not chargeable) (6) | M95: Whether Tax Residency Certificate obtained? (7) | N95: Section of I.T. Act (8) | O95: Rate as per I.T. Act (9) | P95: Applicable rate [lower of (6) or (9)] (10) | Y95: Xml_code | Z95: Section Code | AA95: Section Amount
G96: =1 -> 1 | I96: (Select) | J96: (Select) | P96: 0 | Y96: =VLOOKUP(I96,CG_STCGSection_DTAA_XML,2,FALSE) -> 0 | Z96: =I96 -> (Select) | AA96: =H96 -> 0
G97: =G96+1 -> 2 | I97: (Select) | J97: (Select) | P97: 0 | Y97: =VLOOKUP(I97,CG_STCGSection_DTAA_XML,2,FALSE) -> 0 | Z97: =I97 -> (Select) | AA97: =H97 -> 0
G101: a | H101: Total amount of STCG not chargeable to tax in India as per DTAA | R101: A8a | S101: =IF(MID(sheet1.ResidentialStatus1,1,3)="NRI",SUM(SUMIFS(STCG.A7_StcgAmt,STCG.A7_CertiStatus,"Yes",STCG.A7_Rate_Applicable,{"","0"})),SUM(SUMIFS(STCG.A7_StcgAmt,STCG.A7_Rate_Applicable,{"","0"}))) -> 0
G102: b | H102: Total amount of STCG chargeable to tax at special rates in India as per DTAA | R102: A8b | S102: =IF(MID(sheet1.ResidentialStatus1,1,3)="NRI",SUMIFS(STCG.A7_StcgAmt,STCG.A7_CertiStatus,"Yes",STCG.A7_Rate_Applicable,"<>""",STCG.A7_Rate_Applicable,"<>0"),SUM(SUMIFS(STCG.A7_StcgAmt,STCG.A7_Rate_Applicable,"<>""",STCG.A7_Rate_Applicable,"<>0"))) -> 0
E103: 9 | F103: Total Short-term Capital Gain (A1e+ A2e+…..+ A3a+ A3b+ A4e+ A5e+A6+A7-A8a) | R103: A9 | S103: =STCG_SaleLand_Total+STCG.A2ie_CapgainonAssets+STCG.A2iie_CapgainonAssets+STCG.A3a_NRItaxSTTPaid+STCG.A3b_NRItaxSTTNotPaid+STCG.A4e_CapgainonAssets+STCG.A5e_CapgainonAssets+STCG.A6_AmtDeemed+STCG_PTI_Total-STCG.A7a_StcgDTAA -> 0 | Y103: CG_B_Count | Z103: 1 | AA103: Sum of B1e | AB103: 0
D104: B | E104: Long-term capital gain (LTCG) (Items 5, 6, 7 & 8 are not applicable for residents) | Y104: CG_B_frmsize | Z104: 22 | AA104: Sum of aiii | AB104: 0
E105: 1 | F105: From sale of land or building or both (fill up details separately for each property) | Y105: LTCG DTAA Total | Z105: =SUM(LTCG.B9_StcgAmt) -> 0
F106: a | G106: i | H106: Full value of consideration received/receivable | P106: ai | Y106: B1e | Z106: =IF(MID(sheet1.ResidentialStatus1,1,3)="NRI",SUMIFS(Section_AmountLtcgB9,LTCG.B9_CertiStatus,"=Yes",Section_CodeSLtcgB9,Y106),SUMIF(Section_CodeSLtcgB9,Y106,Section_AmountLtcgB9)) -> 0 | AA106: =IF(MID(sheet1.ResidentialStatus1,1,3)="NRI",SUMIFS(Section_AmountLtcgB9,LTCG.B9_CertiStatus,"=Yes",Section_CodeSLtcgB9,Y7),SUMIF(Section_CodeSLtcgB9,Y7,Section_AmountLtcgB9)) -> 0
G107: ii | H107: Value of property as per stamp valuation authority | P107: aii | Y107: B2e | Z107: 0
G108: iii | H108: Full value of consideration adopted as per section 50C for the purpose of Capital Gains [in case (aii) does not exceed 1.05 times (ai), take this figure as (ai), or else take (aii)] | P108: aiii | Q108: =IF(Q107>(1.05*Q106),Q107,Q106) -> 0 | Y108: B3e-112(1) | Z108: 0
F109: b | G109: Deductions under section 48 | Y109: B3e-115ACA | Z109: 0
G110: i | H110: Cost of acquisition with indexation | P110: bi | Y110: B4c-112A | Z110: 0
G111: ii | H111: Cost of Improvement with indexation | P111: bii | Y111: B5c | Z111: 0
G112: iii | H112: Expenditure wholly and exclusively in connection with transfer | P112: biii | Y112: B6e -112(1)(c) | Z112: 0
G113: iv | H113: Total (bi + bii + biii) | P113: biv | Q113: =IF(Q108=0,0,SUM(Q110,Q111,Q112)) -> 0 | Y113: B6e-115AC | Z113: 0
F114: c | G114: Balance (aiii – biv) | P114: 1c | Q114: =SUM(Q108,-Q113) -> 0 | Y114: B6e-115AD | Z114: 0
F115: di | G115: Deduction under section 54 (Specify details in item D below) | P115: di | Y115: B7c-115AD(1)(iii)proviso | Z115: 0
F116: dii | G116: Deduction under section 54B (Specify details in item D below) | P116: dii | Y116: B8c | Z116: 0
F117: diii | G117: Deduction under section 54EC (Specify details in item D below) | P117: diii | Y117: B8f | Z117: 0
F118: dv | G118: Deduction under section 54F (Specify details in item D below) | P118: dv | Y118: B9e | Z118: 0
F119: dvi | G119: Deduction under section 54GB (Specify details in item D below) | P119: dvi | Y119: B10 | Z119: 0
F120: d | G120: Deduction under section 54/54B/54EC /54F/54GB (Specify details in item D below) | P120: 1d | Q120: =SUM(Q115:Q119) -> 0 | Y120: B11a1 | Z120: 0
F121: e | G121: Long-term Capital Gains on Immovable property (1c - 1d) | R121: B1e | S121: =IF( Q114<0,Q114,IF(Q114<Q120,0,Q114-Q120)) -> 0 | Y121: B11a2 | Z121: 0
F122: f | G122: In case of transfer of immovable property, please furnish the following details (see note) | Y122: B11b | Z122: 0
G123: Sl. No. | H123: Name of Buyer | I123: PAN of Buyer | J123: Aadhaar No. of buyer(s) | K123: Percentage share | L123: Amount | M123: Address of Property | N123: PIN Code
G124: 1
G125: =G124+1 -> 2
E126: 1
E129: Note 1 | G129: Furnishing of PAN/ Aadhaar No. is mandatory, if the tax is deduced under section 194-IA or is quoted by buyer in the documents
E130: Note 2 | G130: In case of more than one buyer, please indicate the respective percentage share and amount.
E131: 2 | F131: From sale of bonds or debenture (other than capital indexed bonds issued by Government)
F132: a | G132: Full value of consideration | P132: 2a
F133: b | G133: Deductions under section 48
G134: i | H134: Cost of acquisition without indexation | P134: bi
G135: ii | H135: Cost of improvement without indexation | P135: bii
G136: iii | H136: Expenditure wholly and exclusively in connection with transfer | P136: biii
G137: iv | H137: Total (bi + bii +biii) | P137: biv | Q137: =SUM(Q134:Q136) -> 0
F138: c | G138: Balance (2a – biv) | P138: 2c | Q138: =LTCG.B2a_FullConsideration-LTCG.B2biv_TotalDedn -> 0
F139: d | G139: Deduction under sections 54F (Specify details in item D below) | P139: 2d
F140: e | G140: LTCG on bonds or debenture (2c – 2d) | R140: B2e | S140: =IF(LTCG.B2c_BalanceCG<0,LTCG.B2c_BalanceCG,MAX(0,LTCG.B2c_BalanceCG-LTCG.B2dii_ExemptionAmount)) -> 0
E141: 3 | F141: From sale of, (i) listed securities (other than a unit) or zero coupon bonds where proviso under section 112(1) is applicable
F142: ia | G142: Full value of consideration | P142: 3ia
F143: ib | G143: Deductions under section 48
G144: i | H144: Cost of acquisition without indexation | P144: bi
G145: ii | H145: Cost of improvement without indexation | P145: bii
G146: iii | H146: Expenditure wholly and exclusively in connection with transfer | P146: biii
G147: iv | H147: Total (bi + bii +biii) | P147: biv | Q147: =SUM(Q144:Q146) -> 0
F148: ic | G148: Balance (3ia – 3ibiv) | P148: 3ic | Q148: =LTCG.B3a_FullConsideration-LTCG.B3biv_TotalDedn -> 0
F149: id | G149: Deduction under sections 54F (Specify details in item D below) | P149: 3id
F150: ie | G150: Long-term Capital Gains on assets at B3 above (3ic – 3id) | R150: Bi3e | S150: =IF(LTCG.B3c_BalanceCG<0,LTCG.B3c_BalanceCG,MAX(0,LTCG.B3c_BalanceCG-LTCG.B3d_ExemptionAmount)) -> 0
F151: From sale of GDR of an Indian company referred in sec. 115ACA
F152: iia | G152: Full value of consideration | P152: 3iia
F153: iib | G153: Deductions under section 48
G154: i | H154: Cost of acquisition without indexation | P154: bi
G155: ii | H155: Cost of improvement without indexation | P155: bii
G156: iii | H156: Expenditure wholly and exclusively in connection with transfer | P156: biii
G157: iv | H157: Total (bi + bii +biii) | P157: biv | Q157: =SUM(Q154:Q156) -> 0
F158: iic | G158: Balance (3iia – 3iibiv) | P158: 3iic | Q158: =LTCG.Bii3a_FullConsideration-LTCG.Bii3biv_TotalDedn -> 0
F159: iid | G159: Deduction under sections 54F (Specify details in item D below) | P159: 3iid
F160: iie | G160: Long-term Capital Gains on assets at B3 above (3iic – 3iid) | R160: B3iie | S160: =IF(LTCG.Bii3c_BalanceCG<0,LTCG.Bii3c_BalanceCG,MAX(0,LTCG.Bii3c_BalanceCG-LTCG.Bii3d_ExemptionAmount)) -> 0
E161: 4 | F161: From sale of equity share in a company or unit of equity oriented fund or unit of a business trust on which STT is paid under section 112A
F162: a | G162: LTCG u/s 112A (column 14 of Schedule 112A) | P162: 4a | Q162: =ROUND(Total_Balance_112A,0) -> 0
F163: b | G163: Deduction under sections 54F (Specify details in item D below) | P163: 4b
F164: c | G164: Long-term Capital Gains on sale of capital assets at B4 above (4a – 4b) | R164: B4c | S164: =IF(LTCG.B4c_Balance<0,LTCG.B4c_Balance,MAX(0,LTCG.B4c_Balance-LTCG.B4e_DeductionUsTotal)) -> 0
E165: 5 | F165: For NON-RESIDENTS- from sale of shares or debenture of Indian company (to be computed with foreign exchange adjustment under first proviso to section 48)
F166: a | G166: LTCG computed without indexation benefit | P166: 5a
F167: b | G167: Deduction under sections 54F (Specify details in item D below) | P167: 5b
F168: c | G168: LTCG on share or debenture (5a-5b) | R168: B5c | S168: =IF(LTCG.B5a_LTCGWithoutBenefit<0,LTCG.B5a_LTCGWithoutBenefit,MAX(0,LTCG.B5a_LTCGWithoutBenefit-LTCG.B5b_ExemptionAmount)) -> 0
E169: 6 | F169: For NON-RESIDENTS- from sale of, (i) unlisted securities or shares of a company not being a company in which the public are substantially interested as per sec. 112(1)(c)
F170: ia | G170: In case securities sold include shares of a company other than quoted shares, enter the following details
F171: i | G171: a) Full value of consideration received/receivable in respect of unquoted shares | P171: ia
G172: b) Fair market value of unquoted shares determined in the prescribed manner | P172: ib
G173: c) Full value of consideration in respect of unquoted shares adopted as per section 50CA for the purpose of Capital Gains (higher of a or b) | P173: ic | Q173: =MAX(IF(Q171>Q172,Q171,Q172),0) -> 0
F174: ii | G174: Full value of consideration in respect of assets other than unquoted shares | P174: ii
F175: iii | G175: Total (ic + ii) | P175: iii | Q175: =SUM(Q173,Q174) -> 0
F176: ib | G176: Deductions under section 48
G177: i | H177: Cost of acquisition without indexation | P177: ibi
G178: ii | H178: Cost of improvement without indexation | P178: ibii
G179: iii | H179: Expenditure wholly and exclusively in connection with transfer | P179: ibiii
G180: iv | H180: Total (bi + bii +biii) | P180: ibiv | Q180: =SUM(Q177:Q179) -> 0
F181: ic | G181: Balance (6aiii – biv) | P181: ic | Q181: =LTCG.Bi5a_FullConsideration-LTCG.Bi5biv_TotalDedn -> 0
F182: id | G182: Deduction under sections 54F (Specify details in item D below) | P182: id
F183: ie | G183: Long-term Capital Gains on assets at 6 above in case of NON-RESIDENT (6c – 6d) | R183: B6ie | S183: =IF(LTCG.Bi5c_BalanceCG<0,LTCG.Bi5c_BalanceCG,MAX(0,LTCG.Bi5c_BalanceCG-LTCG.Bi5d_ExemptionAmount)) -> 0
F184: (ii) For NON-RESIDENTS- from sale of bonds or GDR as referred in sec. 115AC
F185: iia | G185: In case securities sold include shares of a company other than quoted shares, enter the following details
F186: i | G186: a) Full value of consideration received/receivable in respect of unquoted shares | P186: iia
G187: b) Fair market value of unquoted shares determined in the prescribed manner | P187: iib
G188: c) Full value of consideration in respect of unquoted shares adopted as per section 50CA for the purpose of Capital Gains (higher of a or b) | P188: iic | Q188: =MAX(IF(Q186>Q187,Q186,Q187),0) -> 0
F189: ii | G189: Full value of consideration in respect of assets other than unquoted shares | P189: ii
F190: iii | G190: Total (ic + ii) | P190: iii | Q190: =SUM(Q188,Q189) -> 0
F191: iib | G191: Deductions under section 48
G192: i | H192: Cost of acquisition without indexation | P192: iibi
G193: ii | H193: Cost of improvement without indexation | P193: iibii
G194: iii | H194: Expenditure wholly and exclusively in connection with transfer | P194: iibiii
G195: iv | H195: Total (bi + bii +biii) | P195: iibiv | Q195: =SUM(Q192:Q194) -> 0
F196: iic | G196: Balance (6aiii – biv) | P196: iic | Q196: =LTCG.Bii5a_FullConsideration-LTCG.Bii5biv_TotalDedn -> 0
F197: iid | G197: Deduction under sections 54F (Specify details in item D below) | P197: iid
F198: iie | G198: Long-term Capital Gains on assets at 6 above in case of NON-RESIDENT (6c – 6d) | R198: B6iie | S198: =IF(LTCG.Bii5c_BalanceCG<0,LTCG.Bii5c_BalanceCG,MAX(0,LTCG.Bii5c_BalanceCG-LTCG.Bii5d_ExemptionAmount)) -> 0
F199: (iii) For NON-RESIDENTS- from sale of securities by FII as referred to in sec. 115AD
F200: iiia | G200: In case securities sold include shares of a company other than quoted shares, enter the following details
F201: i | G201: a) Full value of consideration received/receivable in respect of unquoted shares | P201: iiia
G202: b) Fair market value of unquoted shares determined in the prescribed manner | P202: iiib
G203: c) Full value of consideration in respect of unquoted shares adopted as per section 50CA for the purpose of Capital Gains (higher of a or b) | P203: iiic | Q203: =MAX(IF(Q201>Q202,Q201,Q202),0) -> 0
F204: ii | G204: Full value of consideration in respect of assets other than unquoted shares | P204: ii
F205: iii | G205: Total (ic + ii) | P205: iii | Q205: =SUM(Q203,Q204) -> 0
F206: iiib | G206: Deductions under section 48
G207: i | H207: Cost of acquisition without indexation | P207: iiibi
G208: ii | H208: Cost of improvement without indexation | P208: iiibii
G209: iii | H209: Expenditure wholly and exclusively in connection with transfer | P209: iiibiii
G210: iv | H210: Total (bi + bii +biii) | P210: iiibiv | Q210: =SUM(Q207:Q209) -> 0
F211: iiic | G211: Balance (6aiii – biv) | P211: iiic | Q211: =LTCG.Biii5a_FullConsideration-LTCG.Biii5biv_TotalDedn -> 0
F212: iiid | G212: Deduction under sections 54F (Specify details in item D below) | P212: iiid
F213: iiie | G213: Long-term Capital Gains on assets at 6 above in case of NON-RESIDENT (6c – 6d) | R213: B6iiie | S213: =IF(LTCG.Biii5c_BalanceCG<0,LTCG.Biii5c_BalanceCG,MAX(0,LTCG.Biii5c_BalanceCG-LTCG.Biii5d_ExemptionAmount)) -> 0
... 117 more rows

Sheet Schedule 112A
C3: Schedule 112A | E3: From sale of equity share in a company or unit of equity oriented fund or unit of a business trust on which STT is paid under section 112A
D4: Sl. No. | E4: ISIN Code | F4: Name of the Share/Unit | G4: No. of Shares/Units | H4: Sale-price per Share/Unit | I4: Total Sale Value (4*5) | J4: Cost of acquisition without indexation (higher of 8 or 9 ) | K4: Cost of acquisition | L4: If the long term capital asset was acquired before 01.02.2018, Lower of 6 & 11 | M4: Fair Market Value per share/unit as on 31st January,2018 | N4: Total Fair Market Value of capital asset as per section 55(2)(ac)- (4*10) | O4: Expenditure wholly and exclusively in connection with transfer | P4: Total deductions (7+12 ) | Q4: Balance (6–13 ) -Item 4(a) of LTCG Schedule of ITR2
D5: (Col 1) | E5: (Col 2) | F5: (Col 3) | G5: (Col 4) | H5: (Col 5) | I5: (Col 6) | J5: (Col 7) | K5: (Col 8) | L5: (Col 9) | M5: (Col 10) | N5: (Col 11) | O5: (Col 12) | P5: (Col 13) | Q5: (Col 14)
D6: 1 | I6: =MAX(0,G6*H6) -> 0 | J6: =MAX(0,K6,L6) -> 0 | L6: =MAX(0,MIN(N6,I6)) -> 0 | N6: =MAX(0,G6*M6) -> 0 | P6: =MAX(0,SUM(J6,,O6)) -> 0 | Q6: =I6-P6 -> 0 | T6: =IF(ISERROR(VLOOKUP(E6,ISINListTable,2,FALSE)),"",VLOOKUP(E6,ISINListTable,2,FALSE)) -> 
D7: =D6+1 -> 2 | I7: =MAX(0,G7*H7) -> 0 | J7: =MAX(0,K7,L7) -> 0 | L7: =MAX(0,MIN(N7,I7)) -> 0 | N7: =MAX(0,G7*M7) -> 0 | P7: =MAX(0,SUM(J7,,O7)) -> 0 | Q7: =I7-P7 -> 0 | T7: =IF(ISERROR(VLOOKUP(E7,ISINListTable,2,FALSE)),"",VLOOKUP(E7,ISINListTable,2,FALSE)) -> 
D8: =D7+1 -> 3 | I8: =MAX(0,G8*H8) -> 0 | J8: =MAX(0,K8,L8) -> 0 | L8: =MAX(0,MIN(N8,I8)) -> 0 | N8: =MAX(0,G8*M8) -> 0 | P8: =MAX(0,SUM(J8,,O8)) -> 0 | Q8: =I8-P8 -> 0 | T8: =IF(ISERROR(VLOOKUP(E8,ISINListTable,2,FALSE)),"",VLOOKUP(E8,ISINListTable,2,FALSE)) -> 
D9: =D8+1 -> 4 | I9: =MAX(0,G9*H9) -> 0 | J9: =MAX(0,K9,L9) -> 0 | L9: =MAX(0,MIN(N9,I9)) -> 0 | N9: =MAX(0,G9*M9) -> 0 | P9: =MAX(0,SUM(J9,,O9)) -> 0 | Q9: =I9-P9 -> 0 | T9: =IF(ISERROR(VLOOKUP(E9,ISINListTable,2,FALSE)),"",VLOOKUP(E9,ISINListTable,2,FALSE)) -> 
I11: =SUM(TotalSaleValue_112A) -> 0 | J11: =SUM(COAwithoutIndex_112A) -> 0 | K11: =SUM(COAwithIndex_112A) -> 0 | L11: =SUM(LTCGAssetAcquired_112A) -> 0 | N11: =SUM(TotalFairMarketValue_112A) -> 0 | O11: =SUM(ExpenditureWholly_112A) -> 0 | P11: =SUM(TotalDeductions_112A) -> 0 | Q11: =SUM(Balance_112A) -> 0

Sheet Schedule 115AD(1)(iii) proviso
C3: 115AD(1)(iii) proviso | E3: For NON-RESIDENTS - From sale of equity share in a company or unit of equity oriented fund or unit of a business trust on which STT is paid under section 112A
D4: Sl. No. | E4: ISIN Code | F4: Name of the Share/Unit | G4: No. of Shares/Units | H4: Sale-price per Share/Unit | I4: Total Sale Value (4*5) | J4: Cost of acquisition without indexation (Higher of 8&9) | K4: Cost of acquisition | L4: If the long term capital asset was acquired before 01.02.2018, Lower of 6 & 11 | M4: Fair Market Value per share/unit as on 31st January,2018 | N4: Total Fair Market Value of capital asset as per section 55(2)(ac)- (4*10) | O4: Expenditure wholly and exclusively in connection with transfer | P4: Total deductions (7+12) | Q4: Balance (6 –13) -Item 7 (a) of LTCG Schedule of ITR2
D5: (Col 1) | E5: (Col 2) | F5: (Col 3) | G5: (Col 4) | H5: (Col 5) | I5: (Col 6) | J5: (Col 7) | K5: (Col 8) | L5: (Col 9) | M5: (Col 10) | N5: (Col 11) | O5: (Col 12) | P5: (Col 13) | Q5: (Col 14)
D6: 1 | I6: =MAX(0,G6*H6) -> 0 | J6: =MAX(0,K6,L6) -> 0 | L6: =MAX(0,MIN(N6,I6)) -> 0 | N6: =MAX(0,G6*M6) -> 0 | P6: =MAX(0,SUM(J6,O6)) -> 0 | Q6: =I6-P6 -> 0 | T6: =IF(ISERROR(VLOOKUP(E6,ISINListTable,2,FALSE)),"",VLOOKUP(E6,ISINListTable,2,FALSE)) -> 
D7: =D6+1 -> 2 | I7: =MAX(0,G7*H7) -> 0 | J7: =MAX(0,K7,L7) -> 0 | L7: =MAX(0,MIN(N7,I7)) -> 0 | N7: =MAX(0,G7*M7) -> 0 | P7: =MAX(0,SUM(J7,O7)) -> 0 | Q7: =I7-P7 -> 0 | T7: =IF(ISERROR(VLOOKUP(E7,ISINListTable,2,FALSE)),"",VLOOKUP(E7,ISINListTable,2,FALSE)) -> 
D8: =D7+1 -> 3 | I8: =MAX(0,G8*H8) -> 0 | J8: =MAX(0,K8,L8) -> 0 | L8: =MAX(0,MIN(N8,I8)) -> 0 | N8: =MAX(0,G8*M8) -> 0 | P8: =MAX(0,SUM(J8,O8)) -> 0 | Q8: =I8-P8 -> 0 | T8: =IF(ISERROR(VLOOKUP(E8,ISINListTable,2,FALSE)),"",VLOOKUP(E8,ISINListTable,2,FALSE)) -> 
D9: =D8+1 -> 4 | I9: =MAX(0,G9*H9) -> 0 | J9: =MAX(0,K9,L9) -> 0 | L9: =MAX(0,MIN(N9,I9)) -> 0 | N9: =MAX(0,G9*M9) -> 0 | P9: =MAX(0,SUM(J9,O9)) -> 0 | Q9: =I9-P9 -> 0 | T9: =IF(ISERROR(VLOOKUP(E9,ISINListTable,2,FALSE)),"",VLOOKUP(E9,ISINListTable,2,FALSE)) -> 
I11: =SUM(TotalSaleValue_115AD) -> 0 | J11: =SUM(COAwithoutIndex_115AD) -> 0 | K11: =SUM(COAwithIndex_115AD) -> 0 | L11: =SUM(LTCGAssetAcquired_115AD) -> 0 | N11: =SUM(TotalFairMarketValue_115AD) -> 0 | O11: =SUM(ExpenditureWholly_115AD) -> 0 | P11: =SUM(TotalDeductions_115AD) -> 0 | Q11: =SUM(Balance_115AD) -> 0

Sheet OS
U1: SOURCE TABLE | AJ1: PTI TABLE
C3: Schedule OS | G3: Income from other sources | R3: Income Benefit | S3: =SUM(os.OtherIncomeBenefit) -> 0 | U3: 5A1aiiab | V3: =SUMIF(OS_SourceSectionCode,"=5A1aiiab",SectionAmountSourceOS) -> 0 | W3: 5A1bB | X3: =SUMIF(OS_SourceSectionCode,"=5A1bB",SectionAmountSourceOS) -> 0 | Y3: 5BBA | Z3: =SUMIF(OS_SourceSectionCode,"=5BBA",SectionAmountSourceOS) -> 0 | AA3: 1 | AB3: =IncomeBenefitSum -> 0 | AC3: 1c | AD3: =MAX(0,os.RentFromMachPlantBldgs) -> 0 | AJ3: PTI_5A1ai | AK3: =SUMIF(OS_PTISectionCode,AJ3,SectionAmountPTIOS) -> 0 | AL3: PTI_5A1aiiac | AM3: =SUMIF(OS_PTISectionCode,AL3,SectionAmountPTIOS) -> 0 | AN3: PTI_5AD1i | AO3: =SUMIF(OS_PTISectionCode,AN3,SectionAmountPTIOS) -> 0 | AP3: PTI_5BBDA | AQ3: =SUMIF(OS_PTISectionCode,AP3,SectionAmountPTIOS) -> 0 | AR3: PTI_5BBE | AS3: =SUMIF(OS_PTISectionCode,AR3,SectionAmountPTIOS) -> 0 | AT3: Total | AU3: =SUM(AK3:AK7,AM3:AM7,AO3:AO7,AQ3:AQ7,AS3:AS4) -> 0
C4: OTHER SOURCES | D4: 1 | E4: Gross income chargeable to tax at normal applicable rates (1a+ 1b+ 1c+ 1d + 1e) | M4: 1 | N4: =SUM(L5,L6,L12,L13,L19) -> 1037410 | R4: Claim 115H Check | S4: =IF(MID(sheet1.Claim115H,1,1)="Y","Y","N") -> N | U4: 5A1aiiaa | V4: =SUMIF(OS_SourceSectionCode,"=5A1aiiaa",SectionAmountSourceOS) -> 0 | W4: 5A1bA | X4: =SUMIF(OS_SourceSectionCode,"=5A1b",SectionAmountSourceOS) -> 0 | Y4: 5AD1ip | Z4: =SUMIF(OS_SourceSectionCode,"=5AD1ip",SectionAmountSourceOS) -> 0 | AA4: 5Ea | AB4: =SUMIF(OS_SourceSectionCode,"=5Ea",SectionAmountSourceOS) -> 0 | AC4: 1d | AD4: =MAX(0,os.Total562Tax) -> 0 | AJ4: PTI_5A1aii | AK4: =SUMIF(OS_PTISectionCode,AJ4,SectionAmountPTIOS) -> 0 | AL4: PTI_5A1aiii | AM4: =SUMIF(OS_PTISectionCode,AL4,SectionAmountPTIOS) -> 0 | AN4: PTI_5AD1iP | AO4: =SUMIF(OS_PTISectionCode,AN4,SectionAmountPTIOS) -> 0 | AP4: PTI_5BBF | AQ4: =SUMIF(OS_PTISectionCode,AP4,SectionAmountPTIOS) -> 0 | AR4: PTI_1 | AS4: =SUMIF(OS_PTISectionCode,AR4,SectionAmountPTIOS) -> 0
E5: a | F5: Dividends, Gross [(not exempt u/s 10(34) and 10(35)] | K5: 1a | R5: Residential Check | S5: =IF(MID(sheet1.ResidentialStatus1,1,2)="NR","NRI","RES") -> RES | U5: 5A1aiia | V5: =SUMIF(OS_SourceSectionCode,"=5A1aiia",SectionAmountSourceOS) -> 0 | W5: FA | X5: 0 | Y5: 5AD1i | Z5: =SUMIF(OS_SourceSectionCode,"=5AD1i",SectionAmountSourceOS) -> 0 | AA5: 5BBE | AB5: =SUM(os.Total115BE) -> 0 | AC5: 5BBDA | AD5: =SUMIF(OS_SourceSectionCode,"=5BBDA",SectionAmountSourceOS) -> 0 | AJ5: PTI_5A1aiia | AK5: =SUMIF(OS_PTISectionCode,AJ5,SectionAmountPTIOS) -> 0 | AL5: PTI_5A1b | AM5: =SUMIF(OS_PTISectionCode,AL5,SectionAmountPTIOS) -> 0 | AN5: PTI_5ACA1a | AO5: =SUMIF(OS_PTISectionCode,AN5,SectionAmountPTIOS) -> 0 | AP5: PTI_5BBG | AQ5: =SUMIF(OS_PTISectionCode,AP5,SectionAmountPTIOS) -> 0
E6: b | F6: Interest, Gross" (bi + bii + biii + biv + bv) | K6: 1b | L6: =SUM(L7:L11) -> 1037410 | R6: CheckBBDA | S6: =SUM(H80:L80) -> 0 | U6: 5A1aii | V6: =SUMIF(OS_SourceSectionCode,"=5A1aii",SectionAmountSourceOS) -> 0 | W6: 5A1aiii | X6: =SUMIF(OS_SourceSectionCode,"=5A1aiii",SectionAmountSourceOS) -> 0 | Y6: 5ACA1a | Z6: =SUMIF(OS_SourceSectionCode,"=5ACA1a",SectionAmountSourceOS) -> 0 | AA6: 5BBC | AB6: =SUMIF(OS_SourceSectionCode,"=5BBC",SectionAmountSourceOS) -> 0 | AC6: 5BBF | AD6: =SUMIF(OS_SourceSectionCode,"=5BBF",SectionAmountSourceOS) -> 0 | AJ6: PTI_5A1aiiaa | AK6: =SUMIF(OS_PTISectionCode,AJ6,SectionAmountPTIOS) -> 0 | AL6: PTI_5A1bB | AM6: =SUMIF(OS_PTISectionCode,AL6,SectionAmountPTIOS) -> 0 | AN6: PTI_5BBA | AO6: =SUMIF(OS_PTISectionCode,AN6,SectionAmountPTIOS) -> 0 | AP6: PTI_5Ea | AQ6: =SUMIF(OS_PTISectionCode,AP6,SectionAmountPTIOS) -> 0
F7: i | G7: From Savings Bank | K7: bi | L7: 37410 | R7: CheckLottery | S7: =SUM(H81:L81) -> 0 | U7: 5A1ai | V7: =SUMIF(OS_SourceSectionCode,"=5A1ai",SectionAmountSourceOS) -> 0 | W7: 5A1aiiac | X7: =SUMIF(OS_SourceSectionCode,"=5A1aiiac",SectionAmountSourceOS) -> 0 | Y7: 5AC1ab | Z7: =SUMIF(OS_SourceSectionCode,"=5AC1ab",SectionAmountSourceOS) -> 0 | AA7: 5BB | AB7: =os.WinLottRacePuzz -> 0 | AC7: 5BBG | AD7: =SUMIF(OS_SourceSectionCode,"=5BBG",SectionAmountSourceOS) -> 0 | AE7: Total | AF7: =SUM(V3:V7,X3:X7,Z3:Z7,AB3:AB4,AB6,AD3:AD7) -> 0 | AJ7: PTI_5A1aiiab | AK7: =SUMIF(OS_PTISectionCode,AJ7,SectionAmountPTIOS) -> 0 | AL7: PTI_5AC1ab | AM7: =SUMIF(OS_PTISectionCode,AL7,SectionAmountPTIOS) -> 0 | AN7: PTI_5BBC | AO7: =SUMIF(OS_PTISectionCode,AN7,SectionAmountPTIOS) -> 0 | AP7: PTI_5BB | AQ7: =SUMIF(OS_PTISectionCode,AP7,SectionAmountPTIOS) -> 0
F8: ii | G8: From Deposits (Bank/ Post Office/ Co-operative) | K8: bii | L8: 1000000 | R8: 115BB | S8: =IF(MID(sheet1.ResidentialStatus1,1,3)="NRI",SUMIFS(os.Amount_income,os.TRC,"=Yes",Section_CodeDtaaOS,"=115BB"),SUMIF(Section_CodeDtaaOS,"=115BB",os.Amount_income)) -> 0 | T8: =SUMIF(Section_CodeDtaaOS,"=115BB",os.Amount_income) -> 0
F9: iii | G9: From Income-tax Refund | K9: biii | R9: 115BBDA | S9: =IF(MID(sheet1.ResidentialStatus1,1,3)="NRI",SUMIFS(os.Amount_income,os.TRC,"=Yes",Section_CodeDtaaOS,"=115BBDA"),SUMIF(Section_CodeDtaaOS,"=115BBDA",os.Amount_income)) -> 0
F10: iv | G10: In the nature of Pass through income/Loss | K10: biv | R10: 115BBE | S10: =IF(MID(sheet1.ResidentialStatus1,1,3)="NRI",SUMIFS(os.Amount_income,os.TRC,"=Yes",Section_CodeDtaaOS,"=115BBE"),SUMIF(Section_CodeDtaaOS,"=115BBE",os.Amount_income)) -> 0 | U10: 5A1aiia | V10: =IF(MID(sheet1.ResidentialStatus1,1,3)="NRI",SUMIFS(SectionAmountDtaaOS,os.TRC,"=Yes",OS_DTAASectionCode,"=5A1aiia"),SUMIF(OS_DTAASectionCode,"=5A1aiia",SectionAmountDtaaOS)) -> 0 | W10: 5A1bA | X10: =IF(MID(sheet1.ResidentialStatus1,1,3)="NRI",SUMIFS(SectionAmountDtaaOS,os.TRC,"=Yes",OS_DTAASectionCode,"=5A1b"),SUMIF(OS_DTAASectionCode,"=5A1b",SectionAmountDtaaOS)) -> 0 | Y10: 5BBA | Z10: =IF(MID(sheet1.ResidentialStatus1,1,3)="NRI",SUMIFS(SectionAmountDtaaOS,os.TRC,"=Yes",OS_DTAASectionCode,"=5BBA"),SUMIF(OS_DTAASectionCode,"=5BBA",SectionAmountDtaaOS)) -> 0 | AJ10: PTI_5A1ai | AK10: =IF(MID(sheet1.ResidentialStatus1,1,3)="NRI",SUMIFS(SectionAmountDtaaOS,os.TRC,"=Yes",OS_DTAASectionCode,AJ10),SUMIF(OS_DTAASectionCode,AJ10,SectionAmountDtaaOS)) -> 0 | AL10: PTI_5A1aiiac | AM10: =IF(MID(sheet1.ResidentialStatus1,1,3)="NRI",SUMIFS(SectionAmountDtaaOS,os.TRC,"=Yes",OS_DTAASectionCode,AL10),SUMIF(OS_DTAASectionCode,AL10,SectionAmountDtaaOS)) -> 0 | AN10: PTI_5AD1i | AO10: =IF(MID(sheet1.ResidentialStatus1,1,3)="NRI",SUMIFS(SectionAmountDtaaOS,os.TRC,"=Yes",OS_DTAASectionCode,AN10),SUMIF(OS_DTAASectionCode,AN10,SectionAmountDtaaOS)) -> 0 | AP10: PTI_5BBDA | AQ10: =IF(MID(sheet1.ResidentialStatus1,1,3)="NRI",SUMIFS(SectionAmountDtaaOS,os.TRC,"=Yes",OS_DTAASectionCode,AP10),SUMIF(OS_DTAASectionCode,AP10,SectionAmountDtaaOS)) -> 0 | AR10: PTI_5BBE | AS10: =IF(MID(sheet1.ResidentialStatus1,1,3)="NRI",SUMIFS(SectionAmountDtaaOS,os.TRC,"=Yes",OS_DTAASectionCode,AR10),SUMIF(OS_DTAASectionCode,AR10,SectionAmountDtaaOS)) -> 0 | AT10: Total | AU10: =SUM(AK10:AK14,AM10:AM14,AO10:AO14,AQ10:AQ14,AS10:AS11) -> 0
F11: v | G11: Others | K11: bv | R11: 115BBF | S11: =IF(MID(sheet1.ResidentialStatus1,1,3)="NRI",SUMIFS(os.Amount_income,os.TRC,"=Yes",Section_CodeDtaaOS,"=115BF"),SUMIF(Section_CodeDtaaOS,"=115BBF",os.Amount_income)) -> 0 | U11: 5A1aii | V11: =IF(MID(sheet1.ResidentialStatus1,1,3)="NRI",SUMIFS(SectionAmountDtaaOS,os.TRC,"=Yes",OS_DTAASectionCode,"=5A1aii"),SUMIF(OS_DTAASectionCode,"=5A1aii",SectionAmountDtaaOS)) -> 0 | W11: 5A1aiii | X11: =IF(MID(sheet1.ResidentialStatus1,1,3)="NRI",SUMIFS(SectionAmountDtaaOS,os.TRC,"=Yes",OS_DTAASectionCode,"=5A1aiii"),SUMIF(OS_DTAASectionCode,"=5A1aiii",SectionAmountDtaaOS)) -> 0 | Y11: 5AD1ip | Z11: =IF(MID(sheet1.ResidentialStatus1,1,3)="NRI",SUMIFS(SectionAmountDtaaOS,os.TRC,"=Yes",OS_DTAASectionCode,"=5AD1ip"),SUMIF(OS_DTAASectionCode,"=5AD1ip",SectionAmountDtaaOS)) -> 0 | AJ11: PTI_5A1aii | AK11: =IF(MID(sheet1.ResidentialStatus1,1,3)="NRI",SUMIFS(SectionAmountDtaaOS,os.TRC,"=Yes",OS_DTAASectionCode,AJ11),SUMIF(OS_DTAASectionCode,AJ11,SectionAmountDtaaOS)) -> 0 | AL11: PTI_5A1aiii | AM11: =IF(MID(sheet1.ResidentialStatus1,1,3)="NRI",SUMIFS(SectionAmountDtaaOS,os.TRC,"=Yes",OS_DTAASectionCode,AL11),SUMIF(OS_DTAASectionCode,AL11,SectionAmountDtaaOS)) -> 0 | AN11: PTI_5AD1iP | AO11: =IF(MID(sheet1.ResidentialStatus1,1,3)="NRI",SUMIFS(SectionAmountDtaaOS,os.TRC,"=Yes",OS_DTAASectionCode,AN11),SUMIF(OS_DTAASectionCode,AN11,SectionAmountDtaaOS)) -> 0 | AP11: PTI_5BBF | AQ11: =IF(MID(sheet1.ResidentialStatus1,1,3)="NRI",SUMIFS(SectionAmountDtaaOS,os.TRC,"=Yes",OS_DTAASectionCode,AP11),SUMIF(OS_DTAASectionCode,AP11,SectionAmountDtaaOS)) -> 0 | AR11: PTI_1 | AS11: =IF(MID(sheet1.ResidentialStatus1,1,3)="NRI",SUMIFS(SectionAmountDtaaOS,os.TRC,"=Yes",OS_DTAASectionCode,AR11),SUMIF(OS_DTAASectionCode,AR11,SectionAmountDtaaOS)) -> 0
E12: c | F12: Rental income from machinery, plants, buildings, etc., Gross | K12: 1c | R12: 115BBG | S12: =IF(MID(sheet1.ResidentialStatus1,1,3)="NRI",SUMIFS(os.Amount_income,os.TRC,"=Yes",Section_CodeDtaaOS,"=115BBG"),SUMIF(Section_CodeDtaaOS,"=115BBG",os.Amount_income)) -> 0 | U12: 5A1ai | V12: =IF(MID(sheet1.ResidentialStatus1,1,3)="NRI",SUMIFS(SectionAmountDtaaOS,os.TRC,"=Yes",OS_DTAASectionCode,"=5A1ai"),SUMIF(OS_DTAASectionCode,"=5A1ai",SectionAmountDtaaOS)) -> 0 | W12: 5A1aiiac | X12: =IF(MID(sheet1.ResidentialStatus1,1,3)="NRI",SUMIFS(SectionAmountDtaaOS,os.TRC,"=Yes",OS_DTAASectionCode,"=5A1aiiac"),SUMIF(OS_DTAASectionCode,"=5A1aiiac",SectionAmountDtaaOS)) -> 0 | Y12: 5AD1i | Z12: =IF(MID(sheet1.ResidentialStatus1,1,3)="NRI",SUMIFS(SectionAmountDtaaOS,os.TRC,"=Yes",OS_DTAASectionCode,"=5AD1i"),SUMIF(OS_DTAASectionCode,"=5AD1i",SectionAmountDtaaOS)) -> 0 | AJ12: PTI_5A1aiia | AK12: =IF(MID(sheet1.ResidentialStatus1,1,3)="NRI",SUMIFS(SectionAmountDtaaOS,os.TRC,"=Yes",OS_DTAASectionCode,AJ12),SUMIF(OS_DTAASectionCode,AJ12,SectionAmountDtaaOS)) -> 0 | AL12: PTI_5A1b | AM12: =IF(MID(sheet1.ResidentialStatus1,1,3)="NRI",SUMIFS(SectionAmountDtaaOS,os.TRC,"=Yes",OS_DTAASectionCode,AL12),SUMIF(OS_DTAASectionCode,AL12,SectionAmountDtaaOS)) -> 0 | AN12: PTI_5ACA1a | AO12: =IF(MID(sheet1.ResidentialStatus1,1,3)="NRI",SUMIFS(SectionAmountDtaaOS,os.TRC,"=Yes",OS_DTAASectionCode,AN12),SUMIF(OS_DTAASectionCode,AN12,SectionAmountDtaaOS)) -> 0 | AP12: PTI_5BBG | AQ12: =IF(MID(sheet1.ResidentialStatus1,1,3)="NRI",SUMIFS(SectionAmountDtaaOS,os.TRC,"=Yes",OS_DTAASectionCode,AP12),SUMIF(OS_DTAASectionCode,AP12,SectionAmountDtaaOS)) -> 0
E13: d | F13: Income of the nature referred to in section 56(2)(x) which is chargeable to tax (di + dii + diii + div + dv) | K13: 1d | L13: =MAX(0,(L14+L15+L16+L17+L18)) -> 0 | U13: 111 | V13: =IF(MID(sheet1.ResidentialStatus1,1,3)="NRI",SUMIFS(SectionAmountDtaaOS,os.TRC,"=Yes",OS_DTAASectionCode,"=1"),SUMIF(OS_DTAASectionCode,"=1",SectionAmountDtaaOS)) -> 0 | W13: 5ACA(1)(a) | X13: =IF(MID(sheet1.ResidentialStatus1,1,3)="NRI",SUMIFS(SectionAmountDtaaOS,os.TRC,"=Yes",OS_DTAASectionCode,"=5ACA1a"),SUMIF(OS_DTAASectionCode,"=5ACA1a",SectionAmountDtaaOS)) -> 0 | Y13: 5BBC | Z13: =IF(MID(sheet1.ResidentialStatus1,1,3)="NRI",SUMIFS(SectionAmountDtaaOS,os.TRC,"=Yes",OS_DTAASectionCode,"=5BBC"),SUMIF(OS_DTAASectionCode,"=5BBC",SectionAmountDtaaOS)) -> 0 | AA13: 1c | AB13: =IF(MID(sheet1.ResidentialStatus1,1,3)="NRI",SUMIFS(SectionAmountDtaaOS,os.TRC,"=Yes",OS_DTAASectionCode,"=562iii"),SUMIF(OS_DTAASectionCode,"=562iii",SectionAmountDtaaOS)) -> 0 | AJ13: PTI_5A1aiiaa | AK13: =IF(MID(sheet1.ResidentialStatus1,1,3)="NRI",SUMIFS(SectionAmountDtaaOS,os.TRC,"=Yes",OS_DTAASectionCode,AJ13),SUMIF(OS_DTAASectionCode,AJ13,SectionAmountDtaaOS)) -> 0 | AL13: PTI_5A1bB | AM13: =IF(MID(sheet1.ResidentialStatus1,1,3)="NRI",SUMIFS(SectionAmountDtaaOS,os.TRC,"=Yes",OS_DTAASectionCode,AL13),SUMIF(OS_DTAASectionCode,AL13,SectionAmountDtaaOS)) -> 0 | AN13: PTI_5BBA | AO13: =IF(MID(sheet1.ResidentialStatus1,1,3)="NRI",SUMIFS(SectionAmountDtaaOS,os.TRC,"=Yes",OS_DTAASectionCode,AN13),SUMIF(OS_DTAASectionCode,AN13,SectionAmountDtaaOS)) -> 0 | AP13: PTI_5Ea | AQ13: =IF(MID(sheet1.ResidentialStatus1,1,3)="NRI",SUMIFS(SectionAmountDtaaOS,os.TRC,"=Yes",OS_DTAASectionCode,AP13),SUMIF(OS_DTAASectionCode,AP13,SectionAmountDtaaOS)) -> 0
F14: i | G14: Aggregate value of sum of money received without consideration | K14: di | U14: 1b | V14: =IF(MID(sheet1.ResidentialStatus1,1,3)="NRI",SUMIFS(SectionAmountDtaaOS,os.TRC,"=Yes",OS_DTAASectionCode,"=56"),SUMIF(OS_DTAASectionCode,"=56",SectionAmountDtaaOS)) -> 0 | W14: 5A1aiiab | X14: =IF(MID(sheet1.ResidentialStatus1,1,3)="NRI",SUMIFS(SectionAmountDtaaOS,os.TRC,"=Yes",OS_DTAASectionCode,"=5A1aiiab"),SUMIF(OS_DTAASectionCode,"=5A1aiiab",SectionAmountDtaaOS)) -> 0 | Y14: 5AC1ab | Z14: =IF(MID(sheet1.ResidentialStatus1,1,3)="NRI",SUMIFS(SectionAmountDtaaOS,os.TRC,"=Yes",OS_DTAASectionCode,"=5AC1ab"),SUMIF(OS_DTAASectionCode,"=5AC1ab",SectionAmountDtaaOS)) -> 0 | AA14: 1d | AB14: =IF(MID(sheet1.ResidentialStatus1,1,3)="NRI",SUMIFS(SectionAmountDtaaOS,os.TRC,"=Yes",OS_DTAASectionCode,"=562x"),SUMIF(OS_DTAASectionCode,"=562x",SectionAmountDtaaOS)) -> 0 | AJ14: PTI_5A1aiiab | AK14: =IF(MID(sheet1.ResidentialStatus1,1,3)="NRI",SUMIFS(SectionAmountDtaaOS,os.TRC,"=Yes",OS_DTAASectionCode,AJ14),SUMIF(OS_DTAASectionCode,AJ14,SectionAmountDtaaOS)) -> 0 | AL14: PTI_5AC1ab | AM14: =IF(MID(sheet1.ResidentialStatus1,1,3)="NRI",SUMIFS(SectionAmountDtaaOS,os.TRC,"=Yes",OS_DTAASectionCode,AL14),SUMIF(OS_DTAASectionCode,AL14,SectionAmountDtaaOS)) -> 0 | AN14: PTI_5BBC | AO14: =IF(MID(sheet1.ResidentialStatus1,1,3)="NRI",SUMIFS(SectionAmountDtaaOS,os.TRC,"=Yes",OS_DTAASectionCode,AN14),SUMIF(OS_DTAASectionCode,AN14,SectionAmountDtaaOS)) -> 0 | AP14: PTI_5BB | AQ14: =IF(MID(sheet1.ResidentialStatus1,1,3)="NRI",SUMIFS(SectionAmountDtaaOS,os.TRC,"=Yes",OS_DTAASectionCode,AP14),SUMIF(OS_DTAASectionCode,AP14,SectionAmountDtaaOS)) -> 0
F15: ii | G15: In case immovable property is received without consideration, stamp duty value of property | K15: dii | U15: 1a | V15: =IF(MID(sheet1.ResidentialStatus1,1,3)="NRI",SUMIFS(SectionAmountDtaaOS,os.TRC,"=Yes",OS_DTAASectionCode,"=56i"),SUMIF(OS_DTAASectionCode,"=56i",SectionAmountDtaaOS)) -> 0 | W15: 5A1aiiaa | X15: =IF(MID(sheet1.ResidentialStatus1,1,3)="NRI",SUMIFS(SectionAmountDtaaOS,os.TRC,"=Yes",OS_DTAASectionCode,"=5A1aiiaa"),SUMIF(OS_DTAASectionCode,"=5A1aiiaa",SectionAmountDtaaOS)) -> 0 | Y15: 5A1bB | Z15: =IF(MID(sheet1.ResidentialStatus1,1,3)="NRI",SUMIFS(SectionAmountDtaaOS,os.TRC,"=Yes",OS_DTAASectionCode,"=5A1bB"),SUMIF(OS_DTAASectionCode,"=5A1bB",SectionAmountDtaaOS)) -> 0 | AA15: 5Ea | AB15: =IF(MID(sheet1.ResidentialStatus1,1,3)="NRI",SUMIFS(SectionAmountDtaaOS,os.TRC,"=Yes",OS_DTAASectionCode,"=5Ea"),SUMIF(OS_DTAASectionCode,"=5Ea",SectionAmountDtaaOS)) -> 0 | AC15: Total | AD15: =SUM(V10:V13,X10:X15,Z10:Z15,DTAA_5Ea_OS) -> 0
F16: iii | G16: In case immovable property is received for inadequate consideration, stamp duty value of property in excess of such consideration | K16: diii | U16: =sheet1.ResidentialStatus1 -> RES-Resident
F17: iv | G17: In case any other property is received without consideration, fair market value of property | K17: div | T17: TRC flag | U17: 1a | V17: =IF(MID(sheet1.ResidentialStatus1,1,3)="NRI",SUMIFS(SectionAmountDtaaOS,os.TRC,"=Yes",OS_DTAASectionCode,"=56i"),SUMIF(OS_DTAASectionCode,"=56i",SectionAmountDtaaOS)) -> 0
F18: v | G18: In case any other property is received for inadequate consideration, fair market value of property in excess of such consideration | K18: dv | U18: 1b | V18: =SUMIFS(SectionAmountDtaaOS,os.TRC,"=Yes",OS_DTAASectionCode,"=56") -> 0
E19: e | F19: Any other income (please specify nature) | K19: 1e | L19: =SUM(os.AnyotherAmount)+os.FamilyPension -> 0 | U19: 1c | V19: =SUMIFS(SectionAmountDtaaOS,os.TRC,"=Yes",OS_DTAASectionCode,"=562iii") -> 0
F20: Sl. No. | G20: Nature | L20: Amount | U20: 1d | V20: =SUMIFS(SectionAmountDtaaOS,os.TRC,"=Yes",OS_DTAASectionCode,"=562x") -> 0
F21: =1 -> 1 | G21: Family Pension
F22: =F21+1 -> 2
F23: =F22+1 -> 3
D25: 2 | E25: Income chargeable at special rates (2a + 2b + 2c + 2d + 2e + 2f elements related to Sl. No. 1) | M25: 2 | N25: =MAX(0,SUM(L26,L27,L34,L40,L47,DTAA_1a_OS,DTAA_1b_OS,DTAA_1c_OS,DTAA_1d_OS)) -> 0
E26: a | F26: Winnings from lotteries, crossword puzzles etc. chargeable u/s 115BB | K26: 2a
E27: b | F27: Income chargeable u/s 115BBE (bi + bii + biii + biv+ bv + bvi) | K27: 2b | L27: =MAX(0,(L28+L29+L30+L31+L32+L33)) -> 0
F28: i | G28: Cash credits u/s 68 | K28: bi
F29: ii | G29: Unexplained investments u/s 69 | K29: bii
F30: iii | G30: Unexplained money etc. u/s 69A | K30: biii
F31: iv | G31: Undisclosed investments etc. u/s 69B | K31: biv
F32: v | G32: Unexplained expenditure etc. u/s 69C | K32: bv
F33: vi | G33: Amount borrowed or repaid on hundi u/s 69D | K33: bvi
E34: c | F34: Accumulated balance of recognised provident fund taxable u/s 111 | K34: 2c | L34: =SUM(os.OtherIncomeBenefit) -> 0
G35: Sl. No | H35: Assessment Year | I35: Income Benefit | J35: Tax Benefit
G36: 1 | H36: (Select)
G37: =G36+1 -> 2 | H37: (Select)
G38: Total | J38: =SUM(os.OtherTaxBenefit) -> 0
E40: d | F40: Any other income chargeable at special rate (total of di to dxix) | K40: 2d | L40: =SUM(os.SourceAmount) -> 0
F41: Sl. No. | G41: Nature | L41: Amount | U41: SectionCode | V41: Amount | W41: SectionCode
F42: =1 -> 1 | G42: (Select) | U42: =MID(G42,1, FIND("-",G42) - 1) ->  | V42: =L42 -> 0 | W42: =VLOOKUP(G42,OS_lookup,2,FALSE) -> 
F43: =F42+1 -> 2 | G43: (Select) | U43: =MID(G43,1, FIND("-",G43) - 1) ->  | V43: =L43 -> 0 | W43: =VLOOKUP(G43,OS_lookup,2,FALSE) -> 
F44: =F43+1 -> 3 | G44: (Select) | U44: =MID(G44,1, FIND("-",G44) - 1) ->  | V44: =L44 -> 0 | W44: =VLOOKUP(G44,OS_lookup,2,FALSE) -> 
F45: =F44+1 -> 4 | G45: (Select) | U45: =MID(G45,1, FIND("-",G45) - 1) ->  | V45: =L45 -> 0 | W45: =VLOOKUP(G45,OS_lookup,2,FALSE) -> 
E47: e | F47: Pass through income in the nature of income from other sources chargeable at special rates | K47: 2e | L47: =SUM(os.PTIAmount) -> 0
F48: Sl. No. | G48: Nature | L48: Amount | U48: SectionCode | V48: Amount | W48: SectionCode
F49: =1 -> 1 | G49: (Select) | U49: =MID(G49,1, FIND("-",G49) - 1) ->  | V49: =L49 -> 0 | W49: =VLOOKUP(G49,OS_PTI_LookUp,2,FALSE) -> 
F50: =F49+1 -> 2 | G50: (Select) | U50: =MID(G50,1, FIND("-",G50) - 1) ->  | V50: =L50 -> 0 | W50: =VLOOKUP(G50,OS_PTI_LookUp,2,FALSE) -> 
F51: =F50+1 -> 3 | G51: (Select) | U51: =MID(G51,1, FIND("-",G51) - 1) ->  | V51: =L51 -> 0 | W51: =VLOOKUP(G51,OS_PTI_LookUp,2,FALSE) -> 
F52: =F51+1 -> 4 | G52: (Select) | U52: =MID(G52,1, FIND("-",G52) - 1) ->  | V52: =L52 -> 0 | W52: =VLOOKUP(G52,OS_PTI_LookUp,2,FALSE) -> 
E54: f | F54: Amount included in 1 and 2 above, which is chargeable at special rates in India as per DTAA (total of column (2) of table below) | K54: 2f | L54: =IF(MID(sheet1.ResidentialStatus1,1,3)="NRI",SUMIF(os.TRC,"=Yes",os.Amount_income),SUM(os.Amount_income)) -> 0
E55: Sl. No. | F55: Amount of income | G55: Item No.1a to 1d & 2a to 2e in which included | H55: Country name & Code | I55: Article of DTAA | J55: Rate as per Treaty (enter NIL, if not chargeable) | K55: Whether TRC obtained? | L55: Section of I.T. Act | M55: Rate as per I.T. Act | N55: Applicable rate [lower of (6) or (9)] | U55: SectionCode | V55: Amount | W55: SectionCode
E56: (1) | F56: (2) | G56: (3) | H56: (4) | I56: (5) | J56: (6) | K56: (7) | L56: (8) | M56: (9) | N56: (10)
E57: 1 | G57: (Select) | H57: (Select) | L57: (Select) | N57: 0 | U57: =MID(L57,1, FIND("-",L57) - 1) ->  | V57: =F57 -> 0 | W57: =VLOOKUP(L57,OS_DTAA_lookup,2,FALSE) -> 
E58: =E57+1 -> 2 | G58: (Select) | H58: (Select) | L58: (Select) | N58: 0 | U58: =MID(L58,1, FIND("-",L58) - 1) ->  | V58: =F58 -> 0 | W58: =VLOOKUP(L58,OS_DTAA_lookup,2,FALSE) -> 
E59: =E58+1 -> 3 | G59: (Select) | H59: (Select) | L59: (Select) | N59: 0 | U59: =MID(L59,1, FIND("-",L59) - 1) ->  | V59: =F59 -> 0 | W59: =VLOOKUP(L59,OS_DTAA_lookup,2,FALSE) -> 
D61: 3 | E61: Deductions under section 57:- (other than those relating to income chargeable at special rates under 2a, 2b & 2d)
E62: a (i) | F62: Expenses / Deductions (in case of other than family pension) | K62: 3ai
E63: a (ii) | F63: Deduction u/s 57 (iia) (in case of family pension only) | K63: 3aii
E64: b | F64: Depreciation | K64: 3b
E65: c | F65: Total | K65: 3c | L65: =os.Depreciation+os.Expenses+os.Deduction57iia -> 0
D66: 4 | E66: Amounts not deductible u/s 58 | M66: 4
D67: 5 | E67: Profits chargeable to tax u/s 59 | M67: 5
D68: 6 | E68: Net Income from other sources chargeable at normal applicable rates (1(after reducing income related to DTAA portion) – 3 + 4 + 5) (If negative take the figure to 3i of schedule CYLA) | M68: 6 | N68: =OS_GrossIncomeChargeable-os.TotDeductions+os.Amountus58+os.Profitus59-DTAA_1a_OS-DTAA_1b_OS-DTAA_1c_OS-DTAA_1d_OS -> 1037410
D69: 7 | E69: Income from other sources (other than from owning race horses)(2+6)(enter 6 as nil, if negative) | M69: 7 | N69: =SUM(OS_IncomeChargeableSpecialRates,MAX(0,os.BalanceNoRaceHorse)) -> 1037410
D70: 8 | E70: Income from the activity of owning and maintaining race horses
E71: a | F71: Receipts | K71: 8a
E72: b | F72: Deductions under section 57 in relation to receipts at 8a only | K72: 8b
E73: c | F73: Amounts not deductible u/s 58 | K73: 8c
E74: d | F74: Profits chargeable to tax u/s 59 | K74: 8d
E75: e | F75: Balance (8a - 8b + 8c + 8d) (if negative take the figure to 6xi of Schedule CFL) | M75: 8e | N75: =os.Receipts-os.DeductSec57+os.Amountus58_2+os.Profitus59_2 -> 0
D76: 9 | E76: Income under the head “Income from other sources” (7 + 8e) (take 8e as nil if negative) | M76: 9 | N76: =SUM(os.TotOthSrcNoRaceHorse,MAX(0,os.BalanceOwnRaceHorse)) -> 1037410
D77: 10 | E77: Information about accrual/receipt of income from Other Sources
E78: Sl. No. | F78: Other Source Income | H78: Up to 15/6 | I78: From 16/6 to 15/9 | J78: From 16/9 to 15/12 | K78: From 16/12 to 15/3 | L78: From 16/3 to 31/3
H79: (i) | I79: (ii) | J79: (iii) | K79: (iv) | L79: (v)
E80: 1 | F80: Dividend Income u/s 115BBDA
E81: 2 | F81: Income by way of winnings from lotteries, crossword puzzles, races, games, gambling, betting etc. referred to in section 2(24)(ix)
C82: NOTE | F82: Please include the income of the specified persons (spouse, minor child, etc.) referred to in Schedule SPI while computing the income under this head.

Sheet CYLA-BFLA
C3: Schedule CYLA | F3: Details of Income after set-off of current years losses
C4: CURRENT YEAR LOSS ADJUSTMENT | D4: Sl. No. | E4: Head/ Source of Income | F4: Income of current year (Fill this column only if income is zero or positive) | G4: House property loss of the current year set off | H4: Net loss from Other sources chargeable at normal applicable rates (other than loss from race horses) of the current year set off | I4: Current year’s Income remaining after set off
F5: 1 | G5: 2 | H5: 3 | I5: 4=1-2-3 | O5: HP
D6: i | E6: Loss to be set off (Fill this row only if computed figure is negative) | G6: =ABS(MIN(0,HP.TotalIncomeChargeableUnHP)) -> 200000 | H6: =ABS(MIN(os.BalanceNoRaceHorse,0)) -> 0 | O6: =ABS(MIN(HP.REStwolakh,0)) -> 200000
D7: ii | E7: Salaries | F7: =SAL.IncomeFromSalary1 -> 16863200 | G7: 200000 | H7: 0 | I7: =ROUND(MAX(0,salary.IncOfCurYrUnderThatHead1-SUM(G7,H7)),0) -> 16663200
D8: iii | E8: House property | F8: =MAX(HOUSE_PROPERTY!$K$35,0) -> 0 | H8: 0 | I8: =ROUND(MAX(0,hp.IncOfCurYrUnderThatHead2-SUM(G8:H8)),0) -> 0
D9: iv | E9: Short-term capital gain taxable @ 15% | F9: =STCG_CurrentYrGain15Percent -> 0 | G9: 0 | H9: 0 | I9: =ROUND(MAX(0,stcg.IncOfCurYrUnderThatHead1-SUM(G9:H9)),0) -> 0
D10: v | E10: Short-term capital gain taxable @ 30% | F10: =STCG_CurrentYrGain30Percent -> 0 | G10: 0 | H10: 0 | I10: =ROUND(MAX(0,stcg.IncOfCurYrUnderThatHead1a-SUM(G10:H10)),0) -> 0
D11: vi | E11: Short-term capital gain taxable at applicable rates | F11: =STCG_CurrentYrGainAppRate -> 0 | G11: 0 | H11: 0 | I11: =ROUND(MAX(0,stcg.IncOfCurYrUnderThatHead1b-SUM(G11:H11)),0) -> 0
D12: vii | E12: Short-term capital gain taxable at special rates in India as per DTAA | F12: =STCG_CurrentYrGainDTAARate -> 0 | G12: 0 | H12: 0 | I12: =ROUND(MAX(0,stcg.IncomeunderDTAA-SUM(G12:H12)),0) -> 0
D13: viii | E13: Long term capital gain taxable @ 10% | F13: =LTCG_CurrentYrGain10Percent -> 0 | G13: 0 | H13: 0 | I13: =ROUND(MAX(0,ltcg.IncOfCurYrUnderThatHead2-SUM(G13:H13)),0) -> 0
D14: ix | E14: Long term capital gain taxable @ 20% | F14: =LTCG_CurrentYrGain20Percent -> 0 | G14: 0 | H14: 0 | I14: =ROUND(MAX(0,ltcg.IncOfCurYrUnderThatHead2a-SUM(G14:H14)),0) -> 0
D15: x | E15: Long term capital gains taxable at special rates in India as per DTAA | F15: =LTCG_CurrentYrGainDTAARate -> 0 | G15: 0 | H15: 0 | I15: =ROUND(MAX(0,ltcg.IncomeunderDTAA-SUM(G15:H15)),0) -> 0
D16: xi | E16: Net income from other sources chargeable at normal applicable rates | F16: =MAX(os.BalanceNoRaceHorse,0) -> 1037410 | G16: 0 | I16: =ROUND(MAX(0,othSecinclnlhrs.IncOfCurYrUnderThatHead3-SUM(G16:H16))+MAX(0,0),0) -> 1037410
D17: xii | E17: Profit from the activity of owning and maintaining race horses | F17: =MAX(0+MAX(os.BalanceOwnRaceHorse,0),0) -> 0 | G17: 0 | H17: 0 | I17: =ROUND(MAX(0,rh.IncOfCurYrUnderThatHead4-SUM(G17:H17))+MAX(0,0),0) -> 0
D18: xiii | E18: Total loss set off (ii + iii + iv + v + vi + vii + viii + ix + x+xi+xii) | G18: =MIN(SUM(G7:G17),G6) -> 200000 | H18: =MIN(SUM(H7:H17),H6) -> 0
D19: xiv | E19: Loss remaining after set-off (i – xiii) | G19: =IF(sheet16.TotHPlossCurYrSetoff<200000,MAX(0,((cyla.TotHPlossCurYr1-sheet16.TotHPlossCurYrSetoff)+(HP.REMloss))),HP.REMloss) -> 0 | H19: =MAX(0,cyla.TotOthSrcLossNoRaceHorse-sheet16.TotOthSrcLossNoRaceHorseSetoff) -> 0
C21: Schedule BFLA | F21: Details of Income after Set off of Brought Forward Losses of earlier years
C22: BROUGHT FORWARD LOSS ADJUSTMENT | D22: Sl. No. | E22: Head/ Source of Income | F22: Income after set off, if any, of current year’s losses as per 4 of Schedule CYLA | G22: Brought forward loss set off | H22: Current year’s income remaining after set off
F23: 1 | G23: 2 | H23: 3
D24: i | E24: Salaries | F24: =salary.IncOfCurYrAfterSetOff1 -> 16663200 | H24: =salary.IncOfCurYrUndHeadFromCYLA -> 16663200
D25: ii | E25: House property | F25: =hp.IncOfCurYrAfterSetOff2 -> 0 | G25: =IF(totofbfloss.HPLossCF8>hp.IncOfCurYrUndHeadFromCYLA1,hp.IncOfCurYrUndHeadFromCYLA1,totofbfloss.HPLossCF8) -> 0 | H25: =MAX(hp.IncOfCurYrUndHeadFromCYLA1-hp.BFlossPrevYrUndSameHeadSetoff1,0) -> 0
D26: iii | E26: Short-term capital gain taxable @ 15% | F26: =stcg.IncOfCurYrAfterSetOff1 -> 0 | G26: 0 | H26: =MAX(stcg.IncOfCurYrUndHeadFromCYLA3-stcg.BFlossPrevYrUndSameHeadSetoff3,0) -> 0
D27: iv | E27: Short-term capital gain taxable @ 30% | F27: =stcg.IncOfCurYrAfterSetOff1a -> 0 | G27: 0 | H27: =MAX(stcg.IncOfCurYrUndHeadFromCYLA3a-stcg.BFlossPrevYrUndSameHeadSetoff3a,0) -> 0
D28: v | E28: Short-term capital gain taxable at applicable rates | F28: =stcg.IncOfCurYrAfterSetOff1b -> 0 | G28: 0 | H28: =MAX(stcg.IncOfCurYrUndHeadFromCYLA3b-stcg.BFlossPrevYrUndSameHeadSetoff3b,0) -> 0
D29: vi | E29: Short-term capital gain taxable at special rates in India as per DTAA | F29: =stcg.IncOfCurYrAfterSetOffDTAA -> 0 | G29: 0 | H29: =MAX(stcg.IncOfCurYrUndHeadFromCYLADTAA-stcg.BFlossPrevYrUndSameHeadSetoffDTAA,0) -> 0
D30: vii | E30: Long term capital gain taxable @ 10% | F30: =ltcg.IncOfCurYrAfterSetOff2 -> 0 | G30: 0 | H30: =MAX(ltcg.IncOfCurYrUndHeadFromCYLA4-ltcg.BFlossPrevYrUndSameHeadSetoff4,0) -> 0
D31: viii | E31: Long term capital gain taxable @ 20% | F31: =ltcg.IncOfCurYrAfterSetOff2a -> 0 | G31: 0 | H31: =MAX(ltcg.IncOfCurYrUndHeadFromCYLA4a-ltcg.BFlossPrevYrUndSameHeadSetoff4a,0) -> 0
D32: ix | E32: Long term capital gains taxable at special rates in India as per DTAA | F32: =ltcg.IncOfCurYrAfterSetOffDTAA -> 0 | G32: 0 | H32: =MAX(ltcg.IncOfCurYrUndHeadFromCYLADTAA-ltcg.BFlossPrevYrUndSameHeadSetoffDTAA,0) -> 0
D33: x | E33: Net income from other sources chargeable at normal applicable rates | F33: =othSecinclnlhrs.IncOfCurYrAfterSetOff3 -> 1037410 | H33: =MAX(othsrcincl.IncOfCurYrUndHeadFromCYLA5-othsrcincl.BFlossPrevYrUndSameHeadSetoff5,0) -> 1037410
D34: xi | E34: Profit from owning and maintaining race horses | F34: =rh.IncOfCurYrAfterSetOff4 -> 0 | G34: =IF(totofbfloss.OthSrcLossRaceHorseCF8>rh.IncOfCurYrUndHeadFromCYLA6,rh.IncOfCurYrUndHeadFromCYLA6,totofbfloss.OthSrcLossRaceHorseCF8) -> 0 | H34: =MAX(rh.IncOfCurYrUndHeadFromCYLA6-rh.BFlossPrevYrUndSameHeadSetoff6,0) -> 0
D35: xii | E35: Total of brought forward loss set off (2ii + 2iii + 2iv + 2v+ 2vi + 2vii + 2viii + 2ix + 2xi) | G35: =SUM(G25:G34) -> 0
D36: xiii | E36: Current year’s income remaining after set off Total of (3i + 3ii + 3iii + 3iv + 3v+ 3vi + 3vii + 3viii+ 3ix + 3x + 3xi) | H36: =SUM(H24,H25,H26,H27,H28,H29,H30,H31,H32,H33,H34) -> 17700610
C38: Note : Short Term Capital Loss Brought Forward will be adjusted against STCG and LTCG in the sequence of STCG Other than 111A, LTCG Non Proviso, STCG u/s 111A, LTCG Proviso to the extent of loss brought forward available for set off Please click on "Compute Set off" button on top to allow the utility to auto fill the Adjustment of Current Year and Brought Forward Loss in yellow fields .

Sheet CFL
C3: Schedule CFL | F3: Details of Losses to be carried forward to future Years
C4: CARRY FORWARD OF LOSS | D4: Sl. No. | E4: Assessment Year | F4: Date of Filing (DD/MM/ YYYY) | G4: House property loss | J4: Short-term Capital loss | M4: Long-term Capital loss | P4: Other sources loss (other than loss from race horses) | Q4: Loss from owning and maintaining race horses
G6: Normal | H6: PTI | I6: Total | J6: Normal | K6: PTI | L6: Total | M6: Normal | N6: PTI | O6: Total
E7: 1 | F7: 2 | G7: 3a | H7: 3b | I7: 3c=3a+3b | J7: 4a | K7: 4b | L7: 4c=4a+4b | M7: 5a | N7: 5b | O7: 5c=5a+5b | Q7: 6
D8: i | E8: 2012-13 | I8: =MAX(0,SUM(G8,H8)) -> 0 | L8: =MAX(0,SUM(J8,K8)) -> 0 | O8: =MAX(0,SUM(M8,N8)) -> 0 | V8: date for Validation
D9: ii | E9: 2013-14 | I9: =MAX(0,SUM(G9,H9)) -> 0 | L9: =MAX(0,SUM(J9,K9)) -> 0 | O9: =MAX(0,SUM(M9,N9)) -> 0
D10: iii | E10: 2014-15 | I10: 0 | L10: 0 | O10: 0 | V10: 31/03/2012
D11: iv | E11: 2015-16 | I11: 0 | L11: 0 | O11: 0 | V11: 31/03/2013
D12: v | E12: 2016-17 | I12: 0 | L12: 0 | O12: 0 | V12: 31/03/2014
D13: vi | E13: 2017-18 | I13: 0 | L13: 0 | O13: 0 | V13: 31/03/2015
D14: vii | E14: 2018-19 | I14: 0 | L14: 0 | O14: 0 | V14: 31/03/2016
D15: viii | E15: 2019-20 | I15: 0 | L15: 0 | O15: 0 | V15: 31/03/2017
D16: ix | E16: Total of earlier year losses | I16: =SUM(I8:I15) -> 0 | L16: =SUM(L8:L15) -> 0 | O16: =SUM(O8:O15) -> 0 | Q16: =SUM(Q12:Q15) -> 0 | V16: 31/03/2018
D17: x | E17: Adjustment of above losses in Schedule BFLA | I17: =hp.BFlossPrevYrUndSameHeadSetoff1 -> 0 | L17: 0 | O17: 0 | Q17: =rh.BFlossPrevYrUndSameHeadSetoff6 -> 0 | V17: 31/03/2019
D18: xi | E18: 2020-21 (Current year losses) | I18: =sheet16.BalHPlossCurYrAftSetoff -> 0 | L18: =STCG_LossRemaining_15Percent+STCG_LossRemaining_30Percent+STCG_LossRemaining_AppRate+STCG_LossRemaining_DTAA -> 0 | O18: =LTCG_LossRemaining_10Percent+LTCG_LossRemaining_20Percent+LTCG_LossRemaining_DTAA -> 0 | Q18: =ABS(MIN(0,os.BalanceOwnRaceHorse)) -> 0
D19: xii | E19: Total loss Carried Forward to future years | I19: =IF(yr2007.HPLossCF1>adjtotloss.HPLossCF9,MAX(0,totofbfloss.HPLossCF8-yr2007.HPLossCF1+yr2014.HPLossCF10),MAX(0,totofbfloss.HPLossCF8-adjtotloss.HPLossCF9+yr2014.HPLossCF10)) -> 0 | L19: =IF(yr2007.STCGLossCF1>adjtotloss.STCGLossCF9,MAX(0,totofbfloss.STCGLossCF8-yr2007.STCGLossCF1+yr2014.STCGLossCF10),MAX(0,totofbfloss.STCGLossCF8-adjtotloss.STCGLossCF9+yr2014.STCGLossCF10)) -> 0 | O19: =IF(yr2007.LTCGLossCF1>adjtotloss.LTCGLossCF9,MAX(0,totofbfloss.LTCGLossCF8-yr2007.LTCGLossCF1+yr2014.LTCGLossCF10),MAX(0,totofbfloss.LTCGLossCF8-adjtotloss.LTCGLossCF9+yr2014.LTCGLossCF10)) -> 0 | Q19: =IF(yr2011.OthSrcLossRaceHorseCF5>adjtotloss.OthSrcLossRaceHorseCF9,MAX(0,totofbfloss.OthSrcLossRaceHorseCF8-yr2011.OthSrcLossRaceHorseCF5+yr2014.OthSrcLossRaceHorseCF10),MAX(0,totofbfloss.OthSrcLossRaceHorseCF8-adjtotloss.OthSrcLossRaceHorseCF9+yr2014.OthSrcLossRaceHorseCF10)) -> 0

Sheet DI
C3: Details of investments | D3: Investment/ Deposit/ Payments for the purpose of claiming deduction under Chapter VIA
C4: Section | D4: Eligible amount of deduction during FY 2019-20 (As per Part C- Deductions and taxable total income) | E4: Deduction attributable to investment/expenditure made between 01.04.2020 to 31.07.2020 (Out of Col No.2)
C5: 80C | D5: =IF(OR(MID(IncD.InvestmentDropDown,1,1)="N",MID(IncD.InvestmentDropDown,2,1)="S"),0,IF(scvia.Section80C_Calc>0,scvia.Section80C_Calc,0)) -> 0
C6: 80CCC | D6: =IF(OR(MID(IncD.InvestmentDropDown,1,1)="N",MID(IncD.InvestmentDropDown,2,1)="S"),0,IF(scvia.Section80CCC_Calc>0,scvia.Section80CCC_Calc,0)) -> 0
C7: 80CCD(1) | D7: =IF(OR(MID(IncD.InvestmentDropDown,1,1)="N",MID(IncD.InvestmentDropDown,2,1)="S"),0,IF(scvia.Section80CCD_Calc_SE>0,scvia.Section80CCD_Calc_SE,0)) -> 0
C8: 80CCD(1B) | D8: =IF(OR(MID(IncD.InvestmentDropDown,1,1)="N",MID(IncD.InvestmentDropDown,2,1)="S"),0,IF(scvia.Section80CCD1B_Calc__SE>0,scvia.Section80CCD1B_Calc__SE,0)) -> 0
C9: 80CCD(2) | D9: =IF(OR(MID(IncD.InvestmentDropDown,1,1)="N",MID(IncD.InvestmentDropDown,2,1)="S"),0,IF(scvia.Section80CCD_Calc>0,scvia.Section80CCD_Calc,0)) -> 0
C10: 80D | D10: =IF(OR(MID(IncD.InvestmentDropDown,1,1)="N",MID(IncD.InvestmentDropDown,2,1)="S"),0,IF(IncD.Section80DValue_Calc>0,IncD.Section80DValue_Calc,0)) -> 0
C11: 80DD | D11: =IF(OR(MID(IncD.InvestmentDropDown,1,1)="N",MID(IncD.InvestmentDropDown,2,1)="S"),0,IF(scvia.Section80DD_Calc>0,scvia.Section80DD_Calc,0)) -> 0
C12: 80DDB | D12: =IF(OR(MID(IncD.InvestmentDropDown,1,1)="N",MID(IncD.InvestmentDropDown,2,1)="S"),0,IF(scvia.Section80DDB_Calc>0,scvia.Section80DDB_Calc,0)) -> 0
C13: 80E | D13: =IF(OR(MID(IncD.InvestmentDropDown,1,1)="N",MID(IncD.InvestmentDropDown,2,1)="S"),0,IF(scvia.Section80E_Calc>0,scvia.Section80E_Calc,0)) -> 0
C14: 80EE | D14: =IF(OR(MID(IncD.InvestmentDropDown,1,1)="N",MID(IncD.InvestmentDropDown,2,1)="S"),0,IF(scvia.Section80EE_Calc>0,scvia.Section80EE_Calc,0)) -> 0
C15: 80EEA | D15: =IF(OR(MID(IncD.InvestmentDropDown,1,1)="N",MID(IncD.InvestmentDropDown,2,1)="S"),0,IF(scvia.Section80EEA_Calc>0,scvia.Section80EEA_Calc,0)) -> 0
C16: 80EEB | D16: =IF(OR(MID(IncD.InvestmentDropDown,1,1)="N",MID(IncD.InvestmentDropDown,2,1)="S"),0,IF(scvia.Section80EEB_Calc>0,scvia.Section80EEB_Calc,0)) -> 0
C17: 80G | D17: =IF(OR(MID(IncD.InvestmentDropDown,1,1)="N",MID(IncD.InvestmentDropDown,2,1)="S"),0,IF(scvia.Section80G_Calc>0,scvia.Section80G_Calc,0)) -> 0
C18: 80GG | D18: =IF(OR(MID(IncD.InvestmentDropDown,1,1)="N",MID(IncD.InvestmentDropDown,2,1)="S"),0,IF(scvia.Section80GG_Calc>0,scvia.Section80GG_Calc,0)) -> 0
C19: 80GGA | D19: =IF(OR(MID(IncD.InvestmentDropDown,1,1)="N",MID(IncD.InvestmentDropDown,2,1)="S"),0,IF(scvia.Section80GGA_Calc>0,scvia.Section80GGA_Calc,0)) -> 0
C20: 80GGC | D20: =IF(OR(MID(IncD.InvestmentDropDown,1,1)="N",MID(IncD.InvestmentDropDown,2,1)="S"),0,IF(scvia.Section80GGC_Calc>0,scvia.Section80GGC_Calc,0)) -> 0
C21: Total | D21: =IF(MID(IncD.InvestmentDropDown,1,1)="N",0,SUM(DI_EligibleAmount_80C,DI_EligibleAmount_80CCC,DI_EligibleAmount_80CCD_1,DI_EligibleAmount_80CCD_1B,DI_EligibleAmount_80CCD_2,DI_EligibleAmount_80D,DI_EligibleAmount_80DD,DI_EligibleAmount_80DDB,DI_EligibleAmount_80E,DI_EligibleAmount_80EE,DI_EligibleAmount_80EEA,DI_EligibleAmount_80EEB,DI_EligibleAmount_80G,DI_EligibleAmount_80GG,DI_EligibleAmount_80GGA,DI_EligibleAmount_80GGC)) -> 0 | E21: =IF(MID(IncD.InvestmentDropDown,1,1)="N",0,SUM(DI_Deduction_80C,DI_Deduction_80CCC,DI_Deduction_80CCD_1,DI_Deduction_80CCD_1B,DI_Deduction_80CCD_2,DI_Deduction_80D,DI_Deduction_80DD,DI_Deduction_80DDB,DI_Deduction_80E,DI_Deduction_80EE,DI_Deduction_80EEA,DI_Deduction_80EEB,DI_Deduction_80G,DI_Deduction_80GG,DI_Deduction_80GGA,DI_Deduction_80GGC)) -> 0
C23: B. Payment/Acquisition/Purchase/Construction for the purpose of claiming deduction u/s 54 to 54GB
C24: i) Long Term Capital Gain
C25: Section | D25: Amount utilised out of Capital Gains account | E25: Amount utilised between 01.04.2020 to 30.09.2020 out of Col 2
C26: 54 | D26: =SUMIF(LTCG.B8_DeductionSection_1,"54",LTCG.B8_AmtUtilised_1) -> 0
C27: 54B | D27: =SUMIF(LTCG.B8_DeductionSection_1,"54B",LTCG.B8_AmtUtilised_1) -> 0
C28: 54F | D28: =SUMIF(LTCG.B8_DeductionSection_1,"54F",LTCG.B8_AmtUtilised_1) -> 0
C29: 54GB | D29: =SUMIF(LTCG.B8_DeductionSection_1,"54GB",LTCG.B8_AmtUtilised_1) -> 0
C30: Total | D30: =MAX(0,SUM(DI_EligibleAmount_CG_54,DI_EligibleAmount_CG_54B,DI_EligibleAmount_CG_54F,DI_EligibleAmount_CG_54GB)) -> 0 | E30: =MAX(0,SUM(DI_Deduction_CG_54,DI_Deduction_CG_54B,DI_Deduction_CG_54F,DI_Deduction_CG_54GB)) -> 0
C32: ii) Short Term Capital Gain
C33: Section | D33: Amount utilised out of Capital Gains account | E33: Amount utilised between 01.04.2020 to 30.09.2020 out of Col 2
C34: 54B | D34: =SUMIF(STCG.A6_DeductionSection_1,"54B",STCG.A6_AmtUtilised_1) -> 0
C35: Total | D35: =MAX(0,SUM(DI_EligibleAmount_SG_54B)) -> 0 | E35: =MAX(0,SUM(DI_Deduction_SG_54B)) -> 0

Sheet 80D
C3: 80D
C4: 1 | D4: Whether you or any of your family member (excluding parents) is a senior citizen? | L4: No
C5: a | D5: Self & Family | L5: =MIN(25000,SUM(Health_Insurance_80D,Preventive_Health_80D)) -> 16000
C6: (i) | D6: Health Insurance | L6: 16000
C7: (ii) | D7: Preventive Health Checkup
C8: b | D8: Self & Family (Senior Citizen)
C9: (i) | D9: Health Insurance
C10: (ii) | D10: Preventive Health Checkup
C11: (iii) | D11: Medical Expenditure (This deduction can be claimed on which health insurance is not claimed at (i) above)
C12: 2 | D12: Whether any one of your parents is a senior citizen | L12: Yes
C13: a | D13: Parents
C14: (i) | D14: Health Insurance
C15: (ii) | D15: Preventive Health Checkup
C16: b | D16: Parents (Senior Citizen) | L16: =MIN(50000,SUM(Health_Insurance3_80D,Preventive_Health3_80D,Medical_Expenditure2_80D)) -> 41500
C17: (i) | D17: Health Insurance | L17: 41500
C18: (ii) | D18: Preventive Health Checkup
C19: (iii) | D19: Medical Expenditure (This deduction can be claimed on which health insurance is not claimed at (i) above)
C20: 3 | D20: Eligible Amount of Deduction | L20: =MIN(GTI_LIMIT,MIN(100000,SUM(Self_And_Family_80D,Senior_Citizen_80D,Parents_80D,Parents_SC_80D))) -> 57500

Sheet 80G
C3: Schedule 80G | E3: Details of donations entitled for deduction under section 80G
C4: A | D4: Donations entitled for 100% deduction without qualifying limit. (Please see the NOTE given below)
D5: Sl. No. | E5: Name of donee | F5: Address | G5: City or Town or District | H5: State Code | I5: PIN Code | J5: PAN of Donee | K5: Amount of donation | N5: Eligible Amount of Donation
K6: Donation in cash | L6: Donation in other mode | M6: Total Donation
D7: 1 | H7: (Select) | M7: =SUM(K7:L7) -> 0 | N7: =ROUND(MAX(IF(SUM(K7,L7)>0,MIN(SUM(IF(K7>2000,0,K7),L7),GTI_LIMIT),0),0),0) -> 0
D8: =D7+1 -> 2 | H8: (Select) | M8: =SUM(K8:L8) -> 0 | N8: =ROUND(MAX(IF(SUM(K8,L8)>0,MIN(SUM(IF(K8>2000,0,K8),L8),GTI_LIMIT),0),0),0) -> 0
D9: =D8+1 -> 3 | H9: (Select) | M9: =SUM(K9:L9) -> 0 | N9: =ROUND(MAX(IF(SUM(K9,L9)>0,MIN(SUM(IF(K9>2000,0,K9),L9),GTI_LIMIT),0),0),0) -> 0
D10: =D9+1 -> 4 | H10: (Select) | M10: =SUM(K10:L10) -> 0 | N10: =ROUND(MAX(IF(SUM(K10,L10)>0,MIN(SUM(IF(K10>2000,0,K10),L10),GTI_LIMIT),0),0),0) -> 0
E12: Total A : | K12: =SUM(Per10080G.DonationAmtCash) -> 0 | L12: =SUM(Per10080G.DonationAmt) -> 0 | M12: =SUM(Per10080G.DonationAmtTotal) -> 0 | N12: =ROUND(MAX(MIN(SUM(Per10080G.EligibleAmt),GTI_LIMIT),0),0) -> 0
C17: B | D17: Donations entitled for 50% deduction without qualifying limit
D18: Sl. No. | E18: Name of donee | F18: Address | G18: City or Town or District | H18: State Code | I18: PIN Code | J18: PAN of Donee | K18: Amount of donation | N18: Eligible Amount of Donation
K19: Donation in cash | L19: Donation in other mode | M19: Total Donation
D20: 1 | H20: (Select) | M20: =SUM(K20:L20) -> 0 | N20: =ROUND(MAX(IF(SUM(K20,L20)>0,MIN(SUM(IF(K20>2000,0,K20),L20)/2,GTI_LIMIT),0),0),0) -> 0
D21: =D20+1 -> 2 | H21: (Select) | M21: =SUM(K21:L21) -> 0 | N21: =ROUND(MAX(IF(SUM(K21,L21)>0,MIN(SUM(IF(K21>2000,0,K21),L21)/2,GTI_LIMIT),0),0),0) -> 0
D22: =D21+1 -> 3 | H22: (Select) | M22: =SUM(K22:L22) -> 0 | N22: =ROUND(MAX(IF(SUM(K22,L22)>0,MIN(SUM(IF(K22>2000,0,K22),L22)/2,GTI_LIMIT),0),0),0) -> 0
D23: =D22+1 -> 4 | H23: (Select) | M23: =SUM(K23:L23) -> 0 | N23: =ROUND(MAX(IF(SUM(K23,L23)>0,MIN(SUM(IF(K23>2000,0,K23),L23)/2,GTI_LIMIT),0),0),0) -> 0 | R23: Values
Q24: DeductionSystemTotal | R24: =MIN(IF(AND(MID(sheet1.PAN,4,1)="P",MID(sheet1.Status,1,1)="I"),(VIASumWithout80G80GG+ scvia.Section80GG),( VIASumWithout80G80GG)),Sheet2.GrossTotalIncome) -> 257500
E25: Total B : | K25: =SUM(PerNO5080G.DonationAmtCash) -> 0 | L25: =SUM(PerNO5080G.DonationAmt) -> 0 | M25: =SUM(PerNO5080G.DonationAmtTotal) -> 0 | N25: =ROUND(MAX(0,MIN(SUM(PerNO5080G.EligibleAmt),GTI_LIMIT)),0) -> 0 | Q25: adjustGTI | R25: =MAX(IF(Sheet2.GrossTotalIncome=Sheet2.IncChargeableTaxSplRates,0,Sheet2.GrossTotalIncome-deductionsSysTotal-Sheet2.IncChargeableTaxSplRates+SI_111+SI_115Ea+SI_115BBC),0) -> 17443110
Q26: qualifyingLimit | R26: =MAX(adjstGTI*0.1,0) -> 1744311
Q27: residue | R27: =MAX(IF(TRUNC(qualifyingLimit)>PerYES10080G.TotElig100Percent,qualifyingLimit-PerYES10080G.TotElig100Percent,0),0) -> 1744311
Q28: residue50perc | R28: =MAX(residue*0.5,0) -> 872155.5
C31: C | D31: Donations entitled for 100% deduction subject to qualifying limit | Q31: ChapVIASumWithout80G80GG | R31: =SUM(VIA!L5:L20)+SUM(VIA!L23:L30) -> 257500
D32: Sl. No. | E32: Name of donee | F32: Address | G32: City Or Town Or District | H32: State Code | I32: PIN Code | J32: PAN of Donee | K32: Amount of donation | N32: Eligible Amount of Donation
K33: Donation in cash | L33: Donation in other mode | M33: Total Donation
D34: 1 | H34: (Select) | M34: =SUM(K34:L34) -> 0 | N34: =ROUND(MAX(IF(SUM(K34,L34)>0,TRUNC(MIN(SUM(IF(K34>2000,0,K34),L34),VALUE(qualifyingLimit))),0),0),0) -> 0
D35: =D34+1 -> 2 | H35: (Select) | M35: =SUM(K35:L35) -> 0 | N35: =ROUND(MAX(IF(SUM(K35,L35)>0,TRUNC(MIN(SUM(IF(K35>2000,0,K35),L35),VALUE(qualifyingLimit))),0),0),0) -> 0
D36: =D35+1 -> 3 | H36: (Select) | M36: =SUM(K36:L36) -> 0 | N36: =ROUND(MAX(IF(SUM(K36,L36)>0,TRUNC(MIN(SUM(IF(K36>2000,0,K36),L36),VALUE(qualifyingLimit))),0),0),0) -> 0
D37: =D36+1 -> 4 | H37: (Select) | M37: =SUM(K37:L37) -> 0 | N37: =ROUND(MAX(IF(SUM(K37,L37)>0,TRUNC(MIN(SUM(IF(K37>2000,0,K37),L37),VALUE(qualifyingLimit))),0),0),0) -> 0
E39: Total C : | K39: =SUM(PerYES10080G.DonationAmtCash) -> 0 | L39: =SUM(PerYES10080G.DonationAmt) -> 0 | M39: =SUM(PerYES10080G.DonationAmtTotal) -> 0 | N39: =ROUND(MAX(TRUNC(MIN(SUM(PerYES10080G.EligibleAmt),qualifyingLimit)),0),0) -> 0
C45: D | D45: Donations entitled for 50% deduction subject to qualifying limit
D46: Sl. No. | E46: Name of donee | F46: Address | G46: City Or Town Or District | H46: State Code | I46: PIN Code | J46: PAN of Donee | K46: Amount of donation | N46: Eligible Amount of Donation
K47: Donation in cash | L47: Donation in other mode | M47: Total Donation
D48: 1 | H48: (Select) | M48: =SUM(K48:L48) -> 0 | N48: =ROUND(MAX(IF(SUM(K48,L48)>0,TRUNC(MIN(SUM(IF(K48>2000,0,K48),L48)/2,residue50Perc)),0),0),0) -> 0
D49: =D48+1 -> 2 | H49: (Select) | M49: =SUM(K49:L49) -> 0 | N49: =ROUND(MAX(IF(SUM(K49,L49)>0,TRUNC(MIN(SUM(IF(K49>2000,0,K49),L49)/2,residue50Perc)),0),0),0) -> 0
D50: =D49+1 -> 3 | H50: (Select) | M50: =SUM(K50:L50) -> 0 | N50: =ROUND(MAX(IF(SUM(K50,L50)>0,TRUNC(MIN(SUM(IF(K50>2000,0,K50),L50)/2,residue50Perc)),0),0),0) -> 0
D51: =D50+1 -> 4 | H51: (Select) | M51: =SUM(K51:L51) -> 0 | N51: =ROUND(MAX(IF(SUM(K51,L51)>0,TRUNC(MIN(SUM(IF(K51>2000,0,K51),L51)/2,residue50Perc)),0),0),0) -> 0
E53: Total D : | K53: =SUM(Per5080G.DonationAmtCash) -> 0 | L53: =SUM(Per5080G.DonationAmt) -> 0 | M53: =SUM(Per5080G.DonationAmtTotal) -> 0 | N53: =ROUND(MAX(TRUNC(MIN(SUM(Per5080G.EligibleAmt),residue50Perc)),0),0) -> 0
C58: E | D58: Donations (A + B + C + D) | K58: =MAX(ROUND(Per5080G.TotDon100PercentCash+PerYES10080G.TotDon100PercentCash+PerNO5080G.TotDon100PercentCash+Per10080G.TotDon100PercentCash,0),0) -> 0 | L58: =MAX(ROUND(Per5080G.TotDon100PercentMode+PerYES10080G.TotDon100PercentMode+PerNO5080G.TotDon100PercentMode+Per10080G.TotDon100PercentMode,0),0) -> 0 | M58: =MAX(ROUND(Per5080G.TotDon100Percent+PerYES10080G.TotDon100Percent+PerNO5080G.TotDon100Percent+Per10080G.TotDon100Percent,0),0) -> 0 | N58: =MAX(ROUND(MIN(SUM(Per5080G.TotElig100Percent,PerYES10080G.TotElig100Percent,PerNO5080G.TotElig100Percent,Per10080G.TotElig100Percent),GTI_LIMIT),0),0) -> 0
C59: Note : In case of Donee is Government and PAN is not available then use "GGGGG0000G" as PAN.

Sheet 80GGA
C3: Schedule 80GGA | E3: Details of donations for scientific research or rural development
D4: Sl. No. | E4: Relevant Clause under which deduction is claimed | F4: Name of Donee | G4: Address | H4: City or Town or District | I4: State Code | J4: PIN Code | K4: PAN of Donee | L4: Amount of donation | O4: Eligible Amount of Donation
L5: Donation in cash | M5: Donation in other mode | N5: Total Donation
D6: 1 | E6: (Select) | I6: (Select) | N6: =MAX(SUM(L6,M6),0) -> 0 | O6: =MAX(IF(SUM(L6,M6)>0,MIN(SUM(IF(L6>10000,0,L6),M6),GTI_LIMIT),0),0) -> 0
D7: =D6+1 -> 2 | E7: (Select) | I7: (Select) | N7: =MAX(SUM(L7,M7),0) -> 0 | O7: =MAX(IF(SUM(L7,M7)>0,MIN(SUM(IF(L7>10000,0,L7),M7),GTI_LIMIT),0),0) -> 0
D8: =D7+1 -> 3 | E8: (Select) | I8: (Select) | N8: =MAX(SUM(L8,M8),0) -> 0 | O8: =MAX(IF(SUM(L8,M8)>0,MIN(SUM(IF(L8>10000,0,L8),M8),GTI_LIMIT),0),0) -> 0
D9: =D8+1 -> 4 | E9: (Select) | I9: (Select) | N9: =MAX(SUM(L9,M9),0) -> 0 | O9: =MAX(IF(SUM(L9,M9)>0,MIN(SUM(IF(L9>10000,0,L9),M9),GTI_LIMIT),0),0) -> 0
D11: Total Donation | L11: =SUM(Donation_cash_80GGA) -> 0 | M11: =SUM(Donation_other_80GGA) -> 0 | N11: =SUM(Donation_total_80GGA) -> 0 | O11: =MIN(SUM(Donation_Eligible_80GGA),VALUE(GTI_LIMIT)) -> 0

Sheet AMT
C3: Schedule AMT | E3: Computation of Alternate Minimum Tax payable under section 115JC
C4: ALTERNATE MINIMUM TAX | D4: 1 | E4: Total Income as per item 12 of PART-B-TI | L4: 1 | M4: =Sheet2.TotalIncome -> 17443110
D5: 2 | E5: Adjustment as per section 115JC(2)
E6: 2a | F6: Deduction Claimed under any section included in Chapter VI-A under the heading “C.—Deductions in respect of certain incomes” | L6: 2a | M6: =MIN(SUM(scvia.Section80QQB_Calc,scvia.Section80RRB_Calc),Sheet2.GrossTotalIncome-scvia.TotalChapVIADeductions+scvia.Section80QQB_Calc+scvia.Section80RRB_Calc) -> 0
D7: 3 | E7: Adjusted Total Income under section 115JC(1) (1+2 a) | L7: 3 | M7: =SUM(AMT_TotalIncome,AMT_DeductionUnderVIA) -> 17443110
D8: 4 | E8: Tax payable under section 115JC [18.5% of (3),](if 3 is greater than Rs. 20 lakhs) | L8: 4 | M8: =ROUND(IF(AND(AMT_AdjustedTotalIncome>2000000,AMT_DeductionUnderVIA>0),AMT_AdjustedTotalIncome*0.185,0),0) -> 0

Sheet AMTC
C3: Schedule AMTC | F3: Computation of tax credit under section 115JD | Q3: AMTCRestrict | R3: =IF(((Sheet2.Section90+Sheet2.Section91)-Sheet2.GrossTaxLiability)>0,((Sheet2.Section90+Sheet2.Section91)-Sheet2.GrossTaxLiability),0) -> 0
C4: AMT CREDIT | D4: 1 | E4: Tax under section 115JC in assessment year 2020-21 (1d of Part-B-TTI) | K4: 1 | L4: =Sheet2.TotalTaxPayablDeemedTotInc -> 0
D5: 2 | E5: Tax under other provisions of the Act in assessment year 2020-21 (7 of Part-B-TTI) | K5: 2 | L5: =Sheet2.GrossTaxLiability -> 6034338
D6: 3 | E6: Amount of tax against which credit is available [enter (2 – 1) if 2 is greater than 1, otherwise enter 0] | K6: 3 | L6: =MAX(0,AMTC_TaxUnderProvisionAct-AMTC_TaxUnderSection115JC) -> 6034338
D7: 4 | E7: Utilisation of AMT credit Available (Sum of AMT credit utilized during the current year is subject to maximum of amount mentioned in 3 above and cannot exceed the sum of AMT Credit Brought Forward)
E8: Sl. No. | F8: Assessment Year (A) | G8: AMT Credit | J8: AMT Credit Utilised during the Current Assessment Year (C) | K8: Balance AMT Credit Carried Forward (D) = (B3) – (C)
G9: Gross (B1) | H9: Set-off in earlier assessment years (B2) | I9: Balance brought forward to the current assessment year (B3) = (B1) - (B2)
E10: i | F10: 2013-14 | I10: =MAX(0,SUM(G10,-H10)) -> 0 | K10: =MAX(0,SUM(I10,-J10)) -> 0
E11: ii | F11: 2014-15 | I11: 0 | K11: 0
E12: iii | F12: 2015-16 | I12: 0 | K12: 0
E13: iv | F13: 2016-17 | I13: 0 | K13: 0
E14: v | F14: 2017-18 | I14: 0 | K14: 0
E15: vi | F15: 2018-19 | I15: 0 | K15: 0
E16: vii | F16: 2019-20 | I16: =MAX(0,G16) -> 0 | K16: =MAX(0,SUM(I16,-J16)) -> 0
E17: viii | F17: Current AY (enter 1 -2, if 1>2 else enter 0 | G17: =MAX(0,AMTC_TaxUnderSection115JC-AMTC_TaxUnderProvisionAct-AMTCRestrict) -> 0 | K17: =AMTC_Gross7 -> 0
E18: ix | F18: Total | G18: =SUM(G10:G17) -> 0 | H18: =SUM(H10:H17) -> 0 | I18: =SUM(I10:I17) -> 0 | J18: =SUM(J10:J17) -> 0 | K18: =SUM(K10:L17) -> 0
D19: 5 | E19: Amount of tax credit under section 115JD utilised during the year [total of item no 4 (C)] | J19: 5 | K19: =AMTC_CreditUtilizedTotal -> 0
D20: 6 | E20: Amount of AMT liability available for credit in subsequent assessment years [total of 4D] | J20: 6 | K20: =AMTC_CarriedForwardTotal -> 0

Sheet VIA
R1: Central Govt | S1: 0
R2: State Govt | S2: 0
C3: Schedule VI-A | F3: Deductions under Chapter VI-A | R3: Public SU | S3: 0
E4: Whether, you have made any investment/ deposit/ payments between 01.04.2020 to 31.07.2020 for the purpose of claiming any deduction under Part B of Chapter VIA? [Yes/No] (If yes, please fill sl no "A" of schedule DI) | L4: No | R4: Pensioner | S4: 0
C5: TOTAL DEDUCTIONS | D5: a | E5: 80C - Life insurance premium, deferred annuity, contributions to provident fund, subscription to certain equity shares or debentures, etc. | H5: a | I5: 150000 | L5: =MIN(MIN(VALUE(scvia.Section80C),150000),VALUE(GTI_LIMIT)) -> 150000 | R5: OTHER | S5: 1
D6: b | E6: 80CCC - Payment in respect Pension Fund | H6: b | L6: =IF(MID(sheet1.Status,1,1)="H",0,MIN(MIN(VALUE(scvia.Section80CCC), 150000,Max_Amount - VALUE(scvia.Section80C_Calc)),VALUE(GTI_LIMIT))) -> 0 | R6: Select or null | S6: 0 | T6: =IF(sheet2.SalarySectionCount=Temp_Null,Temp_Null,0) -> 0
D7: c | E7: 80CCD(1) - Contribution to pension scheme of Central Government | H7: c | L7: =IF(MID(sheet1.Status,1,1)="H",0,IF(SAL.TotIncUnderHeadSalariesWithExemption1=0,MIN(VALUE(scvia.Section80CCD_SE),MIN(150000,IF(OR(Temp_Pensioner>0,Temp_Null_1>0),ROUND(Sheet2.GrossTotalIncome*0.2,0),ROUND(Temp_DA_BS*0.1,0))),Max_Amount-scvia.Section80C_Calc-scvia.Section80CCC_Calc),MIN(VALUE(scvia.Section80CCD_SE),Max_Amount-scvia.Section80C_Calc-scvia.Section80CCC_Calc,MIN(150000,MAX(0,,IF(OR(Temp_Pensioner>0,Temp_Null_1>0),ROUND(Sheet2.GrossTotalIncome*0.2,0),ROUND(Temp_DA_BS*0.1,0))))))) -> 0 | P7: =IF(AND(MID(sheet1.Status,1,1)="I",P8=1),1,0) -> 0 | R7: DA or Basic salary | S7: 16800000
D8: d | E8: 80CCD(1B) - Contribution to pension scheme of Central Government | H8: d | I8: 40000 | L8: =IF(MID(sheet1.Status,1,1)="H",0,MIN(VALUE(scvia.Section80CCD1B_SE),50000,GTI_LIMIT)) -> 40000 | P8: =IF(AND(age>59,MID(sheet1.ResidentialStatus1, 1, 2) = "NR"),1,0) -> 0 | S8: =IF(MID(sheet1.Status,1,1)="H",0,IF(SAL.TotIncUnderHeadSalariesWithExemption1=0,MIN(VALUE(scvia.Section80CCD_SE),MIN(150000,ROUND(Sheet2.GrossTotalIncome*0.2,0)),Max_Amount-scvia.Section80C_Calc-scvia.Section80CCC_Calc),MIN(VALUE(scvia.Section80CCD_SE),Max_Amount-scvia.Section80C_Calc-scvia.Section80CCC_Calc,MIN(150000,MAX(0,ROUND(Sheet11.Salaries80CCD2*0.1,0)))))) -> 0
D9: e | E9: 80CCD(2) - Contribution to pension scheme of Central Government by the Employer | H9: e | L9: =ROUND(IF(MID(sheet1.Status,1,1)="H",0,MIN(MIN(VALUE(scvia.Section80CCD), MAX(0,IF(Temp_CG>0,0.14*(Temp_DA_BS),IF(OR(Temp_SG>0,Temp_PSU>0,Temp_OTH>0),0.1*(Temp_DA_BS),0)))),GTI_LIMIT)),0) -> 0 | O9: 16865200 | P9: =IF(OR(age<=59,MID(sheet1.ResidentialStatus1, 1, 2) = "NR"),1,0) -> 1 | R9: HRA | S9: 36000
D10: f | E10: 80CCG - Investment made under an equity savings scheme | H10: f | L10: =IF(MID(sheet1.Status,1,1)="H",0,MIN(IF(MID(sheet1.ResidentialStatus1,1,3)="NRI",0,IF((GTI_LIMIT +VALUE(Sheet2.IncChargeableTaxSplRates))> 1200000,0,MIN(VALUE(scvia.Section80CCG),25000))),(GTI_LIMIT))) -> 0 | P10: =IF(AND(MID(sheet1.Status,1,1)="I",P9=1),1,0) -> 1 | R10: HRA | T10: GTI_LIMIT | U10: =MAX(0,VALUE(Sheet2.GrossTotalIncome)-VALUE(Sheet2.IncChargeableTaxSplRates)) -> 17700610
D11: f | E11: 80D-Deduction in respect of Health Insurance premia. (Please fill 80D Schedule. This field is auto-populated from schedule 80D.) | H11: f | I11: =MAX(0,MIN(GTI_LIMIT,Eligible_Amount_80D)) -> 57500 | L11: =IncD.Section80DValue -> 57500 | R11: HRA Sec 13A | S11: 0
E12: (A) Health Insurance Premium | G12: (Select) | H12: g | L12: =S13 -> 0 | O12: =IF( OR(MID(SELECT80D,1,1) ="(", MID(SELECT80D,1,1)=""),0,MID(SELECT80D,1,1)) -> 0 | P12: =IF(OR(O12="1",O12="3"),25000,IF(OR(O12="2",O12="4"),IF(AND(O12="2",P7=1),25000,50000),IF(O12="5",50000,IF(O12="6",75000,IF(O12="7",IF(P10=1,75000,100000),0))))) -> 0 | Q12: =MIN(VALUE(scvia.Section80D),MIN(GTI_LIMIT,P12)) -> 0 | R12: HRA Sec 13A | T12: Max Amount | U12: =IF(GTI_LIMIT>150000,150000,GTI_LIMIT) -> 150000
E13: (B) Medical expenditure | G13: (Select) | O13: =IF( OR(MID(SELECT80DB,1,1) ="(", MID(SELECT80DB,1,1)=""),0,MID(SELECT80DB,1,1)) -> 0 | P13: =IF(O13="1",50000,IF(O13="2",50000,IF(O13="3",100000,0))) -> 0 | Q13: =IF(MID(sheet1.Status,1,1)<>"I",MIN(VALUE(scvia.Section80DB),MIN(GTI_LIMIT,50000)),IF(AND(MID(sheet1.ResidentialStatus1,1,3)<>"NRI",age>=80),MIN(VALUE(scvia.Section80DB),MIN(GTI_LIMIT,P13)),MIN(VALUE(scvia.Section80DB),MIN(GTI_LIMIT,P13)))) -> 0 | R13: HRA Sec 13A
E14: (C) Preventive health check-up | G14: (Select) | O14: =IF( OR(MID(SELECT80DC,1,1) ="(", MID(SELECT80DC,1,1)=""),0,MID(SELECT80DC,1,1)) -> 0 | P14: =MIN(MIN(IF(O14="1",5000,IF(O14="2",5000,IF(O14="3",5000,0))),GTI_LIMIT),IF(scvia.Section80DC="",0,scvia.Section80DC)) -> 0 | Q14: =P14 -> 0 | R14: HRA Sec 13A
D15: g | E15: 80 DD - Maintenance including medical treatment of a dependent who is a person with disability | G15: (Select) | H15: g | L15: =MIN(IF(MID(sheet1.ResidentialStatus1,1,3)<>"NRI",MIN(P15,VALUE(scvia.Section80DD)),0),GTI_LIMIT) -> 0 | O15: =IF( OR(MID(SELECT80DD,1,1) ="(", MID(SELECT80DD,1,1)=""),0,MID(SELECT80DD,1,1)) -> 0 | P15: =IF(O15="1",75000,IF(O15="2",125000,0)) -> 0 | R15: Total 17(1) | S15: 16917600
D16: h | E16: 80 DDB - Medical treatment of specified disease | G16: (Select) | H16: h | L16: =MIN(IF(MID(sheet1.ResidentialStatus1,1,3)<>"NRI",MIN(P16,VALUE(scvia.Section80DDB)),0),GTI_LIMIT) -> 0 | O16: =IF( OR(MID(SELECT80DDB,1,1) ="(", MID(SELECT80DDB,1,1)=""),0,MID(SELECT80DDB,1,1)) -> 0 | P16: =IF(O16="1",40000,IF(O16="2",100000,0)) -> 0
D17: i | E17: 80 E - Interest on loan taken for higher education | H17: i | L17: =IF(MID(sheet1.Status,1,1)="H",0,MIN(VALUE(scvia.Section80E),GTI_LIMIT)) -> 0
D18: j | E18: 80EE - Interest on loan taken for residential house property | H18: j | L18: =MIN(IF(MID(sheet1.Status,1,1)="H",0,MIN(VALUE(scvia.Section80EE),GTI_LIMIT)),50000) -> 0
D19: k | E19: 80EEA - Deduction in respect of interest on loan taken for certain house property | H19: k | L19: =MAX(0,IF(MID(sheet1.Status,1,1)="H",0,MIN(MIN(VALUE(scvia.Section80EEA),GTI_LIMIT),150000))) -> 0
D20: l | E20: 80EEB - Deduction in respect of purchase of electric vehicle | H20: l | L20: =MAX(0,IF(MID(sheet1.Status,1,1)="H",0,MIN(MIN(VALUE(scvia.Section80EEB),GTI_LIMIT),150000))) -> 0
D21: m | E21: 80G - Donations to certain funds, charitable institutions, etc (Please fill 80G Schedule. This field is auto-populated from schedule.) | H21: m | I21: =Per5080G.TotalEligibleDonationsUs80G -> 0 | L21: =Per5080G.TotalEligibleDonationsUs80G -> 0
D22: n | E22: 80 GG - Rent paid | H22: n | L22: =MIN(MAX(scvia.Section80GG,0),MIN(60000,0.25*(MAX(0,VALUE(GTI_LIMIT)-SUM(L5:L21,VALUE(scvia.Section80GGC_Calc),L23,L26:L30))))) -> 0
D23: o | E23: 80GGA - Certain donations for scientific research or rural development (Please fill 80GGA Schedule. This field is auto-populated from schedule.) | H23: o | I23: =Total_Donation_80GGA -> 0 | L23: =MIN(VALUE(Total_Donation_Eligible_80GGA),GTI_LIMIT) -> 0
D24: p | E24: 80 GGC - Donation to Political party | H24: p | L24: =MIN(IF(MID(sheet1.PAN,4,1)="J",0,IF(MID(sheet1.PAN,4,1)="L",0,VALUE(scvia.Section80GGC))),GTI_LIMIT) -> 0
D25: 2. Part C,CA and D- Deduction in respect of certain incomes/other deduction
D26: q | E26: 80QQB - Royalty income of authors of certain books. | H26: q | L26: =MIN(IF(MID(sheet1.ResidentialStatus1,1,3)="NRI",0,IF(MID(sheet1.Status,1,1)<>"I",0,MIN(VALUE(scvia.Section80QQB),300000))),MAX(0,MIN(GTI_LIMIT,MAX(0,SUM(os.AnyotherTotal))))) -> 0
D27: r | E27: 80RRB - Royalty on patents | H27: r | L27: =MIN(IF(MID(sheet1.ResidentialStatus1,1,3)="NRI",0,IF(MID(sheet1.Status,1,1)<>"I",0,MIN(VALUE(scvia.Section80RRB),300000))),MAX(0,MIN(GTI_LIMIT,MAX(0,SUM(os.AnyotherTotal))))) -> 0
D28: s | E28: 80TTA - Interest on saving bank Accounts in case of other than Resident senior citizens | H28: s | I28: 37410 | L28: =MIN(MIN(VALUE(scvia.Section80TTA),10000),MAX(0,MIN(GTI_LIMIT,MAX(0,os.InterestGross_a)))) -> 10000
D29: t | E29: 80TTB - Interest on deposits in case of Resident senior citizens | H29: t | L29: =MIN(MIN(VALUE(scvia.Section80TTB),50000),MAX(0,MIN(GTI_LIMIT,MAX(0,SUM(os.InterestGross_a,os.InterestGross_b))))) -> 0
D30: u | E30: 80 U - In case of a person with disability. | G30: (Select) | H30: u | L30: =IF(MID(sheet1.Status,1,1)<>"I",0,IF(MID(sheet1.ResidentialStatus1,1,3)="NRI",0,MIN(MIN(VALUE(scvia.Section80U),P30),GTI_LIMIT))) -> 0 | O30: =IF( OR(MID(SELECT80U,1,1) ="(", MID(SELECT80U,1,1)=""),0,MID(SELECT80U,1,1)) -> 0 | P30: =IF(O30="1",75000,IF(O30="2",125000,0)) -> 0
D31: v | E31: Deductions (Total of a to u) | H31: v | I31: =SUM(I5:I30) -> 284910 | K31: =SUM(I5:I30) -> 284910 | L31: =IF(Sheet2.GrossTotalIncome>0,MIN(SUM(L5:L30),GTI_LIMIT),0) -> 257500

Sheet SPI - SI
C3: Schedule SPI | E3: Income of specified persons (spouse, minor child etc.) included in income of the assessee as per Section 64
D4: Sl. No. | E4: Name of person | F4: PAN of person (optional) | G4: Aadhaar of person (optional) | H4: Relationship | I4: Amount (Rs) | J4: Head of Income in which included
D5: 1 | J5: (Select)
D6: =D5+1 -> 2 | J6: (Select)
D7: =D6+1 -> 3 | J7: (Select)
H8: Total | I8: =SUM(SPI.AmtIncluded) -> 0
C11: Please click on Recalculate initially, and also subsequently if Gender, Date of Birth , Residential Status or Assessee Status (Indl / HUF etc) is changed (Note "Recalculate button is provided in Sheet PART B - TI - TTI)
C12: Schedule SI | E12: Income chargeable to tax at special rates (please see instructions No. 9 for rate of tax)
D13: Sl. No. | E13: Section | F13: Special rate (%) | G13: Income i | H13: Taxable Income after adjusting for Min Chargeable to Tax | I13: Tax thereon (ii)
D14: 1 | E14: 111 - Tax on accumulated balance of recognised PF | F14: 1 | G14: =MAX(Source_1_OS-DTAA_111_OS,0) -> 0 | H14: =SI_111 -> 0 | I14: =Os.TaxBenefitTotal -> 0
D15: =D14+1 -> 2 | E15: 111A (STCG on shares where STT paid) | F15: 15 | G15: =BFLAtemp15Sec111a -> 0 | H15: =IF(Exemption_after_112<=splRateInc1A,MAX(0,splRateInc1A-Exemption_after_112),0) -> 0 | I15: =ROUND(H15*F15/100,0) -> 0
D16: =D15+1 -> 3 | E16: 112 (LTCG on others) | F16: 20 | G16: =BFLAtemp20Sec112 -> 0 | H16: =IF(Exemtption_SI<=splRateInc21,MAX(0,splRateInc21-Exemtption_SI),0) -> 0 | I16: 0
D17: =D16+1 -> 4 | E17: 112 proviso (LTCG on listed securities/ units without indexation) | F17: 10 | G17: =BFLAtemp10SecPro -> 0 | H17: =IF(Exemption_after_11A<=splRateInc22,MAX(0,splRateInc22-Exemption_after_11A),0) -> 0 | I17: 0
D18: =D17+1 -> 5 | E18: 112A (LTCG on sale of shares or units on which STT is paid) | F18: 10 | G18: =BFLAtemp10Sec112a -> 0 | H18: =IF(Exemption_after_112_prov<=splRateInc23,MAX(0,splRateInc23-Exemption_after_112_prov),0) -> 0 | I18: =ROUND(MAX(0,H18-100000)*F18/100,0) -> 0 | P18: Limt_PTI 112A | R18: =MAX(0,100000-taxableInc23) -> 100000
D19: =D18+1 -> 6 | E19: 112(1)(c)(iii)(LTCG on unlisted securities in case of non-residents) | F19: 10 | G19: =BFLAtemp10Sec1121c2 -> 0 | H19: =G19 -> 0 | I19: 0
D20: 7 | E20: 115BB (Winnings from lotteries, puzzles, races, games etc.) | F20: 30 | G20: =MAX(os.WinLottRacePuzz-SumBB,0) -> 0 | H20: =G20 -> 0 | I20: 0
D21: 8 | E21: 115AD(1)(ii) -STCG (other than on equity share or equity oriented mutual fund referred to in section 111A) by an FII | F21: 30 | G21: =BFLAtemp10Sec115AD -> 0 | H21: =G21 -> 0 | I21: 0
D22: 9 | E22: 115AD(1)(b)(ii)- Short term capital gains referred to in section 111A | F22: 15 | G22: =BFLAtemp15Sec115ad1bii -> 0 | H22: =G22 -> 0 | I22: 0
D23: 10 | E23: 115A(1)(a)(i)- Dividends interest and income from units purchase in foreign currency | F23: 20 | G23: =MAX(Source_5A1ai_OS - DTAA_5A1ai_OS, 0) -> 0 | H23: =G23 -> 0 | I23: =ROUND(H23*F23/100,0) -> 0
D24: 11 | E24: 115A(1)(a)(ii)- Interest received from Govt/Indian Concerns received in Foreign Currency | F24: 20 | G24: =MAX(Source_5A1aii_OS -DTAA_5A1aii_OS, 0) -> 0 | H24: 0 | I24: 0
D25: 12 | E25: 115A(1) (a)(iia) -Interest from Infrastructure Debt Fund | F25: 5 | G25: =MAX(Source_5A1aiia_OS -DTAA_5A1aiia_OS, 0) -> 0 | H25: 0 | I25: 0
D26: 13 | E26: 115A(1) (a)(iiaa) -Interest as per Sec. 194LC | F26: 5 | G26: =MAX(Source_5A1aiiaa_OS - DTAA_5A1aiiaa_OS, 0) -> 0 | H26: 0 | I26: 0
D27: 14 | E27: 115A(1) (a)(iiab) -Interest as per Sec. 194LD | F27: 5 | G27: =MAX(Source_5A1aiiab_OS -DTAA_5A1aiiab_OS, 0) -> 0 | H27: 0 | I27: 0
D28: 15 | E28: 115A(1) (a)(iiac) -Interest as per Sec. 194LBA | F28: 5 | G28: =MAX(Source_5A1aiiac_OS - DTAA_5A1aiiac_OS, 0) -> 0 | H28: 0 | I28: 0
D29: 16 | E29: 115A(1) (a)(iii) - Income received in respect of units of UTI purchased in Foreign Currency | F29: 20 | G29: =MAX(Source_5A1aiii_OS - DTAA_5A1aiii_OS, 0) -> 0 | H29: 0 | I29: 0
D30: 17 | E30: 115A(1)(b)- Income from royalty or fees for technical services received from Government or Indian concern - chargeable u/s 115A(1)(b) | F30: 10 | G30: =MAX(Source_5A1bA_OS - DTAA_5A1bA_OS, 0) -> 0 | H30: 0 | I30: 0
D31: 18 | E31: 115A(1)(b)(B) Income from royalty & technical services | F31: 10 | G31: =MAX(Source_5A1bB_OS - DTAA_5A1bB_OS, 0) -> 0 | H31: 0 | I31: 0
D32: =D30+1 -> 18 | E32: 115AC(1)(a & b) - Income from bonds or GDR purchased in foreign currency - non-resident | F32: 10 | G32: =MAX(Source_5AC1ab_OS -DTAA_AC1ab_OS, 0) -> 0 | H32: 0 | I32: 0
D33: 19 | E33: 115AC(1)(c) -LTCG arising from the transfer of bonds or GDR purchased in foreign currency - non-resident | F33: 10 | G33: =BFLAtemp10Sec115AC1 -> 0 | H33: 0 | I33: =ROUND(H33*F33/100,0) -> 0
D34: 20 | E34: 115ACA(1)(a) - Income from GDR purchased in foreign currency -resident | F34: 10 | G34: =MAX(Source_5ACA1a_OS-DTAA_5ACA1a_OS,0) -> 0 | H34: 0 | I34: 0
D35: 21 | E35: 115ACA(1)(b)-long term capital gains arising from their transfer in case of a resident employee of an Indian company, engaged in knowledge based industry or service | F35: 10 | G35: =BFLAtemp10Sec115ACA1 -> 0 | H35: 0 | I35: 0
D36: 22 | E36: 115AD(1)(i) -Income received by an FII in respect of securities (other than units as per Sec 115AB) | F36: 20 | G36: =MAX(Source_5AD1i_OS - DTAA_5AD1i_OS, 0) -> 0 | H36: 0 | I36: 0
D37: 23 | E37: 115AD(1)(i) -Income received by an FII in respect of bonds or government securities as per Sec 194LD | F37: 5 | G37: =MAX(Source_5AD1ip_OS -DTAA_5AD1ip_OS, 0) -> 0 | H37: 0 | I37: 0
D38: 24 | E38: 115AD(1)(iii)-Long term capital gains by an FII | F38: 10 | G38: =BFLAtemp10Sec115AD3 -> 0 | H38: 0 | I38: 0
D39: 25 | E39: 5ADiiiP - Proviso to 115AD(iii) | F39: 10 | G39: =BFLAtemp10Sec115AD3Proviso -> 0 | H39: 0 | I39: =ROUND(MAX(H39-100000,0)*F39/100,0) -> 0
D40: 26 | E40: 115BBA - Tax on non-residents sportsmen or sports associations | F40: 20 | G40: =MAX(Source_5BBA_OS -DTAA_5BBA_OS, 0) -> 0 | H40: 0 | I40: 0
D41: 27 | E41: 115BBC - Anonymous donations | F41: 30 | G41: =MAX(Source_5BBC_OS-DTAA_5BBC_OS,0) -> 0 | H41: 0 | I41: 0
D42: 28 | E42: 115BBDA (Dividend income from domestic company exceeding Rs.10lakh) | F42: 10 | G42: =MAX(Source_5BBDA_OS-SumBBDA,0) -> 0 | H42: 0 | I42: 0
D43: 29 | E43: 115BBE - Tax on income referred to in sections 68 or 69 or 69A or 69B or 69C or 69D | F43: 60 | G43: =MAX(os.Total115BE-SumBBE,0) -> 0 | H43: 0 | I43: 0
D44: 30 | E44: 115BBF-Tax on income from patent | F44: 10 | G44: =MAX(Source_5BBF_OS-SumBBF,0) -> 0 | H44: =G44 -> 0 | I44: =ROUND(H44*F44/100,0) -> 0
D45: 31 | E45: 115BBG-Tax on income from transfer of carbon credits | F45: 10 | G45: =MAX(Source_5BBG_OS-SumBBG,0) -> 0 | H45: =G45 -> 0 | I45: =ROUND(H45*F45/100,0) -> 0
D46: 32 | E46: 115E(a) - Investment income | F46: 20 | G46: =MAX(Source_5Ea_OS -DTAA_5Ea_OS, 0) -> 0 | H46: 0 | I46: 0
D47: 33 | E47: 115E(a)-LTCG on any asset other than a specified asset-non resident Indian | F47: 20 | G47: =BFLAtemp20Sec11EA -> 0 | H47: 0 | I47: 0
D48: 34 | E48: 115E(b) -Long term capital gains of a non-resident Indian on any specified asset | F48: 10 | G48: =BFLAtemp10Sec115Eb -> 0 | H48: 0 | I48: 0
D49: 35 | E49: STCG Chargeable under DTAA rates | F49: 1 | G49: =stcg.IncOfCurYrAfterSetOffBFLossesDTAA -> 0 | H49: 0
D50: 36 | E50: LTCG Chargeable under DTAA rates | F50: 1 | G50: =ltcg.IncOfCurYrAfterSetOffBFLossesDTAA -> 0 | H50: 0
D51: 37 | E51: Other source income chargeable under DTAA rates | F51: 1 | G51: =os.DTAA_Amt -> 0 | H51: 0
D52: 38 | E52: Pass Through Income in the nature of Short Term Capital Gain chargeable @ 15% | F52: 15 | G52: =BFLAtemp15SecPTI -> 0 | H52: 0 | I52: =ROUND(H52*F52/100,0) -> 0
D53: 39 | E53: Pass Through Income in the nature of Short Term Capital Gain chargeable @ 30% | F53: 30 | G53: =BFLAtemp30SecPTI -> 0 | H53: 0 | I53: 0
D54: 40 | E54: Pass Through Income in the nature of Long Term Capital Gain chargeable @ 10% u/s 112A | F54: 10 | G54: =BFLAtemp10SecPTI_a1 -> 0 | H54: =IF(Exemption_after_112A<=splRateInc23_PTIa1,MAX(0,splRateInc23_PTIa1-Exemption_after_112A),0) -> 0 | I54: =ROUND(MAX(0,H54-R18)*F54/100,0) -> 0
D55: 41 | E55: Pass Through Income in the nature of Long Term Capital Gain chargeable @ 10% u/s other than u/s 112A | F55: 10 | G55: =BFLAtemp10SecPTI -> 0 | H55: =G55 -> 0 | I55: 0
D56: 42 | E56: Pass Through Income in the nature of Long Term Capital Gain chargeable @ 20% | F56: 20 | G56: =BFLAtemp20SecPTI -> 0 | H56: 0 | I56: 0
D57: 43 | E57: PTI_115A(1)(a)(i)- Dividends in the case of non-residents | F57: 20 | G57: =MAX(PTI_5A1ai_OS -PTI_5A1ai_DTAA, 0) -> 0 | H57: 0 | I57: 0
D58: 44 | E58: PTI_115A(1)(a)(ii)- Interest received in the case of non-residents | F58: 20 | G58: =MAX(PTI_5A1aii_OS -PTI_5A1aii_DTAA, 0) -> 0 | H58: 0 | I58: 0
D59: 45 | E59: PTI_115A(1)(a)(ilia)- Interest received by non-resident from infrastructure debt fund | F59: 5 | G59: =MAX(PTI_5A1aiia_OS -PTI_5A1aiia_DTAA, 0) -> 0 | H59: 0 | I59: 0
D60: 46 | E60: PTI_115A(1)(a)(iiaa)- Income received by non-resident as referred in section 194LC | F60: 5 | G60: =MAX(PTI_5A1aiiaa_OS -PTI_5A1aiiaa_DTAA, 0) -> 0 | H60: 0 | I60: 0
D61: 47 | E61: PTI_115A(1)(a)(iiab)- Income received by non-resident as referred in section 194LD | F61: 5 | G61: =MAX(PTI_5A1aiiab_OS -PTI_5A1aiiab_DTAA, 0) -> 0 | H61: 0 | I61: 0
D62: 48 | E62: PTI_115A(1)(a)(iiac)- Income received by non-resident as referred in section 194LBA | F62: 5 | G62: =MAX(PTI_5A1aiiac_OS -PTI_5A1aiiac_DTAA, 0) -> 0 | H62: 0 | I62: 0
D63: 49 | E63: PTI_115A(1)(a)(iii)- Income from units purchased in foreign currency in the case of non-residents | F63: 20 | G63: =MAX(PTI_5A1aiii_OS -PTI_5A1aiii_DTAA, 0) -> 0 | H63: 0 | I63: 0
D64: 50 | E64: PTI_115A(1)(b)-Income from royalty or fees for technical services received from Government or Indian concern | F64: 10 | G64: =MAX(PTI_5A1bA_OS -PTI_5A1bA_DTAA, 0) -> 0 | H64: 0 | I64: 0
D65: 51 | E65: PTI_115A(1)(b)(B)- Income from fees for technical services in case of non-resident in pursuance of an agreement made after 31-03-1976 | F65: 10 | G65: =MAX(PTI_5A1bB_OS -PTI_5A1bB_DTAA, 0) -> 0 | H65: 0 | I65: 0
D66: 52 | E66: PTI_115AC(1)(a & b)- Income from bonds or GDR purchased in foreign currency | F66: 10 | G66: =MAX(PTI_5AC1ab_OS -PTI_5AC1ab_DTAA, 0) -> 0 | H66: 0 | I66: 0
D67: 53 | E67: PTI_115ACA(1)(a )- Income from GDR purchased in foreign currency or long term capital gains arising from their transfer in case of a resident employee of an Indian company, engaged in knowledge based industry or service | F67: 10 | G67: =MAX(PTI_5ACA1a_OS -PTI_5ACA1a_DTAA, 0) -> 0 | H67: 0 | I67: 0
D68: 54 | E68: PTI_115AD(1)(i)- Income received by an FII in respect of securities (other than units referred to in section115AB) | F68: 20 | G68: =MAX(PTI_5AD1i_OS -PTI_5AD1i_DTAA, 0) -> 0 | H68: 0 | I68: 0
D69: 55 | E69: PTI_115AD(1)(i)- Income received by an FII in respect of bonds or government securities referred to in section 194LD | F69: 5 | G69: =MAX(PTI_5AD1iP_OS -PTI_5AD1iP_DTAA, 0) -> 0 | H69: 0 | I69: 0
D70: 56 | E70: PTI_115BB- Winnings from lotteries, crosswords puzzles, races including horse races, card games and other games of any sort or gambling or betting of any form or nature whatsoever | F70: 30 | G70: =MAX(PTI_5BB_OS -PTI_5BB_DTAA, 0) -> 0 | H70: 0 | I70: 0
D71: 57 | E71: PTI_115BBA- Tax on non-resident sportsmen or sports associations or entertainer | F71: 20 | G71: =MAX(PTI_5BBA_OS -PTI_5BBA_DTAA, 0) -> 0 | H71: 0 | I71: 0
D72: 58 | E72: PTI_115BBC- Anonymous donations | F72: 30 | G72: =MAX(PTI_5BBC_OS -PTI_5BBC_DTAA, 0) -> 0 | H72: 0 | I72: 0
D73: 59 | E73: PTI_115BBDA- (Dividend income from domestic company exceeding Rs.10lakh | F73: 10 | G73: =MAX(PTI_5BBDA_OS -PTI_5BBDA_DTAA, 0) -> 0 | H73: 0 | I73: 0
D74: 60 | E74: PTI_115BBE- Tax on income under section 68, 69, 69A, 69B, 69C or 69D | F74: 60 | G74: =MAX(PTI_5BBE_OS -PTI_5BBE_DTAA, 0) -> 0 | H74: =G74 -> 0 | I74: =ROUND(H74*F74/100,0) -> 0
D75: 61 | E75: PTI_115BBF- Tax on income from patent | F75: 10 | G75: =MAX(PTI_5BBF_OS -PTI_5BBF_DTAA, 0) -> 0 | H75: 0 | I75: 0
D76: 62 | E76: PTI_115BBG- Tax on income from transfer of carbon credits. | F76: 10 | G76: =MAX(PTI_5BBG_OS -PTI_5BBG_DTAA, 0) -> 0 | H76: 0 | I76: 0
D77: 63 | E77: PTI_115E(a)- Investment income of a non-resident Indian | F77: 20 | G77: =MAX(PTI_5Ea_OS -PTI_5Ea_DTAA, 0) -> 0 | H77: 0 | I77: 0
F78: Total | G78: =SUM(SI.SplRateInc) -> 0 | H78: =SUM(SI.SplRateIncCalc) -> 0 | I78: =SUM(SI.SplRateIncTax) -> 0

Sheet TaxCalculated (hidden)
A1: Calculation of 234A | D1: DateOfFiling234A | E1: 30/11/2020
D2: DateOfFiling | E2: 18/11/2020
A3: intsrt234AprincTemp | B3: =MAX(Sheet2.NetTaxLiability-Sheet2.AdvanceTax-Sheet2.TDS-Sheet2.TCS-SelfAssmentTaxFor234A,0) -> 508338 | D3: DateOfProcessing | E3: =CONCATENATE(YEAR(TODAY()),"-",IF(MONTH(TODAY())<10,"0",""),MONTH(TODAY()),"-",IF(DAY(TODAY())<10,"0",""),DAY(TODAY())) -> 2020-12-02 | G3: For Kerala Extending Date - 2018-19
A4: intsrt234Aprinc | B4: =FLOOR(intsrt234AprincTemp,100) -> 508300 | D4: countIsLiable | E4: 0 | G4: =MID(sheet1.StateCode1,1,2) -> 19
A5: dueDate1 | B5: 2019-08-31 | D5: SelfAssmentTaxFor234A | E5: =SeLfTax234A -> 106000 | G5: 31/01/2020
A6: dueDateLiable | B6: 2019-09-30 | G6: 2018-08-31
A7: finalDuedate | B7: =B5 -> 2019-08-31 | D7: due date for 100000 check | E7: =IF(AND(age>59,MID(sheet1.Status,1,1)="I",OR(MID(sheet1.ResidentialStatus1,1,3)="RES",MID(sheet1.ResidentialStatus1,1,3)="NOR")),MAX(Sheet2.NetTaxLiability-Sheet2.AdvanceTax-Sheet2.TDS-Sheet2.TCS-IT.Sat1-IT.Sat2-IT.Sat3-IT.Sat4,0),MAX(Sheet2.NetTaxLiability-Sheet2.AdvanceTax-Sheet2.TDS-Sheet2.TCS,0)) -> 614338
A8: currentVerDate | B8: =IF(sheet2.Date>0,DATEVALUE(sheet2.Date),0-0-0) -> 2020-12-02
A9: filingType | B9: =MID(sheet1.ReturnFileSec1,1,2) -> 11
A10: systemDate | B10: =TODAY() -> 2020-12-02
A11: currentDateAftercomp(sys,ver) | B11: =IF(systemDate>currentVerDate,systemDate,currentVerDate) -> 2020-12-02
A12: finalCurrentDate | B12: =IF(AND(OR(filingType="17",filingType="18",filingType="19"),sheet1.OrigRetFiledDate<>""),DATEVALUE(sheet1.OrigRetFiledDate),B11) -> 2020-12-02
A13: noOfMonthAfterdueDate | B13: 7 | D13: DelayedNoOfMonths | E13: 4
A15: section234A | B15: =intsrt234Aprinc*0.01*DelayedNoOfMonths -> 20332
A19: Tax Calculation at normal Rate on aggregate income: | E19: Rebate On Agricultural Income:
A20: taxPayerStatus | B20: =MID(sheet1.Status,1,1) -> I | E20: totIncm | F20: =Sheet2.NetAgricultureIncomeOrOtherIncomeForRate -> 0
A21: resStatus | B21: =MID(sheet1.ResidentialStatus1,1,3) -> RES | E21: netTxblIncm | F21: =F20+exemption -> 250000
A22: age | B22: =age -> 48 | E22: tax1 | F22: =IF(AND(F21>=0,F21<=300000),0,IF(AND(F21>=300001,F21<=500000),ROUND((F21-300000)*0.05,0),IF(AND(F21>=500001,F21<=1000000),ROUND(((F21-500000)*0.2)+10000,0),IF(F21>=1000001,ROUND(((F21-1000000)*0.3)+110000,0))))) -> 0
A23: totalIncm | B23: =Sheet2.AggregateIncome -> 17443110 | E23: tax2 | F23: =IF(AND(F21>=0,F21<=500000),0,IF(AND(F21>=500001,F21<=1000000),ROUND((F21-500000)*0.2,0),IF(F21>=1000001,ROUND(((F21-1000000)*0.3)+100000,0)))) -> 0
A24: pan | B24: =MID(sheet1.PAN,4,1) -> P | E24: tax3 | F24: =IF(AND(F21>=0,F21<=250000),0,IF(AND(F21>=250001,F21<=500000),ROUND((F21-250000)*0.05,0),IF(AND(F21>=500001,F21<=1000000),ROUND(((F21-500000)*0.2)+12500,0),IF(F21>1000001,ROUND(((F21-1000000)*0.3)+112500,0))))) -> 0
A25: netTxblIncm | B25: =totalIncm -> 17443110 | E25: rebateOnAgriIncm | F25: =IF(totalIncm>0,IF(B26=1,F22,IF(B26=2,F23,IF(B26=3,F24,0))),0) -> 0
A26: checkwhichGropu | B26: =IF(AND(Pan="P",taxPayerStatus="I",age>59,age<80,OR(resStatus="RES",resStatus="NOR")),1,IF(AND(Pan="P",taxPayerStatus="I",age>=80,OR(resStatus="RES",resStatus="NOR")),2,IF(OR(taxPayerStatus="I",taxPayerStatus="H"),3))) -> 3
A27: tax1 | B27: =IF(AND(B25>=0,B25<=300000),0,IF(AND(B25>=300001,B25<=500000),ROUND((B25-300000)*0.05,0),IF(AND(B25>=500001,B25<=1000000),ROUND(((B25-500000)*0.2)+10000,0),IF(B25>=1000001,ROUND(((B25-1000000)*0.3)+110000,0))))) -> 5042933
A28: tax2 | B28: =IF(AND(B25>=0,B25<=500000),0,IF(AND(B25>=500001,B25<=1000000),ROUND((B25-500000)*0.2,0),IF(B25>=1000001,ROUND(((B25-1000000)*0.3)+100000,0)))) -> 5032933
A29: tax3 | B29: =IF(AND(B25>=0,B25<=250000),0,IF(AND(B25>=250001,B25<=500000),ROUND((B25-250000)*0.05,0),IF(AND(B25>=500001,B25<=1000000),ROUND(((B25-500000)*0.2)+12500,0),IF(B25>1000001,ROUND(((B25-1000000)*0.3)+112500,0))))) -> 5045433
A30: taxAggrIncm | B30: =IF(B26=1,B27,IF(B26=2,B28,IF(B26=3,B29,0))) -> 5045433
A33: Exemption | B33: =IF(AND(taxPayerStatus="I",age>59,age<80,OR(resStatus="RES",resStatus="NOR")),300000,IF(AND(taxPayerStatus="I",age>=80,OR(resStatus="RES",resStatus="NOR")),500000,IF(OR(taxPayerStatus="I",taxPayerStatus="H"),250000,0))) -> 250000
A36: Calculation of Surcharge:
A37: taxPayable | B37: =Sheet2.BalTaxPayable -> 5045433
A38: totalIncome | B38: =Sheet2.TotalIncome -> 17443110 | D38: Tax Payable Calculation: | G38: slabbed Tax For normalCutOffInc
A39: incChargeTaxSplRate111A112 | B39: =Sheet2.IncChargeableTaxSplRates -> 0 | D39: Group | E39: =IF(AND(taxPayerStatus="I",age>59,age<80,,OR(resStatus="RES",resStatus="NOR")),1,IF(AND(taxPayerStatus="I",age>=80,,OR(resStatus="RES",resStatus="NOR")),2,IF(OR(taxPayerStatus="I",taxPayerStatus="H"),3))) -> 3 | G39: slabbedTax1 | H39: =IF(AND(B57>=0,B57<=250000),0,IF(AND(B57>=250001,B57<=500000),ROUND((B57-250000)*0.1,0),IF(AND(B57>=500001,B57<=1000000),ROUND(((B57-500000)*0.2)+25000,0),IF(B57>=1000001,ROUND(((B57-1000000)*0.3)+125000,0))))) -> 
A40: Value(totalIncome-incChargeTaxSplRate111A1112 | B40: =B38-B39 -> 17443110 | D40: incTax1 | E40: =IF(AND(B40>=0,B40<=250000),0,IF(AND(B40>=250001,B40<=500000),ROUND((B40-250000)*0.1,0),IF(AND(B40>=500001,B40<=1000000),ROUND(((B40-500000)*0.2)+25000,0),IF(B40>=1000001,ROUND(((B40-1000000)*0.3)+125000,0))))) -> 5057933 | G40: slabbedTax2 | H40: =IF(AND(B57>=0,B57<=500000),0,IF(AND(B57>=500001,B57<=1000000),ROUND((B57-500000)*0.2,0),IF(B57>=1000001,ROUND(((B57-1000000)*0.3)+100000,0)))) -> 
A41: taxAtSpecialRates | B41: =sheet2.TaxAtSpecialRates -> 0 | D41: incTax2 | E41: =IF(AND(B40>=0,B40<=500000),0,IF(AND(B40>=500001,B40<=1000000),ROUND((B40-500000)*0.2,0),IF(B40>=1000001,ROUND(((B40-1000000)*0.3)+100000,0)))) -> 5032933 | G41: slabbedTax3 | H41: =IF(AND(B57>=0,B57<=200000),0,IF(AND(B57>=200001,B57<=500000),ROUND((B57-200000)*0.1,0),IF(AND(B57>=500001,B57<=1000000),ROUND(((B57-500000)*0.2)+30000,0),IF(B57>1000001,ROUND(((B57-1000000)*0.3)+130000,0))))) -> 
A42: dtaaInc | B42: =SI.SplRateIncDTAA ->  | D42: IncTax3 | E42: =IF(AND(B40>=0,B40<=200000),0,IF(AND(B40>=200001,B40<=500000),ROUND((B40-200000)*0.1,0),IF(AND(B40>=500001,B40<=1000000),ROUND(((B40-500000)*0.2)+30000,0),IF(B40>1000001,ROUND(((B40-1000000)*0.3)+130000,0))))) -> 5062933 | G42: slabbedTax | H42: =IF(E39=1,H39,IF(E39=2,H40,IF(E39=3,H41,0))) -> 
A43: dtaaTax | B43: =SI.splRateIncTaxDTAA ->  | D43: final_incTax | E43: =IF(E39=1,E40,IF(E39=2,E41,IF(E39=3,E42,0))) -> 5062933
A44: totInc | B44: =B38+B42 -> 
A45: taxOnTotInc | B45: =E43+B41 -> 5062933 | D45: Slabbed Income:
A46: exemption | B46: =exemption-B52-B53-B54 -> 250000 | D46: inc1 | E46: =IF(AND(B40>=0,B40<=250000),11,IF(AND(B40>=250001,B40<=500000),12,IF(AND(B40>=500001,B40<=1000000),13,IF(B40>=1000001,14)))) -> 14
A47: cg10 | B47: =BFLAtemp10SecPro+BFLAtemp10Sec115ACA1+BFLAtemp10Sec115Eb+BFLAtemp10Sec1121c2+BFLAtemp10Sec115AC1+BFLAtemp10Sec115AD3 -> 0 | D47: inc2 | E47: =IF(AND(B40>=0,B40<=500000),21,IF(AND(B40>=500001,B40<=1000000),22,IF(B40>=1000001,23))) -> 23
A48: cg15 | B48: =BFLAtemp15Sec111a+BFLAtemp15Sec115ad1bii -> 0 | D48: inc3 | E48: =IF(AND(B40>=0,B40<=200000),31,IF(AND(B40>=200001,B40<=500000),32,IF(AND(B40>=500001,B40<=1000000),33,IF(B40>1000001,34)))) -> 34
A49: cg20 | B49: =BFLAtemp20Sec112+BFLAtemp20Sec11EA -> 0 | D49: normal10 | E49: =IF(E39=1,IF(E46=11,0,IF(E46=12,B40-250000,IF(E46=13,250000,IF(E46=14,250000,0)))),IF(E39=2,IF(E47=21,0,IF(E47=22,0,IF(E47=23,0,0))),IF(E39=3,IF(E48=31,0,IF(E48=32,B40-200000,IF(E48=33,300000,IF(E48=34,300000,0)))),0))) -> 300000
A50: cg30 | B50: =stcg.IncOfCurYrAfterSetOffBFLosses3a -> 0 | D50: normal20 | E50: =IF(E39=1,IF(E46=11,0,IF(E46=12,0,IF(E46=13,B40-500000,IF(E46=14,500000,0)))),IF(E39=2,IF(E47=21,0,IF(E47=22,B40-500000,IF(E47=23,500000,0))),IF(E39=3,IF(E48=31,0,IF(E48=32,0,IF(E48=33,B40-500000,IF(E48=34,500000,0)))),0))) -> 500000
A51: toBeTaxed | B51: =MAX((10000000-B42)-E49-MIN(B46,B40),0) ->  | D51: normal30 | E51: =IF(E39=1,IF(E46=11,0,IF(E46=12,0,IF(E46=13,0,IF(E46=14,B40-1000000,0)))),IF(E39=2,IF(E47=21,0,IF(E47=220,IF(E47=23,B40-1000000,0))),IF(E39=3,IF(E48=31,0,IF(E48=32,0,IF(E48=33,0,IF(E48=34,B40-1000000,0)))),0))) -> 16443110
A52: exmptn10 | B52: =(splRateInc22-taxableInc22) -> 0
A53: exmptn15 | B53: =(splRateInc1A-taxableInc1A) -> 0 | D53: Find CgTax,CgTaxed and tobeTaxed:
A54: exmptn20 | B54: =(splRateInc21-taxableInc21) -> 0 | D54: case1(cg10<toBeTaxed ) | E54: =IF(B47<B51,TRUE,FALSE) -> 
A55: toBeTaxedAftrCg10andCg15 | B55: =MAX(E62-E50,0) ->  | D55: case2(cg15<toBeTaxed) | E55: =IF(B48<D62,TRUE,FALSE) -> 
A56: toBeTaxedAftrCg20 | B56: =MAX(F62-E51,0) ->  | D56: case3(cg20<toBeTaxed) | E56: =IF(B49<B55,TRUE,FALSE) -> 
A57: normalCutOffInc | B57: =10000000-G61-B42 ->  | D57: case4(cg30<toBeTaxed) | E57: =IF(B50<B56,TRUE,FALSE) -> 
A58: taxOnCutOffInc | B58: =H42+G60+B43 -> 
A59: tempSurcharge | B59: =IF(FLOOR(B44,10)>10000000,B37*0.1,0) ->  | D59: Cg10 | E59: cg15 | F59: cg20 | G59: cg30
A60: extraInc | B60: =MAX(FLOOR(B44,10)-10000000,0) ->  | C60: cgTax | D60: =IF(E54,(B47-B52)*0.1,(B51-B52)*0.1) ->  | E60: =IF(E55,D60+(B48-B53)*0.15,D60+(D62-B53)*0.15) ->  | F60: =IF(E56,E60+(B49-B54)*0.2,E60+(E62-B54)*0.2) ->  | G60: =IF(E57,F60+(B50*0.3),F60+(F62*0.3)) -> 
A61: marginalRelief | B61: =MAX(B45+B59-B58-B60,0) ->  | C61: cgTaxed | D61: =IF(E54,B47,B51) ->  | E61: =IF(E55,D61+B48,D61+D62) ->  | F61: =IF(E56,E61+B49,E62+E61) ->  | G61: =IF(E57,B50+F61,F61+F62) -> 
A62: surcharge | B62: 0 | C62: toBeTaxed | D62: =IF(E54,B51-B47,0) ->  | E62: =IF(E55,D62-B48,0) ->  | F62: =IF(E56,E62-B49,0) ->  | G62: =IF(E57,F62-B50,0) -> 
A64: calculate234B
A65: intrst234A | B65: =section234A -> 20332 | D65: intrst234C | E65: =Sheet2.IntrstPayUs234F -> 0
A66: intrst234C | B66: =interest234C -> 30239
A67: advance tax | B67: =Sheet2.AdvanceTax -> 40000
A68: tds | B68: =Sheet2.TDS -> 5380000
A69: tcs | B69: =Sheet2.TCS -> 0
A70: netTaxLiability | B70: =Sheet2.NetTaxLiability -> 6034338
A71: shortFall | B71: =IF(AND((B70-B68-B69)>=10000,B67<(0.9*(B70-B68-B69))),MAX(0,B70-B67-B68-B69),0) -> 614338
A72: dateOfProcessing | B72: =B11 -> 2020-12-02
A73: startDate | B73: 2019-04-01
A74: CalcIntrst234BUptoPeriod | B74: 8
A76: 234B------- 24 cycles: | B76: Cycle 1 | C76: Cycle 2 | D76: Cycle 3 | E76: Cycle 4 | F76: Cycle 5 | G76: Cycle 6 | H76: Cycle 7 | I76: Cycle 8 | J76: Cycle 9 | K76: Cycle 10 | L76: Cycle 11 | M76: Cycle 12 | N76: Cycle 13 | O76: Cycle 14 | P76: Cycle 15 | Q76: Cycle 16 | R76: Cycle 17 | S76: Cycle 18 | T76: Cycle 19 | U76: Cycle 20 | V76: Cycle 21 | W76: Cycle 22 | X76: Cycle 23 | Y76: Cycle 24
A77: balancePrincipal | B77: =B71 -> 614338 | C77: =IF(B74>1,B84,0) -> 565052.38 | D77: =IF(B74>2,C84,0) -> 565052.38 | E77: =IF(B74>3,D84,0) -> 565052.38 | F77: =IF(B74>4,E84,0) -> 565052.38 | G77: =IF(B74>5,F84,0) -> 565052.38 | H77: =IF(B74>6,G84,0) -> 565052.38 | I77: =IF(B74>7,H84,0) -> 565052.38 | J77: =IF(B74>8,I84,0) -> 0 | K77: =IF(B74>9,J84,0) -> 0 | L77: =IF($B$74>10,K84,0) -> 0 | M77: =IF($B$74>11,L84,0) -> 0 | N77: =IF($B$74>12,M84,0) -> 0 | O77: =IF($B$74>13,N84,0) -> 0 | P77: =IF($B$74>14,O84,0) -> 0 | Q77: =IF($B$74>15,P84,0) -> 0 | R77: =IF($B$74>16,Q84,0) -> 0 | S77: =IF($B$74>17,R84,0) -> 0 | T77: =IF($B$74>18,S84,0) -> 0 | U77: =IF($B$74>19,T84,0) -> 0 | V77: =IF($B$74>20,U84,0) -> 0 | W77: =IF($B$74>21,V84,0) -> 0 | X77: =IF($B$74>22,W84,0) -> 0 | Y77: =IF($B$74>23,X84,0) -> 0
A78: calcIntrst234BOnPeriod | B78: =(0.01*B77) -> 6143.38 | C78: =IF(B74>1,(0.01*C77),0) -> 5650.5238 | D78: =IF(B74>2,(0.01*D77),0) -> 5650.5238 | E78: =IF(B74>3,(E77*0.01),0) -> 5650.5238 | F78: =IF(B74>4,(F77*0.01),0) -> 5650.5238 | G78: =IF(B74>5,(G77*0.01),0) -> 5650.5238 | H78: =IF(B74>6,(0.01*H77),0) -> 5650.5238 | I78: =IF(B74>7,(I77*0.01),0) -> 5650.5238 | J78: =IF(B74>8,(J77*0.01),0) -> 0 | K78: =IF(B74>9,(K77*0.01),0) -> 0 | L78: =IF($B$74>10,(L77*0.01),0) -> 0 | M78: =IF($B$74>11,(M77*0.01),0) -> 0 | N78: =IF($B$74>12,(N77*0.01),0) -> 0 | O78: =IF($B$74>13,(O77*0.01),0) -> 0 | P78: =IF($B$74>14,(P77*0.01),0) -> 0 | Q78: =IF($B$74>15,(Q77*0.01),0) -> 0 | R78: =IF($B$74>16,(R77*0.01),0) -> 0 | S78: =IF($B$74>17,(S77*0.01),0) -> 0 | T78: =IF($B$74>18,(T77*0.01),0) -> 0 | U78: =IF($B$74>19,(U77*0.01),0) -> 0 | V78: =IF($B$74>20,(V77*0.01),0) -> 0 | W78: =IF($B$74>21,(W77*0.01),0) -> 0 | X78: =IF($B$74>22,(X77*0.01),0) -> 0 | Y78: =IF($B$74>23,(Y77*0.01),0) -> 0
A79: calcInterestPayable234B | B79: =B78 -> 6143.38 | C79: =IF(B74>1,C78+B79,0) -> 11793.9038 | D79: =IF(B74>2,D78+C79,0) -> 17444.4276 | E79: =IF(B74>3,E78+D79,0) -> 23094.9514 | F79: =IF(B74>4,F78+E79,0) -> 28745.4752 | G79: =IF(B74>5,G78+F79,0) -> 34395.999 | H79: =IF(B74>6,H78+G79,0) -> 40046.5228 | I79: =IF(B74>7,I78+H79,0) -> 45697.0466 | J79: =IF(B74>8,J78+I79,0) -> 0 | K79: =IF(B74>9,K78+J79,0) -> 0 | L79: =IF($B$74>10,L78+K79,0) -> 0 | M79: =IF($B$74>11,M78+L79,0) -> 0 | N79: =IF($B$74>12,N78+M79,0) -> 0 | O79: =IF($B$74>13,O78+N79,0) -> 0 | P79: =IF($B$74>14,P78+O79,0) -> 0 | Q79: =IF($B$74>15,Q78+P79,0) -> 0 | R79: =IF($B$74>16,R78+Q79,0) -> 0 | S79: =IF($B$74>17,S78+R79,0) -> 0 | T79: =IF($B$74>18,T78+S79,0) -> 0 | U79: =IF($B$74>19,U78+T79,0) -> 0 | V79: =IF($B$74>20,V78+U79,0) -> 0 | W79: =IF($B$74>21,W78+V79,0) -> 0 | X79: =IF($B$74>22,X78+W79,0) -> 0 | Y79: =IF($B$74>23,Y78+X79,0) -> 0
A80: balanceInterest | B80: =section234A+interest234C+interest234F+B78 -> 56714.38 | C80: =IF(B74>1,B85+C78,0) -> 5650.5238 | D80: =IF(B74>2,C85+D78,0) -> 11301.0476 | E80: =IF(B74>3,D85+E78,0) -> 16951.5714 | F80: =IF(B74>4,E85+F78,0) -> 22602.0952 | G80: =IF(B74>5,F85+G78,0) -> 28252.619 | H80: =IF(B74>6,G85+H78,0) -> 33903.1428 | I80: =IF(B74>7,H85+I78,0) -> 39553.6666 | J80: =IF(B74>8,I85+J78,0) -> 0 | K80: =IF(B74>9,J85+K78,0) -> 0 | L80: =IF($B$74>10,K85+L78,0) -> 0 | M80: =IF($B$74>11,L85+M78,0) -> 0 | N80: =IF($B$74>12,M85+N78,0) -> 0 | O80: =IF($B$74>13,N85+O78,0) -> 0 | P80: =IF($B$74>14,O85+P78,0) -> 0 | Q80: =IF($B$74>15,P85+Q78,0) -> 0 | R80: =IF($B$74>16,Q85+R78,0) -> 0 | S80: =IF($B$74>17,R85+S78,0) -> 0 | T80: =IF($B$74>18,S85+T78,0) -> 0 | U80: =IF($B$74>19,T85+U78,0) -> 0 | V80: =IF($B$74>20,U85+V78,0) -> 0 | W80: =IF($B$74>21,V85+W78,0) -> 0 | X80: =IF($B$74>22,W85+X78,0) -> 0 | Y80: =IF($B$74>23,X85+Y78,0) -> 0
A81: SATPaidAtPeriod | B81: =IT.Sat1 -> 106000 | C81: =IF(B74>1,IT.Sat2,0) -> 0 | D81: =IF(B74>2,IT.Sat3,0) -> 0 | E81: =IF(B74>3,IT.Sat4,0) -> 0 | F81: =IF(B74>4,IT.Sat5,0) -> 0 | G81: =IF(B74>5,IT.Sat6,0) -> 0 | H81: =IF(B74>6,IT.Sat7,0) -> 0 | I81: =IF(B74>7,IT.Sat8,0) -> 0 | J81: =IF(B74>8,IT.Sat9,0) -> 0 | K81: =IF(B74>9,IT.Sat10,0) -> 0 | L81: =IF($B$74>10,IT.Sat10,0) -> 0 | M81: =IF($B$74>11,IT.Sat10,0) -> 0 | N81: =IF($B$74>12,IT.Sat10,0) -> 0 | O81: =IF($B$74>13,IT.Sat10,0) -> 0 | P81: =IF($B$74>14,IT.Sat10,0) -> 0 | Q81: =IF($B$74>15,IT.Sat10,0) -> 0 | R81: =IF($B$74>16,IT.Sat10,0) -> 0 | S81: =IF($B$74>17,IT.Sat10,0) -> 0 | T81: =IF($B$74>18,IT.Sat10,0) -> 0 | U81: =IF($B$74>19,IT.Sat10,0) -> 0 | V81: =IF($B$74>20,IT.Sat10,0) -> 0 | W81: =IF($B$74>21,IT.Sat10,0) -> 0 | X81: =IF($B$74>22,IT.Sat10,0) -> 0 | Y81: =IF($B$74>23,IT.Sat10,0) -> 0
A82: adjustedInterest | B82: =MIN(B81,B80) -> 56714.38 | C82: =IF(B74>1,MIN(C81,C80),0) -> 0 | D82: =IF(B74>2,MIN(D81,D80),0) -> 0 | E82: =IF(B74>3,MIN(E81,E80),0) -> 0 | F82: =IF(B74>4,MIN(F81,F80),0) -> 0 | G82: =IF(B74>5,MIN(G81,G80),0) -> 0 | H82: =IF(B74>6,MIN(H81,H80),0) -> 0 | I82: =IF(B74>7,MIN(I81,I80),0) -> 0 | J82: =IF(B74>8,MIN(J81,J80),0) -> 0 | K82: =IF(B74>9,MIN(K81,K80),0) -> 0 | L82: =IF($B$74>10,MIN(L81,L80),0) -> 0 | M82: =IF($B$74>11,MIN(M81,M80),0) -> 0 | N82: =IF($B$74>12,MIN(N81,N80),0) -> 0 | O82: =IF($B$74>13,MIN(O81,O80),0) -> 0 | P82: =IF($B$74>14,MIN(P81,P80),0) -> 0 | Q82: =IF($B$74>15,MIN(Q81,Q80),0) -> 0 | R82: =IF($B$74>16,MIN(R81,R80),0) -> 0 | S82: =IF($B$74>17,MIN(S81,S80),0) -> 0 | T82: =IF($B$74>18,MIN(T81,T80),0) -> 0 | U82: =IF($B$74>19,MIN(U81,U80),0) -> 0 | V82: =IF($B$74>20,MIN(V81,V80),0) -> 0 | W82: =IF($B$74>21,MIN(W81,W80),0) -> 0 | X82: =IF($B$74>22,MIN(X81,X80),0) -> 0 | Y82: =IF($B$74>23,MIN(Y81,Y80),0) -> 0
A83: adjustedPrincipal | B83: =MAX(0,MIN(B81-B82,B77)) -> 49285.62 | C83: =IF(B74>1,MAX(0,MIN(C81-C82,C77)),0) -> 0 | D83: =IF(B74>2,MAX(0,MIN(D81-D82,D77)),0) -> 0 | E83: =IF(B74>3,MAX(0,MIN(E81-E82,E77)),0) -> 0 | F83: =IF(B74>4,MAX(0,MIN(F81-F82,F77)),0) -> 0 | G83: =IF(B74>5,MAX(0,MIN(G81-G82,G77)),0) -> 0 | H83: =IF(B74>6,MAX(0,MIN(H81-H82,H77)),0) -> 0 | I83: =IF(B74>7,MAX(0,MIN(I81-I82,I77)),0) -> 0 | J83: =IF(B74>8,MAX(0,MIN(J81-J82,J77)),0) -> 0 | K83: =IF(B74>9,MAX(0,MIN(K81-K82,K77)),0) -> 0 | L83: =IF($B$74>10,MAX(0,MIN(L81-L82,L77)),0) -> 0 | M83: =IF($B$74>11,MAX(0,MIN(M81-M82,M77)),0) -> 0 | N83: =IF($B$74>12,MAX(0,MIN(N81-N82,N77)),0) -> 0 | O83: =IF($B$74>13,MAX(0,MIN(O81-O82,O77)),0) -> 0 | P83: =IF($B$74>14,MAX(0,MIN(P81-P82,P77)),0) -> 0 | Q83: =IF($B$74>15,MAX(0,MIN(Q81-Q82,Q77)),0) -> 0 | R83: =IF($B$74>16,MAX(0,MIN(R81-R82,R77)),0) -> 0 | S83: =IF($B$74>17,MAX(0,MIN(S81-S82,S77)),0) -> 0 | T83: =IF($B$74>18,MAX(0,MIN(T81-T82,T77)),0) -> 0 | U83: =IF($B$74>19,MAX(0,MIN(U81-U82,U77)),0) -> 0 | V83: =IF($B$74>20,MAX(0,MIN(V81-V82,V77)),0) -> 0 | W83: =IF($B$74>21,MAX(0,MIN(W81-W82,W77)),0) -> 0 | X83: =IF($B$74>22,MAX(0,MIN(X81-X82,X77)),0) -> 0 | Y83: =IF($B$74>23,MAX(0,MIN(Y81-Y82,Y77)),0) -> 0
A84: carryForwardPrinicipal | B84: =MAX(0,B77-B83) -> 565052.38 | C84: =IF(B74>1,MAX(0,C77-C83),0) -> 565052.38 | D84: =IF(B74>2,MAX(0,D77-D83),0) -> 565052.38 | E84: =IF(B74>3,MAX(0,E77-E83),0) -> 565052.38 | F84: =IF(B74>4,MAX(0,F77-F83),0) -> 565052.38 | G84: =IF(B74>5,MAX(0,G77-G83),0) -> 565052.38 | H84: =IF(B74>6,MAX(0,H77-H83),0) -> 565052.38 | I84: =IF(B74>7,MAX(0,I77-I83),0) -> 565052.38 | J84: =IF(B74>8,MAX(0,J77-J83),0) -> 0 | K84: =IF(B74>9,MAX(0,K77-K83),0) -> 0 | L84: =IF($B$74>10,MAX(0,L77-L83),0) -> 0 | M84: =IF($B$74>11,MAX(0,M77-M83),0) -> 0 | N84: =IF($B$74>12,MAX(0,N77-N83),0) -> 0 | O84: =IF($B$74>13,MAX(0,O77-O83),0) -> 0 | P84: =IF($B$74>14,MAX(0,P77-P83),0) -> 0 | Q84: =IF($B$74>15,MAX(0,Q77-Q83),0) -> 0 | R84: =IF($B$74>16,MAX(0,R77-R83),0) -> 0 | S84: =IF($B$74>17,MAX(0,S77-S83),0) -> 0 | T84: =IF($B$74>18,MAX(0,T77-T83),0) -> 0 | U84: =IF($B$74>19,MAX(0,U77-U83),0) -> 0 | V84: =IF($B$74>20,MAX(0,V77-V83),0) -> 0 | W84: =IF($B$74>21,MAX(0,W77-W83),0) -> 0 | X84: =IF($B$74>22,MAX(0,X77-X83),0) -> 0 | Y84: =IF($B$74>23,MAX(0,Y77-Y83),0) -> 0
A85: carryForwardInterest | B85: =MAX(0,B80-B82) -> 0 | C85: =IF(B74>1,MAX(0,C80-C82),0) -> 5650.5238 | D85: =IF(B74>2,MAX(0,D80-D82),0) -> 11301.0476 | E85: =IF(B74>3,MAX(0,E80-E82),0) -> 16951.5714 | F85: =IF(B74>4,MAX(0,F80-F82),0) -> 22602.0952 | G85: =IF(B74>5,MAX(0,G80-G82),0) -> 28252.619 | H85: =IF(B74>6,MAX(0,H80-H82),0) -> 33903.1428 | I85: =IF(B74>7,MAX(0,I80-I82),0) -> 39553.6666 | J85: =IF(B74>8,MAX(0,J80-J82),0) -> 0 | K85: =IF(B74>9,MAX(0,K80-K82),0) -> 0 | L85: =IF($B$74>10,MAX(0,L80-L82),0) -> 0 | M85: =IF($B$74>11,MAX(0,M80-M82),0) -> 0 | N85: =IF($B$74>12,MAX(0,N80-N82),0) -> 0 | O85: =IF($B$74>13,MAX(0,O80-O82),0) -> 0 | P85: =IF($B$74>14,MAX(0,P80-P82),0) -> 0 | Q85: =IF($B$74>15,MAX(0,Q80-Q82),0) -> 0 | R85: =IF($B$74>16,MAX(0,R80-R82),0) -> 0 | S85: =IF($B$74>17,MAX(0,S80-S82),0) -> 0 | T85: =IF($B$74>18,MAX(0,T80-T82),0) -> 0 | U85: =IF($B$74>19,MAX(0,U80-U82),0) -> 0 | V85: =IF($B$74>20,MAX(0,V80-V82),0) -> 0 | W85: =IF($B$74>21,MAX(0,W80-W82),0) -> 0 | X85: =IF($B$74>22,MAX(0,X80-X82),0) -> 0 | Y85: =IF($B$74>23,MAX(0,Y80-Y82),0) -> 0
A87: interest234Bi | B87: =IF(B74=1,ROUND(B79,0),IF(B74=2,ROUND(C79,0),IF(B74=3,ROUND(D79,0),IF(B74=4,ROUND(E79,0),IF(B74=5,ROUND(F79,0),IF(B74=6,ROUND(G79,0),0)))))) -> 0
A88: interest234Bii | B88: =IF(B74=7,ROUND(H79,0),IF(B74=8,ROUND(I79,0),IF(B74=9,ROUND(J79,0),IF(B74=10,ROUND(K79,0),IF(B74=11,ROUND(L79,0),IF(B74=12,ROUND(M79,0),0)))))) -> 45697
A89: interest234Biii | B89: =IF(B74=13,ROUND(N79,0),IF(B74=14,ROUND(O79,0),IF(B74=15,ROUND(P79,0),IF(B74=16,ROUND(Q79,0),IF(B74=17,ROUND(R79,0),IF(B74=18,ROUND(S79,0),0)))))) -> 0
A90: interest234Biv | B90: =IF(B74=19,ROUND(T79,0),IF(B74=20,ROUND(U79,0),IF(B74=21,ROUND(V79,0),IF(B74=22,ROUND(W79,0),IF(B74=22,ROUND(W79,0),IF(B74=23,ROUND(X79,0),IF(B74=24,ROUND(Y79,0),0))))))) -> 0
A91: interest234Bv | B91: =IF(CalcIntrst234BUptoPeriod>24,Y79+(CalcIntrst234BUptoPeriod-24)*Y78,0) -> 0
A92: interest234B | B92: =MAX(B87,B88,B89,B90,B91,0) -> 45697
A94: Calculation of 234C
D95: winLottRace | E95: =os.WinLottRacePuzz -> 0
A96: CGTotal | B96: =SUM(E96:E100) -> 0 | D96: cg10 | E96: =BFLAtemp10SecPro+BFLAtemp10Sec115ACA1+BFLAtemp10Sec115Eb+BFLAtemp10Sec1121c2+BFLAtemp10Sec115AC1+BFLAtemp10Sec115AD3+BFLAtemp10Sec112a+BFLAtemp10Sec115AD3Proviso+BFLAtemp10SecPTI_a1+BFLAtemp10SecPTI -> 0
A97: SI_Income(OS) | B97: =SI.totSplRateInc-E96-E97-E98-E99 -> 0 | D97: cg15 | E97: =BFLAtemp15Sec111a+BFLAtemp15Sec115ad1bii -> 0
A98: totalIncome | B98: =Sheet2.TotalIncome -> 17443110 | D98: cg20 | E98: =BFLAtemp20Sec112+BFLAtemp20Sec11EA -> 0
A99: MarginalRelief | B99: =IF(Sheet2.SurchargeOnTaxPayable>0,IF(Sheet2.SurchargeOnTaxPayable<>(Sheet2.BalTaxPayable*0.1),TRUE,FALSE),FALSE) -> TRUE | D99: cg30 | E99: =stcg.IncOfCurYrAfterSetOffBFLosses3a -> 0
A100: normalBalanceIncm | B100: =MAX(0,SUM(Sheet2.TotalIncome,-B96,-B97,IF(sheet2.RebateOnAgriInc>0,Sheet2.NetAgricultureIncomeOrOtherIncomeForRate,0))) -> 17443110 | D100: CgAr | E100: =stcg.IncOfCurYrAfterSetOffBFLosses3b -> 0
A101: exemptionOth_Spl | B101: =exemption-E101-E102-E103-E104 -> 250000 | D101: exmptn10 | E101: =(splRateInc22+splRateInc23+splRateInc23_PTIa1-taxableInc22-taxableInc23-'SPI - SI'!H54) -> 0
D102: exmptn15 | E102: =(splRateInc1A-taxableInc1A) -> 0
A103: exemption | B103: =exemption -> 250000 | D103: exmptn20 | E103: =(splRateInc21-taxableInc21) -> 0
D104: exemptn30 | E104: =splRateInc115BB-taxableInc115BB -> 0
A107: AppRate +NormalIncome
A108: IncomeAftrExemp | B108: =IF(normalBalIncm>exemption,(normalBalIncm-exemption),0) -> 17193110 | E108: Qtr5 tax calculation:
A109: exemptionRemaining | B109: =IF(normalBalIncm>exemption,0,exemption-normalBalIncm) -> 0 | D109: case1: | E109: AR income | F109: =SUM(D117:D121,IncomeAftrExemp) -> 17193110 | G109: case2: | H109: Incm till Q3 | I109: =SUM(D117:D120,IncomeAftrExemp) -> 17193110
E110: tax | F110: =calculateSlabbedTax(F109+$B$103) -> 5045433 | H110: tax | I110: =calculateSlabbedTax(I109+B103) -> 5045433
E111: Surcharge | F111: =IF(Sheet2.SurchargeOnTaxPayable>0,IF(MarginalRelief,(Sheet2.SurchargeOnTaxPayable*(F110/Sheet2.BalTaxPayable)),F110*0.15),0) -> 756815 | H111: Surcharge | I111: =IF(Sheet2.SurchargeOnTaxPayable>0,IF(MarginalRelief,(Sheet2.SurchargeOnTaxPayable*(I110/Sheet2.BalTaxPayable)),I110*0.15),0) -> 756815
A112: Q4Tax(case1_Tax-case2_Tax) | B112: =F110-I110 -> 0 | E112: eduCess | F112: =(F110+F111)*0.04 -> 232089.92 | H112: eduCess | I112: =(I110+I111)*0.04 -> 232089.92
E113: total tax | F113: =SUM(F110:F112) -> 6034337.92 | H113: total tax | I113: =SUM(I110:I112) -> 6034337.92
A116: Quarter | B116: Income | C116: BasicExemption | D116: Net income | E116: Accum Income | F116: Normal Income | G116: TotalIncome | H116: tax | I116: Tax on tot Income - Agri_Rebate | J116: Surcharge | K116: EduCess | L116: Total Tax
A117: totalUpto15Of6 | B117: =AccSTCGOTH.Upto15Of6 -> 0 | C117: =B117-D117 -> 0 | D117: =applyExemption($B$109,1,$B$117:$B$121) -> 0 | E117: =D117 -> 0 | F117: =IncomeAftrExemp -> 17193110 | G117: =E117+F117 -> 17193110 | H117: =calculateSlabbedTax(G117+$B$103) -> 5045433 | I117: =MAX(H117-sheet2.RebateOnAgriInc,0) -> 5045433
A118: totalUp16Of6To15Of9 | B118: =AccSTCGOTH.Upto15Of9 -> 0 | C118: =B118-D118 -> 0 | D118: =applyExemption($B$109,2,$B$117:$B$121) -> 0 | E118: =D118+E117 -> 0 | F118: =IncomeAftrExemp -> 17193110 | G118: =E118+F118 -> 17193110 | H118: =calculateSlabbedTax(G118+$B$103) -> 5045433 | I118: =MAX(H118-sheet2.RebateOnAgriInc,0) -> 5045433 | J118: =IF(Sheet2.SurchargeOnTaxPayable>0,IF(MarginalRelief,(Sheet2.SurchargeOnTaxPayable*(I118/Sheet2.BalTaxPayable)),I118*0.15),0) -> 756815 | K118: =(I118+J118)*0.04 -> 232089.92 | L118: =I118+J118+K118 -> 6034337.92
A119: totalUp16Of9To15Of12 | B119: =ACCSTCGOTH.Up16Of9To15Of12 -> 0 | C119: =B119-D119 -> 0 | D119: =applyExemption($B$109,3,$B$117:$B$121) -> 0 | E119: =D119+E118 -> 0 | F119: =IncomeAftrExemp -> 17193110 | G119: =E119+F119 -> 17193110 | H119: =calculateSlabbedTax(G119+$B$103) -> 5045433 | I119: =MAX(H119-sheet2.RebateOnAgriInc,0) -> 5045433 | J119: =IF(Sheet2.SurchargeOnTaxPayable>0,IF(MarginalRelief,(Sheet2.SurchargeOnTaxPayable*(I119/Sheet2.BalTaxPayable)),I119*0.15),0) -> 756815 | K119: =(I119+J119)*0.04 -> 232089.92 | L119: =I119+J119+K119 -> 6034337.92
A120: totalUp16Of12To15Of3 | B120: =ACCSTCGOTH.Up16Of12To15Of3 -> 0 | C120: =B120-D120 -> 0 | D120: =applyExemption($B$109,4,$B$117:$B$121) -> 0 | E120: =D120+E119 -> 0 | F120: =IncomeAftrExemp -> 17193110 | G120: =E120+F120 -> 17193110 | H120: =calculateSlabbedTax(G120+$B$103) -> 5045433 | I120: =MAX(H120-sheet2.RebateOnAgriInc,0) -> 5045433 | J120: =IF(Sheet2.SurchargeOnTaxPayable>0,IF(MarginalRelief,(Sheet2.SurchargeOnTaxPayable*(I120/Sheet2.BalTaxPayable)),I120*0.15),0) -> 756815 | K120: =(I120+J120)*0.04 -> 232089.92 | L120: =I120+J120+K120 -> 6034337.92
A121: totalUp16Of3To31Of3 | B121: =ACCSTCGOTH.Up16Of3To31Of3 -> 0 | C121: =B121-D121 -> 0 | D121: =applyExemption($B$109,5,$B$117:$B$121) -> 0 | E121: =D121 -> 0 | F121: 0 | G121: =E121+F121 -> 0 | H121: =B112 -> 0 | I121: =MAX(H121-MAX(sheet2.RebateOnAgriInc-H120,0),0) -> 0 | J121: =IF(Sheet2.SurchargeOnTaxPayable>0,IF(MarginalRelief,(Sheet2.SurchargeOnTaxPayable*(I121/Sheet2.BalTaxPayable)),I121*0.15),0) -> 0 | K121: 0 | L121: =I121+J121+K121 -> 0
A123: 30% CG income
A126: Quarter | B126: Income | C126: Net income | D126: Accum Income | E126: Tax on tot Income | F126: tax-rebate87 | G126: Surcharge | H126: EduCess | I126: Total Tax
A127: totalUpto15Of6 | B127: =AccSTCG30.Upto15Of6 -> 0 | C127: =B127 -> 0 | D127: =C127 -> 0 | E127: =D127*0.3 -> 0 | F127: =MAX(E127-Sheet2.RebateUs87A,0) -> 0 | G127: =IF(Sheet2.SurchargeOnTaxPayable>0,IF(MarginalRelief,(Sheet2.SurchargeOnTaxPayable*(F127/Sheet2.BalTaxPayable)),F127*0.15),0) -> 0 | H127: =(F127+G127)*0.04 -> 0 | I127: =F127+G127+H127 -> 0
A128: totalUp16Of6To15Of9 | B128: =AccSTCG30.Upto15Of9 -> 0 | C128: =B128 -> 0 | D128: =C128+D127 -> 0 | E128: =D128*0.3 -> 0 | F128: =MAX(E128-Sheet2.RebateUs87A,0) -> 0 | G128: =IF(Sheet2.SurchargeOnTaxPayable>0,IF(MarginalRelief,(Sheet2.SurchargeOnTaxPayable*(F128/Sheet2.BalTaxPayable)),F128*0.15),0) -> 0 | H128: =(F128+G128)*0.04 -> 0 | I128: =F128+G128+H128 -> 0
A129: totalUp16Of9To15Of12 | B129: =ACCSTCG30.Up16Of9To15Of12 -> 0 | C129: =B129 -> 0 | D129: =C129+D128 -> 0 | E129: =D129*0.3 -> 0 | F129: =MAX(E129-Sheet2.RebateUs87A,0) -> 0 | G129: =IF(Sheet2.SurchargeOnTaxPayable>0,IF(MarginalRelief,(Sheet2.SurchargeOnTaxPayable*(F129/Sheet2.BalTaxPayable)),F129*0.15),0) -> 0 | H129: =(F129+G129)*0.04 -> 0 | I129: =F129+G129+H129 -> 0
A130: totalUp16Of12To15Of3 | B130: =ACCSTCG30.Up16Of12To15Of3 -> 0 | C130: =B130 -> 0 | D130: =C130+D129 -> 0 | E130: =D130*0.3 -> 0 | F130: =MAX(E130-Sheet2.RebateUs87A,0) -> 0 | G130: =IF(Sheet2.SurchargeOnTaxPayable>0,IF(MarginalRelief,(Sheet2.SurchargeOnTaxPayable*(F130/Sheet2.BalTaxPayable)),F130*0.15),0) -> 0 | H130: =(F130+G130)*0.04 -> 0 | I130: =F130+G130+H130 -> 0
A131: totalUp16Of3To31Of3 | B131: =ACCSTCG30.Up16Of3To31Of3 -> 0 | C131: =B131 -> 0 | D131: =C131 -> 0 | E131: =D131*0.3 -> 0 | F131: =MAX(E131-MAX(Sheet2.RebateUs87A-E130,0),0) -> 0 | G131: =IF(Sheet2.SurchargeOnTaxPayable>0,IF(MarginalRelief,(Sheet2.SurchargeOnTaxPayable*(F131/Sheet2.BalTaxPayable)),F131*0.15),0) -> 0 | H131: =(F131+G131)*0.04 -> 0 | I131: =F131+G131+H131 -> 0
A135: 20% CG income
A136: exmptn20 | B136: =E103 -> 0
A137: CountValue | B137: =COUNTIF(B141:B144,">0") -> 0
A139: Quarter | B139: Income | C139: BasicExemption | D139: Net income | E139: Accum Income | F139: Tax on tot Income | G139: tax-rebate87 | H139: Surcharge | I139: EduCess | J139: Total Tax
A140: totalUpto15Of6 | B140: =AccLTCGNP.Upto15Of6 -> 0 | C140: =B140-D140 -> 0 | D140: =applyExemption($B$136,1,$B$140:$B$144) -> 0 | E140: =D140 -> 0 | F140: =E140*0.2 -> 0 | G140: =MAX(F140-Sheet2.RebateUs87A,0) -> 0 | H140: =IF(Sheet2.SurchargeOnTaxPayable>0,IF(MarginalRelief,(Sheet2.SurchargeOnTaxPayable*(F140/Sheet2.BalTaxPayable)),F140*0.15),0) -> 0 | I140: =(G140+H140)*0.04 -> 0 | J140: =G140+H140+I140 -> 0
A141: totalUp16Of6To15Of9 | B141: =AccLTCGNP.Upto15Of9 -> 0 | C141: =B141-D141 -> 0 | D141: =applyExemption($B$136,2,$B$140:$B$144) -> 0 | E141: =D141+E140 -> 0 | F141: =E141*0.2 -> 0 | G141: =MAX(F141-Sheet2.RebateUs87A,0) -> 0 | H141: =IF(Sheet2.SurchargeOnTaxPayable>0,IF(MarginalRelief,(Sheet2.SurchargeOnTaxPayable*(F141/Sheet2.BalTaxPayable)),F141*0.15),0) -> 0 | I141: =(G141+H141)*0.04 -> 0 | J141: =G141+H141+I141 -> 0
A142: totalUp16Of9To15Of12 | B142: =ACCLTCGNP.Up16Of9To15Of12 -> 0 | C142: =B142-D142 -> 0 | D142: =applyExemption($B$136,3,$B$140:$B$144) -> 0 | E142: =D142+E141 -> 0 | F142: =E142*0.2 -> 0 | G142: =MAX(F142-Sheet2.RebateUs87A,0) -> 0 | H142: =IF(Sheet2.SurchargeOnTaxPayable>0,IF(MarginalRelief,(Sheet2.SurchargeOnTaxPayable*(F142/Sheet2.BalTaxPayable)),F142*0.15),0) -> 0 | I142: =(G142+H142)*0.04 -> 0 | J142: =G142+H142+I142 -> 0
A143: totalUp16Of12To15Of3 | B143: =ACCLTCGNP.Up16Of12To15Of3 -> 0 | C143: =B143-D143 -> 0 | D143: =applyExemption($B$136,4,$B$140:$B$144) -> 0 | E143: =D143+E142 -> 0 | F143: =E143*0.2 -> 0 | G143: =MAX(F143-Sheet2.RebateUs87A,0) -> 0 | H143: =IF(Sheet2.SurchargeOnTaxPayable>0,IF(MarginalRelief,(Sheet2.SurchargeOnTaxPayable*(F143/Sheet2.BalTaxPayable)),F143*0.15),0) -> 0 | I143: =(G143+H143)*0.04 -> 0 | J143: =G143+H143+I143 -> 0
A144: totalUp16Of3To31Of3 | B144: =ACCLTCGNP.Up16Of3To31Of3 -> 0 | C144: =B144-D144 -> 0 | D144: =applyExemption($B$136,5,$B$140:$B$144) -> 0 | E144: =D144 -> 0 | F144: =E144*0.2 -> 0 | G144: =MAX(F144-MAX(Sheet2.RebateUs87A-F143,0),0) -> 0 | H144: =IF(Sheet2.SurchargeOnTaxPayable>0,IF(MarginalRelief,(Sheet2.SurchargeOnTaxPayable*(F144/Sheet2.BalTaxPayable)),F144*0.15),0) -> 0 | I144: =(G144+H144)*0.04 -> 0 | J144: =G144+H144+I144 -> 0
A148: 15% CG income
A149: exmptn15 | B149: =E102 -> 0
A150: countValue | B150: =COUNTIF(B154:B157,">0") -> 0
A152: Quarter | B152: Income | C152: BasicExemption | D152: Net income | E152: Accum Income | F152: Tax on tot Income | G152: tax-rebate87 | H152: Surcharge | I152: EduCess | J152: Total Tax
A153: totalUpto15Of6 | B153: =AccSTCG.Upto15Of6 -> 0 | C153: =B153-D153 -> 0 | D153: =applyExemption($B$149,1,$B$153:$B$157) -> 0 | E153: =D153 -> 0 | F153: =E153*0.15 -> 0 | G153: =MAX(F153-Sheet2.RebateUs87A,0) -> 0 | H153: =IF(Sheet2.SurchargeOnTaxPayable>0,IF(MarginalRelief,(Sheet2.SurchargeOnTaxPayable*(F153/Sheet2.BalTaxPayable)),F153*0.15),0) -> 0 | I153: =(G153+H153)*0.04 -> 0 | J153: =G153+H153+I153 -> 0
A154: totalUp16Of6To15Of9 | B154: =AccSTCG.Upto15Of9 -> 0 | C154: =B154-D154 -> 0 | D154: =applyExemption($B$149,2,$B$153:$B$157) -> 0 | E154: =D154+E153 -> 0 | F154: =E154*0.15 -> 0 | G154: =MAX(F154-Sheet2.RebateUs87A,0) -> 0 | H154: =IF(Sheet2.SurchargeOnTaxPayable>0,IF(MarginalRelief,(Sheet2.SurchargeOnTaxPayable*(F154/Sheet2.BalTaxPayable)),F154*0.15),0) -> 0 | I154: =(G154+H154)*0.04 -> 0 | J154: =G154+H154+I154 -> 0
A155: totalUp16Of9To15Of12 | B155: =ACCSTCG.Up16Of9To15Of12 -> 0 | C155: =B155-D155 -> 0 | D155: =applyExemption($B$149,3,$B$153:$B$157) -> 0 | E155: =D155+E154 -> 0 | F155: =E155*0.15 -> 0 | G155: =MAX(F155-Sheet2.RebateUs87A,0) -> 0 | H155: =IF(Sheet2.SurchargeOnTaxPayable>0,IF(MarginalRelief,(Sheet2.SurchargeOnTaxPayable*(F155/Sheet2.BalTaxPayable)),F155*0.15),0) -> 0 | I155: =(G155+H155)*0.04 -> 0 | J155: =G155+H155+I155 -> 0
A156: totalUp16Of12To15Of3 | B156: =ACCSTCG.Up16Of12To15Of3 -> 0 | C156: =B156-D156 -> 0 | D156: =applyExemption($B$149,4,$B$153:$B$157) -> 0 | E156: =D156+E155 -> 0 | F156: =E156*0.15 -> 0 | G156: =MAX(F156-Sheet2.RebateUs87A,0) -> 0 | H156: =IF(Sheet2.SurchargeOnTaxPayable>0,IF(MarginalRelief,(Sheet2.SurchargeOnTaxPayable*(F156/Sheet2.BalTaxPayable)),F156*0.15),0) -> 0 | I156: =(G156+H156)*0.04 -> 0 | J156: =G156+H156+I156 -> 0
A157: totalUp16Of3To31Of3 | B157: =ACCSTCG.Up16Of3To31Of3 -> 0 | C157: =B157-D157 -> 0 | D157: =applyExemption($B$149,5,$B$153:$B$157) -> 0 | E157: =D157 -> 0 | F157: =E157*0.15 -> 0 | G157: =MAX(F157-MAX(Sheet2.RebateUs87A-F156,0),0) -> 0 | H157: =IF(Sheet2.SurchargeOnTaxPayable>0,IF(MarginalRelief,(Sheet2.SurchargeOnTaxPayable*(F157/Sheet2.BalTaxPayable)),F157*0.15),0) -> 0 | I157: =(G157+H157)*0.04 -> 0 | J157: =G157+H157+I157 -> 0
A161: 10% CG income
A162: exmptn10 | B162: =E101 -> 0
A163: countValue | B163: =COUNTIF(B167:B170,">0") -> 0
A165: Quarter | B165: Income | C165: BasicExemption | D165: Net income | E165: Accum Income | F165: Tax on tot Income | G165: tax-rebate87 | H165: Surcharge | I165: EduCess | J165: Total Tax
A166: totalUpto15Of6 | B166: =AccLTCG.Upto15Of6 -> 0 | C166: =B166-D166 -> 0 | D166: =applyExemption($B$162,1,$B$166:$B$170) -> 0 | E166: =D166 -> 0 | F166: =E166*0.1 -> 0 | G166: =MAX(F166-Sheet2.RebateUs87A,0) -> 0 | H166: =IF(Sheet2.SurchargeOnTaxPayable>0,IF(MarginalRelief,(Sheet2.SurchargeOnTaxPayable*(F166/Sheet2.BalTaxPayable)),F166*0.15),0) -> 0 | I166: =(G166+H166)*0.04 -> 0 | J166: =G166+H166+I166 -> 0
A167: totalUp16Of6To15Of9 | B167: =AccLTCG.Upto15Of9 -> 0 | C167: =B167-D167 -> 0 | D167: =applyExemption($B$162,2,$B$166:$B$170) -> 0 | E167: =D167+E166 -> 0 | F167: =E167*0.1 -> 0 | G167: =MAX(F167-Sheet2.RebateUs87A,0) -> 0 | H167: =IF(Sheet2.SurchargeOnTaxPayable>0,IF(MarginalRelief,(Sheet2.SurchargeOnTaxPayable*(F167/Sheet2.BalTaxPayable)),F167*0.15),0) -> 0 | I167: =(G167+H167)*0.04 -> 0 | J167: =G167+H167+I167 -> 0
A168: totalUp16Of9To15Of12 | B168: =ACCLTCG.Up16Of9To15Of12 -> 0 | C168: =B168-D168 -> 0 | D168: =applyExemption($B$162,3,$B$166:$B$170) -> 0 | E168: =D168+E167 -> 0 | F168: =E168*0.1 -> 0 | G168: =MAX(F168-Sheet2.RebateUs87A,0) -> 0 | H168: =IF(Sheet2.SurchargeOnTaxPayable>0,IF(MarginalRelief,(Sheet2.SurchargeOnTaxPayable*(F168/Sheet2.BalTaxPayable)),F168*0.15),0) -> 0 | I168: =(G168+H168)*0.04 -> 0 | J168: =G168+H168+I168 -> 0
A169: totalUp16Of12To15Of3 | B169: =ACCLTCG.Up16Of12To15Of3 -> 0 | C169: =B169-D169 -> 0 | D169: =applyExemption($B$162,4,$B$166:$B$170) -> 0 | E169: =D169+E168 -> 0 | F169: =E169*0.1 -> 0 | G169: =MAX(F169-Sheet2.RebateUs87A,0) -> 0 | H169: =IF(Sheet2.SurchargeOnTaxPayable>0,IF(MarginalRelief,(Sheet2.SurchargeOnTaxPayable*(F169/Sheet2.BalTaxPayable)),F169*0.15),0) -> 0 | I169: =(G169+H169)*0.04 -> 0 | J169: =G169+H169+I169 -> 0
A170: totalUp16Of3To31Of3 | B170: =ACCLTCG.Up16Of3To31Of3 -> 0 | C170: =B170-D170 -> 0 | D170: =applyExemption($B$162,5,$B$166:$B$170) -> 0 | E170: =D170 -> 0 | F170: =E170*0.1 -> 0 | G170: =MAX(F170-MAX(Sheet2.RebateUs87A-F169,0),0) -> 0 | H170: =IF(Sheet2.SurchargeOnTaxPayable>0,IF(MarginalRelief,(Sheet2.SurchargeOnTaxPayable*(F170/Sheet2.BalTaxPayable)),F170*0.15),0) -> 0 | I170: =(G170+H170)*0.04 -> 0 | J170: =G170+H170+I170 -> 0
A174: 30% OS income
A177: Quarter | B177: Income | C177: Net income | D177: Accum Income | E177: Tax on tot Income | F177: tax-rebate87 | G177: Surcharge | H177: EduCess | I177: Total Tax
A178: totalUpto15Of6 | B178: =OS30_Upto15Of6 -> 0 | C178: =B178 -> 0 | D178: =C178 -> 0 | E178: =D178*0.3 -> 0 | F178: =MAX(E178-Sheet2.RebateUs87A,0) -> 0 | G178: =IF(Sheet2.SurchargeOnTaxPayable>0,IF(MarginalRelief,(Sheet2.SurchargeOnTaxPayable*(F178/Sheet2.BalTaxPayable)),F178*0.15),0) -> 0 | H178: =(F178+G178)*0.04 -> 0 | I178: =F178+G178+H178 -> 0
A179: totalUp16Of6To15Of9 | B179: =OS30_Up16Of6To15Of9 -> 0 | C179: =B179 -> 0 | D179: =C179+D178 -> 0 | E179: =D179*0.3 -> 0 | F179: =MAX(E179-Sheet2.RebateUs87A,0) -> 0 | G179: =IF(Sheet2.SurchargeOnTaxPayable>0,IF(MarginalRelief,(Sheet2.SurchargeOnTaxPayable*(F179/Sheet2.BalTaxPayable)),F179*0.15),0) -> 0 | H179: =(F179+G179)*0.04 -> 0 | I179: =F179+G179+H179 -> 0
A180: totalUp16Of9To15Of12 | B180: =OS30_Up16Of9To15Of12 -> 0 | C180: =B180 -> 0 | D180: =C180+D179 -> 0 | E180: =D180*0.3 -> 0 | F180: =MAX(E180-Sheet2.RebateUs87A,0) -> 0 | G180: =IF(Sheet2.SurchargeOnTaxPayable>0,IF(MarginalRelief,(Sheet2.SurchargeOnTaxPayable*(F180/Sheet2.BalTaxPayable)),F180*0.15),0) -> 0 | H180: =(F180+G180)*0.04 -> 0 | I180: =F180+G180+H180 -> 0
A181: totalUp16Of12To15Of3 | B181: =OS30_Up16Of12To15Of3 -> 0 | C181: =B181 -> 0 | D181: =C181+D180 -> 0 | E181: =D181*0.3 -> 0 | F181: =MAX(E181-Sheet2.RebateUs87A,0) -> 0 | G181: =IF(Sheet2.SurchargeOnTaxPayable>0,IF(MarginalRelief,(Sheet2.SurchargeOnTaxPayable*(F181/Sheet2.BalTaxPayable)),F181*0.15),0) -> 0 | H181: =(F181+G181)*0.04 -> 0 | I181: =F181+G181+H181 -> 0
A182: totalUp16Of3To31Of3 | B182: =OS30_Up16Of3To31Of3 -> 0 | C182: =B182 -> 0 | D182: =C182 -> 0 | E182: =D182*0.3 -> 0 | F182: =MAX(E182-MAX(Sheet2.RebateUs87A-E181,0),0) -> 0 | G182: =IF(Sheet2.SurchargeOnTaxPayable>0,IF(MarginalRelief,(Sheet2.SurchargeOnTaxPayable*(F182/Sheet2.BalTaxPayable)),F182*0.15),0) -> 0 | H182: =(F182+G182)*0.04 -> 0 | I182: =F182+G182+H182 -> 0
A185: 10% OS income
A186: exmptn10 | B186: =E113 -> total tax
A187: countValue | B187: =COUNTIF(B191:B194,">0") -> 0
A189: Quarter | B189: Income | C189: Net income | D189: Accum Income | E189: Tax on tot Income | F189: tax-rebate87 | G189: Surcharge | H189: EduCess | I189: Total Tax
A190: totalUpto15Of6 | B190: =OS10_Upto15Of6 -> 0 | C190: =B190 -> 0 | D190: =C190 -> 0 | E190: =D190*0.1 -> 0 | F190: =MAX(E190-Sheet2.RebateUs87A,0) -> 0 | G190: =IF(Sheet2.SurchargeOnTaxPayable>0,IF(MarginalRelief,(Sheet2.SurchargeOnTaxPayable*(E190/Sheet2.BalTaxPayable)),E190*0.15),0) -> 0 | H190: =(F190+G190)*0.04 -> 0 | I190: =F190+G190+H190 -> 0
A191: totalUp16Of6To15Of9 | B191: =OS10_Up16Of6To15Of9 -> 0 | C191: =B191 -> 0 | D191: =C191+D190 -> 0 | E191: =D191*0.1 -> 0 | F191: =MAX(E191-Sheet2.RebateUs87A,0) -> 0 | G191: =IF(Sheet2.SurchargeOnTaxPayable>0,IF(MarginalRelief,(Sheet2.SurchargeOnTaxPayable*(E191/Sheet2.BalTaxPayable)),E191*0.15),0) -> 0 | H191: =(F191+G191)*0.04 -> 0 | I191: =F191+G191+H191 -> 0
A192: totalUp16Of9To15Of12 | B192: =OS10_Up16Of9To15Of12 -> 0 | C192: =B192 -> 0 | D192: =C192+D191 -> 0 | E192: =D192*0.1 -> 0 | F192: =MAX(E192-Sheet2.RebateUs87A,0) -> 0 | G192: =IF(Sheet2.SurchargeOnTaxPayable>0,IF(MarginalRelief,(Sheet2.SurchargeOnTaxPayable*(E192/Sheet2.BalTaxPayable)),E192*0.15),0) -> 0 | H192: =(F192+G192)*0.04 -> 0 | I192: =F192+G192+H192 -> 0
A193: totalUp16Of12To15Of3 | B193: =OS10_Up16Of12To15Of3 -> 0 | C193: =B193 -> 0 | D193: =C193+D192 -> 0 | E193: =D193*0.1 -> 0 | F193: =MAX(E193-Sheet2.RebateUs87A,0) -> 0 | G193: =IF(Sheet2.SurchargeOnTaxPayable>0,IF(MarginalRelief,(Sheet2.SurchargeOnTaxPayable*(E193/Sheet2.BalTaxPayable)),E193*0.15),0) -> 0 | H193: =(F193+G193)*0.04 -> 0 | I193: =F193+G193+H193 -> 0
A194: totalUp16Of3To31Of3 | B194: =OS10_Up16Of3To31Of3 -> 0 | C194: =B194 -> 0 | D194: =C194 -> 0 | E194: =D194*0.1 -> 0 | F194: =MAX(E194-MAX(Sheet2.RebateUs87A-E193,0),0) -> 0 | G194: =IF(Sheet2.SurchargeOnTaxPayable>0,IF(MarginalRelief,(Sheet2.SurchargeOnTaxPayable*(E194/Sheet2.BalTaxPayable)),E194*0.15),0) -> 0 | H194: =(F194+G194)*0.04 -> 0 | I194: =F194+G194+H194 -> 0
A197: STCG DTAA income
A198: exmptn10 | B198: =E125 -> 0
A199: countValue | B199: =COUNTIF(B203:B206,">0") -> 0
A201: Quarter | B201: Income | C201: Net income | D201: Accum Income | E201: Tax on tot Income | F201: tax-rebate87 | G201: Surcharge | H201: EduCess | I201: Total Tax
A202: totalUpto15Of6 | B202: =AccSTCGDTAA.Upto15Of6 -> 0 | C202: =B202 -> 0 | D202: =C202 -> 0 | E202: =IF(ISERROR((SI_DTAAOS_Tax1*D202)/SUM($B$202:$B$206)),0,(SI_DTAAOS_Tax1*D202)/SUM($B$202:$B$206)) -> 0 | F202: =MAX(E202-Sheet2.RebateUs87A,0) -> 0 | G202: =IF(Sheet2.SurchargeOnTaxPayable>0,IF(MarginalRelief,(Sheet2.SurchargeOnTaxPayable*(E202/Sheet2.BalTaxPayable)),E202*0.15),0) -> 0 | H202: =(F202+G202)*0.04 -> 0 | I202: =F202+G202+H202 -> 0
A203: totalUp16Of6To15Of9 | B203: =AccSTCGDTAA.Upto15Of9 -> 0 | C203: =B203 -> 0 | D203: =C203+D202 -> 0 | E203: =IF(ISERROR((SI_DTAAOS_Tax1*D203)/SUM($B$202:$B$206)),0,(SI_DTAAOS_Tax1*D203)/SUM($B$202:$B$206)) -> 0 | F203: =MAX(E203-Sheet2.RebateUs87A,0) -> 0 | G203: =IF(Sheet2.SurchargeOnTaxPayable>0,IF(MarginalRelief,(Sheet2.SurchargeOnTaxPayable*(E203/Sheet2.BalTaxPayable)),E203*0.15),0) -> 0 | H203: =(F203+G203)*0.04 -> 0 | I203: =F203+G203+H203 -> 0
A204: totalUp16Of9To15Of12 | B204: =ACCSTCGDTAA.Up16Of9To15Of12 -> 0 | C204: =B204 -> 0 | D204: =C204+D203 -> 0 | E204: =IF(ISERROR((SI_DTAAOS_Tax1*D204)/SUM($B$202:$B$206)),0,(SI_DTAAOS_Tax1*D204)/SUM($B$202:$B$206)) -> 0 | F204: =MAX(E204-Sheet2.RebateUs87A,0) -> 0 | G204: =IF(Sheet2.SurchargeOnTaxPayable>0,IF(MarginalRelief,(Sheet2.SurchargeOnTaxPayable*(E204/Sheet2.BalTaxPayable)),E204*0.15),0) -> 0 | H204: =(F204+G204)*0.04 -> 0 | I204: =F204+G204+H204 -> 0
A205: totalUp16Of12To15Of3 | B205: =ACCSTCGDTAA.Up16Of12To15Of3 -> 0 | C205: =B205 -> 0 | D205: =C205+D204 -> 0 | E205: =IF(ISERROR((SI_DTAAOS_Tax1*D205)/SUM($B$202:$B$206)),0,(SI_DTAAOS_Tax1*D205)/SUM($B$202:$B$206)) -> 0 | F205: =MAX(E205-Sheet2.RebateUs87A,0) -> 0 | G205: =IF(Sheet2.SurchargeOnTaxPayable>0,IF(MarginalRelief,(Sheet2.SurchargeOnTaxPayable*(E205/Sheet2.BalTaxPayable)),E205*0.15),0) -> 0 | H205: =(F205+G205)*0.04 -> 0 | I205: =F205+G205+H205 -> 0
A206: totalUp16Of3To31Of3 | B206: =ACCSTCGDTAA.Up16Of3To31Of3 -> 0 | C206: =B206 -> 0 | D206: =C206 -> 0 | E206: =IF(ISERROR((SI_DTAAOS_Tax1*B206)/SUM($B$202:$B$206)),0,(SI_DTAAOS_Tax1*B206)/SUM($B$202:$B$206)) -> 0 | F206: =MAX(E206-MAX(Sheet2.RebateUs87A-E205,0),0) -> 0 | G206: =IF(Sheet2.SurchargeOnTaxPayable>0,IF(MarginalRelief,(Sheet2.SurchargeOnTaxPayable*(E206/Sheet2.BalTaxPayable)),E206*0.15),0) -> 0 | H206: =(F206+G206)*0.04 -> 0 | I206: =F206+G206+H206 -> 0
A209: LTCG DTAA income
A210: exmptn10 | B210: =E125 -> 0
A211: countValue | B211: =COUNTIF(B215:B218,">0") -> 0
A213: Quarter | B213: Income | C213: Net income | D213: Accum Income | E213: Tax on tot Income | F213: tax-rebate87 | G213: Surcharge | H213: EduCess | I213: Total Tax
A214: totalUpto15Of6 | B214: =AccLTCGDTAA.Upto15Of6 -> 0 | C214: =B214 -> 0 | D214: =C214 -> 0 | E214: =IF(ISERROR((SI_DTAAOS_Tax2*D214)/SUM($B$214:$B$218)),0,(SI_DTAAOS_Tax2*D214)/SUM($B$214:$B$218)) -> 0 | F214: =MAX(E214-Sheet2.RebateUs87A,0) -> 0 | G214: =IF(Sheet2.SurchargeOnTaxPayable>0,IF(MarginalRelief,(Sheet2.SurchargeOnTaxPayable*(E214/Sheet2.BalTaxPayable)),E214*0.15),0) -> 0 | H214: =(F214+G214)*0.04 -> 0 | I214: =F214+G214+H214 -> 0
A215: totalUp16Of6To15Of9 | B215: =AccLTCGDTAA.Upto15Of9 -> 0 | C215: =B215 -> 0 | D215: =C215+D214 -> 0 | E215: =IF(ISERROR((SI_DTAAOS_Tax2*D215)/SUM($B$214:$B$218)),0,(SI_DTAAOS_Tax2*D215)/SUM($B$214:$B$218)) -> 0 | F215: =MAX(E215-Sheet2.RebateUs87A,0) -> 0 | G215: =IF(Sheet2.SurchargeOnTaxPayable>0,IF(MarginalRelief,(Sheet2.SurchargeOnTaxPayable*(E215/Sheet2.BalTaxPayable)),E215*0.15),0) -> 0 | H215: =(F215+G215)*0.04 -> 0 | I215: =F215+G215+H215 -> 0
A216: totalUp16Of9To15Of12 | B216: =ACCLTCGDTAA.Up16Of9To15Of12 -> 0 | C216: =B216 -> 0 | D216: =C216+D215 -> 0 | E216: =IF(ISERROR((SI_DTAAOS_Tax2*D216)/SUM($B$214:$B$218)),0,(SI_DTAAOS_Tax2*D216)/SUM($B$214:$B$218)) -> 0 | F216: =MAX(E216-Sheet2.RebateUs87A,0) -> 0 | G216: =IF(Sheet2.SurchargeOnTaxPayable>0,IF(MarginalRelief,(Sheet2.SurchargeOnTaxPayable*(E216/Sheet2.BalTaxPayable)),E216*0.15),0) -> 0 | H216: =(F216+G216)*0.04 -> 0 | I216: =F216+G216+H216 -> 0
A217: totalUp16Of12To15Of3 | B217: =ACCLTCGDTAA.Up16Of12To15Of3 -> 0 | C217: =B217 -> 0 | D217: =C217+D216 -> 0 | E217: =IF(ISERROR((SI_DTAAOS_Tax2*D217)/SUM($B$214:$B$218)),0,(SI_DTAAOS_Tax2*D217)/SUM($B$214:$B$218)) -> 0 | F217: =MAX(E217-Sheet2.RebateUs87A,0) -> 0 | G217: =IF(Sheet2.SurchargeOnTaxPayable>0,IF(MarginalRelief,(Sheet2.SurchargeOnTaxPayable*(E217/Sheet2.BalTaxPayable)),E217*0.15),0) -> 0 | H217: =(F217+G217)*0.04 -> 0 | I217: =F217+G217+H217 -> 0
A218: totalUp16Of3To31Of3 | B218: =ACCLTCGDTAA.Up16Of3To31Of3 -> 0 | C218: =B218 -> 0 | D218: =C218 -> 0 | E218: =IF(ISERROR((SI_DTAAOS_Tax2*B218)/SUM($B$214:$B$218)),0,(SI_DTAAOS_Tax2*B218)/SUM($B$214:$B$218)) -> 0 | F218: =MAX(E218-MAX(Sheet2.RebateUs87A-E217,0),0) -> 0 | G218: =IF(Sheet2.SurchargeOnTaxPayable>0,IF(MarginalRelief,(Sheet2.SurchargeOnTaxPayable*(E218/Sheet2.BalTaxPayable)),E218*0.15),0) -> 0 | H218: =(F218+G218)*0.04 -> 0 | I218: =F218+G218+H218 -> 0
A221: Consolidation of tax for 234C
A222: SI_IncmTax(otherThanCG) | B222: =(SI.TotSplRateIncTax-SUM('SPI - SI'!I15:I19,'SPI - SI'!I21:I22,'SPI - SI'!I33,'SPI - SI'!I35,'SPI - SI'!I38,'SPI - SI'!I47:I48,'SPI - SI'!I20,'SPI - SI'!I42,'SPI - SI'!I39,SI_DTAAOS_Tax1,SI_DTAAOS_Tax2,'SPI - SI'!I52:I56,'SPI - SI'!I70,'SPI - SI'!I73)) -> 0
A223: SurchargeOnSI | B223: =IF(Sheet2.SurchargeOnTaxPayable>0,IF(MarginalRelief,(Sheet2.SurchargeOnTaxPayable*(B222/Sheet2.BalTaxPayable)),B222*0.1),0) -> 0
A224: EduCess | B224: =(B222+B223)*0.04 -> 0 | G224: Tax on 115BBE | H224: =SI_115BBE+SI_115BBE_2 -> 0 | I224: Surcharge 115BBE | J224: =Surcharge_i -> 0
A225: TotalSITax | B225: =SUM(B222:B224) -> 0 | G225: Tax on Other | H225: =IF(MAX(0,sheet2.TaxPayableOnTotInc-H224)=0,1,MAX(0,sheet2.TaxPayableOnTotInc-H224)) -> 5045433 | I225: Surcharge Normal | J225: =Surcharge_ii -> 756815
A227: Quarter | B227: CG Schedule | G227: CG DTAA | I227: OS Schedule | K227: SI | L227: total tax | M227: Total Income after Rebate, if applicable (u/s87A) (7 | N227: Surchage | O227: Education Cess | P227: Total Tax Liability | Q227: totaltax-TDS-TCS-taxRelief | R227: Cumulative tax to be paid | S227: 12 & 36 % for 1,2 Qtr | T227: Cumulative tax paid | U227: Amount on which interest is payable | V227: interest u/s 234C
B228: tax App+income | C228: Tax of 30% | D228: Tax of 20% | E228: Tax of 15% | F228: Tax of 10% | G228: STCG | H228: LTCG | I228: Tax of 30% | J228: Tax of 10% | K228: Tax of Other Special Income
A229: totalUpto15Of6 | B229: =I117 -> 5045433 | C229: =E127 -> 0 | D229: =F140 -> 0 | E229: =F153 -> 0 | F229: =F166 -> 0 | G229: =E202 -> 0 | H229: =E214 -> 0 | I229: =E178 -> 0 | J229: =E190 -> 0 | K229: =B222 -> 0 | L229: =SUM(B229:K229) -> 5045433 | M229: =MAX(L229-Sheet2.RebateUs87A,0) -> 5045433 | N229: =IF(ISERROR($J$225/$H$225*(B229+C229+D229+E229+F229+G229+H229+MAX(0,K229+J229+I229-SI_115BBE-SI_115BBE_2))+($J$224)),0,$J$225/$H$225*(B229+C229+D229+E229+F229+G229+H229+MAX(0,K229+I229+J229-SI_115BBE-SI_115BBE_2))+($J$224)) -> 756815 | O229: =(M229+N229)*0.04 -> 232089.92 | P229: =M229+N229+O229 -> 6034337.92 | Q229: =MAX(0,P229-Sheet2.TDS-Sheet2.TCS-Sheet2.TotTaxRelief-Sheet2.CreditUS115JD) -> 654337.92 | R229: =Q229*0.15 -> 98150.688 | S229: =FLOOR(0.12*Q229,100) -> 78500 | T229: =IT.Qtr1 -> 0 | U229: =IF(T229>=S229,0,MAX(0,FLOOR(MAX(0,R229-T229),100))) -> 98100 | V229: =U229*0.03 -> 2943
A230: totalUp16Of6To15Of9 | B230: =I118 -> 5045433 | C230: =E128 -> 0 | D230: =F141 -> 0 | E230: =F154 -> 0 | F230: =F167 -> 0 | G230: =E203 -> 0 | H230: =E215 -> 0 | I230: =E179 -> 0 | J230: =E191 -> 0 | K230: =B222 -> 0 | L230: =SUM(B230:K230) -> 5045433 | M230: =MAX(L230-Sheet2.RebateUs87A,0) -> 5045433 | N230: =IF(ISERROR($J$225/$H$225*(B230+C230+D230+E230+F230+G230+H230+MAX(0,K230+J230+I230-SI_115BBE-SI_115BBE_2))+($J$224)),0,$J$225/$H$225*(B230+C230+D230+E230+F230+G230+H230+MAX(0,K230+I230+J230-SI_115BBE-SI_115BBE_2))+($J$224)) -> 756815 | O230: =(M230+N230)*0.04 -> 232089.92 | P230: =M230+N230+O230 -> 6034337.92 | Q230: =MAX(0,P230-Sheet2.TDS-Sheet2.TCS-Sheet2.TotTaxRelief-Sheet2.CreditUS115JD) -> 654337.92 | R230: =Q230*0.45 -> 294452.064 | S230: =FLOOR(0.36*Q230,100) -> 235500 | T230: =IT.Qtr2+T229 -> 40000 | U230: =IF(T230>=S230,0,MAX(0,FLOOR(MAX(0,R230-T230),100))) -> 254400 | V230: =U230*0.03 -> 7632
A231: totalUp16Of9To15Of12 | B231: =I119 -> 5045433 | C231: =E129 -> 0 | D231: =F142 -> 0 | E231: =F155 -> 0 | F231: =F168 -> 0 | G231: =E204 -> 0 | H231: =E216 -> 0 | I231: =E180 -> 0 | J231: =E192 -> 0 | K231: =B222 -> 0 | L231: =SUM(B231:K231) -> 5045433 | M231: =MAX(L231-Sheet2.RebateUs87A,0) -> 5045433 | N231: =IF(ISERROR($J$225/$H$225*(B231+C231+D231+E231+F231+G231+H231+MAX(0,K231+J231+I231-SI_115BBE-SI_115BBE_2))+($J$224)),0,$J$225/$H$225*(B231+C231+D231+E231+F231+G231+H231+MAX(0,K231+I231+J231-SI_115BBE-SI_115BBE_2))+($J$224)) -> 756815 | O231: =(M231+N231)*0.04 -> 232089.92 | P231: =M231+N231+O231 -> 6034337.92 | Q231: =MAX(0,P231-Sheet2.TDS-Sheet2.TCS-Sheet2.TotTaxRelief-Sheet2.CreditUS115JD) -> 654337.92 | R231: =Q231*0.75 -> 490753.44 | T231: =IT.Qtr3+T230 -> 40000 | U231: =MAX(0,FLOOR(MAX(0,R231-T231),100)) -> 450700 | V231: =U231*0.03 -> 13521
A232: totalUp16Of12To15Of3 | B232: =I120 -> 5045433 | C232: =E130 -> 0 | D232: =F143 -> 0 | E232: =F156 -> 0 | F232: =F169 -> 0 | G232: =E205 -> 0 | H232: =E217 -> 0 | I232: =E181 -> 0 | J232: =E193 -> 0 | K232: =B222 -> 0 | L232: =SUM(B232:K232) -> 5045433 | M232: =MAX(L232-Sheet2.RebateUs87A,0) -> 5045433 | N232: =IF(ISERROR($J$225/$H$225*(B232+C232+D232+E232+F232+G232+H232+MAX(0,K232+J232+I232-SI_115BBE-SI_115BBE_2))+($J$224)),0,$J$225/$H$225*(B232+C232+D232+E232+F232+G232+H232+MAX(0,K232+I232+J232-SI_115BBE-SI_115BBE_2))+($J$224)) -> 756815 | O232: =(M232+N232)*0.04 -> 232089.92 | P232: =M232+N232+O232 -> 6034337.92 | Q232: =MAX(0,P232-Sheet2.TDS-Sheet2.TCS-Sheet2.TotTaxRelief-Sheet2.CreditUS115JD) -> 654337.92 | R232: =Q232*1 -> 654337.92 | T232: =IT.Qtr4+T231 -> 40000 | U232: =MAX(0,FLOOR(MAX(0,R232-T232),100)) -> 614300 | V232: =U232*0.01 -> 6143
A233: totalUp16Of3To31Of3 | B233: =I121 -> 0 | C233: =E131 -> 0 | D233: =F144 -> 0 | E233: =F157 -> 0 | F233: =F170 -> 0 | G233: =E206 -> 0 | H233: =E218 -> 0 | I233: =E182 -> 0 | J233: =E194 -> 0 | K233: 0 | L233: =SUM(B233:K233) -> 0 | M233: =MAX(L233-MAX(0,Sheet2.RebateUs87A-L232),0) -> 0 | N233: =IF(ISERROR($J$225/$H$225*(B233+C233+D233+E233+F233+G233+H233+J233+I233+MAX(0,K233-SI_115BBE-SI_115BBE_2))),0,$J$225/$H$225*(B233+C233+D233+E233+F233+H233+G233+I233+J233+MAX(0,K233-SI_115BBE-SI_115BBE_2))) -> 0 | O233: =(M233+N233)*0.04 -> 0 | P233: =M233+N233+O233 -> 0 | Q233: =MAX(0,P233-MAX((Sheet2.TDS+Sheet2.TCS+Sheet2.TotTaxRelief+Sheet2.CreditUS115JD)-P232,0)) -> 0 | R233: =Q233*1 -> 0 | T233: =IT.Qtr5 -> 0 | U233: =MAX(0,FLOOR(MAX(0,R233-T233-MAX(0,T232-R232)),100)) -> 0 | V233: =U233*0.01 -> 0
U234: Total 234C | V234: =SUM(V229:V233) -> 30239
A236: Part B TTI - 1d Value(If 1d=7) | B236: =Sheet2.TotalTaxPayablDeemedTotInc -> 0
A238: Quarter | B238: Total AMT Tax liability | C238: AMT Tax-TDS-TCS-TaxRelief-RebateUs87A | D238: Cumulative Tax to be Paid | E238: 12% or 36% of 1,2 Qtr | F238: Cumulative tax paid | G238: Amount on which interest is payable | H238: Interest u/s 234C
A239: totalUpto15Of6 | B239: =SUM(B236) -> 0 | C239: =MAX(0,B239-Sheet2.TDS-Sheet2.TCS-Sheet2.TotTaxRelief-Sheet2.RebateUs87A) -> 0 | D239: =C239*0.15 -> 0 | E239: =FLOOR(0.12*C239,100) -> 0 | F239: =IT.Qtr1 -> 0 | G239: =IF(F239>=E239,0,MAX(0,FLOOR(MAX(0,D239-F239),100))) -> 0 | H239: =G239*0.03 -> 0
A240: totalUp16Of6To15Of9 | B240: =SUM(B236) -> 0 | C240: =MAX(0,B240-Sheet2.TDS-Sheet2.TCS-Sheet2.TotTaxRelief-Sheet2.RebateUs87A) -> 0 | D240: =C240*0.45 -> 0 | E240: =FLOOR(0.36*C240,100) -> 0 | F240: =IT.Qtr2+F239 -> 40000 | G240: =IF(F240>=E240,0,MAX(0,FLOOR(MAX(0,D240-F240),100))) -> 0 | H240: =G240*0.03 -> 0
A241: totalUp16Of9To15Of12 | B241: =SUM(B236) -> 0 | C241: =MAX(0,B241-Sheet2.TDS-Sheet2.TCS-Sheet2.TotTaxRelief-Sheet2.RebateUs87A) -> 0 | D241: =C241*0.75 -> 0 | F241: =IT.Qtr3+F240 -> 40000 | G241: =MAX(0,FLOOR(MAX(0,D241-F241),100)) -> 0 | H241: =G241*0.03 -> 0
A242: totalUp16Of12To15Of3 | B242: =SUM(B236) -> 0 | C242: =MAX(0,B242-Sheet2.TDS-Sheet2.TCS-Sheet2.TotTaxRelief-Sheet2.RebateUs87A) -> 0 | D242: =C242*1 -> 0 | F242: =IT.Qtr4+F241 -> 40000 | G242: =MAX(0,FLOOR(MAX(0,D242-F242),100)) -> 0 | H242: =G242*0.01 -> 0
G243: Total AMT 234 C | H243: =SUM(H239:H242) -> 0 | O243: 10% 115AD | P243: =IF(sheet1.Status="HUF",0,SUM('SPI - SI'!H38,'SPI - SI'!H39)) -> 0 | Q243: =IF(sheet1.Status="HUF",0,SUM('SPI - SI'!I38,'SPI - SI'!I39)) -> 0
O244: 15%115AD & PTI | P244: =IF(sheet1.Status="HUF",0,SUM(taxableInc5AD,'SPI - SI'!H52)) -> 0 | Q244: =IF(sheet1.Status="HUF",0,SUM('SPI - SI'!I22,'SPI - SI'!I52)) -> 0
O245: 115AD 30% | P245: =IF(sheet1.Status="HUF",0,SUM('SPI - SI'!H53,'SPI - SI'!H21)) -> 0 | Q245: =IF(sheet1.Status="HUF",0,'SPI - SI'!I21+'SPI - SI'!I53) -> 0
A246: Surcharge Calculation | D246: normal income | E246: =MAX(Sheet2.GrossTotalIncome-Sheet2.DeductionsUnderScheduleVIA,0) -> 17443110 | O246: Pti_112a | P246: =TaxIncome_Pti112A -> 0 | Q246: ='SPI - SI'!I54 -> 0 | R246: Other income <=2cr and Total income >2cr and <=5cr | S246: =IF(AND(temp_Otherthan112A<=20000000,AND(P251>20000000,P251<=50000000)),TRUE,FALSE) -> FALSE | T246: =IF(S246=TRUE,1,IF(S247=TRUE,2,IF(S248=TRUE,3,IF(S249=TRUE,4,IF(S250=TRUE,5,0))))) -> 0 | U246: =IF(OR(T246=1,T246=2),20000000,IF(OR(T246=3,T246=4,T246=5),50000000,0)) -> 0
D247: Exemptions | E247: =exemption -> 250000 | O247: 111A | P247: =taxableInc1A -> 0 | Q247: ='SPI - SI'!I15 -> 0 | R247: Other income >2cr and <=5cr and Total income >2cr and <=5cr | S247: =IF(AND(AND(temp_Otherthan112A>20000000,temp_Otherthan112A<=50000000),AND(P251>20000000,P251<=50000000)),TRUE,FALSE) -> FALSE
D248: Exemptionused_Normal | E248: =IF(E246-Sheet2.IncChargeableTaxSplRates>0,IF((E246-Sheet2.IncChargeableTaxSplRates)>exemption,exemption,(E246-Sheet2.IncChargeableTaxSplRates)),0) -> 250000 | F248: Slabbed Income: | O248: 112A | P248: =taxableInc23 -> 0 | Q248: =TaxThereon112A -> 0 | R248: Other income <=2cr and Total income >5cr | S248: =IF(AND(temp_Otherthan112A<=20000000,P251>50000000),TRUE,FALSE) -> FALSE
A249: taxPayable | B249: =Sheet2.BalTaxPayable -> 5045433 | D249: exmptn10 | E249: =(splRateInc22+splRateInc23+splRateInc23_PTIa1-taxableInc22-taxableInc23-'SPI - SI'!H54) -> 0 | F249: normal5 | G249: =getSlabbedIncome(B252,1) -> 250000 | I249: toBeTaxedAftrDTAA_Exemption (1 Cr) | J249: =MAX(10000000-SUM(E248:E251)-B255-D255,0) -> 9750000 | L249: toBeTaxedAftrDTAA_Exemption (2Cr) | M249: =MAX(20000000-SUM(E248:E251)-B255-D255,0) -> 19750000 | O249: 112A and 111A and PTI112A | P249: =Temp_111A+Temp_112A+Temp_PTI_112A+P245+P243+P244 -> 0 | Q249: =SUM(Q243:Q248) -> 0 | R249: Other income > 2cr and <=5 cr and Total income >5cr | S249: =IF(AND(AND(temp_Otherthan112A>20000000,temp_Otherthan112A<=50000000),P251>50000000),TRUE,FALSE) -> FALSE
A250: totalIncome | B250: =Sheet2.TotalIncome -> 17443110 | D250: exmptn15 | E250: =(splRateInc1A-taxableInc1A) -> 0 | F250: normal20 | G250: =getSlabbedIncome(B252,2) -> 500000 | I250: toBeTaxedAftrDTAA_Exemption (50 Lakh) | J250: =MAX(5000000-SUM(E248:E251)-B255-D255,0) -> 4750000 | L250: toBeTaxedAftrDTAA_Exemption (5Cr) | M250: =MAX(50000000-SUM(E248:E251)-B256-D256,0) -> 49750000 | O250: Other than above income | P250: =Sheet2.TotalIncome-Temp_111A_112A -> 17443110 | R250: Other income >5 cr and Total income >5cr | S250: =IF(AND(temp_Otherthan112A>50000000,P251>50000000),TRUE,FALSE) -> FALSE
... 77 more rows

Sheet EI
C3: Schedule EI | F3: Details of Exempt Income (Income not to be included in Total Income or not chargeable to tax)
C4: EXEMPT INCOME | D4: 1 | E4: Interest income | I4: 1
D5: 2 | E5: Dividend income from domestic company (amount not exceeding Rs. 10 lakh) | I5: 2
D6: 3 | E6: i | F6: Gross Agricultural receipts (other than income to be excluded under rule 7A, 7B or 8 of I.T. Rules)
E7: ii | F7: Expenditure incurred on agriculture
E8: iii | F8: Unabsorbed agricultural loss of previous eight assessment years
E9: iv | F9: Net Agricultural income for the year (i – ii – iii) (enter nil if loss) | I9: 3 | J9: =MAX(SUM(Sheet20.scei.GrossAgri,-Sheet20.scei.ExpenditureAgri,-Sheet20.scei.UnabsorbedAgri),0) -> 0
E10: v | F10: In case the net agricultural income for the year exceeds Rs.5 lakh, please furnish the following details
E11: Sl. No. | F11: Name of district along with pin code in which agricultural land is located (a) | H11: Measurement of agricultural land in Acre | I11: Whether the agricultural land is owned or held on lease | J11: Whether the agricultural land is irrigated or rain-fed
F12: Name of district | G12: Pin code | H12: (b) | I12: (c) | J12: (d)
E13: 1 | I13: (Select) | J13: (Select)
E14: =E13+1 -> 2 | I14: (Select) | J14: (Select)
D16: 4 | E16: Other exempt income, (including exempt income of minor child)
E17: Sl. No. | F17: Nature of Income | G17: Description | H17: Amount
E18: 1 | F18: (Select)
E19: =E18+1 -> 2 | F19: (Select)
I20: 4 | J20: =SUM(Sheet20.OthersIncome) -> 0
D21: 5 | E21: Income not chargeable to tax as per DTAA
D22: Sl. No. | E22: Amount of Income | F22: Nature of Income | G22: Country name & code | H22: Article of DTAA | I22: Head of Income | J22: Whether TRC obtained
D23: 1 | G23: (Select) | I23: (Select) | J23: (Select)
D24: =D23+1 -> 2 | G24: (Select) | I24: (Select) | J24: (Select)
E25: Total Income from DTAA not chargeable to tax | I25: 5 | J25: =SUM(Sheet20_DTAA_AmountOfIncome) -> 0
D27: 6 | E27: Pass through income not chargeable to tax (Schedule PTI) | I27: 6
D28: 7 | E28: Total (1 + 2 + 3(iv) + 4 +5+6) | I28: 7 | J28: =SUM(Sheet20.scei.InterestInc,Sheet20.scei.DividendInc,Sheet20.scei.NetAgriIncOrOthrIncRule7,Sheet20.scei.Others,Sheet20.OthersIncomeTotal,Sheet20.IncomeNotChargeableDTAA,Sheet20.IncomeNotChargeableTax) -> 0

Sheet PTI
C3: Schedule PTI | E3: Pass Through Income details from business trust or investment fund as per section 115UA, 115UB
D4: Sl. No. | E4: Investment entity covered by section 115UA/115UB | F4: Name of business trust/ investment fund | G4: PAN of the business trust/ investment fund | H4: Sl. No. | I4: Head of income | L4: Current year income | M4: Share of current year loss distributed by Investment fund | N4: Net Income/ Loss (7-8) | O4: TDS on such amount, if any
D5: 1 | E5: 2 | F5: 3 | G5: 4 | H5: 5 | I5: 6 | L5: 7 | M5: 8 | N5: 9 | O5: 10
D6: 1 | H6: i | I6: House property | N6: =L6-M6 -> 0
H7: ii | I7: Capital Gains
I8: a | J8: Short term | L8: =L9+L10 -> 0 | M8: =M9+M10 -> 0 | N8: =N10+N9 -> 0
I9: ai | J9: Section 111A | N9: =(L9-M9) -> 0
I10: aii | J10: Others | N10: 0
I11: b | J11: Long term | L11: =L12+L13 -> 0 | M11: =M12+M13 -> 0 | N11: =N12+N13 -> 0 | S11: 2
I12: bi | J12: Section 112A | N12: 0 | S12: 15
I13: bii | J13: Other than Section 112A | N13: 0
H14: iii | I14: Other Sources | L14: =L15+L16 -> 0 | N14: =N15+N16 -> 0
I15: a | J15: Dividend (referred to in section 115O) | N15: 0
I16: b | J16: Others | N16: 0
H17: iv | I17: Income claimed to be exempt | L17: =L18+L19+L20 -> 0 | N17: =N18+N19+N20 -> 0
I18: a | J18: u/s | K18: 10(23FBB) | N18: =(L18-M18) -> 0
I19: b | J19: u/s | N19: =(L19-M19) -> 0
I20: c | J20: u/s | N20: =(L20-M20) -> 0
D21: =D6+1 -> 2 | E21: (SELECT) | H21: i | I21: House property | N21: =L21-M21 -> 0
H22: ii | I22: Capital Gains
I23: a | J23: Short term | L23: =L24+L25 -> 0 | M23: =M24+M25 -> 0 | N23: =N25+N24 -> 0
I24: ai | J24: Section 111A | N24: =(L24-M24) -> 0
I25: aii | J25: Others | N25: =(L25-M25) -> 0
I26: b | J26: Long term | L26: =L27+L28 -> 0 | M26: =M27+M28 -> 0 | N26: =N27+N28 -> 0
I27: bi | J27: Section 112A | N27: =(L27-M27) -> 0
I28: bii | J28: Other than Section 112A | N28: =(L28-M28) -> 0
H29: iii | I29: Other Sources | L29: =L30+L31 -> 0 | N29: =N30+N31 -> 0
I30: a | J30: Dividend (referred to in section 115O) | N30: =(L30-M30) -> 0
I31: b | J31: Others | N31: =(L31-M31) -> 0
H32: iv | I32: Income claimed to be exempt | L32: =L33+L34+L35 -> 0 | N32: =N33+N34+N35 -> 0
I33: a | J33: u/s | K33: 10(23FBB) | N33: =(L33-M33) -> 0
I34: b | J34: u/s | N34: =(L34-M34) -> 0
I35: c | J35: u/s | N35: =(L35-M35) -> 0
D37: NOTE ► | E37: Please refer to the instructions for filling out this schedule.

Sheet FSI
C3: Schedule FSI | F3: Details of Income from outside India and tax relief (Available only in case of resident)
D4: Sl. No. | E4: Country Code | F4: Taxpayer Identification Number | G4: Sl No | H4: Head of Income (a) | I4: Income from outside India (included in PART B-TI) (b) | J4: Tax paid outside India (c) | K4: Tax payable on such income under normal provisions in India (d) | L4: Tax relief available in India (e)= (c) or (d) whichever is lower (e) | M4: Relevant article of DTAA if relief claimed u/s 90 or 90A (f)
D6: 1 | G6: i | H6: Salary | L6: =MIN(J6,K6) -> 0
G7: ii | H7: House Property | L7: =MIN(J7,K7) -> 0 | Q7: 5
G8: iii | H8: Capital Gains | L8: =MIN(J8,K8) -> 0 | Q8: 2
G9: iv | H9: Other Sources | L9: =MIN(J9,K9) -> 0
G10: Total | I10: =SUM(I6:I9) -> 0 | J10: =SUM(J6:J9) -> 0 | K10: =SUM(K6:K9) -> 0 | L10: =SUM(L6:L9) -> 0
D11: =D6+1 -> 2 | G11: i | H11: Salary | L11: =MIN(J11,K11) -> 0
G12: ii | H12: House Property | L12: =MIN(J12,K12) -> 0
G13: iii | H13: Capital Gains | L13: =MIN(J13,K13) -> 0
G14: iv | H14: Other Sources | L14: =MIN(J14,K14) -> 0
G15: Total | I15: =SUM(I11:I14) -> 0 | J15: =SUM(J11:J14) -> 0 | K15: =SUM(K11:K14) -> 0 | L15: =SUM(L11:L14) -> 0

Sheet TR_FA
C3: Schedule TR | E3: Summary of tax relief claimed for taxes paid outside India(Available only in case of resident or resident but not ordinarily resident).
C4: 1 | E4: Country Code | F4: Tax Identification Number (b) | G4: Total taxes paid outside India (total of (c) of Schedule FSI in respect of each country) | H4: Total tax relief available (total of (e) of Schedule FSI in respect of each country) | I4: Tax Relief Claimed under section (specify 90, 90A or 91)
E5: 93-AFGHANISTAN | G5: 0 | H5: 0 | I5: (Select)
E6: 1001-ALAND ISLANDS | G6: 0 | H6: 0 | I6: (Select)
E7: 355-ALBANIA | G7: 0 | H7: 0 | I7: (Select)
E8: 213-ALGERIA | G8: 0 | H8: 0 | I8: (Select)
E9: 684-AMERICAN SAMOA | G9: 0 | H9: 0 | I9: (Select)
E10: 376-ANDORRA | G10: 0 | H10: 0 | I10: (Select)
E11: 244-ANGOLA | G11: 0 | H11: 0 | I11: (Select)
E12: 1264-ANGUILLA | G12: 0 | H12: 0 | I12: (Select)
E13: 1010-ANTARCTICA | G13: 0 | H13: 0 | I13: (Select)
E14: 1268-ANTIGUA AND BARBUDA | G14: 0 | H14: 0 | I14: (Select)
E15: 54-ARGENTINA | G15: 0 | H15: 0 | I15: (Select)
E16: 374-ARMENIA | G16: 0 | H16: 0 | I16: (Select)
E17: 297-ARUBA | G17: 0 | H17: 0 | I17: (Select)
E18: 61-AUSTRALIA | G18: 0 | H18: 0 | I18: (Select)
E19: 43-AUSTRIA | G19: 0 | H19: 0 | I19: (Select)
E20: 994-AZERBAIJAN | G20: 0 | H20: 0 | I20: (Select)
E21: 1242-BAHAMAS | G21: 0 | H21: 0 | I21: (Select)
E22: 973-BAHRAIN | G22: 0 | H22: 0 | I22: (Select)
E23: 880-BANGLADESH | G23: 0 | H23: 0 | I23: (Select)
E24: 1246-BARBADOS | G24: 0 | H24: 0 | I24: (Select)
E25: 375-BELARUS | G25: 0 | H25: 0 | I25: (Select)
E26: 32-BELGIUM | G26: 0 | H26: 0 | I26: (Select)
E27: 501-BELIZE | G27: 0 | H27: 0 | I27: (Select)
E28: 229-BENIN | G28: 0 | H28: 0 | I28: (Select)
E29: 1441-BERMUDA | G29: 0 | H29: 0 | I29: (Select)
E30: 975-BHUTAN | G30: 0 | H30: 0 | I30: (Select)
E31: 591-BOLIVIA (PLURINATIONAL STATE OF) | G31: 0 | H31: 0 | I31: (Select)
E32: 1002-BONAIRE, SINT EUSTATIUS AND SABA | G32: 0 | H32: 0 | I32: (Select)
E33: 387-BOSNIA AND HERZEGOVINA | G33: 0 | H33: 0 | I33: (Select)
E34: 267-BOTSWANA | G34: 0 | H34: 0 | I34: (Select)
E35: 1003-BOUVET ISLAND | G35: 0 | H35: 0 | I35: (Select)
E36: 55-BRAZIL | G36: 0 | H36: 0 | I36: (Select)
E37: 1014-BRITISH INDIAN OCEAN TERRITORY | G37: 0 | H37: 0 | I37: (Select)
E38: 673-BRUNEI DARUSSALAM | G38: 0 | H38: 0 | I38: (Select)
E39: 359-BULGARIA | G39: 0 | H39: 0 | I39: (Select)
E40: 226-BURKINA FASO | G40: 0 | H40: 0 | I40: (Select)
E41: 257-BURUNDI | G41: 0 | H41: 0 | I41: (Select)
E42: 238-CABO VERDE | G42: 0 | H42: 0 | I42: (Select)
E43: 855-CAMBODIA | G43: 0 | H43: 0 | I43: (Select)
E44: 237-CAMEROON | G44: 0 | H44: 0 | I44: (Select)
E45: 1-CANADA | G45: 0 | H45: 0 | I45: (Select)
E46: 1345-CAYMAN ISLANDS | G46: 0 | H46: 0 | I46: (Select)
E47: 236-CENTRAL AFRICAN REPUBLIC | G47: 0 | H47: 0 | I47: (Select)
E48: 235-CHAD | G48: 0 | H48: 0 | I48: (Select)
E49: 56-CHILE | G49: 0 | H49: 0 | I49: (Select)
E50: 86-CHINA | G50: 0 | H50: 0 | I50: (Select)
E51: 9-CHRISTMAS ISLAND | G51: 0 | H51: 0 | I51: (Select)
E52: 672-COCOS (KEELING) ISLANDS | G52: 0 | H52: 0 | I52: (Select)
E53: 57-COLOMBIA | G53: 0 | H53: 0 | I53: (Select)
E54: 270-COMOROS | G54: 0 | H54: 0 | I54: (Select)
E55: 242-CONGO | G55: 0 | H55: 0 | I55: (Select)
E56: 243-CONGO (DEMOCRATIC REPUBLIC OF THE) | G56: 0 | H56: 0 | I56: (Select)
E57: 682-COOK ISLANDS | G57: 0 | H57: 0 | I57: (Select)
E58: 506-COSTA RICA | G58: 0 | H58: 0 | I58: (Select)
E59: 225-COTE DIVOIRE | G59: 0 | H59: 0 | I59: (Select)
E60: 385-CROATIA | G60: 0 | H60: 0 | I60: (Select)
E61: 53-CUBA | G61: 0 | H61: 0 | I61: (Select)
E62: 1015-CURACAO | G62: 0 | H62: 0 | I62: (Select)
E63: 357-CYPRUS | G63: 0 | H63: 0 | I63: (Select)
E64: 420-CZECHIA | G64: 0 | H64: 0 | I64: (Select)
E65: 45-DENMARK | G65: 0 | H65: 0 | I65: (Select)
E66: 253-DJIBOUTI | G66: 0 | H66: 0 | I66: (Select)
E67: 1767-DOMINICA | G67: 0 | H67: 0 | I67: (Select)
E68: 1809-DOMINICAN REPUBLIC | G68: 0 | H68: 0 | I68: (Select)
E69: 593-ECUADOR | G69: 0 | H69: 0 | I69: (Select)
E70: 20-EGYPT | G70: 0 | H70: 0 | I70: (Select)
E71: 503-EL SALVADOR | G71: 0 | H71: 0 | I71: (Select)
E72: 240-EQUATORIAL GUINEA | G72: 0 | H72: 0 | I72: (Select)
E73: 291-ERITREA | G73: 0 | H73: 0 | I73: (Select)
E74: 372-ESTONIA | G74: 0 | H74: 0 | I74: (Select)
E75: 251-ETHIOPIA | G75: 0 | H75: 0 | I75: (Select)
E76: 500-FALKLAND ISLANDS (MALVINAS) | G76: 0 | H76: 0 | I76: (Select)
E77: 298-FAROE ISLANDS | G77: 0 | H77: 0 | I77: (Select)
E78: 679-FIJI | G78: 0 | H78: 0 | I78: (Select)
E79: 358-FINLAND | G79: 0 | H79: 0 | I79: (Select)
E80: 33-FRANCE | G80: 0 | H80: 0 | I80: (Select)
E81: 594-FRENCH GUIANA | G81: 0 | H81: 0 | I81: (Select)
E82: 689-FRENCH POLYNESIA | G82: 0 | H82: 0 | I82: (Select)
E83: 1004-FRENCH SOUTHERN TERRITORIES | G83: 0 | H83: 0 | I83: (Select)
E84: 241-GABON | G84: 0 | H84: 0 | I84: (Select)
E85: 220-GAMBIA | G85: 0 | H85: 0 | I85: (Select)
E86: 995-GEORGIA | G86: 0 | H86: 0 | I86: (Select)
E87: 49-GERMANY | G87: 0 | H87: 0 | I87: (Select)
E88: 233-GHANA | G88: 0 | H88: 0 | I88: (Select)
E89: 350-GIBRALTAR | G89: 0 | H89: 0 | I89: (Select)
E90: 30-GREECE | G90: 0 | H90: 0 | I90: (Select)
E91: 299-GREENLAND | G91: 0 | H91: 0 | I91: (Select)
E92: 1473-GRENADA | G92: 0 | H92: 0 | I92: (Select)
E93: 590-GUADELOUPE | G93: 0 | H93: 0 | I93: (Select)
E94: 1671-GUAM | G94: 0 | H94: 0 | I94: (Select)
E95: 502-GUATEMALA | G95: 0 | H95: 0 | I95: (Select)
E96: 1481-GUERNSEY | G96: 0 | H96: 0 | I96: (Select)
E97: 224-GUINEA | G97: 0 | H97: 0 | I97: (Select)
E98: 245-GUINEA-BISSAU | G98: 0 | H98: 0 | I98: (Select)
E99: 592-GUYANA | G99: 0 | H99: 0 | I99: (Select)
E100: 509-HAITI | G100: 0 | H100: 0 | I100: (Select)
E101: 1005-HEARD ISLAND AND MCDONALD ISLANDS | G101: 0 | H101: 0 | I101: (Select)
E102: 6-HOLY SEE | G102: 0 | H102: 0 | I102: (Select)
E103: 504-HONDURAS | G103: 0 | H103: 0 | I103: (Select)
E104: 852-HONG KONG | G104: 0 | H104: 0 | I104: (Select)
E105: 36-HUNGARY | G105: 0 | H105: 0 | I105: (Select)
E106: 354-ICELAND | G106: 0 | H106: 0 | I106: (Select)
E107: 91-INDIA | G107: 0 | H107: 0 | I107: (Select)
E108: 62-INDONESIA | G108: 0 | H108: 0 | I108: (Select)
E109: 98-IRAN (ISLAMIC REPUBLIC OF) | G109: 0 | H109: 0 | I109: (Select)
E110: 964-IRAQ | G110: 0 | H110: 0 | I110: (Select)
E111: 353-IRELAND | G111: 0 | H111: 0 | I111: (Select)
E112: 1624-ISLE OF MAN | G112: 0 | H112: 0 | I112: (Select)
E113: 972-ISRAEL | G113: 0 | H113: 0 | I113: (Select)
E114: 5-ITALY | G114: 0 | H114: 0 | I114: (Select)
E115: 1876-JAMAICA | G115: 0 | H115: 0 | I115: (Select)
E116: 81-JAPAN | G116: 0 | H116: 0 | I116: (Select)
E117: 1534-JERSEY | G117: 0 | H117: 0 | I117: (Select)
E118: 962-JORDAN | G118: 0 | H118: 0 | I118: (Select)
E119: 7-KAZAKHSTAN | G119: 0 | H119: 0 | I119: (Select)
E120: 254-KENYA | G120: 0 | H120: 0 | I120: (Select)
E121: 686-KIRIBATI | G121: 0 | H121: 0 | I121: (Select)
E122: 850-KOREA (DEMOCRATIC PEOPLES REPUBLIC OF) | G122: 0 | H122: 0 | I122: (Select)
E123: 82-KOREA (REPUBLIC OF) | G123: 0 | H123: 0 | I123: (Select)
E124: 965-KUWAIT | G124: 0 | H124: 0 | I124: (Select)
E125: 996-KYRGYZSTAN | G125: 0 | H125: 0 | I125: (Select)
E126: 856-LAO PEOPLES DEMOCRATIC REPUBLIC | G126: 0 | H126: 0 | I126: (Select)
E127: 371-LATVIA | G127: 0 | H127: 0 | I127: (Select)
E128: 961-LEBANON | G128: 0 | H128: 0 | I128: (Select)
E129: 266-LESOTHO | G129: 0 | H129: 0 | I129: (Select)
E130: 231-LIBERIA | G130: 0 | H130: 0 | I130: (Select)
E131: 218-LIBYA | G131: 0 | H131: 0 | I131: (Select)
E132: 423-LIECHTENSTEIN | G132: 0 | H132: 0 | I132: (Select)
E133: 370-LITHUANIA | G133: 0 | H133: 0 | I133: (Select)
E134: 352-LUXEMBOURG | G134: 0 | H134: 0 | I134: (Select)
E135: 853-MACAO | G135: 0 | H135: 0 | I135: (Select)
E136: 389-MACEDONIA (THE FORMER YUGOSLAV REPUBLIC OF) | G136: 0 | H136: 0 | I136: (Select)
E137: 261-MADAGASCAR | G137: 0 | H137: 0 | I137: (Select)
E138: 265-MALAWI | G138: 0 | H138: 0 | I138: (Select)
E139: 60-MALAYSIA | G139: 0 | H139: 0 | I139: (Select)
E140: 960-MALDIVES | G140: 0 | H140: 0 | I140: (Select)
E141: 223-MALI | G141: 0 | H141: 0 | I141: (Select)
E142: 356-MALTA | G142: 0 | H142: 0 | I142: (Select)
E143: 692-MARSHALL ISLANDS | G143: 0 | H143: 0 | I143: (Select)
E144: 596-MARTINIQUE | G144: 0 | H144: 0 | I144: (Select)
E145: 222-MAURITANIA | G145: 0 | H145: 0 | I145: (Select)
E146: 230-MAURITIUS | G146: 0 | H146: 0 | I146: (Select)
E147: 269-MAYOTTE | G147: 0 | H147: 0 | I147: (Select)
E148: 52-MEXICO | G148: 0 | H148: 0 | I148: (Select)
E149: 691-MICRONESIA (FEDERATED STATES OF) | G149: 0 | H149: 0 | I149: (Select)
E150: 373-MOLDOVA (REPUBLIC OF) | G150: 0 | H150: 0 | I150: (Select)
E151: 377-MONACO | G151: 0 | H151: 0 | I151: (Select)
E152: 976-MONGOLIA | G152: 0 | H152: 0 | I152: (Select)
E153: 382-MONTENEGRO | G153: 0 | H153: 0 | I153: (Select)
E154: 1664-MONTSERRAT | G154: 0 | H154: 0 | I154: (Select)
E155: 212-MOROCCO | G155: 0 | H155: 0 | I155: (Select)
E156: 258-MOZAMBIQUE | G156: 0 | H156: 0 | I156: (Select)
E157: 95-MYANMAR | G157: 0 | H157: 0 | I157: (Select)
E158: 264-NAMIBIA | G158: 0 | H158: 0 | I158: (Select)
E159: 674-NAURU | G159: 0 | H159: 0 | I159: (Select)
E160: 977-NEPAL | G160: 0 | H160: 0 | I160: (Select)
E161: 31-NETHERLANDS | G161: 0 | H161: 0 | I161: (Select)
E162: 687-NEW CALEDONIA | G162: 0 | H162: 0 | I162: (Select)
E163: 64-NEW ZEALAND | G163: 0 | H163: 0 | I163: (Select)
E164: 505-NICARAGUA | G164: 0 | H164: 0 | I164: (Select)
E165: 227-NIGER | G165: 0 | H165: 0 | I165: (Select)
E166: 234-NIGERIA | G166: 0 | H166: 0 | I166: (Select)
E167: 683-NIUE | G167: 0 | H167: 0 | I167: (Select)
E168: 15-NORFOLK ISLAND | G168: 0 | H168: 0 | I168: (Select)
E169: 1670-NORTHERN MARIANA ISLANDS | G169: 0 | H169: 0 | I169: (Select)
E170: 47-NORWAY | G170: 0 | H170: 0 | I170: (Select)
E171: 968-OMAN | G171: 0 | H171: 0 | I171: (Select)
E172: 92-PAKISTAN | G172: 0 | H172: 0 | I172: (Select)
E173: 680-PALAU | G173: 0 | H173: 0 | I173: (Select)
E174: 970-PALESTINE, STATE OF | G174: 0 | H174: 0 | I174: (Select)
E175: 507-PANAMA | G175: 0 | H175: 0 | I175: (Select)
E176: 675-PAPUA NEW GUINEA | G176: 0 | H176: 0 | I176: (Select)
E177: 595-PARAGUAY | G177: 0 | H177: 0 | I177: (Select)
E178: 51-PERU | G178: 0 | H178: 0 | I178: (Select)
E179: 63-PHILIPPINES | G179: 0 | H179: 0 | I179: (Select)
E180: 1011-PITCAIRN | G180: 0 | H180: 0 | I180: (Select)
E181: 48-POLAND | G181: 0 | H181: 0 | I181: (Select)
E182: 14-PORTUGAL | G182: 0 | H182: 0 | I182: (Select)
E183: 1787-PUERTO RICO | G183: 0 | H183: 0 | I183: (Select)
E184: 974-QATAR | G184: 0 | H184: 0 | I184: (Select)
E185: 262-REUNION | G185: 0 | H185: 0 | I185: (Select)
E186: 40-ROMANIA | G186: 0 | H186: 0 | I186: (Select)
E187: 8-RUSSIAN FEDERATION | G187: 0 | H187: 0 | I187: (Select)
E188: 250-RWANDA | G188: 0 | H188: 0 | I188: (Select)
E189: 1006-SAINT BARTHELEMY | G189: 0 | H189: 0 | I189: (Select)
E190: 290-SAINT HELENA, ASCENSION AND TRISTAN DA CUNHA | G190: 0 | H190: 0 | I190: (Select)
E191: 1869-SAINT KITTS AND NEVIS | G191: 0 | H191: 0 | I191: (Select)
E192: 1758-SAINT LUCIA | G192: 0 | H192: 0 | I192: (Select)
E193: 1007-SAINT MARTIN (FRENCH PART) | G193: 0 | H193: 0 | I193: (Select)
E194: 508-SAINT PIERRE AND MIQUELON | G194: 0 | H194: 0 | I194: (Select)
E195: 1784-SAINT VINCENT AND THE GRENADINES | G195: 0 | H195: 0 | I195: (Select)
E196: 685-SAMOA | G196: 0 | H196: 0 | I196: (Select)
E197: 378-SAN MARINO | G197: 0 | H197: 0 | I197: (Select)
E198: 239-SAO TOME AND PRINCIPE | G198: 0 | H198: 0 | I198: (Select)
E199: 966-SAUDI ARABIA | G199: 0 | H199: 0 | I199: (Select)
E200: 221-SENEGAL | G200: 0 | H200: 0 | I200: (Select)
E201: 381-SERBIA | G201: 0 | H201: 0 | I201: (Select)
E202: 248-SEYCHELLES | G202: 0 | H202: 0 | I202: (Select)
... 159 more rows

Sheet SCH5A
C3: Schedule 5A | F3: Information regarding apportionment of Receipts between spouses governed by Portuguese Civil Code
D4: Name of the Spouse
D5: PAN of the Spouse | I5: Aadhaar of the spouse
D6: Sl. No. | E6: Heads of Income | I6: Receipts received under the head | J6: Amount apportioned in the hands of the spouse | K6: Amount of TDS deducted on income at (ii) | L6: TDS apportioned in the hands of spouse
E7: (i) | I7: (ii) | J7: (iii) | K7: (iv) | L7: (v)
D8: 1 | E8: House Property | H8: 1
D9: 2 | E9: Capital Gains | H9: 3
D10: 3 | E10: Other Sources | H10: 4
D11: 4 | E11: Total (1+2+3) | H11: 5 | I11: =SUM(I8:I10) -> 0 | J11: =SUM(J8:J10) -> 0 | K11: =SUM(K8:K10) -> 0 | L11: =SUM(L8:L10) -> 0

Sheet AL
C3: Schedule AL | E3: Assets and Liabilities at the end of the year (applicable in a case where total income exceeds Rs.50 lakh)
D4: A | E4: Do you own any immovable asset? | J4: Yes
D5: Details of immovable asset
D6: Sl. No. (1) | E6: Description (2) | F6: Address (3) | O6: Amount (cost) in Rs. (4)
F7: Flat / Door / Block No. | G7: Name of Premises / Building / Village | H7: Road / Street / Post Office | I7: Area / locality | J7: Town / City / District | K7: State | L7: Country | M7: PIN Code | N7: ZIP Code
D8: 1 | E8: RESIDENTIAL HOUSE | F8: 94A/117 | I8: MARATHWADA STREET | J8: PUNE | K8: 19-MAHARASHTRA | L8: 91-INDIA | M8: 412105 | O8: 810000
D9: =D8+1 -> 2 | E9: PLOT | F9: A-3/25 | I9: PASCHIM VIHAR | J9: NEW DELHI | K9: 09-DELHI | L9: 91-INDIA | M9: 110063 | O9: 200000
D10: =D9+1 -> 3
D11: =D10+1 -> 4
D14: B | E14: Details of movable asset
D15: Sl. No (1) | E15: Description (2) | O15: Amount (cost) in Rs. (3)
D16: (i) | E16: Jewellery, bullion etc. | O16: 290000
D17: (ii) | E17: Archaeological collections, drawings, painting, sculpture or any work of art | O17: 0
D18: (iii) | E18: Vehicles, yachts, boats and aircrafts | O18: 0
D19: (iv) | E19: Financial asset
E20: (a) Bank (including all deposits) | O20: 0
E21: (b) Shares and securities | O21: 0
E22: (c) Insurance policies | O22: 0
E23: (d) Loans and advances given | O23: 0
E24: (e) Cash in hand | O24: 42000
D25: C | E25: Do you have any Interest held in the assets of a firm or association of persons (AOP) as a partner or member thereof? | M25: (Select)
D26: Sl. No (1) | E26: Name of the firm(s)/ AOP(s) (2) | F26: Address of the firm(s)/ AOP(s) (3) | O26: PAN of the firm/ AOP (4) | P26: Assessee’s investment in the firm/ AOP on cost basis (5)
F27: Flat/Door/Block No. | G27: Name of Premises/Building/Village | H27: Road/Street/Post Office | I27: Area/locality | J27: Town/City/District | K27: State | L27: Country | M27: Pin code
D28: 1
D29: =D28+1 -> 2
D30: =D29+1 -> 3
D31: =D30+1 -> 4
D33: (Do not delete blank rows) - Add row macro is (AddRows_InterestHeld)
D34: C | E34: Liabilities in relation to Assets at (A + B ) | P34: 0

Sheet PARTB - TI - TTI
C3: Part B - TI | F3: Computation of total income . PLEASE NOTE THAT CALCULATED FIELDS (IN WHITE) ARE PICKED UP FROM OTHER SCHEDULES AND ARE NOT TO BE ENTERED. For ex : The income figures below will get filled up when the Schedules linked to the Income are filled.
C4: TOTAL INCOME | D4: 1 | E4: Salaries (6 of Schedule S) | K4: 1 | L4: =SAL.IncomeFromSalary1 -> 16863200
D5: 2 | E5: Income from house property (4 of Schedule-HP) (Enter nil if loss) | K5: 2 | L5: =MAX(,0,HP.TotalIncomeChargeableUnHP) -> 0
D6: 3 | E6: Capital gains
E7: a | F7: Short term
F8: i | G8: Short-term chargeable @ 15% (9ii of item E of schedule CG) | I8: ai | J8: =MAX(0,STCG_CurrentYrGain15Percent) -> 0
F9: ii | G9: Short-term chargeable @ 30% (9iii of item E of schedule CG) | I9: aii | J9: =MAX(0,STCG_CurrentYrGain30Percent) -> 0
F10: iii | G10: Short-term chargeable at applicable rate (9iv of item E of schedule CG) | I10: aiii | J10: =MAX(0,STCG_CurrentYrGainAppRate) -> 0
F11: iv | G11: Short-term chargeable at special rates in India as per DTAA (9v of item E of Schedule CG) | I11: aiv | J11: =MAX(STCG_CurrentYrGainDTAARate,0) -> 0
F12: v | G12: Total Short term (ai+aii+aiii+aiv) (enter nil if loss) | I12: 3av | J12: =SUM(Sheet2.ShortTermUs111A,Sheet2.ShortTerm30,Sheet2.ShortTermOther,Sheet2.STCGDTAA) -> 0
E13: b | F13: Long-term
F14: i | G14: Long-term chargeable @ 10% (9vi of item E of schedule CG) | I14: bi | J14: =MAX(0,LTCG_CurrentYrGain10Percent) -> 0
F15: ii | G15: Long-term chargeable @ 20% (9vii of item E of schedule CG) | I15: bii | J15: =MAX(0,LTCG_CurrentYrGain20Percent) -> 0
F16: iii | G16: Long-term chargeable at special rates in India as per DTAA (9viii of item E of schedule CG) | I16: biii | J16: =MAX(0,LTCG_CurrentYrGainDTAARate) -> 0
F17: iv | G17: Long-term (bi + bii+biii) (enter nil if loss) | I17: biv | J17: =SUM(Sheet2.LongTermP,Sheet2.LongTermNP,Sheet2.LTCGDTAA) -> 0
E18: c | F18: Total capital gains (3av + 3biv) (enter nil if loss) | K18: 3c | L18: =SUM(Sheet2.TotalShortTerm,Sheet2.LongTerm) -> 0
D19: 4 | E19: Income from other sources
E20: a | F20: Net income from other sources chargeable to tax at normal applicable rates (6 of Schedule OS) (enter nil if loss) | I20: 4a | J20: =MAX(0,os.BalanceNoRaceHorse) -> 1037410
E21: b | F21: Income chargeable to tax at special rate (2 of Schedule OS) | I21: 4b | J21: =MAX(0,OS_IncomeChargeableSpecialRates) -> 0
E22: c | F22: Income from the activity of owning & maintaining race horses (8e of Schedule OS)(enter nil if loss) | I22: 4c | J22: =MAX(0,os.BalanceOwnRaceHorse) -> 0
E23: d | F23: Total (4a + 4b + 4c) (enter nil if loss) | K23: 4d | L23: =SUM(J20:J22) -> 1037410
D24: 5 | E24: Total of head wise income (1+2+3c+4d) | K24: 5 | L24: =SUM(Sheet2.Salaries,Sheet2.IncomeFromHP,Sheet2.TotalCapGains,Sheet2.TotIncFromOS) -> 17900610
D25: 6 | E25: Losses of current year set off against 5 (total of 2xiii and 3xiii of Schedule CYLA) | K25: 6 | L25: =SUM(sheet16.TotHPlossCurYrSetoff,sheet16.TotOthSrcLossNoRaceHorseSetoff) -> 200000
D26: 7 | E26: Balance after set off current year losses (5-6) (total of column 4 of Schedule CYLA + 2 of Schedule OS) | K26: 7 | L26: =MAX(0,Sheet2.TotalTI-Sheet2.CurrentYearLoss) -> 17700610
D27: 8 | E27: Brought forward losses set off against 7 (2xii of Schedule BFLA) | K27: 8 | L27: =MAX(0,sheet16.TotBFLossSetoff) -> 0
D28: 9 | E28: Gross Total income (7-8) (3xiii of Schedule BFLA + 2 of Schedule OS) | K28: 9 | L28: =MAX(0,Sheet2.BalanceAfterSetoffLosses-Sheet2.BroughtFwdLossesSetoff) -> 17700610
D29: 10 | E29: Income chargeable to tax at special rate under section 111A, 112, 112A etc. included in 9 | K29: 10 | L29: =SI.totSplRateInc -> 0
D30: 11 | E30: Deductions under Chapter VI-A [u of Schedule VIA and limited to (9-10)] | K30: 11 | L30: =scvia.TotalChapVIADeductions -> 257500
D31: 12 | E31: Total income (9 - 11) | K31: 12 | L31: =ROUND(MAX(0,Sheet2.GrossTotalIncome-Sheet2.DeductionsUnderScheduleVIA),-1) -> 17443110
D32: 13 | E32: Income which is included in 12 and chargeable to tax at special rates (total of column (i) of schedule SI) | K32: 13 | L32: =SUM(SI.SplRateIncCalc) -> 0
D33: 14 | E33: Net agricultural income/ any other income for rate purpose (3 of Schedule EI) | K33: 14 | L33: =IF(Sheet20.scei.NetAgriIncOrOthrIncRule7>5000,Sheet20.scei.NetAgriIncOrOthrIncRule7,0) -> 0
D34: 15 | E34: Aggregate income (12-13+14) [applicable if (12-13) exceeds maximum amount not chargeable to tax] | K34: 15 | L34: =IF((MAX(0,Sheet2.TotalIncome-Sheet2.IncChargeTaxSplRate111A112))>exemption,(MAX(0,Sheet2.TotalIncome-Sheet2.IncChargeTaxSplRate111A112)+Sheet2.NetAgricultureIncomeOrOtherIncomeForRate),0) -> 17443110
D35: 16 | E35: Losses of current year to be carried forward (total of xi of Schedule CFL) | K35: 16 | L35: =SUM(yr2014.HPLossCF10,yr2014.STCGLossCF10,yr2014.LTCGLossCF10,yr2014.OthSrcLossRaceHorseCF10) -> 0
D36: 17 | E36: Deemed income under section 115JC (3 of schedule AMT) | K36: 17 | L36: =MAX(0,AMT_AdjustedTotalIncome) -> 17443110
C38: Part B - TTI | F38: Computation of tax liability on total income
D39: 1 | E39: a | F39: Tax payable on deemed total income under section 115JC (4 of Schedule AMT) | K39: 1a | L39: =AMT_TaxPayable -> 0
E40: b | F40: Surcharge on (a) (if applicable) | K40: 1b | L40: =AMTSurcharge -> 0
E41: c | F41: Health and Education Cess @ 4% on (1a+1b) above | K41: 1c | L41: =ROUND(0.04*SUM(L39:L40),0) -> 0 | Q41: 0
E42: d | F42: Total Tax Payable on deemed total income (1a+1b+1c) | K42: 1d | L42: =SUM(L39:L41) -> 0
D43: 2 | E43: Tax payable on total income
E44: a | F44: Tax at normal rates on 15 of Part B-TI | I44: 2a | J44: 5045433
E45: b | F45: Tax at special rates (total of col.(ii) of Schedule-SI) | I45: 2b | J45: 0
E46: c | F46: Rebate on agricultural income [applicable if (12-13) of Part B-TI exceeds maximum amount not chargeable to tax] | I46: 2c | J46: 0 | Q46: 0
E47: d | F47: Tax Payable on Total Income (2a + 2b - 2c) | K47: 2d | L47: =MAX(SUM(Sheet2.TaxAtNormalRatesOnAggrInc,sheet2.TaxAtSpecialRates)-sheet2.RebateOnAgriInc,0) -> 5045433
D48: 3 | E48: Rebate under section 87A | K48: 3 | L48: =MAX(0,IF(AND(MID(sheet1.Status,1,1)<>"H",MID(sheet1.ResidentialStatus1,1,3)<>"NRI",(Sheet2.TotalIncome)<=500000),MIN(sheet2.TaxPayableOnTotInc-TaxThereon112A-Tax_theoron_PTI112A,12500),0)) -> 0
D49: 4 | E49: Tax payable after rebate (2d - 3) | K49: 4 | L49: =MAX(0,sheet2.TaxPayableOnTotInc-Sheet2.RebateUs87A) -> 5045433
D50: 5 | E50: Surcharge
E51: i | F51: 25% of 16(ii) of Schedule SI | I51: 5i | J51: 0
E52: ii | F52: 10% OR 15% AS APPLICABLE OF 2(II), 3(II), 8(II), 11(II), 21(II), 23(II) OF SCHEDULE SI | I52: 5ii | J52: 756815
E53: iii | F53: ON [(4) – ( 16(II), 2(II), 3(II), 8(II), 11(II), 21(II), 23(II) OF SCHEDULE SI)] | I53: 5iii
E54: iv | F54: Total i + ii+iii | K54: 5iv | L54: =SUM(Sheet2.Surcharge_i,Sheet2.Surcharge_ii) -> 756815
D55: 6 | E55: Health and Education Cess @ 4% on (4 + 5iv) | K55: 6 | L55: 232090
D56: 7 | E56: Gross tax liability (4 + 5iv + 6) | K56: 7 | L56: =SUM(Sheet2.BalTaxPayable,Sheet2.SurchargeOnTaxPayable,Sheet2.EducationCess) -> 6034338
D57: 8 | E57: Gross tax payable (higher of 1d and 7) | K57: 8 | L57: =MAX(0,Sheet2.TotalTaxPayablDeemedTotInc,Sheet2.GrossTaxLiability) -> 6034338
D58: 9 | E58: Credit u/s 115JD of tax paid in earlier years (applicable only if 7 is higher than 1d) (row 5 of Schedule AMTC) | K58: 9 | L58: =MAX(0,IF(Sheet2.GrossTaxLiability>Sheet2.TotalTaxPayablDeemedTotInc,AMTC_TaxCreditUnder115JD,0)) -> 0
D59: 10 | E59: Tax payable after credit u/s 115JD (8 - 9) | K59: 10 | L59: =MAX(0,SUM(Sheet2.GrossTaxPayable,-Sheet2.CreditUS115JD)) -> 6034338
D60: 11 | E60: Tax relief
E61: a | F61: Section 89 (Please ensure to submit Form 10E to claim this relief) | I61: 11a | J61: 0
E62: b | F62: Section 90/90A (2 of Schedule TR) | I62: 11b | J62: =TR_TaxReliefOutsideIndiaDTAA -> 0
E63: c | F63: Section 91 (3 of Schedule TR) | I63: 11c | J63: =TR_TaxReliefOutsideIndiaNotDTAA -> 0
E64: d | F64: Total (11a + 11b + 11c) | K64: 11d | L64: =SUM(J61:J63) -> 0
D65: 12 | E65: Net tax liability (10 - 11d) (enter zero if negative) | K65: 12 | L65: =MAX(0,Sheet2.TaxPayAfterCreditUs115JD-Sheet2.TotTaxRelief) -> 6034338
D66: 13 | E66: Interest and fee payable
E67: a | F67: Interest for default in furnishing the return (section 234A) | I67: 13a | J67: 0
E68: b | F68: Interest for default in payment of advance tax (section 234B) | I68: 13b | J68: 0
E69: c | F69: Interest for deferment of advance tax (section 234C) | I69: 13c | J69: 0
E70: d | F70: Fee for default in furnishing return of income (section 234F) | I70: 13d | J70: 0
E71: e | F71: Total Interest and Fee Payable (13a+13b+13c+13d) | K71: 13 | L71: =SUM(J67:J70) -> 0
D72: 14 | E72: Aggregate liability (12 + 13e) | K72: 14 | L72: =ROUND(Sheet2.NetTaxLiability+Sheet2.TotalIntrstPay,0) -> 6034338
C73: TAXES PAID | D73: 15 | E73: Taxes Paid
E74: a | F74: Advance Tax (from column 5 of 22A) | I74: 15a | J74: =advanceTax -> 40000
E75: b | F75: TDS (total of column 5 of 22B and column 9 of 22C) | I75: 15b | J75: =SUM(TDS1.TotalTDSSal,TDS2.ClaimedInOwnHands,TDS3.ClaimedInOwnHands) -> 5380000
E76: c | F76: TCS (total of column 5 of 22D) | I76: 15c | J76: =TCS.Total -> 0
E77: d | F77: Self-Assessment Tax (from column 5 of 22A) | I77: 15d | J77: =selfAssmenttTax -> 106000
E78: e | F78: Total Taxes Paid (15a + 15b + 15c + 15d) | K78: 15 | L78: =SUM(J74:J77) -> 5526000
D79: 16 | E79: Amount payable (Enter if 14is greater than 15e, else enter 0) | K79: 16 | L79: =ROUND(MAX(0,Sheet2.AggregateTaxInterestLiability-Sheet2.TotalTaxesPaid),-1) -> 508340
D80: 17 | E80: Refund (If 15e is greater than 14) (Refund, if any, will be directly credited into the bank account) | K80: 17 | L80: =ROUND(MAX(0,Sheet2.TotalTaxesPaid-Sheet2.AggregateTaxInterestLiability),-1) -> 0
D81: 18 | E81: Do you have a bank account in India (Non-residents claiming refund with no bank account in India may select No)? | K81: 18 | L81: Yes
P86: =IF(F86<>"",VLOOKUP(MID(F86,1,4),IFSC_BankName,2,FALSE)) -> FALSE
D87: Details of all Bank Accounts held in India at any time during the previous year (excluding dormant accounts)
E88: Sl. No. | F88: IFS Code of the Bank | H88: Name of the Bank | I88: Account Number | K88: Indicate the account in which you prefer to get your refund credited
E89: 1 | F89: YESB0000008 | H89: YES BANK | I89: 45871294985 | P89: =IF(F89<>"",VLOOKUP(MID(F89,1,4),IFSC_BankName,2,FALSE)) -> YES BANK | Q89: TRUE
E90: =E89+1 -> 2 | P90: =IF(F90<>"",VLOOKUP(MID(F90,1,4),IFSC_BankName,2,FALSE)) -> FALSE | Q90: FALSE
E91: =E90+1 -> 3 | P91: =IF(F91<>"",VLOOKUP(MID(F91,1,4),IFSC_BankName,2,FALSE)) -> FALSE | Q91: FALSE
E92: =E91+1 -> 4 | P92: =IF(F92<>"",VLOOKUP(MID(F92,1,4),IFSC_BankName,2,FALSE)) -> FALSE | Q92: FALSE
E93: =E92+1 -> 5 | P93: =IF(F93<>"",VLOOKUP(MID(F93,1,4),IFSC_BankName,2,FALSE)) -> FALSE | Q93: FALSE
D94: NOTE : | F94: 1. Minimum one account should be selected for refund credit. 2. In case of Refund, multiple accounts are selected for refund credit, then refund will be credited to one of the account decided by CPC after processing the return.
D97: (ii) | E97: In case of non-residents, details of any one foreign Bank Account may be furnished for the purpose of credit of refund)
E98: Sl. No. | F98: SWIFT Code | H98: Name of the Bank | I98: IBAN | K98: Country of location
E99: 1
D102: 19 | E102: Do you at any time during the previous year,- (i) hold, as beneficial owner, beneficiary or otherwise, any asset (including financial interest in any entity) located outside India; or (ii) have signing authority in any account located outside India; or (iii) have income from any source outside India? [applicable only in case of a resident] [Ensure Schedule FA is filled up if the answer is Yes ] | K102: 19 | L102: NO

Sheet IT
R2: =SUMIF(FormulaofSAT,"=6",IT.Amt) -> 0 | S2: =SUMIF(FormulaofSAT,"=12",IT.Amt) -> 0 | T2: =SUMIF(FormulaofSAT,"=18",IT.Amt) -> 0 | U2: =SUMIF(FormulaofSAT,"=24",IT.Amt) -> 0 | IV2: =SUM(M2:IU2) -> 0
O3: Quater5 | P3: =SUMIF(FormulaofQ,"=5",IT.Amt) -> 0 | R3: =SUMIF(FormulaofSAT,"=5",IT.Amt) -> 0 | S3: =SUMIF(FormulaofSAT,"=11",IT.Amt) -> 0 | T3: =SUMIF(FormulaofSAT,"=17",IT.Amt) -> 0 | U3: =SUMIF(FormulaofSAT,"=23",IT.Amt) -> 0 | IV3: 0
O4: Quater4 | P4: =SUMIF(FormulaofQ,"=4",IT.Amt) -> 0 | R4: =SUMIF(FormulaofSAT,"=4",IT.Amt) -> 0 | S4: =SUMIF(FormulaofSAT,"=10",IT.Amt) -> 0 | T4: =SUMIF(FormulaofSAT,"=16",IT.Amt) -> 0 | U4: =SUMIF(FormulaofSAT,"=22",IT.Amt) -> 0 | IV4: 0
O5: Quater3 | P5: =SUMIF(FormulaofQ,"=3",IT.Amt) -> 0 | R5: =SUMIF(FormulaofSAT,"=3",IT.Amt) -> 0 | S5: =SUMIF(FormulaofSAT,"=9",IT.Amt) -> 0 | T5: =SUMIF(FormulaofSAT,"=15",IT.Amt) -> 0 | U5: =SUMIF(FormulaofSAT,"=21",IT.Amt) -> 0 | IV5: 0
O6: Quater2 | P6: =SUMIF(FormulaofQ,"=2",IT.Amt) -> 40000 | R6: =SUMIF(FormulaofSAT,"=2",IT.Amt) -> 0 | S6: =SUMIF(FormulaofSAT,"=8",IT.Amt) -> 0 | T6: =SUMIF(FormulaofSAT,"=14",IT.Amt) -> 0 | U6: =SUMIF(FormulaofSAT,"=20",IT.Amt) -> 0 | IV6: 40000
C7: 22 A | E7: Details of payments of Advance Tax and Self-Assessment Tax | L7: SeLfTax234A | M7: =SUMIF(FormulaofSAT234A,"=1",IT.Amt) -> 106000 | O7: Quater1 | P7: =SUMIF(FormulaofQ,"=1",IT.Amt) -> 0 | R7: =SUMIF(FormulaofSAT,"=1",IT.Amt) -> 106000 | S7: =SUMIF(FormulaofSAT,"=7",IT.Amt) -> 0 | T7: =SUMIF(FormulaofSAT,"=13",IT.Amt) -> 0 | U7: =SUMIF(FormulaofSAT,"=19",IT.Amt) -> 0 | W7: =MID(sheet1.StateCode1,1,2) -> 19 | IV7: 212000
C8: TAX PAYMENTS | D8: Sl. No. | E8: BSR Code | F8: Date of Deposit (dd/mm/yyyy) | G8: Serial No. of Challan | H8: Amount (Rs) | L8: AdvanceTax | M8: =SUMIF(IT.FormulaOfS,"<2",IT.Amt) -> 40000 | O8: TN & Pondicherry flag | P8: FALSE | W8: =IF(OR(W7="03",W7="04",W7="20",W7="21",W7="22",W7="23",W7="30"),TRUE,FALSE) -> FALSE
D9: 1 | E9: 2 | F9: 3 | G9: 4 | H9: 5 | L9: SelfTax | M9: =SUMIF(IT.FormulaOfS,">=2",IT.Amt) -> 106000 | N9: Year | O9: Day | P9: Month | Q9: AY & Above = 2 and FY & Below = 1 | R9: Formula Qtr | S9: Formula for SAT | T9: FORMULA SAT234A | U9: CountAudit | V9: 0 | W9: Normal Qtr case.. | X9: TN & Pondicherry Qtr case.. | Y9: FORMULA SAT234A 1(Used for Audit Case moved to 17 Oct in 2016)
D10: 1 | E10: 0005641 | F10: 12/09/2019 | G10: 00036 | H10: 40000 | N10: =VALUE(MID(F10,7,4)) -> 2019 | O10: =VALUE(MID(F10,1,2)) -> 12 | P10: =VALUE(MID(F10,4,2)) -> 9 | Q10: =IF(N10>2020,2,IF(N10>=2020,IF(P10>=4,2,1),1)) -> 1 | R10: =IF(TN.Flag,X10,W10) -> 2 | S10: =IF(N10<=2020,IF(Q10>1,IF(P10<4,P10+9,P10-3),0),P10+9) -> 0 | T10: =IF(N10=2020,IF(Temp_lakhcheck>100000,IF(AND(P10>=4,P10<=7),1,0),IF(AND(P10>=4,P10<=11),1,0)),0) -> 0 | U10: =IF(N10<=2020,IF(Q10>1,IF(P10<4,P10+9,P10-3),0),P10 -3 + MAX(N10-2020) *12) -> 0 | V10: =IF(N10=2020,IF(AND(P10=11,O10<=7),1,0),0) -> 0 | W10: =IF(Q10>1,6,IF(N10<2020,IF(AND(P10=6,O10>15),2,IF(P10<7,1,IF(AND(P10=9,O10>16),3,IF(P10<10,2,IF(AND($W$8=TRUE,P10=12),3,IF(AND(P10=12,O10>16),4,IF(P10<13,3,4))))))),IF(P10<3,4,IF(O10<17,4,5)))) -> 2 | X10: =IF(Q10>1,6,IF(N10<2020,IF(AND(P10=6,O10>15),2,IF(P10<8,1,IF(AND(P10=9,O10>16),3,IF(P10<10,2,IF(AND(P10=12,O10>31),4,IF(P10<13,3,4)))))),IF(P10<3,4,IF(O10<17,4,5)))) -> 2 | Y10: =IF(N10=2020,IF(AND(P10>=4,P10<=10),IF(P10<=9,0,IF(CountAudit>0,IF(AND(P10>7,P10<=9),0,IF(AND(P10=9,O10<=16),1,0)),0)),IF(CountAudit>0,IF(AND(P10>7,P10<=9),0,IF(AND(P10=9,O10<=16),1,0)),0)),0) -> 0
D11: =D10+1 -> 2 | E11: 0005641 | F11: 30/04/2020 | G11: 00140 | H11: 106000 | N11: =VALUE(MID(F11,7,4)) -> 2020 | O11: =VALUE(MID(F11,1,2)) -> 30 | P11: =VALUE(MID(F11,4,2)) -> 4 | Q11: =IF(N11>2020,2,IF(N11>=2020,IF(P11>=4,2,1),1)) -> 2 | R11: =IF(TN.Flag,X11,W11) -> 6 | S11: =IF(N11<=2020,IF(Q11>1,IF(P11<4,P11+9,P11-3),0),P11+9) -> 1 | T11: =IF(N11=2020,IF(Temp_lakhcheck>100000,IF(AND(P11>=4,P11<=7),1,0),IF(AND(P11>=4,P11<=11),1,0)),0) -> 1 | U11: =IF(N11<=2020,IF(Q11>1,IF(P11<4,P11+9,P11-3),0),P11 -3 + MAX(N11-2020) *12) -> 1 | V11: =IF(N11=2020,IF(AND(P11=11,O11<=7),1,0),0) -> 0 | W11: =IF(Q11>1,6,IF(N11<2020,IF(AND(P11=6,O11>15),2,IF(P11<7,1,IF(AND(P11=9,O11>16),3,IF(P11<10,2,IF(AND($W$8=TRUE,P11=12),3,IF(AND(P11=12,O11>16),4,IF(P11<13,3,4))))))),IF(P11<3,4,IF(O11<17,4,5)))) -> 6 | X11: =IF(Q11>1,6,IF(N11<2020,IF(AND(P11=6,O11>15),2,IF(P11<8,1,IF(AND(P11=9,O11>16),3,IF(P11<10,2,IF(AND(P11=12,O11>31),4,IF(P11<13,3,4)))))),IF(P11<3,4,IF(O11<17,4,5)))) -> 6 | Y11: =IF(N11=2020,IF(AND(P11>=4,P11<=10),IF(P11<=9,0,IF(CountAudit>0,IF(AND(P11>7,P11<=9),0,IF(AND(P11=9,O11<=16),1,0)),0)),IF(CountAudit>0,IF(AND(P11>7,P11<=9),0,IF(AND(P11=9,O11<=16),1,0)),0)),0) -> 0
D12: =D11+1 -> 3 | N12: =VALUE(MID(F12,7,4)) ->  | O12: =VALUE(MID(F12,1,2)) ->  | P12: =VALUE(MID(F12,4,2)) ->  | Q12: =IF(N12>2020,2,IF(N12>=2020,IF(P12>=4,2,1),1)) ->  | R12: =IF(TN.Flag,X12,W12) ->  | S12: =IF(N12<=2020,IF(Q12>1,IF(P12<4,P12+9,P12-3),0),P12+9) ->  | T12: =IF(N12=2020,IF(Temp_lakhcheck>100000,IF(AND(P12>=4,P12<=7),1,0),IF(AND(P12>=4,P12<=11),1,0)),0) ->  | U12: =IF(N12<=2020,IF(Q12>1,IF(P12<4,P12+9,P12-3),0),P12 -3 + MAX(N12-2020) *12) ->  | V12: =IF(N12=2020,IF(AND(P12=11,O12<=7),1,0),0) ->  | X12: =IF(Q12>1,6,IF(N12<2020,IF(AND(P12=6,O12>15),2,IF(P12<8,1,IF(AND(P12=9,O12>16),3,IF(P12<10,2,IF(AND(P12=12,O12>31),4,IF(P12<13,3,4)))))),IF(P12<3,4,IF(O12<17,4,5)))) ->  | Y12: =IF(N12=2020,IF(AND(P12>=4,P12<=10),IF(P12<=9,0,IF(CountAudit>0,IF(AND(P12>7,P12<=9),0,IF(AND(P12=9,O12<=16),1,0)),0)),IF(CountAudit>0,IF(AND(P12>7,P12<=9),0,IF(AND(P12=9,O12<=16),1,0)),0)),0) -> 
D13: =D12+1 -> 4 | N13: =VALUE(MID(F13,7,4)) ->  | O13: =VALUE(MID(F13,1,2)) ->  | P13: =VALUE(MID(F13,4,2)) ->  | Q13: =IF(N13>2020,2,IF(N13>=2020,IF(P13>=4,2,1),1)) ->  | R13: =IF(TN.Flag,X13,W13) ->  | S13: =IF(N13<=2020,IF(Q13>1,IF(P13<4,P13+9,P13-3),0),P13+9) ->  | T13: =IF(N13=2020,IF(Temp_lakhcheck>100000,IF(AND(P13>=4,P13<=7),1,0),IF(AND(P13>=4,P13<=11),1,0)),0) ->  | U13: =IF(N13<=2020,IF(Q13>1,IF(P13<4,P13+9,P13-3),0),P13 -3 + MAX(N13-2020) *12) ->  | V13: =IF(N13=2020,IF(AND(P13=11,O13<=7),1,0),0) ->  | X13: =IF(Q13>1,6,IF(N13<2020,IF(AND(P13=6,O13>15),2,IF(P13<8,1,IF(AND(P13=9,O13>16),3,IF(P13<10,2,IF(AND(P13=12,O13>31),4,IF(P13<13,3,4)))))),IF(P13<3,4,IF(O13<17,4,5)))) ->  | Y13: =IF(N13=2020,IF(AND(P13>=4,P13<=10),IF(P13<=9,0,IF(CountAudit>0,IF(AND(P13>7,P13<=9),0,IF(AND(P13=9,O13<=16),1,0)),0)),IF(CountAudit>0,IF(AND(P13>7,P13<=9),0,IF(AND(P13=9,O13<=16),1,0)),0)),0) -> 
C14: Total | H14: =SUM(IT.Amt) -> 146000 | T14: =IF(N11=2020,IF(AND(P11>=4,IF(OR(MID(sheet1.StateCode1,1,2)="14",MID(sheet1.StateCode1,1,2)="37"),P11<=12,P11<=8)),1,0),IF(N11=2020,IF(AND(OR(MID(sheet1.StateCode1,1,2)="14",MID(sheet1.StateCode1,1,2)="37"),P11<=3),1,0),0)) -> 1
C15: NOTE | D15: Enter the totals of Advance tax and Self-Assessment tax in Sl. No. 15a & 15d of Part B-TTI
E18: `

Sheet TDS
C4: TDS 1 20 B | F4: Details of Tax Deducted at Source from SALARY [As per FORM 16 issued by Employer(s)]
E5: Sl No | F5: Tax Deduction Account Number (TAN) of the Employer | G5: Name of the Employer | H5: Income chargeable under Salaries | I5: Total tax deducted
E6: 1 | F6: 2 | G6: 3 | H6: 4 | I6: 5
E7: 1 | F7: RTKA55484C | G7: AMAR CONSULTANTS | H7: 16863200 | I7: 5280000
E8: =E7+1 -> 2
E9: =E8+1 -> 3
E10: =E9+1 -> 4
C11: Total | H11: =SUM(TDS1.IncChrgSal) -> 16863200 | I11: =SUM(TDS1.TotalTDSSal) -> 5280000
C12: Note | E12: Please enter total of column 5 in 15b of Part B-TTI
C15: TDS 2 22 C(1) | F15: Details of Tax Deducted at Source (TDS) on Income [As per Form 16 A issued by Deductor(s)]
E16: Sl No | F16: TDS credit relating to Self / Other Person[Spouse as per section 5A/Other person as per Rule 37BA(2)] | G16: PAN Of Other Person (If TDS credit related to other person) | H16: Aadhaar No. Of Other Person (If TDS credit related to other person) | I16: Tax Deduction Account Number (TAN) of the Deductor | J16: Unclaimed TDS brought forward (b/f) | L16: TDS of the current financial Year (TDS deducted during the FY 2019-20) | O16: TDS credit being claimed this Year (only if corresponding receipt is being offered for tax this year) | T16: Corresponding Receipt offered | V16: TDS credit being carried forward
E17: (Col 1) | F17: (Col 2) | G17: (Col 3) | I17: (Col 4) | J17: Financial Year in which TDS is deducted (Col 5) | K17: TDS b/f (Col 6) | L17: Deducted in own hands (Col 7) | M17: Deducted in the hands of spouse as per section 5A or any other person as per rule 37BA(2) (if applicable) (Col 8) | O17: Claimed in own hands (Col 9) | P17: Claimed in the hands of spouse as per section 5A or any other person as per rule 37BA(2) (if applicable) (Col 10) | T17: Gross Amount (Col 11) | U17: Head of Income (Col 12) | V17: (Col 13)
M18: Income | N18: TDS | P18: Income | Q18: TDS | R18: PAN | S18: Aadhaar No.
E19: 1 | F19: Self | I19: MUMY02084F | J19: (Select) | L19: 100000 | O19: 100000 | T19: 1000000 | U19: Income from Other Sources | V19: =MAX(0,K19+L19+N19-O19-Q19) -> 0
E20: =E19+1 -> 2 | F20: (Select) | J20: (Select) | V20: =MAX(0,K20+L20+N20-O20-Q20) -> 0
E21: =E20+1 -> 3 | F21: (Select) | J21: (Select) | V21: =MAX(0,K21+L21+N21-O21-Q21) -> 0
E22: =E21+1 -> 4 | F22: (Select) | J22: (Select) | V22: =MAX(0,K22+L22+N22-O22-Q22) -> 0
O23: =SUM(TDS2.ClaimedInOwnHands) -> 100000
C24: Note | E24: Please enter total column 9 of above in 15b of Part B-TTI
C27: TDS 3 22 C(2) | F27: Details of Tax Deducted at Source (TDS) on Income [As per Form 16B/16C furnished issued by Deductor(s)]
E28: Sl No | F28: TDS credit relating to Self / Other Person[Spouse as per section 5A/Other person as per Rule 37BA(2)] | G28: PAN Of Other Person (If TDS credit related to other person) | H28: Aadhaar No. Of Other Person (If TDS credit related to other person) | I28: PAN of the Buyer / Tenant | J28: Aadhaar No. Of the buyer/ tenant | K28: Unclaimed TDS brought forward (b/f) | M28: TDS of the current financial Year (TDS deducted during the 2019-20) | P28: TDS credit being claimed this Year (only if corresponding receipt is being offered for tax this year) | U28: Corresponding Receipt offered | W28: TDS credit being carried forward
E29: (Col 1) | F29: (Col 2) | G29: (Col 3) | I29: (Col 4) | K29: Financial Year in which TDS is deducted (Col 5) | L29: TDS b/f (Col 6) | M29: Deducted in own hands (Col 7) | N29: Deducted in the hands of spouse as per section 5A or any other person as per rule 37BA(2) (if applicable) (Col 8) | P29: Claimed in own hands (Col 9) | Q29: Claimed in the hands of spouse as per section 5A or any other person as per rule 37BA(2) (if applicable) (Col 10) | U29: Gross Amount (Col 11) | V29: Head of Income (Col 12) | W29: (Col 13)
N30: Income | O30: TDS | Q30: Income | R30: TDS | S30: PAN | T30: Aadhaar No.
E31: 1 | F31: (Select) | K31: (Select) | W31: =MAX(0,L31+M31+O31-P31-R31) -> 0
E32: =E31+1 -> 2 | F32: (Select) | K32: (Select) | W32: =MAX(0,L32+M32+O32-P32-R32) -> 0
E33: =E32+1 -> 3 | F33: (Select) | K33: (Select) | W33: =MAX(0,L33+M33+O33-P33-R33) -> 0
E34: =E33+1 -> 4 | F34: (Select) | K34: (Select) | W34: =MAX(0,L34+M34+O34-P34-R34) -> 0
C35: Total | P35: =SUM(TDS3.ClaimedInOwnHands) -> 0
C36: Note | E36: Please enter total column 9 of above in 15b of Part B-TTI

Sheet TCS
C3: 22 D | D3: Details of Tax Collected at Source [As per Form 27D issued by the Collector(s)]
A4: TCS ON INCOME
C5: Sl. No. | D5: Tax Deduction and Collection Account Number of the Collector | E5: Name of the Collector | F5: Tax Collected | G5: Amount out of (4) being claimed | H5: Amount out of (4) being claimed in the hands of spouse, if section 5A is applicable
C6: (1) | D6: (2) | E6: (3) | F6: (4) | G6: (5) | H6: (6)
C7: 1
C8: =C7+1 -> 2
C9: =C8+1 -> 3
C10: =C9+1 -> 4
C11: Total | G11: =SUM(TCS.AmtTCSClaimedThisYear) -> 0
C12: Note | D12: Please enter total of column (5) in 15c of Part B-TTI

Sheet TemPoraryValues (hidden)
A1: AfterSetOff | B1: Different Section value after setoff after CG | C1: Different Section value after setoff after CYLA | D1: Different Section value after setoff after BFLA
A2: 20sec112 | B2: 0 | C2: 0 | D2: 0
A3: 20Sec11EA | B3: 0 | C3: 0 | D3: 0
A4: 15Sec111a | B4: 0 | C4: 0 | D4: 0
A5: 15Sec115ad1bii | B5: 0 | C5: 0 | D5: 0
A6: 10SecPro | B6: 0 | C6: 0 | D6: 0
A7: 10Sec115ACA1 | B7: 0 | C7: 0 | D7: 0
A8: 10Sec115Eb | B8: 0 | C8: 0 | D8: 0
A9: 10Sec1121c2 | B9: 0 | C9: 0 | D9: 0
A10: 10Sec115AC1 | B10: 0 | C10: 0 | D10: 0
A11: 10Sec115AD3 | B11: 0 | C11: 0 | D11: 0
A12: 10Sec115AD3Proviso | B12: 0 | C12: 0 | D12: 0
A13: 10Sec112a | B13: 0 | C13: 0 | D13: 0
A14: 30Sec115AD | B14: 0 | C14: 0 | D14: 0
A15: 15SecPTI | B15: 0 | C15: 0 | D15: 0
A16: 30SecPTI | B16: 0 | C16: 0 | D16: 0
A17: 10SecPTI_a1 | B17: 0 | C17: 0 | D17: 0
A18: 10SecPTI | B18: 0 | C18: 0 | D18: 0
A19: 20SecPTI | B19: 0 | C19: 0 | D19: 0
A22: Age Calculation
A23: Age= | B23: =calculateAge(sheet1.DOB) -> 48
A26: Exemtion Value for SI | C26: resStatusTemp | D26: =MID(sheet1.ResidentialStatus1,1,3) -> RES
A27: normal income | B27: =MAX(Sheet2.GrossTotalIncome-Sheet2.DeductionsUnderScheduleVIA,0) -> 17443110
A28: Exemption_SI | B28: =IF(AND(taxPayerStatus="I",age>59,age<80,OR(resStatusTemp="RES",resStatusTemp="NOR")),300000,IF(AND(taxPayerStatus="I",age>=80,OR(resStatusTemp="RES",resStatusTemp="NOR")),500000,IF(AND(OR(taxPayerStatus="I",taxPayerStatus="H"),OR(resStatusTemp="RES",resStatusTemp="NOR")),250000,0))) -> 250000
A29: Exemption | B29: =IF(B27-Sheet2.IncChargeableTaxSplRates>0,IF((B27-Sheet2.IncChargeableTaxSplRates)>B28,0,B28-(B27-Sheet2.IncChargeableTaxSplRates)),B28) -> 0
A30: Exemption after 112 | B30: =IF(Exemtption_SI<=splRateInc21,0,MAX(0,Exemtption_SI-splRateInc21)) -> 0
A31: Exemption after 11A | B31: =IF(Exemption_after_112<=splRateInc1A,0,MAX(0,Exemption_after_112-splRateInc1A)) -> 0
A32: Exemption after 112 prov | B32: =IF(Exemption_after_11A<=splRateInc22,0,MAX(0,Exemption_after_11A-splRateInc22)) -> 0
A33: Exemption after 112A | B33: =IF(Exemption_after_112_prov<=splRateInc23,0,MAX(0,Exemption_after_112_prov-splRateInc23)) -> 0
A34: Exemption after 112A_PTI | B34: =IF(Exemption_after_112A<=splRateInc23_PTIa1,0,MAX(0,Exemption_after_112A-splRateInc23_PTIa1)) -> 0

Sheet VERIFICATION
C3: Verification
C4: I, | H4: RAMAN K. MEHTA | I4: son/ daughter of | L4: SHYAM K. MEHTA
C5: solemnly declare that to the best of my knowledge and belief, the information given in the return and the schedules thereto is correct and complete and is in accordance with the provisions of the Income-tax Act, 1961,
C6: I further declare that I am making return in my capacity as | H6: Self | I6: and I am also competent to make this return and verify it.
C7: I am holding permanent account number | H7: ABNPM2312P | I7: (if allotted) (Please see instruction)
C8: I further declare that the critical assumptions specified in the agreement have been satisfied and all the terms and conditions of the agreement have been complied with. (applicable, in a case where return is furnished under section 92CD)
I9: (Date) | K9: =CONCATENATE(IF(DAY(TODAY())<10,"0",""),DAY(TODAY()),"/",IF(MONTH(TODAY())<10,"0",""),MONTH(TODAY()),"/",YEAR(TODAY())) -> 02/12/2020
C10: Note : | D10: 1. Submission date is the system date of e-Filing portal of Income Tax Department. The same is available in the Acknowledgement/ITR-V generated after submission of return. 2. Verification Date is the date of e-Verification at e-Filing portal of Income Tax Department or the date of receipt of ITR-V at CPC, Bengaluru. The same will be available in View Returns/Forms option of e-Filing portal. In case of e-Verification, it is available in Acknowledgement
C11: If the return has been prepared by a Tax Return Preparer (TRP) give further details below:
C12: Identification No. of TRP | I12: Counter Signature of TRP
C13: Name of TRP
C14: If TRP is entitled for any reimbursement from the Government, amount thereof

Sheet SI_SectionCode (hidden)
A2: Serial No. | B2: Section Code | C2: Rate in %. | D2: Income | E2: Taxable Income | F2: Tax Thereon | G2: Section Code (only for XML purposes)
A3: 1 | B3: 111 - Tax on accumulated balance of recognised PF | C3: ='SPI - SI'!F14 -> 1 | D3: ='SPI - SI'!G14 -> 0 | E3: ='SPI - SI'!H14 -> 0 | F3: ='SPI - SI'!I14 -> 0 | G3: 1
A4: =A3+1 -> 2 | B4: 111A (STCG on shares where STT paid) | C4: ='SPI - SI'!F15 -> 15 | D4: ='SPI - SI'!G15 -> 0 | E4: ='SPI - SI'!H15 -> 0 | F4: ='SPI - SI'!I15 -> 0 | G4: 1A
A5: =A4+1 -> 3 | B5: 112 (LTCG on others) | C5: ='SPI - SI'!F16 -> 20 | D5: ='SPI - SI'!G16 -> 0 | E5: ='SPI - SI'!H16 -> 0 | F5: ='SPI - SI'!I16 -> 0 | G5: 21
A6: 4 | B6: 112 proviso (LTCG on listed securities/ units without indexation) | C6: ='SPI - SI'!F17 -> 10 | D6: ='SPI - SI'!G17 -> 0 | E6: ='SPI - SI'!H17 -> 0 | F6: ='SPI - SI'!I17 -> 0 | G6: 22
A7: 5 | B7: 112(1)(c)(iii)(LTCG on unlisted securities in case of non-residents) | C7: ='SPI - SI'!F19 -> 10 | D7: ='SPI - SI'!G19 -> 0 | E7: ='SPI - SI'!H19 -> 0 | F7: ='SPI - SI'!I19 -> 0 | G7: 21ciii
A8: 6 | B8: 112A (LTCG on sale of shares or units on which STT is paid) | C8: ='SPI - SI'!F18 -> 10 | D8: ='SPI - SI'!G18 -> 0 | E8: ='SPI - SI'!H18 -> 0 | F8: ='SPI - SI'!I18 -> 0 | G8: 2A
A9: 7 | B9: 115BB (Winnings from lotteries, puzzles, races, games etc.) | C9: ='SPI - SI'!F20 -> 30 | D9: ='SPI - SI'!G20 -> 0 | E9: ='SPI - SI'!H20 -> 0 | F9: ='SPI - SI'!I20 -> 0 | G9: 5BB
A10: 8 | B10: 115AD(1)(ii) -STCG (other than on equity share or equity oriented mutual fund referred to in section 111A) by an FII | C10: ='SPI - SI'!F21 -> 30 | D10: ='SPI - SI'!G21 -> 0 | E10: ='SPI - SI'!H21 -> 0 | F10: ='SPI - SI'!I21 -> 0 | G10: 5ADii
A11: 9 | B11: Securities referred in section 112A read with section 115AD | C11: ='SPI - SI'!F39 -> 10 | D11: ='SPI - SI'!G39 -> 0 | E11: ='SPI - SI'!H39 -> 0 | F11: ='SPI - SI'!I39 -> 0 | G11: 5ADiiiP
A12: 10 | B12: STCG Chargeable under DTAA rates | C12: ='SPI - SI'!F49 -> 1 | D12: ='SPI - SI'!G49 -> 0 | E12: ='SPI - SI'!H49 -> 0 | F12: ='SPI - SI'!I49 -> 0 | G12: DTAASTCG
A13: 11 | B13: LTCG Chargeable under DTAA rates | C13: ='SPI - SI'!F50 -> 1 | D13: ='SPI - SI'!G50 -> 0 | E13: ='SPI - SI'!H50 -> 0 | F13: ='SPI - SI'!I50 -> 0 | G13: DTAALTCG
A14: 12 | B14: Other source income chargeable under DTAA rates | C14: ='SPI - SI'!F51 -> 1 | D14: ='SPI - SI'!G51 -> 0 | E14: ='SPI - SI'!H51 -> 0 | F14: ='SPI - SI'!I51 -> 0 | G14: DTAAOS
A15: 13 | B15: 115AD(1)(b)(ii)- Short term capital gains referred to in section 111A | C15: ='SPI - SI'!F22 -> 15 | D15: ='SPI - SI'!G22 -> 0 | E15: ='SPI - SI'!H22 -> 0 | F15: ='SPI - SI'!I22 -> 0 | G15: 5AD1biip
A16: 14 | B16: 115A(1)(a)(i)- Dividends interest and income from units purchase in foreign currency | C16: ='SPI - SI'!F23 -> 20 | D16: ='SPI - SI'!G23 -> 0 | E16: ='SPI - SI'!H23 -> 0 | F16: ='SPI - SI'!I23 -> 0 | G16: 5A1ai
A17: 15 | B17: 115A(1)(a)(ii)- Interest received from Govt/Indian Concerns received in Foreign Currency | C17: ='SPI - SI'!F24 -> 20 | D17: ='SPI - SI'!G24 -> 0 | E17: ='SPI - SI'!H24 -> 0 | F17: ='SPI - SI'!I24 -> 0 | G17: 5A1aii
A18: 16 | B18: 115A(1) (a)(iia) -Interest from Infrastructure Debt Fund | C18: ='SPI - SI'!F25 -> 5 | D18: ='SPI - SI'!G25 -> 0 | E18: ='SPI - SI'!H25 -> 0 | F18: ='SPI - SI'!I25 -> 0 | G18: 5A1aiia
A19: 17 | B19: 115A(1) (a)(iiaa) -Interest as per Sec. 194LC | C19: ='SPI - SI'!F26 -> 5 | D19: ='SPI - SI'!G26 -> 0 | E19: ='SPI - SI'!H26 -> 0 | F19: ='SPI - SI'!I26 -> 0 | G19: 5A1aiiaa
A20: 18 | B20: 115A(1) (a)(iiab) -Interest as per Sec. 194LD | C20: ='SPI - SI'!F27 -> 5 | D20: ='SPI - SI'!G27 -> 0 | E20: ='SPI - SI'!H27 -> 0 | F20: ='SPI - SI'!I27 -> 0 | G20: 5A1aiiab
A21: 19 | B21: 115A(1) (a)(iiac) -Interest as per Sec. 194LBA | C21: ='SPI - SI'!F28 -> 5 | D21: ='SPI - SI'!G28 -> 0 | E21: ='SPI - SI'!H28 -> 0 | F21: ='SPI - SI'!I28 -> 0 | G21: 5A1aiiac
A22: 20 | B22: 115A(1) (a)(iii) - Income received in respect of units of UTI purchased in Foreign Currency | C22: ='SPI - SI'!F29 -> 20 | D22: ='SPI - SI'!G29 -> 0 | E22: ='SPI - SI'!H29 -> 0 | F22: ='SPI - SI'!I29 -> 0 | G22: 5A1aiii
A23: 21 | B23: 115A(1)(b)(A)- Income from royalty & technical services | C23: ='SPI - SI'!F30 -> 10 | D23: ='SPI - SI'!G30 -> 0 | E23: ='SPI - SI'!H30 -> 0 | F23: ='SPI - SI'!I30 -> 0 | G23: 5A1bA
A24: 22 | B24: 115AC(1)(a & b) - Income from bonds or GDR purchased in foreign currency - non-resident | C24: ='SPI - SI'!F32 -> 10 | D24: ='SPI - SI'!G32 -> 0 | E24: ='SPI - SI'!H32 -> 0 | F24: ='SPI - SI'!I32 -> 0 | G24: 5AC1ab
A25: 23 | B25: 115AC(1)(c) -LTCG arising from the transfer of bonds or GDR purchased in foreign currency - non-resident | C25: ='SPI - SI'!F33 -> 10 | D25: ='SPI - SI'!G33 -> 0 | E25: ='SPI - SI'!H33 -> 0 | F25: ='SPI - SI'!I33 -> 0 | G25: 5AC1c
A26: 24 | B26: 115ACA(1)(a) - Income from GDR purchased in foreign currency -resident | C26: ='SPI - SI'!F34 -> 10 | D26: ='SPI - SI'!G34 -> 0 | E26: ='SPI - SI'!H34 -> 0 | F26: ='SPI - SI'!I34 -> 0 | G26: 5ACA1a
A27: 25 | B27: 115ACA(1)(b) - LTCG arising from the transfer of GDR purchased in foreign currency -resident | C27: ='SPI - SI'!F35 -> 10 | D27: ='SPI - SI'!G35 -> 0 | E27: ='SPI - SI'!H35 -> 0 | F27: ='SPI - SI'!I35 -> 0 | G27: 5ACA1b
A28: 26 | B28: 115AD(1)(i) -Income received by an FII in respect of securities (other than units as per Sec 115AB) | C28: ='SPI - SI'!F36 -> 20 | D28: ='SPI - SI'!G36 -> 0 | E28: ='SPI - SI'!H36 -> 0 | F28: ='SPI - SI'!I36 -> 0 | G28: 5AD1i
A29: 27 | B29: 115AD(1)(i) -Income received by an FII in respect of bonds or government securities as per Sec 194LD | C29: ='SPI - SI'!F37 -> 5 | D29: ='SPI - SI'!G37 -> 0 | E29: ='SPI - SI'!H37 -> 0 | F29: ='SPI - SI'!I37 -> 0 | G29: 5AD1iP
A30: 28 | B30: 115AD(1)(iii)-Long term capital gains by an FII | C30: ='SPI - SI'!F38 -> 10 | D30: ='SPI - SI'!G38 -> 0 | E30: ='SPI - SI'!H38 -> 0 | F30: ='SPI - SI'!I38 -> 0 | G30: 5ADiii
A31: 29 | B31: 115BBA - Tax on non-residents sportsmen or sports associations | C31: ='SPI - SI'!F40 -> 20 | D31: ='SPI - SI'!G40 -> 0 | E31: ='SPI - SI'!H40 -> 0 | F31: ='SPI - SI'!I40 -> 0 | G31: 5BBA
A32: 30 | B32: 115BBC - Anonymous donations | C32: ='SPI - SI'!F41 -> 30 | D32: ='SPI - SI'!G41 -> 0 | E32: ='SPI - SI'!H41 -> 0 | F32: ='SPI - SI'!I41 -> 0 | G32: 5BBC
A33: 31 | B33: 115BBDA (Dividend income from domestic company exceeding Rs.10lakh) | C33: ='SPI - SI'!F42 -> 10 | D33: ='SPI - SI'!G42 -> 0 | E33: ='SPI - SI'!H42 -> 0 | F33: ='SPI - SI'!I42 -> 0 | G33: 5BBDA
A34: 32 | B34: 115BBE - Tax on income referred to in sections 68 or 69 or 69A or 69B or 69C or 69D | C34: ='SPI - SI'!F43 -> 60 | D34: ='SPI - SI'!G43 -> 0 | E34: ='SPI - SI'!H43 -> 0 | F34: ='SPI - SI'!I43 -> 0 | G34: 5BBE
A35: 33 | B35: 115BBF-Tax on income from patent | C35: ='SPI - SI'!F44 -> 10 | D35: ='SPI - SI'!G44 -> 0 | E35: ='SPI - SI'!H44 -> 0 | F35: ='SPI - SI'!I44 -> 0 | G35: 5BBF
A36: 34 | B36: 115BBG-Tax on income from transfer of carbon credits | C36: ='SPI - SI'!F45 -> 10 | D36: ='SPI - SI'!G45 -> 0 | E36: ='SPI - SI'!H45 -> 0 | F36: ='SPI - SI'!I45 -> 0 | G36: 5BBG
A37: 35 | B37: 115E(a) - Investment income | C37: ='SPI - SI'!F46 -> 20 | D37: ='SPI - SI'!G46 -> 0 | E37: ='SPI - SI'!H46 -> 0 | F37: ='SPI - SI'!I46 -> 0 | G37: 5Ea
A38: 36 | B38: 115E(a)-LTCG on any asset other than a specified asset-non resident Indian | C38: ='SPI - SI'!F47 -> 20 | D38: ='SPI - SI'!G47 -> 0 | E38: ='SPI - SI'!H47 -> 0 | F38: ='SPI - SI'!I47 -> 0 | G38: 5Eacg
A39: 37 | B39: 115E(b) - Income by way of long term capital gains | C39: ='SPI - SI'!F48 -> 10 | D39: ='SPI - SI'!G48 -> 0 | E39: ='SPI - SI'!H48 -> 0 | F39: ='SPI - SI'!I48 -> 0 | G39: 5Eb
A40: 38 | B40: Pass Through Income in the nature of Short Term Capital Gain chargeable @ 15% | C40: ='SPI - SI'!F52 -> 15 | D40: ='SPI - SI'!G52 -> 0 | E40: ='SPI - SI'!H52 -> 0 | F40: ='SPI - SI'!I52 -> 0 | G40: PTI_STCG15P
A41: 39 | B41: Pass Through Income in the nature of Short Term Capital Gain chargeable @ 30% | C41: ='SPI - SI'!F53 -> 30 | D41: ='SPI - SI'!G53 -> 0 | E41: ='SPI - SI'!H53 -> 0 | F41: ='SPI - SI'!I53 -> 0 | G41: PTI_STCG30P
A42: =A40+1 -> 39 | B42: Pass Through Income in the nature of Long Term Capital Gain chargeable @ 10% u/s 112A | C42: ='SPI - SI'!F54 -> 10 | D42: ='SPI - SI'!G54 -> 0 | E42: ='SPI - SI'!H54 -> 0 | F42: ='SPI - SI'!I54 -> 0 | G42: PTI_LTCG10P112A
A43: =A41+1 -> 40 | B43: Pass Through Income in the nature of Long Term Capital Gain chargeable @ 10% u/s other than u/s 112A | C43: ='SPI - SI'!F55 -> 10 | D43: ='SPI - SI'!G55 -> 0 | E43: ='SPI - SI'!H55 -> 0 | F43: ='SPI - SI'!I55 -> 0 | G43: PTI_LTCG10P
A44: 41 | B44: Pass Through Income in the nature of Long Term Capital Gain chargeable @ 20% | C44: ='SPI - SI'!F56 -> 20 | D44: ='SPI - SI'!G56 -> 0 | E44: ='SPI - SI'!H56 -> 0 | F44: ='SPI - SI'!I56 -> 0 | G44: PTI_LTCG20P
A45: 42 | B45: PTI - Dividends in the case of non-residents | C45: ='SPI - SI'!F57 -> 20 | D45: ='SPI - SI'!G57 -> 0 | E45: ='SPI - SI'!H57 -> 0 | F45: ='SPI - SI'!I57 -> 0 | G45: PTI_5A1ai
A46: 43 | B46: PTI - Interest received in the case of non-residents | C46: ='SPI - SI'!F58 -> 20 | D46: ='SPI - SI'!G58 -> 0 | E46: ='SPI - SI'!H58 -> 0 | F46: ='SPI - SI'!I58 -> 0 | G46: PTI_5A1aii
A47: 44 | B47: PTI - Interest received by non-resident from infrastructure debt fund | C47: ='SPI - SI'!F59 -> 5 | D47: ='SPI - SI'!G59 -> 0 | E47: ='SPI - SI'!H59 -> 0 | F47: ='SPI - SI'!I59 -> 0 | G47: PTI_5A1aiia
A48: 45 | B48: PTI - Income received by non-resident as referred in section 194LC | C48: ='SPI - SI'!F60 -> 5 | D48: ='SPI - SI'!G60 -> 0 | E48: ='SPI - SI'!H60 -> 0 | F48: ='SPI - SI'!I60 -> 0 | G48: PTI_5A1aiiaa
A49: 46 | B49: PTI - Income received by non-resident as referred in section 194LD | C49: ='SPI - SI'!F61 -> 5 | D49: ='SPI - SI'!G61 -> 0 | E49: ='SPI - SI'!H61 -> 0 | F49: ='SPI - SI'!I61 -> 0 | G49: PTI_5A1aiiab
A50: 47 | B50: PTI - Income received by non-resident as referred in section 194LBA | C50: ='SPI - SI'!F62 -> 5 | D50: ='SPI - SI'!G62 -> 0 | E50: ='SPI - SI'!H62 -> 0 | F50: ='SPI - SI'!I62 -> 0 | G50: PTI_5A1aiiac
A51: 48 | B51: PTI - Income from units purchased in foreign currency in the case of non-residents | C51: ='SPI - SI'!F63 -> 20 | D51: ='SPI - SI'!G63 -> 0 | E51: ='SPI - SI'!H63 -> 0 | F51: ='SPI - SI'!I63 -> 0 | G51: PTI_5A1aiii
A52: 49 | B52: PTI - Income from royalty in case of non-resident in pursuance of an agreement made after 31-03-1976 | C52: ='SPI - SI'!F64 -> 10 | D52: ='SPI - SI'!G64 -> 0 | E52: ='SPI - SI'!H64 -> 0 | F52: ='SPI - SI'!I64 -> 0 | G52: PTI_5A1bA
A53: 50 | B53: PTI - Income from bonds or GDR purchased in foreign currency | C53: ='SPI - SI'!F66 -> 10 | D53: ='SPI - SI'!G66 -> 0 | E53: ='SPI - SI'!H66 -> 0 | F53: ='SPI - SI'!I66 -> 0 | G53: PTI_5AC1ab
A54: 51 | B54: PTI - Income from GDR purchased in foreign currency or long term capital gains arising from their transfer in case of a resident employee of an Indian company, engaged in knowledge based industry or service | C54: ='SPI - SI'!F67 -> 10 | D54: ='SPI - SI'!G67 -> 0 | E54: ='SPI - SI'!H67 -> 0 | F54: ='SPI - SI'!I67 -> 0 | G54: PTI_5ACA1a
A55: 52 | B55: PTI - Income received by an FII in respect of securities (other than units referred to in section115AB) | C55: ='SPI - SI'!F68 -> 20 | D55: ='SPI - SI'!G68 -> 0 | E55: ='SPI - SI'!H68 -> 0 | F55: ='SPI - SI'!I68 -> 0 | G55: PTI_5AD1i
A56: 53 | B56: PTI - Income received by an FII in respect of bonds or government securities referred to in section 194LD | C56: ='SPI - SI'!F69 -> 5 | D56: ='SPI - SI'!G69 -> 0 | E56: ='SPI - SI'!H69 -> 0 | F56: ='SPI - SI'!I69 -> 0 | G56: PTI_5AD1iP
A57: 54 | B57: PTI - Tax on non-resident sportsmen or sports associations or entertainer | C57: ='SPI - SI'!F71 -> 20 | D57: ='SPI - SI'!G71 -> 0 | E57: ='SPI - SI'!H71 -> 0 | F57: ='SPI - SI'!I71 -> 0 | G57: PTI_5BBA
A58: 55 | B58: PTI - Anonymous donations | C58: ='SPI - SI'!F72 -> 30 | D58: ='SPI - SI'!G72 -> 0 | E58: ='SPI - SI'!H72 -> 0 | F58: ='SPI - SI'!I72 -> 0 | G58: PTI_5BBC
A59: 56 | B59: PTI - (Dividend income from domestic company exceeding Rs.10lakh | C59: ='SPI - SI'!F73 -> 10 | D59: ='SPI - SI'!G73 -> 0 | E59: ='SPI - SI'!H73 -> 0 | F59: ='SPI - SI'!I73 -> 0 | G59: PTI_5BBDA
A60: 57 | B60: PTI - Tax on income from patent | C60: ='SPI - SI'!F75 -> 10 | D60: ='SPI - SI'!G75 -> 0 | E60: ='SPI - SI'!H75 -> 0 | F60: ='SPI - SI'!I75 -> 0 | G60: PTI_5BBF
A61: 58 | B61: PTI - Tax on income from transfer of carbon credits. | C61: ='SPI - SI'!F76 -> 10 | D61: ='SPI - SI'!G76 -> 0 | E61: ='SPI - SI'!H76 -> 0 | F61: ='SPI - SI'!I76 -> 0 | G61: PTI_5BBG
A62: 59 | B62: PTI - Investment income of a non-resident Indian | C62: ='SPI - SI'!F77 -> 20 | D62: ='SPI - SI'!G77 -> 0 | E62: ='SPI - SI'!H77 -> 0 | F62: ='SPI - SI'!I77 -> 0 | G62: PTI_5Ea

Sheet IFSC (hidden)
E1: IFSC Code
A2: ABHY | B2: ABHYUDAYA COOPERATIVE BANK LIMITED | F2: ABHY0065001 | G2: MAHB0001092 | H2: HDFC0001945 | I2: NICB0000004 | J2: SBIN0016955
A3: ABPB | B3: ADITYA BIRLA IDEA PAYMENTS BANK | F3: ABHY0065002 | G3: MAHB0001093 | H3: HDFC0001944 | I3: NICB0000003 | J3: SBIN0016954
A4: ADCB | B4: ABU DHABI COMMERCIAL BANK | F4: ABHY0065003 | G4: MAHB0001094 | H4: HDFC0001943 | I4: NKGS0000114 | J4: SBIN0016952
A5: ADCC | B5: THE AKOLA DISTRICT CENTRAL COOPERATIVE BANK | F5: ABHY0065004 | G5: MAHB0001095 | H5: HDFC0001942 | I5: NKGS0000113 | J5: SBIN0016951
A6: AIRP | B6: AIRTEL PAYMENTS BANK LIMITED | F6: ABHY0065005 | G6: MAHB0001096 | H6: HDFC0001941 | I6: NKGS0000112 | J6: SBIN0016950
A7: AJHC | B7: AMBARNATH JAIHIND COOP BANK LTD AMBARNATH | F7: ABHY0065006 | G7: MAHB0001097 | H7: HDFC0001940 | I7: NKGS0000111 | J7: SBIN0016948
A8: AKJB | B8: AKOLA JANATA COMMERCIAL COOPERATIVE BANK | F8: ABHY0065007 | G8: MAHB0001098 | H8: HDFC0001939 | I8: NKGS0000110 | J8: SBIN0016947
A9: ALLA | B9: ALLAHABAD BANK | F9: ABHY0065008 | G9: MAHB0001099 | H9: HDFC0001938 | I9: NKGS0000109 | J9: SBIN0016944
A10: AMCB | B10: AHMEDABAD MERCANTILE COOPERATIVE BANK | F10: ABHY0065009 | G10: MAHB0001100 | H10: HDFC0001937 | I10: NKGS0000108 | J10: SBIN0016943
A11: AMDN | B11: AHMEDNAGAR MERCHANTS CO-OP BANK LTD | F11: ABHY0065010 | G11: MAHB0001101 | H11: HDFC0001936 | I11: NKGS0000107 | J11: SBIN0016942
A12: ANDB | B12: ANDHRA BANK | F12: ABHY0065011 | G12: MAHB0001102 | H12: HDFC0001935 | I12: NKGS0000104 | J12: SBIN0016940
A13: ANZB | B13: AUSTRALIA AND NEW ZEALAND BANKING GROUP LIMITED | F13: ABHY0065012 | G13: MAHB0001103 | H13: HDFC0001934 | I13: NKGS0000099 | J13: SBIN0016939
A14: APBL | B14: THE ANDHRA PRADESH STATE COOPERATIVE BANK LIMITED | F14: ABHY0065013 | G14: MAHB0001104 | H14: HDFC0001933 | I14: NKGS0000097 | J14: SBIN0016938
A15: APGB | B15: ANDHRA PRAGATHI GRAMEENA BANK | F15: ABHY0065014 | G15: MAHB0001105 | H15: HDFC0001932 | I15: NKGS0000096 | J15: SBIN0016937
A16: APGV | B16: ANDHRA PRADESH GRAMEENA VIKAS BANK | F16: ABHY0065015 | G16: MAHB0001106 | H16: HDFC0001931 | I16: NKGS0000095 | J16: SBIN0016936
A17: APMC | B17: THE A.P. MAHESH COOPERATIVE URBAN BANK LIMITED | F17: ABHY0065016 | G17: MAHB0001107 | H17: HDFC0001930 | I17: NKGS0000094 | J17: SBIN0016935
A18: ASBL | B18: APNA SAHAKARI BANK LIMITED | F18: ABHY0065017 | G18: MAHB0001108 | H18: HDFC0001929 | I18: NKGS0000093 | J18: SBIN0016934
A19: AUBL | B19: AU SMALL FINANCE BANK LIMITED | F19: ABHY0065018 | G19: MAHB0001109 | H19: HDFC0001928 | I19: NKGS0000092 | J19: SBIN0016933
A20: AUCB | B20: ALMORA URBAN COOPERATIVE BANK LIMITED | F20: ABHY0065019 | G20: MAHB0001110 | H20: HDFC0001927 | I20: NKGS0000091 | J20: SBIN0016932
A21: BACB | B21: BASSEIN CATHOLIC COOPERATIVE BANK LIMITED | F21: ABHY0065020 | G21: MAHB0001111 | H21: HDFC0001926 | I21: NKGS0000090 | J21: SBIN0016931
A22: BARA | B22: THE BARAMATI SAHAKARI BANK LTD | F22: ABHY0065021 | G22: MAHB0001112 | H22: HDFC0001925 | I22: NKGS0000089 | J22: SBIN0016930
A23: BARB | B23: BANK OF BARODA | F23: ABHY0065022 | G23: MAHB0001113 | H23: HDFC0001924 | I23: NKGS0000088 | J23: SBIN0016928
A24: BARC | B24: BARCLAYS BANK | F24: ABHY0065023 | G24: MAHB0001114 | H24: HDFC0001923 | I24: NKGS0000087 | J24: SBIN0016927
A25: BBKM | B25: BANK OF BAHARAIN AND KUWAIT BSC | F25: ABHY0065024 | G25: MAHB0001115 | H25: HDFC0001922 | I25: NKGS0000086 | J25: SBIN0016926
A26: BCBM | B26: BHARAT COOPERATIVE BANK MUMBAI LIMITED | F26: ABHY0065025 | G26: MAHB0001116 | H26: HDFC0001921 | I26: NKGS0000085 | J26: SBIN0016925
A27: BCEY | B27: BANK OF CEYLON | F27: ABHY0065026 | G27: MAHB0001117 | H27: HDFC0001920 | I27: NKGS0000084 | J27: SBIN0016923
A28: BDBL | B28: BANDHAN BANK LIMITED | F28: ABHY0065027 | G28: MAHB0001118 | H28: HDFC0001919 | I28: NKGS0000083 | J28: SBIN0016922
A29: BKDN | B29: DENA BANK | F29: ABHY0065028 | G29: MAHB0001119 | H29: HDFC0001918 | I29: NKGS0000082 | J29: SBIN0016921
A30: BKID | B30: BANK OF INDIA | F30: ABHY0065029 | G30: MAHB0001120 | H30: HDFC0001917 | I30: NKGS0000081 | J30: SBIN0016920
A31: BNPA | B31: B N P PARIBAS | F31: ABHY0065030 | G31: MAHB0001121 | H31: HDFC0001916 | I31: NKGS0000080 | J31: SBIN0016919
A32: BNSB | B32: BHAGINI NIVEDITA SAHAKARI BANK LTD PUNE | F32: ABHY0065031 | G32: MAHB0001122 | H32: HDFC0001915 | I32: NKGS0000079 | J32: SBIN0016917
A33: BOFA | B33: BANK OF AMERICA | F33: ABHY0065032 | G33: MAHB0001123 | H33: HDFC0001914 | I33: NKGS0000078 | J33: SBIN0016916
A34: BOTM | B34: MUFG BANK, LTD | F34: ABHY0065034 | G34: MAHB0001124 | H34: HDFC0001913 | I34: NKGS0000077 | J34: SBIN0016915
A35: CBIN | B35: CENTRAL BANK OF INDIA | F35: ABHY0065035 | G35: MAHB0001125 | H35: HDFC0001912 | I35: NKGS0000076 | J35: SBIN0016913
A36: CCBL | B36: CITIZEN CREDIT COOPERATIVE BANK LIMITED | F36: ABHY0065036 | G36: MAHB0001126 | H36: HDFC0001911 | I36: NKGS0000075 | J36: SBIN0016912
A37: CHAS | B37: JP MORGAN BANK | F37: ABHY0065037 | G37: MAHB0001127 | H37: HDFC0001910 | I37: NKGS0000074 | J37: SBIN0016909
A38: CITI | B38: CITI BANK | F38: ABHY0065038 | G38: MAHB0001128 | H38: HDFC0001909 | I38: NKGS0000073 | J38: SBIN0016908
A39: CIUB | B39: CITY UNION BANK LIMITED | F39: ABHY0065039 | G39: MAHB0001129 | H39: HDFC0001908 | I39: NKGS0000072 | J39: SBIN0016907
A40: CLBL | B40: CAPITAL SMALL FINANCE BANK LIMITED | F40: ABHY0065040 | G40: MAHB0001130 | H40: HDFC0001907 | I40: NKGS0000071 | J40: SBIN0016906
A41: CNRB | B41: CANARA BANK | F41: ABHY0065041 | G41: MAHB0001131 | H41: HDFC0001906 | I41: NKGS0000070 | J41: SBIN0016905
A42: CORP | B42: CORPORATION BANK | F42: ABHY0065042 | G42: MAHB0001132 | H42: HDFC0001905 | I42: NKGS0000069 | J42: SBIN0016904
A43: COSB | B43: THE COSMOS CO OPERATIVE BANK LIMITED | F43: ABHY0065043 | G43: MAHB0001133 | H43: HDFC0001904 | I43: NKGS0000068 | J43: SBIN0016903
A44: CRES | B44: CREDIT SUISEE AG | F44: ABHY0065044 | G44: MAHB0001134 | H44: HDFC0001903 | I44: NKGS0000067 | J44: SBIN0016902
A45: CRLY | B45: CREDIT AGRICOLE CORPORATE AND INVESTMENT BANK CALYON BANK | F45: ABHY0065045 | G45: MAHB0001135 | H45: HDFC0001902 | I45: NKGS0000066 | J45: SBIN0016901
A46: CRUB | B46: SHRI CHHATRAPATI RAJASHRI SHAHU URBAN COOPERATIVE BANK LIMITED | F46: ABHY0065046 | G46: MAHB0001136 | H46: HDFC0001901 | I46: NKGS0000065 | J46: SBIN0016900
A47: CSBK | B47: CATHOLIC SYRIAN BANK LIMITED | F47: ABHY0065047 | G47: MAHB0001137 | H47: HDFC0001900 | I47: NKGS0000064 | J47: SBIN0016899
A48: CTCB | B48: CHINATRUST COMMERCIAL BANK LIMITED | F48: ABHY0065048 | G48: MAHB0001138 | H48: HDFC0001899 | I48: NKGS0000063 | J48: SBIN0016898
A49: DBSS | B49: DBS BANK INDIA LIMITED | F49: ABHY0065049 | G49: MAHB0001139 | H49: HDFC0001898 | I49: NKGS0000062 | J49: SBIN0016897
A50: DBSS | B50: DEVELOPMENT BANK OF SINGAPORE | F50: ABHY0065050 | G50: MAHB0001140 | H50: HDFC0001897 | I50: NKGS0000061 | J50: SBIN0016896
A51: DCBL | B51: DCB BANK LIMITED | F51: ABHY0065051 | G51: MAHB0001141 | H51: HDFC0001896 | I51: NKGS0000060 | J51: SBIN0016895
A52: DEOB | B52: DEOGIRI NAGARI SAHAKARI BANK LTD. AURANGABAD | F52: ABHY0065052 | G52: MAHB0001142 | H52: HDFC0001895 | I52: NKGS0000059 | J52: SBIN0016894
A53: DEUT | B53: DEUSTCHE BANK | F53: ABHY0065053 | G53: MAHB0001143 | H53: HDFC0001894 | I53: NKGS0000058 | J53: SBIN0016893
A54: DICG | B54: DEPOSIT INSURANCE AND CREDIT GUARANTEE CORPORATION | F54: ABHY0065054 | G54: MAHB0001144 | H54: HDFC0001893 | I54: NKGS0000057 | J54: SBIN0016892
A55: DLSC | B55: THE DELHI STATE COOPERATIVE BANK LIMITED | F55: ABHY0065055 | G55: MAHB0001146 | H55: HDFC0001892 | I55: NKGS0000056 | J55: SBIN0016891
A56: DLXB | B56: DHANALAKSHMI BANK | F56: ABHY0065056 | G56: MAHB0001147 | H56: HDFC0001891 | I56: NKGS0000055 | J56: SBIN0016890
A57: DMKJ | B57: DMK JAOLI BANK | F57: ABHY0065057 | G57: MAHB0001148 | H57: HDFC0001890 | I57: NKGS0000054 | J57: SBIN0016889
A58: DNSB | B58: DOMBIVLI NAGARI SAHAKARI BANK LIMITED | F58: ABHY0065058 | G58: MAHB0001149 | H58: HDFC0001889 | I58: NKGS0000053 | J58: SBIN0016888
A59: DOHB | B59: DOHA BANK QSC | F59: ABHY0065059 | G59: MAHB0001150 | H59: HDFC0001888 | I59: NKGS0000052 | J59: SBIN0016887
A60: DOHB | B60: DOHA BANK | F60: ABHY0065060 | G60: MAHB0001151 | H60: HDFC0001887 | I60: NKGS0000051 | J60: SBIN0016886
A61: DURG | B61: DURGAPUR STEEL PEOPLES CO-OPERATIVE BANK LTD | F61: ABHY0065061 | G61: MAHB0001152 | H61: HDFC0001886 | I61: NKGS0000050 | J61: SBIN0016884
A62: EBIL | B62: EMIRATES NBD BANK P J S C | F62: ABHY0065062 | G62: MAHB0001153 | H62: HDFC0001885 | I62: NKGS0000049 | J62: SBIN0016883
A63: EIBI | B63: EXPORT IMPORT BANK OF INDIA | F63: ABHY0065063 | G63: MAHB0001154 | H63: HDFC0001884 | I63: NKGS0000048 | J63: SBIN0016882
A64: ESFB | B64: EQUITAS SMALL FINANCE BANK LIMITED | F64: ABHY0065064 | G64: MAHB0001155 | H64: HDFC0001883 | I64: NKGS0000047 | J64: SBIN0016881
A65: ESMF | B65: ESAF SMALL FINANCE BANK LIMITED | F65: ABHY0065065 | G65: MAHB0001156 | H65: HDFC0001882 | I65: NKGS0000046 | J65: SBIN0016880
A66: FDRL | B66: FEDERAL BANK | F66: ABHY0065066 | G66: MAHB0001157 | H66: HDFC0001881 | I66: NKGS0000045 | J66: SBIN0016879
A67: FINO | B67: FINO PAYMENTS BANK | F67: ABHY0065067 | G67: MAHB0001158 | H67: HDFC0001880 | I67: NKGS0000044 | J67: SBIN0016878
A68: FIRN | B68: FIRSTRAND BANK LIMITED | F68: ABHY0065068 | G68: MAHB0001159 | H68: HDFC0001879 | I68: NKGS0000043 | J68: SBIN0016877
A69: FSFB | B69: FINCARE SMALL FINANCE BANK LTD | F69: ABHY0065069 | G69: MAHB0001160 | H69: HDFC0001878 | I69: NKGS0000042 | J69: SBIN0016876
A70: GBCB | B70: THE GREATER BOMBAY COOPERATIVE BANK LIMITED | F70: ABHY0065070 | G70: MAHB0001161 | H70: HDFC0001877 | I70: NKGS0000041 | J70: SBIN0016875
A71: GDCB | B71: THE GADCHIROLI DISTRICT CENTRAL COOPERATIVE BANK LIMITED | F71: ABHY0065071 | G71: MAHB0001162 | H71: HDFC0001876 | I71: NKGS0000040 | J71: SBIN0016874
A72: GSCB | B72: THE GUJARAT STATE COOPERATIVE BANK LIMITED | F72: ABHY0065072 | G72: MAHB0001163 | H72: HDFC0001875 | I72: NKGS0000039 | J72: SBIN0016873
A73: HARC | B73: HARYANA STATE COOPERATIVE BANK | F73: ABHY0065073 | G73: MAHB0001164 | H73: HDFC0001874 | I73: NKGS0000038 | J73: SBIN0016872
A74: HCBL | B74: THE HASTI COOP BANK LTD | F74: ABHY0065074 | G74: MAHB0001165 | H74: HDFC0001873 | I74: NKGS0000037 | J74: SBIN0016871
A75: HDFC | B75: HDFC BANK | F75: ABHY0065075 | G75: MAHB0001166 | H75: HDFC0001872 | I75: NKGS0000036 | J75: SBIN0016870
A76: HPSC | B76: HIMACHAL PRADESH STATE COOPERATIVE BANK LTD | F76: ABHY0065076 | G76: MAHB0001167 | H76: HDFC0001871 | I76: NKGS0000035 | J76: SBIN0016869
A77: HSBC | B77: HSBC BANK | F77: ABHY0065077 | G77: MAHB0001168 | H77: HDFC0001870 | I77: NKGS0000034 | J77: SBIN0016868
A78: HVBK | B78: WOORI BANK | F78: ABHY0065102 | G78: MAHB0001169 | H78: HDFC0001869 | I78: NKGS0000033 | J78: SBIN0016867
A79: IBBK | B79: PT BANK MAYBANK INDONESIA TBK | F79: ABHY0065103 | G79: MAHB0001170 | H79: HDFC0001868 | I79: NKGS0000032 | J79: SBIN0016866
A80: IBKL | B80: IDBI BANK | F80: ABHY0065104 | G80: MAHB0001171 | H80: HDFC0001867 | I80: NKGS0000031 | J80: SBIN0016865
A81: IBKO | B81: INDUSTRIAL BANK OF KOREA | F81: ABHY0065105 | G81: MAHB0001172 | H81: HDFC0001866 | I81: NKGS0000030 | J81: SBIN0016864
A82: ICBK | B82: INDUSTRIAL AND COMMERCIAL BANK OF CHINA LIMITED | F82: ABHY0065106 | G82: MAHB0001173 | H82: HDFC0001865 | I82: NKGS0000029 | J82: SBIN0016863
A83: ICIC | B83: ICICI BANK LIMITED | F83: ABHY0065107 | G83: MAHB0001174 | H83: HDFC0001864 | I83: NKGS0000028 | J83: SBIN0016862
A84: IDFB | B84: IDFC First Bank Ltd | F84: ABHY0065108 | G84: MAHB0001175 | H84: HDFC0001863 | I84: NKGS0000027 | J84: SBIN0016861
A85: IDIB | B85: INDIAN BANK | F85: ABHY0065109 | G85: MAHB0001176 | H85: HDFC0001862 | I85: NKGS0000026 | J85: SBIN0016860
A86: IDUK | B86: IDUKKI DISTRICT CO OPERATIVE BANK LTD | F86: ABHY0065110 | G86: MAHB0001177 | H86: HDFC0001861 | I86: NKGS0000025 | J86: SBIN0016859
A87: INDB | B87: INDUSIND BANK | F87: ABHY0065111 | G87: MAHB0001178 | H87: HDFC0001860 | I87: NKGS0000024 | J87: SBIN0016858
A88: IOBA | B88: INDIAN OVERSEAS BANK | F88: ABHY0065112 | G88: MAHB0001179 | H88: HDFC0001859 | I88: NKGS0000023 | J88: SBIN0016857
A89: IPOS | B89: INDIA POST PAYMENT BANK | F89: ABHY0065113 | G89: MAHB0001180 | H89: HDFC0001858 | I89: NKGS0000022 | J89: SBIN0016856
A90: ITBL | B90: Irinjalakuda Town Co-Operative Bank Ltd | F90: ABHY0065114 | G90: MAHB0001181 | H90: HDFC0001857 | I90: NKGS0000021 | J90: SBIN0016855
A91: JAKA | B91: JAMMU AND KASHMIR BANK LIMITED | F91: ABHY0065115 | G91: MAHB0001182 | H91: HDFC0001856 | I91: NKGS0000020 | J91: SBIN0016854
A92: JANA | B92: JANASEVA SAHAKARI BANK LIMITED | F92: ABHY0065116 | G92: MAHB0001183 | H92: HDFC0001855 | I92: NKGS0000019 | J92: SBIN0016853
A93: JASB | B93: JANASEVA SAHAKARI BANK BORIVLI LIMITED | F93: ABHY0065117 | G93: MAHB0001184 | H93: HDFC0001854 | I93: NKGS0000018 | J93: SBIN0016850
A94: JIOP | B94: JIO PAYMENTS BANK LIMITED | F94: ABHY0065118 | G94: MAHB0001185 | H94: HDFC0001853 | I94: NKGS0000017 | J94: SBIN0016849
A95: JJSB | B95: JALGAON JANATA SAHAKARI BANK LIMITED | F95: ABHY0065119 | G95: MAHB0001186 | H95: HDFC0001852 | I95: NKGS0000016 | J95: SBIN0016848
A96: JPCB | B96: THE JALGAON PEOPELS COOPERATIVE BANK LIMITED | F96: ABHY0065120 | G96: MAHB0001187 | H96: HDFC0001851 | I96: NKGS0000015 | J96: SBIN0016847
A97: JSBL | B97: JANAKALYAN SAHAKARI BANK LIMITED | F97: ABHY0065121 | G97: MAHB0001188 | H97: HDFC0001850 | I97: NKGS0000014 | J97: SBIN0016846
A98: JSBP | B98: JANATA SAHAKARI BANK LIMITED | F98: ABHY0065122 | G98: MAHB0001189 | H98: HDFC0001849 | I98: NKGS0000013 | J98: SBIN0016845
A99: JSFB | B99: JANA SMALL FINANCE BANK LTD | F99: ABHY0065123 | G99: MAHB0001190 | H99: HDFC0001848 | I99: NKGS0000012 | J99: SBIN0016844
A100: KACE | B100: THE KANGRA CENTRAL COOPERATIVE BANK LIMITED | F100: ABHY0065124 | G100: MAHB0001191 | H100: HDFC0001847 | I100: NKGS0000011 | J100: SBIN0016843
A101: KAIJ | B101: KALLAPPANNA AWADE ICHALKARANJI JANATA SAHAKARI BANK LIMITED | F101: ABHY0065125 | G101: MAHB0001192 | H101: HDFC0001846 | I101: NKGS0000010 | J101: SBIN0016842
A102: KANG | B102: THE KANGRA COOPERATIVE BANK LIMITED | F102: ABHY0065126 | G102: MAHB0001193 | H102: HDFC0001845 | I102: NKGS0000009 | J102: SBIN0016841
A103: KARB | B103: KARNATAKA BANK LIMITED | F103: ABHY0065201 | G103: MAHB0001194 | H103: HDFC0001844 | I103: NKGS0000008 | J103: SBIN0016840
A104: KCCB | B104: KALUPUR COMMERCIAL COOPERATIVE BANK | F104: ABHY0065202 | G104: MAHB0001195 | H104: HDFC0001843 | I104: NKGS0000007 | J104: SBIN0016839
A105: KDCB | B105: KOZHIKODE DISTRICT COOPERATIAVE BANK LTD | F105: ABHY0065203 | G105: MAHB0001196 | H105: HDFC0001842 | I105: NKGS0000006 | J105: SBIN0016838
A106: KGRB | B106: KAVERI GRAMEENA BANK | F106: ABHY0065204 | G106: MAHB0001197 | H106: HDFC0001841 | I106: NKGS0000005 | J106: SBIN0016837
A107: KJSB | B107: KALYAN JANATA SAHAKARI BANK | F107: ABHY0065205 | G107: MAHB0001198 | H107: HDFC0001840 | I107: NKGS0000004 | J107: SBIN0016836
A108: KKBK | B108: KOTAK MAHINDRA BANK LIMITED | F108: ABHY0065208 | G108: MAHB0001199 | H108: HDFC0001839 | I108: NKGS0000003 | J108: SBIN0016835
A109: KLGB | B109: KERALA GRAMIN BANK | F109: ABHY0065301 | G109: MAHB0001200 | H109: HDFC0001838 | I109: NKGS0000002 | J109: SBIN0016834
A110: KNSB | B110: THE KURMANCHAL NAGAR SAHAKARI BANK LIMITED | F110: ABHY0065302 | G110: MAHB0001201 | H110: HDFC0001837 | I110: NKGS0000001 | J110: SBIN0016833
A111: KOEX | B111: KEB Hana Bank | F111: ABHY0065304 | G111: MAHB0001202 | H111: HDFC0001836 | I111: NESF0000005 | J111: SBIN0016832
A112: KRTH | B112: KRUNG THAI BANK PCL | F112: ABHY0065305 | G112: MAHB0001203 | H112: HDFC0001835 | I112: NESF0000004 | J112: SBIN0016831
A113: KSCB | B113: THE KARANATAKA STATE COOPERATIVE APEX BANK LIMITED | F113: ABHY0065306 | G113: MAHB0001204 | H113: HDFC0001834 | I113: NESF0000003 | J113: SBIN0016830
A114: KUCB | B114: THE KARAD URBAN COOPERATIVE BANK LIMITED | F114: ADCB0000002 | G114: MAHB0001205 | H114: HDFC0001833 | I114: NESF0000002 | J114: SBIN0016829
A115: KVBL | B115: KARUR VYSYA BANK | F115: ADCB0000001 | G115: MAHB0001206 | H115: HDFC0001832 | I115: NESF0000001 | J115: SBIN0016828
A116: KVGB | B116: KARNATAKA VIKAS GRAMEENA BANK | F116: AMCB0RTGS4S | G116: MAHB0001207 | H116: HDFC0001831 | I116: NMGB0000002 | J116: SBIN0016827
A117: LAVB | B117: LAXMI VILAS BANK | F117: AMCB0660036 | G117: MAHB0001208 | H117: HDFC0001830 | I117: NMGB0000003 | J117: SBIN0016826
A118: MAHB | B118: BANK OF MAHARASHTRA | F118: AMCB0660035 | G118: MAHB0001209 | H118: HDFC0001829 | I118: NMGB0000004 | J118: SBIN0016825
A119: MAHG | B119: Maharashtra Gramin Bank | F119: AMCB0660034 | G119: MAHB0001210 | H119: HDFC0001828 | I119: NMGB0000005 | J119: SBIN0016824
A120: MCBL | B120: GS Mahanagar Co-operative Bank Limited, Mumbai | F120: AMCB0660033 | G120: MAHB0001211 | H120: HDFC0001827 | I120: NMGB0000006 | J120: SBIN0016823
A121: MDCB | B121: THE MUMBAI DISTRICT CENTRAL COOPERATIVE BANK LIMITED | F121: AMCB0660032 | G121: MAHB0001212 | H121: HDFC0001826 | I121: NMGB0000007 | J121: SBIN0016822
A122: MHCB | B122: MIZUHO BANK LTD | F122: AMCB0660031 | G122: MAHB0001213 | H122: HDFC0001825 | I122: NMGB0000008 | J122: SBIN0016821
A123: MSBL | B123: Mahesh Sahakari Bank Ltd Pune | F123: AMCB0660030 | G123: MAHB0001214 | H123: HDFC0001824 | I123: NMGB0000009 | J123: SBIN0016820
A124: MSCI | B124: MAHARASHTRA STATE COOPERATIVE BANK | F124: AMCB0660029 | G124: MAHB0001215 | H124: HDFC0001823 | I124: NMGB0000010 | J124: SBIN0016819
A125: MSHQ | B125: MASHREQBANK PSC | F125: AMCB0660028 | G125: MAHB0001216 | H125: HDFC0001822 | I125: NMGB0000011 | J125: SBIN0016818
A126: MSNU | B126: THE MEHSANA URBAN COOPERATIVE BANK | F126: AMCB0660027 | G126: MAHB0001217 | H126: HDFC0001821 | I126: NMGB0000012 | J126: SBIN0016817
A127: MUBL | B127: THE MUNICIPAL COOPERATIVE BANK LIMITED | F127: AMCB0660026 | G127: MAHB0001218 | H127: HDFC0001820 | I127: NMGB0000013 | J127: SBIN0016816
A128: MVCB | B128: SIR M VISVESVARAYA CO OPERATIVE BANK LTD | F128: AMCB0660025 | G128: MAHB0001219 | H128: HDFC0001819 | I128: NMGB0000014 | J128: SBIN0016815
A129: NATA | B129: NATIONAL AUSTRALIA BANK LIMITED | F129: AMCB0660024 | G129: MAHB0001220 | H129: HDFC0001818 | I129: NMGB0000015 | J129: SBIN0016814
A130: NBAD | B130: FIRST ABU DHABI BANK PJSC | F130: AMCB0660023 | G130: MAHB0001221 | H130: HDFC0001817 | I130: NMGB0000016 | J130: SBIN0016813
A131: NBRD | B131: NATIONAL BANK FOR AGRICULTURE AND RURAL DEVELOPMENT | F131: AMCB0660022 | G131: MAHB0001222 | H131: HDFC0001816 | I131: NMGB0000017 | J131: SBIN0016812
A132: NESF | B132: NORTH EAST SMALL FINANCE BANK LIMITED | F132: AMCB0660021 | G132: MAHB0001223 | H132: HDFC0001815 | I132: NMGB0000018 | J132: SBIN0016811
A133: NGSB | B133: NAGPUR NAGARIK SAHAKARI BANK LIMITED | F133: AMCB0660020 | G133: MAHB0001224 | H133: HDFC0001814 | I133: NMGB0000019 | J133: SBIN0016810
A134: NICB | B134: NEW INDIA COOPERATIVE BANK LIMITED | F134: AMCB0660019 | G134: MAHB0001225 | H134: HDFC0001813 | I134: NMGB0000020 | J134: SBIN0016809
A135: NJBK | B135: NAV JEEVAN CO OP BANK LTD | F135: AMCB0660018 | G135: MAHB0001226 | H135: HDFC0001812 | I135: NMGB0000021 | J135: SBIN0016808
A136: NKGS | B136: NKGSB COOPERATIVE BANK LIMITED | F136: AMCB0660017 | G136: MAHB0001227 | H136: HDFC0001811 | I136: NMGB0000022 | J136: SBIN0016807
A137: NMCB | B137: THE NASIK MERCHANTS COOPERATIVE BANK LIMITED | F137: AMCB0660016 | G137: MAHB0001228 | H137: HDFC0001810 | I137: NMGB0000023 | J137: SBIN0016806
A138: NNSB | B138: NUTAN NAGARIK SAHAKARI BANK LIMITED | F138: AMCB0660015 | G138: MAHB0001229 | H138: HDFC0001809 | I138: NMGB0000024 | J138: SBIN0016805
A139: NOSC | B139: THE BANK OF NOVA SCOTIA | F139: AMCB0660014 | G139: MAHB0001230 | H139: HDFC0001808 | I139: NMGB0000025 | J139: SBIN0016804
A140: NSPB | B140: NSDL Payments Bank Limited | F140: AMCB0660013 | G140: MAHB0001231 | H140: HDFC0001807 | I140: NMGB0000026 | J140: SBIN0016802
A141: NTBL | B141: THE NAINITAL BANK LIMITED | F141: AMCB0660012 | G141: MAHB0001232 | H141: HDFC0001806 | I141: NMGB0000027 | J141: SBIN0016801
A142: NUCB | B142: NAGAR URBAN CO OPERATIVE BANK | F142: AMCB0660011 | G142: MAHB0001233 | H142: HDFC0001805 | I142: NMGB0000028 | J142: SBIN0016800
A143: NVNM | B143: THE NAVNIRMAN CO-OPERATIVE BANK LIMITED | F143: AMCB0660010 | G143: MAHB0001234 | H143: HDFC0001804 | I143: NMGB0000029 | J143: SBIN0016799
A144: ORBC | B144: ORIENTAL BANK OF COMMERCE | F144: AMCB0660009 | G144: MAHB0001235 | H144: HDFC0001803 | I144: NMGB0000030 | J144: SBIN0016798
A145: PJSB | B145: G P PARSIK BANK | F145: AMCB0660008 | G145: MAHB0001236 | H145: HDFC0001802 | I145: NMGB0000031 | J145: SBIN0016797
A146: PKGB | B146: PRAGATHI KRISHNA GRAMIN BANK | F146: AMCB0660007 | G146: MAHB0001237 | H146: HDFC0001801 | I146: NMGB0000032 | J146: SBIN0016793
A147: PMCB | B147: PUNJAB AND MAHARSHTRA COOPERATIVE BANK | F147: AMCB0660005 | G147: MAHB0001238 | H147: HDFC0001800 | I147: NMGB0000033 | J147: SBIN0016792
A148: PMEC | B148: PRIME COOPERATIVE BANK LIMITED | F148: AMCB0660004 | G148: MAHB0001239 | H148: HDFC0001799 | I148: NMGB0000034 | J148: SBIN0016791
A149: PRTH | B149: PRATHAMA BANK | F149: AMCB0660003 | G149: MAHB0001240 | H149: HDFC0001798 | I149: NMGB0000035 | J149: SBIN0016790
A150: PSIB | B150: PUNJAB AND SIND BANK | F150: AMCB0660002 | G150: MAHB0001241 | H150: HDFC0001797 | I150: NMGB0000036 | J150: SBIN0016789
A151: PUCB | B151: THE PANDHARPUR URBAN CO OP. BANK LTD. PANDHARPUR | F151: AIRP0000001 | G151: MAHB0001242 | H151: HDFC0001796 | I151: NMGB0000037 | J151: SBIN0016788
A152: PUNB | B152: PUNJAB NATIONAL BANK | F152: AKJB0000041 | G152: MAHB0001243 | H152: HDFC0001795 | I152: NMGB0000038 | J152: SBIN0016787
A153: PYTM | B153: PAYTM PAYMENTS BANK LTD | F153: AKJB0000040 | G153: MAHB0001244 | H153: HDFC0001794 | I153: NMGB0000039 | J153: SBIN0016786
A154: QNBA | B154: QATAR NATIONAL BANK SAQ | F154: AKJB0000039 | G154: MAHB0001245 | H154: HDFC0001793 | I154: NMGB0000040 | J154: SBIN0016785
A155: RABO | B155: RABOBANK INTERNATIONAL | F155: AKJB0000038 | G155: MAHB0001246 | H155: HDFC0001792 | I155: NMGB0000041 | J155: SBIN0016784
A156: RATN | B156: RBL Bank Limited | F156: AKJB0000037 | G156: MAHB0001247 | H156: HDFC0001791 | I156: NMGB0000042 | J156: SBIN0016783
A157: RBIH | B157: IDRBT | F157: AKJB0000036 | G157: MAHB0001248 | H157: HDFC0001790 | I157: NMGB0000043 | J157: SBIN0016782
A158: RBIS | B158: RESERVE BANK OF INDIA , PAD | F158: AKJB0000035 | G158: MAHB0001249 | H158: HDFC0001789 | I158: NMGB0000044 | J158: SBIN0016781
A159: RBIS | B159: RESERVE BANK OF INDIA, PAD | F159: AKJB0000033 | G159: MAHB0001250 | H159: HDFC0001788 | I159: NMGB0000045 | J159: SBIN0016778
A160: RBIS | B160: RBI PAD, AHMEDABAD | F160: AKJB0000032 | G160: MAHB0001251 | H160: HDFC0001787 | I160: NMGB0000046 | J160: SBIN0016777
A161: RBIS | B161: RESERVE BANK OF INDIA | F161: AKJB0000031 | G161: MAHB0001252 | H161: HDFC0001786 | I161: NMGB0000047 | J161: SBIN0016776
A162: RNSB | B162: RAJKOT NAGRIK SAHAKARI BANK LIMITED | F162: AKJB0000030 | G162: MAHB0001253 | H162: HDFC0001785 | I162: NMGB0000048 | J162: SBIN0016775
A163: RRBP | B163: RAJARAMBAPU SAHAKARI BANK LIMITED | F163: AKJB0000029 | G163: MAHB0001254 | H163: HDFC0001784 | I163: NMGB0000049 | J163: SBIN0016774
A164: RSBL | B164: RAJGURUNAGAR SAHAKARI BANK LIMITED | F164: AKJB0000028 | G164: MAHB0001255 | H164: HDFC0001783 | I164: NMGB0000050 | J164: SBIN0016773
A165: RSCB | B165: THE RAJASTHAN STATE COOPERATIVE BANK LIMITED | F165: AKJB0000027 | G165: MAHB0001256 | H165: HDFC0001782 | I165: NMGB0000051 | J165: SBIN0016772
A166: SABR | B166: SBER BANK | F166: AKJB0000026 | G166: MAHB0001257 | H166: HDFC0001781 | I166: NMGB0000052 | J166: SBIN0016771
A167: SAHE | B167: SAHEBRAO DESHMUKH COOPERATIVE BANK LIMITED | F167: AKJB0000025 | G167: MAHB0001258 | H167: HDFC0001780 | I167: NMGB0000053 | J167: SBIN0016770
A168: SANT | B168: SANT SOPANKAKA SAHAKARI BANK LTD | F168: AKJB0000024 | G168: MAHB0001259 | H168: HDFC0001779 | I168: NMGB0000054 | J168: SBIN0016769
A169: SBIN | B169: STATE BANK OF INDIA | F169: AKJB0000023 | G169: MAHB0001260 | H169: HDFC0001778 | I169: NMGB0000055 | J169: SBIN0016768
A170: SBLS | B170: SAMARTH SAHAKARI BANK LTD | F170: AKJB0000022 | G170: MAHB0001261 | H170: HDFC0001777 | I170: NMGB0000056 | J170: SBIN0016767
A171: SCBL | B171: STANDARD CHARTERED BANK | F171: AKJB0000021 | G171: MAHB0001262 | H171: HDFC0001776 | I171: NMGB0000057 | J171: SBIN0016766
A172: SDCB | B172: THE SURAT DISTRICT COOPERATIVE BANK LIMITED | F172: AKJB0000020 | G172: MAHB0001263 | H172: HDFC0001775 | I172: NMGB0000058 | J172: SBIN0016765
A173: SHBK | B173: SHINHAN BANK | F173: AKJB0000019 | G173: MAHB0001264 | H173: HDFC0001774 | I173: NMGB0000059 | J173: SBIN0016764
A174: SIBL | B174: SOUTH INDIAN BANK | F174: AKJB0000018 | G174: MAHB0001265 | H174: HDFC0001773 | I174: NMGB0000060 | J174: SBIN0016763
A175: SIDB | B175: SMALL INDUSTRIES DEVELOPMENT BANK OF INDIA | F175: AKJB0000017 | G175: MAHB0001266 | H175: HDFC0001772 | I175: NMGB0000061 | J175: SBIN0016762
A176: SIDC | B176: THE SINDHUDURG DISTRICT CENTRAL COOP BANK LTD | F176: AKJB0000016 | G176: MAHB0001267 | H176: HDFC0001771 | I176: NMGB0000062 | J176: SBIN0016761
A177: SJSB | B177: SOLAPUR JANATA SAHAKARI BANK LIMITED | F177: AKJB0000015 | G177: MAHB0001268 | H177: HDFC0001770 | I177: NMGB0000063 | J177: SBIN0016760
A178: SKSB | B178: SHIKSHAK SAHAKARI BANK LIMITED | F178: AKJB0000014 | G178: MAHB0001269 | H178: HDFC0001769 | I178: NMGB0000064 | J178: SBIN0016759
A179: SMBC | B179: SUMITOMO MITSUI BANKING CORPORATION | F179: AKJB0000013 | G179: MAHB0001270 | H179: HDFC0001768 | I179: NMGB0000065 | J179: SBIN0016758
A180: SMCB | B180: SHIVALIK MERCANTILE CO OPERATIVE BANK LTD | F180: AKJB0000012 | G180: MAHB0001271 | H180: HDFC0001767 | I180: NMGB0000066 | J180: SBIN0016757
A181: SOGE | B181: SOCIETE GENERALE | F181: AKJB0000011 | G181: MAHB0001272 | H181: HDFC0001766 | I181: NMGB0000067 | J181: SBIN0016756
A182: SPCB | B182: THE SURATH PEOPLES COOPERATIVE BANK LIMITED | F182: AKJB0000010 | G182: MAHB0001273 | H182: HDFC0001765 | I182: NMGB0000068 | J182: SBIN0016755
A183: SRCB | B183: SARASWAT COOPERATIVE BANK LIMITED | F183: AKJB0000009 | G183: MAHB0001274 | H183: HDFC0001764 | I183: NMGB0000069 | J183: SBIN0016754
A184: STCB | B184: SBM BANK INDIA LIMITED | F184: AKJB0000008 | G184: MAHB0001275 | H184: HDFC0001763 | I184: NMGB0000070 | J184: SBIN0016753
A185: SUNB | B185: SURAT NATIONAL COOPERATIVE BANK LIMITED | F185: AKJB0000007 | G185: MAHB0001276 | H185: HDFC0001762 | I185: NMGB0000071 | J185: SBIN0016752
A186: SURY | B186: SURYODAY SMALL FINANCE BANK LIMITED | F186: AKJB0000006 | G186: MAHB0001277 | H186: HDFC0001761 | I186: NMGB0000072 | J186: SBIN0016751
A187: SUTB | B187: SUTEX COOPERATIVE BANK LIMITED | F187: AKJB0000005 | G187: MAHB0001278 | H187: HDFC0001760 | I187: NMGB0000073 | J187: SBIN0016750
A188: SVBL | B188: THE SEVA VIKAS COOPERATIVE BANK LIMITED | F188: AKJB0000004 | G188: MAHB0001279 | H188: HDFC0001759 | I188: NMGB0000074 | J188: SBIN0016748
A189: SVCB | B189: THE SHAMRAO VITHAL COOPERATIVE BANK | F189: AKJB0000003 | G189: MAHB0001280 | H189: HDFC0001758 | I189: NMGB0000075 | J189: SBIN0016747
A190: SVSH | B190: Shri Veershaiv Co Op Bank Ltd | F190: AKJB0000002 | G190: MAHB0001281 | H190: HDFC0001757 | I190: NMGB0000076 | J190: SBIN0016746
A191: SYNB | B191: SYNDICATE BANK | F191: AKJB0000001 | G191: MAHB0001282 | H191: HDFC0001756 | I191: NMGB0000077 | J191: SBIN0016745
A192: TBSB | B192: THE THANE BHARAT SAHAKARI BANK LIMITED | F192: ALLA0AU1663 | G192: MAHB0001283 | H192: HDFC0001755 | I192: NMGB0000078 | J192: SBIN0016744
A193: TDCB | B193: THE THANE DISTRICT CENTRAL COOPERATIVE BANK LIMITED | F193: ALLA0AU1662 | G193: MAHB0001284 | H193: HDFC0001754 | I193: NMGB0000079 | J193: SBIN0016743
A194: TGMB | B194: TUMKUR GRAIN MERCHANTS COOPERATIVE BANK LIMITED | F194: ALLA0AU1661 | G194: MAHB0001285 | H194: HDFC0001753 | I194: NMGB0000080 | J194: SBIN0016742
A195: THRS | B195: THRISSUR DISTRICT CO-OPERATIVE BANK LTD | F195: ALLA0AU1660 | G195: MAHB0001286 | H195: HDFC0001752 | I195: NMGB0000081 | J195: SBIN0016741
A196: TJSB | B196: TJSB SAHAKARI BANK LTD | F196: ALLA0AU1659 | G196: MAHB0001287 | H196: HDFC0001751 | I196: NMGB0000082 | J196: SBIN0016740
A197: TJSB | B197: TJSB SAHAKARI BANK LIMITED | F197: ALLA0AU1658 | G197: MAHB0001288 | H197: HDFC0001750 | I197: NMGB0000083 | J197: SBIN0016739
A198: TMBL | B198: TAMILNAD MERCANTILE BANK LIMITED | F198: ALLA0AU1657 | G198: MAHB0001289 | H198: HDFC0001749 | I198: NMGB0000084 | J198: SBIN0016738
A199: TNSC | B199: THE TAMIL NADU STATE APEX COOPERATIVE BANK | F199: ALLA0AU1656 | G199: MAHB0001290 | H199: HDFC0001748 | I199: NMGB0000085 | J199: SBIN0016737
A200: TSAB | B200: TELANGANA STATE COOP APEX BANK | F200: ALLA0AU1655 | G200: MAHB0001291 | H200: HDFC0001747 | I200: NMGB0000086 | J200: SBIN0016736
... 4300 more rows

Sheet Help (hidden)
C3: How to use this Excel Utility
B4: i | C4: Overview
B5: ii | C5: Before you begin
B6: iii | C6: Structure of the ITR utility
B7: iv | C7: Filing and Using the Excel utility
B8: v | C8: Validating the sheets
B9: vi | C9: Navigation
B10: vii | C10: Calculate Tax
B11: viii | C11: Generating the XML
B12: ix | C12: Printing
B13: x | C13: Importing
B14: xi | C14: How to submit an ITR using Excel utility?
B16: i | C16: Overview :
C17: Fill up applicable schedules | D17: Navigate to each schedule applicable and fill the data.
C18: Validate each sheet | D18: Click on the 'Validate' Button on each filled sheet .Correct errors (if any) identified by the validate feature.
C19: Click on Calculate Tax | D19: Fill the necessary details in applicable schedules and click on 'Calculate Tax' for computation of tax. Please make sure you click the 'Calculate Tax' button before generation of XML.
C20: Generate XML | D20: After all required schedules have been filled ,validated and tax has been calculated (using 'Calculate Tax' buttton), click on Generate XML which will recheck all sheets.
C21: Save XML | D21: To save the XML in the desired path, click on the 'Save XML' button.
C22: Upload the XML | D22: To upload the saved XML, Go to https://incometaxindiaefiling.gov.in -> Login -> e-File -> Upload Return.
B24: ii | C24: Before you begin :
C25: Read the instructions for filling up the form available in the following website: http://www.incometaxindia.gov.in
C26: The ITR Utility is an Excel Workbook that consists of a number of individual, integrated worksheets. Each of the sheets contains one or more schedules for data entry. Initially, all the sheets are visible to the user. A number of these sheets are optional. The user can decide which sheets are applicable to their case and accordingly select Y or N to hide or show the sheets. Similarly , by selecting the sheets which the user needs for printing, it is possible to control how many sheets should be printed (in case all sheets are not required to be printed). Later on, these settings can always be changed.
B28: iii | C28: Structure of the ITR utility :
C29: Various sheets and schedules per sheet form part of the Utility.Each sheet includes a number of distinct, titled sections/schedules.
C30: Each sheet is identified by the sheet tabs located at the bottom of the Excel window. These tabs are labeled with abbreviation forms of the schedules of the sheet.
B32: iv | C32: Filing and Using the Excel utility :
C33: Every section/schedule is color coded to facilitate the user. The different types of cells in the sheets are as follows:
C34: a) The mandatory fields are marked in red. The data entered will have a green background color (Certain fields are mandatory under specific conditions only).
C35: b) Data entry cells for optional/non-mandatory fields have a black font and a green background color.
C36: c) Fields whose values are autocalculated /autopopulated by the utility have a blue font and a white background color. Linked fields, where no data entry is done by the user, but a value is picked up from an existing cell elsewhere in the sheet, these have a blue font for the labels and a white background.
C37: All amounts are in Indian Rupee.
C38: All date fields must be entered in dd/mm/yyyy format.
C39: For percentage fields, only enter the the value upto two decimal places. (percentage symbol is not required).
C40: Adding more rows : Schedules such as TDS, TCS, IT etc allow users to enter data in tabular format. Using the 'Add rows' button provided below these tables, the assessee can add as many rows as required. Note: Rows once added and not required (or empty rows) should not be deleted, even if they are blank. The utility does not generate XML for rows left blank. *The mandatory fields required for an optional schedule cannot be left blank, if the optional schedule filled.
B42: v | C42: Validating the sheets :
C43: Validate the filled sheet using the 'Validate' button. Correct errors (if any) identified by the validate feature.
B45: vi | C45: Navigation :
C46: There are two navigation buttons in the utility : 'Next' and 'Previous'. The user can navigate between the sheets by either clicking on next or previous buttons as required.
B48: vii | C48: Calculate Tax :
C49: For the Tax to be computed the user must click on the 'Calculate Tax' button after filling the necessary details in applicable schedules.
B51: viii | C51: Generating the XML :
C52: Verify all the information entered in the ITR Utility.
C53: Click on the 'Generate XML' button. This will revalidate all the sheets, and direct the user to the confirmation page which shows the various schedules (and the no of rows per schedule) being generated.
C54: Once verified, the assessee can then click on 'Save XML' option to generate and save the XML.
C55: After successfully generating, a message will be displayed with the name and location of the saved XML.
C56: This XML can then be uploaded in the efiling portal.
B58: ix | C58: Printing :
C59: The print button in the utility provides an option to print after previewing.
B61: x | C61: Importing :
C62: a) Import Previous Version
C63: If the user has a filled ITR in a previous version, the user can import the data from the previous version to the current version.To import click on the 'Import Previous Version' button in the utility and browse the path of the previous version of filled ITR.
C64: b) Import Personal and Tax Details
C65: The user can import the personal and Tax details into ITR1 excel utility by following the given steps.
C66: Step 1 : Login into the e-Filing portal using valid login credentials.
C67: Step 2 : Go to the 'Downloads' menu and click the 'Download Prefilled XML' link. Select the 'Assessment Year' and download the Prefilled XML in the desired location.
C68: Step 3 : Open the utility and click on the 'Import Personal/Tax Details from XML' button.
B71: xi | C71: How to submit an ITR using Excel utility?
C72: 1.Download the ITR preparation utility for the assessment year under 'Downloads'.
C73: 2.Prepare the Income Tax return using the utility. Validate, Generate and Save the XML in the desired path.
C74: 3. Login to e-Filing portal (https://incometaxindiaefiling.gov.in) and go to e-File --> Upload Return.
C75: 4.Select the appropriate ITR, Assessment Year and XML (using browse button).
C76: 5.Upload Digital Signature Certificate(DSC) if applicable. Please ensure the DSC is registered with e-Filing.
C77: 6.Click on 'SUBMIT' button.
C78: 7.On successful submission, ITR-V/Acknowledgement would be displayed. Click on the link and download the ITR-V/Acknowledgement.
C80: On successful submission, ITR-V/Acknowledgement would be displayed. Click on the link and download the ITR-V/Acknowledgement.
C81: If ITR is uploaded with DSC, the Return Filing process is complete. The return will be further processed and the Assessee will be notified accordingly. Please check your emails on these notifications.
C82: Note: If ITR is uploaded with DSC, the Return Filing process is complete. The return will be further processed and the Assessee will be notified accordingly. Please check your emails on these notifications. OR The return is not uploaded with a DSC, an ITR-V Form should be printed, signed and submitted to CPC, Bangalore using Ordinary Post or Speed Post ONLY within 120 days from the date of e-Filing. On receipt of the ITR-V at CPC, the return will be further processed and the Assessee will be notified accordingly. Please check your emails on these notifications.

Sheet SUMMARY (hidden)
C3: SUMMARY
C5: Name | D5: =TRIM(sheet2.AssesseeVerName) -> RAMAN K. MEHTA
C6: PAN | D6: =TRIM(sheet1.PAN) -> ABNPM2312P
C7: Son/Daughter of | D7: =TRIM(sheet2.FatherName) -> SHYAM K. MEHTA
C8: Verification PAN | D8: =TRIM(Ver.PAN) -> ABNPM2312P
C9: Verification Date | D9: =TRIM(sheet2.Date) -> 02/12/2020
C11: Schedule | D11: Number of Entries | E11: Amount (Rs)
C12: SALARY | D12: 1 | E12: =SAL.IncomeFromSalary1 -> 16863200
C13: HOUSE_PROPERTY | D13: 1 | E13: =HP.TotalIncomeChargeableUnHP -> -200000
C14: SPI | D14: 0 | E14: =SPI.TotAmtIncluded -> 0
C15: IT | D15: 2 | E15: =SUM(Sheet2.AdvanceTax+Sheet2.SelfAssessmentTax) -> 146000
C16: TDS1 | D16: 1 | E16: =TDS1.Total -> 5280000
C17: TDS2 | D17: 1 | E17: =MAX(0,TDS2.Total) -> 100000
C18: TDS3 | D18: 0 | E18: =MAX(0,TDS3.Total) -> 0
C19: TCS | D19: 0 | E19: =TCS.Total -> 0
C20: CFL | D20: =IF(SUM(CFL.hpLoss,CFL.stcgLoss,CFL.ltcgLoss,CFL.rhLoss)>0,"FILLED","EMPTY") -> EMPTY | E20: NA
C21: EI | D21: =IF(Sheet20.scei.TotalExemptInc>0,"FILLED","EMPTY") -> EMPTY | E21: =Sheet20.scei.TotalExemptInc -> 0
C22: 80G | D22: 0 | E22: =Per5080G.TotalEligibleDonationsUs80G -> 0
C23: 80GGA | E23: =Total_Donation_Eligible_80GGA -> 0
C24: TR | D24: =IF(SUM(TR_TaxReliefOutsideIndiaDTAA,TR_TaxReliefOutsideIndiaNotDTAA,TR_AmtTaxRefunded)>0,"FILLED","EMPTY") -> EMPTY | E24: NA
C25: FA | D25: 0 | F25: NA
C26: FSI | D26: 0 | E26: NA
C27: SCH5A | D27: =IF(SUM(S5A_IncRecvdUndHeadTotal,S5A_TotalHeadIncome,S5A_AmtTDSDeductedTotal,S5A_TDSApprndOfSpouseTotal)>0,"FILLED","EMPTY") -> EMPTY | E27: NA
C28: AL | D28: =IF(SUM(AL!O16:O18,AL!O20:O24,SchAL.Liability,SchAL.A.Amount)>0,"FILLED","EMPTY") -> FILLED | E28: NA
C30: INSTRUCTIONS
C31: 1. Verify the count of number of entries against each schedule. 2. Ensure the total number of entries entered per schedule is valid and being reflected in the preview sheet. 3. In case this count does not match the number of entries, you may check and update the schedules. 4. Click on ‘Save XML’ to generate the XML file if all the details are verified. 5. All Schedules which are optional and not filled are reported as ‘Empty’ in Preview.

Sheet DropDown List (hidden)
DQ1: TAN CODES | DR1: (Select) | DU1: ISIN | DV1: ISIN Description
A2: States | B2: (Select) | D2: Countries List | E2: (Select) | G2: country name FT | H2: (Select) | K2: Salary Dropdown | L2: (Select) | N2: Salary_Section_17_1 | O2: (Select) | Q2: Selection80D | R2: (Select) | T2: Employer Category | U2: (Select) | W2: OriginalOrRevised | X2: (Select) | Z2: ReturnFileUnderSection | AD2: AadharIND | AE2: (Select) | AG2: TDS_DropDown_HeadOfIncome | AH2: (Select) | AJ2: StatusRES | AK2: (Select) | AM2: RelevantClause_80GGA | AN2: (Select) | AP2: Year DROP CG | AQ2: (Select) | AS2: CG_STCGSection_DTAA_NRI | AT2: (Select) | AV2: CG_STCGSection_DTAA_RES | AW2: (Select) | AY2: CG_LTCGSection_DTAA_NRI` | AZ2: (Select) | BB2: CG_LTCGSection_DTAA_RES | BC2: (Select) | BE2: CG_STCGSection_DTAA_XML | BF2: (Select) | BI2: CG_LTCGSection_DTAA_XML | BJ2: (Select) | BM2: OS_SectionCode | BN2: (Select) | BP2: OS_SectionCodeList_RES | BQ2: (Select) | BS2: OS_SectionCodeList_NRI | BT2: (Select) | BV2: OS_SectionCodeList | BW2: (Select) | BY2: OS_lookup | BZ2: 115A(1)(a)(i)-Dividends interest and income from units purchase in foreign currency | CA2: 5A1ai | CC2: OSDTAA_Section_NRI | CD2: (Select) | CF2: OSDTAA_Section_RES | CG2: (Select) | CI2: OSDTAA_Section_115H | CJ2: (Select) | CL2: OS_DTAA_LookUP | CM2: 56(2)(i)-Dividend | CN2: 56i | CP2: OS_PTI_115H | CQ2: (Select) | CS2: OS_PTI_RES | CT2: (Select) | CV2: OS_PTI_NRI | CW2: (Select) | CY2: OS_PTI_LookUp | CZ2: PTI_115A(1)(a)(i)-Dividends interest and income from units purchase in foreign currency | DA2: PTI_5A1ai | DC2: OS.AssYear | DD2: (Select) | DF2: EI_NatureOfIncome | DG2: (Select) | DI2: Countries List With NA | DJ2: (Select) | DR2: HYD | DU2: (Select) | DV2: (Select)
B3: 01-ANDAMAN AND NICOBAR ISLANDS | E3: 93-AFGHANISTAN | H3: AFGHANISTAN | I3: 93 | L3: Sec10(5)-Travel concession/assistance received | O3: Basic Salary | R3: 1-Self and Family (Non Senior citizen) | U3: Central Government | X3: Original | AA3: (Select) | AB3: (Select) | AE3: Yes | AH3: House property | AK3: You were in India for 182 days or more during the previous year [section 6(1)(a)] | AN3: 80GGA(2)(a)-Sum paid to Research Association or University, college or other institution for Scientific Research | AQ3: 2017-18 | AT3: A1e | AW3: A1e | AZ3: B1e | BC3: B1e | BF3: A1e | BG3: A1e | BJ3: B1e | BK3: B1e | BN3: 5A1ai-Dividends interest and income from units purchase in foreign currency[S.115A(1)(a)(i)] | BQ3: 115ACA(1)(a)-Income from GDR purchased in foreign currency -resident | BT3: 115A(1)(a)(i)-Dividends interest and income from units purchase in foreign currency | BW3: 115A(1)(a)(i)-Dividends interest and income from units purchase in foreign currency | BZ3: 115A(1)(a)(ii)-Interest received from govt/Indian Concerns recived in Foreign Currency | CA3: 5A1aii | CD3: 56(2)(i)-Dividend | CG3: 56(2)(i)-Dividend | CJ3: 56(2)(i)-Dividend | CM3: 56(2)-Interest | CN3: 56 | CQ3: PTI_115A(1)(a)(i)-Dividends interest and income from units purchase in foreign currency | CT3: PTI_115ACA(1)(a)-Income from GDR purchased in foreign currency -resident | CW3: PTI_115A(1)(a)(i)-Dividends interest and income from units purchase in foreign currency | CZ3: PTI_115A(1)(a)(ii)-Interest received from govt/Indian Concerns received in Foreign Currency | DA3: PTI_5A1aii | DD3: 2000-01 | DG3: Sec10(10BC)-Any amount from the Central/State Govt./local authority by way of compensation on account of any disaster | DJ3: 93-AFGHANISTAN | DR3: VPN | DU3: INE216D08039 | DV3: KSS LIMITED OCD 31MR15 FVRS1LAC
B4: 02-ANDHRA PRADESH | E4: 1001-ALAND ISLANDS | H4: ALBANIA | I4: 355 | L4: Sec10(6)-Remuneration received as an official, by whatever name called, of an embassy, high commission etc. | O4: Dearness Allowance | R4: 2-Self and Family (Including Senior citizen) | U4: State Government | X4: Revised | AA4: 139(1)-On or before due date | AB4: 11 | AE4: No | AH4: Other sources | AK4: You were in India for 60 days or more during the previous year, and have been in India for 365 days or more within the 4 preceding years [section (6)(1)(c)] [where Explanation 1 is not applicable] | AN4: 80GGA(2)(aa)-Sum paid to Research Association or University, college or other institution for Social science or Statistical Research | AQ4: 2018-19 | AT4: A2e-111A | AW4: A2e-111A | AZ4: B2e | BC4: B2e | BF4: A2e-111A | BG4: A2e_111A | BJ4: B2e | BK4: B2e | BN4: 5A1aii-Interest received from govt/Indian Concerns recived in Foreign Currency [S.115A(1)(a)(ii)] | BQ4: 115AD(1)(i)-Income received by an FII in respect of securities (other than units as per Sec 115AB) | BT4: 115A(1)(a)(ii)-Interest received from govt/Indian Concerns recived in Foreign Currency | BW4: 115A(1)(a)(ii)-Interest received from govt/Indian Concerns recived in Foreign Currency | BZ4: 115A(1)(a)(iia)-Interest from Infrastructure Debt Fund | CA4: 5A1aiia | CD4: 56(2)-Interest | CG4: 56(2)-Interest | CJ4: 56(2)-Interest | CM4: 56(2)(iii)-Rental income from machinery, plants, buildings etc., | CN4: 562iii | CQ4: PTI_115A(1)(a)(ii)-Interest received from govt/Indian Concerns received in Foreign Currency | CT4: PTI_115AD(1)(i)-Income received by an FII in respect of securities (other than units as per Sec 115AB) | CW4: PTI_115A(1)(a)(ii)-Interest received from govt/Indian Concerns received in Foreign Currency | CZ4: PTI_115A(1)(a)(iia)-Interest from Infrastructure Debt Fund | DA4: PTI_5A1aiia | DD4: 2001-02 | DG4: Sec10(10D)-Any sum received under a life insurance policy, including the sum allocated by way of bonus on such policy except sum as mentioned in sub-clause (a) to (d) of Sec.10(10D) | DJ4: 1001-ALAND ISLANDS | DR4: BBN | DU4: INE305C01029 | DV4: PANAMA PETROCHEM LIMITED EQ NEW FV RS. 2/-
B5: 03-ARUNACHAL PRADESH | E5: 355-ALBANIA | H5: ALGERIA | I5: 213 | L5: Sec10(7)-Allowances or perquisites paid or allowed as such outside India by the Government to a citizen of India for rendering service outside India | O5: Conveyance Allowance | R5: 3-Parents | U5: Public Sector Undertaking | X5: In response to Notice u/s 139(9) | AA5: 139(4)-After due date | AB5: 12 | AN5: 80GGA(2)(b)-Sum paid to an association or institution for Rural Development | AQ5: 2019-20 | AT5: A2e-115AD | AW5: A2e-115AD | AZ5: B3e-112(1) | BC5: B3e-112(1) | BF5: A2e-115AD | BG5: A2e_115AD | BJ5: B3e-112(1) | BK5: B3e_112(1) | BN5: 5A1aiia-Interest from Infrastructure Debt Fund [S.115A(1)(a)(iia)] | BQ5: 115AD(1)(i)-Income received by an FII in respect of bonds or government securities as per Sec 194LD | BT5: 115A(1)(a)(iia)-Interest from Infrastructure Debt Fund | BW5: 115A(1)(a)(iia)-Interest from Infrastructure Debt Fund | BZ5: 115A(1)(a)(iiaa)-Interest as per Sec. 194LC | CA5: 5A1aiiaa | CD5: 56(2)(iii)-Rental income from machinery, plants, buildings etc., | CG5: 56(2)(iii)-Rental income from machinery, plants, buildings etc., | CJ5: 56(2)(iii)-Rental income from machinery, plants, buildings etc., | CM5: 56(2)(x)-Income under section 56(2)(x) | CN5: 562x | CQ5: PTI_115A(1)(a)(iia)-Interest from Infrastructure Debt Fund | CT5: PTI_115AD(1)(i)-Income received by an FII in respect of bonds or government securities as per Sec 194LD | CW5: PTI_115A(1)(a)(iia)-Interest from Infrastructure Debt Fund | CZ5: PTI_115A(1)(a)(iiaa)-Interest as per Sec. 194LC | DA5: PTI_5A1aiiaa | DD5: 2002-03 | DG5: Sec10(11)-Statutory Provident Fund received | DJ5: 355-ALBANIA | DR5: BPL | DU5: INE315R01018 | DV5: SHIVAM MEGASTRUCTURES PVT LTD EQ CLASS A
B6: 04-ASSAM | E6: 213-ALGERIA | H6: ANDORRA | I6: 376 | L6: Sec10(10)-Death-cum-retirement gratuity received | O6: House Rent Allowance | R6: 4-Parents(Senior citizen) | U6: Pensioners | AA6: 142(1) | AB6: 13 | AD6: AadharHUF | AE6: (Select) | AG6: TDS_DropDown_ReasonApportioned | AH6: (Select) | AJ6: StatusNOR | AK6: (Select) | AN6: 80GGA(2)(bb)-Sum paid to PSU or Local Authority or an association or institution approved by the National Committee for carrying out any eligible project | AT6: A3a | AW6: A5e | AZ6: B3e-115ACA | BC6: B3e-115ACA | BF6: A3a | BG6: A3a | BJ6: B3e-115ACA | BK6: B3e_115ACA | BN6: 5A1aiiaa-Interest as per Sec. 194LC[S.115A(1)(a)(iiaa)] | BQ6: 115BBC-Anonymous donations | BT6: 115A(1)(a)(iiaa)-Interest as per Sec. 194LC | BW6: 115A(1)(a)(iiaa)-Interest as per Sec. 194LC | BZ6: 115A(1)(a)(iiab)-Interest as per Sec. 194LD | CA6: 5A1aiiab | CD6: 56(2)(x)-Income under section 56(2)(x) | CG6: 56(2)(x)-Income under section 56(2)(x) | CJ6: 56(2)(x)-Income under section 56(2)(x) | CM6: 115A(1)(a)(i)-Dividends interest and income from units purchase in foreign currency | CN6: 5A1ai | CQ6: PTI_115A(1)(a)(iiaa)-Interest as per Sec. 194LC | CT6: PTI_115BBC-Anonymous donations | CW6: PTI_115A(1)(a)(iiaa)-Interest as per Sec. 194LC | CZ6: PTI_115A(1)(a)(iiab)-Interest as per Sec. 194LD | DA6: PTI_5A1aiiab | DD6: 2003-04 | DG6: Sec10(12)-Recognized Provident Fund received | DJ6: 213-ALGERIA | DR6: JBP | DU6: INE315R01026 | DV6: SHIVAM MEGASTRUCTURES PVT LTD EQ CLASS B
B7: 05-BIHAR | E7: 684-AMERICAN SAMOA | H7: ANGOLA | I7: 244 | L7: Sec10(10A)-Commuted value of pension received | O7: Leave Travel Allowance | R7: 5-Self and Family including parents | U7: Others | AA7: 148 | AB7: 14 | AE7: NA | AH7: Portugese civil code | AK7: You have been a non-resident in India in 9 out of 10 preceding years [section 6(6)(a)] | AN7: 80GGA(2)(c)-Sum paid to an association or institution for Conservation of Natural Resources or for afforestation | AT7: A3b | AW7: A6 | AZ7: B4c-112A | BC7: B4c-112A | BF7: A3b | BG7: A3b | BJ7: B4c-112A | BK7: B4c_112A | BN7: 5A1aiiab-Interest as per Sec. 194LD [S.115A(1)(a)(iiab)] | BQ7: 115BBDA-(Dividend income from domestic company exceeding Rs.10lakh) | BT7: 115A(1)(a)(iiab)-Interest as per Sec. 194LD | BW7: 115A(1)(a)(iiab)-Interest as per Sec. 194LD | BZ7: 115A(1)(a)(iiac)-Interest as per Sec. 194LBA | CA7: 5A1aiiac | CD7: 115A(1)(a)(i)-Dividends interest and income from units purchase in foreign currency | CG7: 115BBDA-Tax on certain dividends received from domestic companies. | CJ7: 115A(1)(a)(i)-Dividends interest and income from units purchase in foreign currency | CM7: 115A(1)(a)(ii)-Interest received from govt/Indian Concerns recived in Foreign Currency | CN7: 5A1aii | CQ7: PTI_115A(1)(a)(iiab)-Interest as per Sec. 194LD | CT7: PTI_115BBDA-Dividend Income from domestic company exceeding 10Lakh | CW7: PTI_115A(1)(a)(iiab)-Interest as per Sec. 194LD | CZ7: PTI_115A(1)(a)(iiac)-Interest as per Sec. 194LBA | DA7: PTI_5A1aiiac | DD7: 2004-05 | DG7: Sec10(13)-Approved superannuation fund received | DJ7: 684-AMERICAN SAMOA | DR7: CHE | DU7: INE315R01034 | DV7: SHIVAM MEGASTRUCTURES PVT LTD EQ CLASS C
B8: 06-CHANDIGARH | E8: 376-ANDORRA | H8: ANTIGUA AND BARBUDA | I8: 1268 | L8: Sec10(10AA)-Earned leave encashment | O8: Children Education Allowance | R8: 6-Self and Family including senior citizen parents | AA8: 153A | AB8: 15 | AH8: Co-owned asset | AK8: You have been in India for 729 days or less during the 7 preceding years [section 6(6)(a)] | AN8: 80GGA(2)(cc)-Sum paid for Afforestation, to the funds, which are notified by Central Govt. | AT8: A4e | AW8: A7a | AZ8: B5c | BC8: B9e | BF8: A4e | BG8: A4e | BJ8: B5c | BK8: B5c | BN8: 5A1aiii-Income received in respect of units of UTI purchased in Foreign Currency[S.115A(1)(a)(iii)] | BQ8: 115BBF-Tax on income from patent | BT8: 115A(1)(a)(iiac)-Interest as per Sec. 194LBA | BW8: 115A(1)(a)(iiac)-Interest as per Sec. 194LBA | BZ8: 115A(1)(a)(iii)-Income received in respect of units of UTI purchased in Foreign Currency | CA8: 5A1aiii | CD8: 115A(1)(a)(ii)-Interest received from govt/Indian Concerns recived in Foreign Currency | CG8: 115AD(1)(i)-Income received by an FII in respect of securities (other than units as per Sec 115AB) | CJ8: 115A(1)(a)(ii)-Interest received from govt/Indian Concerns recived in Foreign Currency | CM8: 115A(1)(a)(iia)-Interest from Infrastructure Debt Fund | CN8: 5A1aiia | CQ8: PTI_115A(1)(a)(iiac)-Interest as per Sec. 194LBA | CT8: PTI_115BBF-Tax on income from patent | CW8: PTI_115A(1)(a)(iiac)-Interest as per Sec. 194LBA | CZ8: PTI_115A(1)(a)(iii)-Income received in respect of units of UTI purchased in foreign currency | DA8: PTI_5A1aiii | DD8: 2005-06 | DG8: Sec10(16)-Scholarships granted to meet the cost of education | DJ8: 376-ANDORRA | DR8: CMB | DU8: INE538F03172 | DV8: ESSAR POWER LIMITED 0.01% PREF 31AG24
B9: 07-DADRA AND NAGAR HAVELI | E9: 244-ANGOLA | H9: ARGENTINA | I9: 54 | L9: 10(10B) First proviso-Compensation limit notified by CG in the Official Gazette | O9: Other Allowance | R9: 7-Self(Senior citizen) & family including senior citizen parents | T9: TypeOfAccount | U9: (Select) | W9: status | X9: (Select) | AA9: 153C | AB9: 16 | AD9: AadharSelect | AE9: (Select) | AN9: 80GGA(2)(d)-Sum paid for Rural Development to the funds, which are notified by Central Govt. | AT9: A5e | AW9: A7b | AZ9: B6e -112(1)(c) | BC9: B10 | BF9: A5e | BG9: A5e | BJ9: B6e -112(1)(c) | BK9: B6e_112(1)(c) | BN9: FA-Para E II of Part I of Ist Sch of FA - Income from royalty or technical services - Non-domestic company | BQ9: 115BBG - Tax on income from transfer of carbon credits | BT9: 115A(1)(a)(iii)-Income received in respect of units of UTI purchased in Foreign Currency | BW9: 115A(1)(a)(iii)-Income received in respect of units of UTI purchased in Foreign Currency | BZ9: 115A(1)(b)(A) & 115A(1)(b)(B)-Income from royalty or fees for technical services received from Government or Indian concern - chargeable u/s 115A(1)(b) | CA9: 5A1b | CD9: 115A(1)(a)(iia)-Interest from Infrastructure Debt Fund | CG9: 115AD(1)(i)-Income received by an FII in respect of bonds or government securities as per Sec 194LD | CJ9: 115A(1)(a)(iia)-Interest from Infrastructure Debt Fund | CM9: 115A(1)(a)(iiaa)-Interest as per Sec. 194LC | CN9: 5A1aiiaa | CQ9: PTI_115A(1)(a)(iii)-Income received in respect of units of UTI purchased in foreign currency | CT9: PTI_115BBG-Tax on income from transfer of carbon credits. | CW9: PTI_115A(1)(a)(iii)-Income received in respect of units of UTI purchased in foreign currency | CZ9: PTI_115A(1)(b)(A) & PTI_115A(1)(b)(B)-Income from royalty or fees for technical services received from Government or Indian concern - chargeable u/s 115A(1)(b) | DA9: PTI_5A1b | DD9: 2006-07 | DG9: Sec10(17)-Allowance MP/MLA/MLC | DJ9: 244-ANGOLA | DR9: MRI | DU9: INE790J03023 | DV9: VATIKA LIMITED 0.001% PREF 31DC15
B10: 08-DAMAN AND DIU | E10: 1264-ANGUILLA | H10: ARMENIA | I10: 374 | L10: 10(10B) Second proviso-Compensation under scheme approved by the Central Government | O10: The contribution made by the Employer towards pension scheme as referred u/s 80CCD | U10: Savings | X10: Individual | AA10: 139(5)-Revised | AB10: 17 | AE10: Yes | AG10: TDS_DropDown_ReasonClaiming | AH10: (Select) | AJ10: StatusNRI | AK10: (Select) | AN10: 80GGA(2)(e)-Sum paid to National Urban Poverty Eradication Fund as setup and notified by Central Govt. | AT10: A6 | AW10: A7c | AZ10: B6e-115AC | BC10: B11a1 | BF10: A6 | BG10: A6 | BJ10: B6e-115AC | BK10: B6e_115AC | BN10: 5A1bA-Income from royalty & technical services : [S.115A(1)(b)(A)] | BT10: 115A(1)(b)(A) & 115A(1)(b)(B)-Income from royalty or fees for technical services received from Government or Indian concern - chargeable u/s 115A(1)(b) | BW10: 115A(1)(b)(A) & 115A(1)(b)(B)-Income from royalty or fees for technical services received from Government or Indian concern - chargeable u/s 115A(1)(b) | BZ10: 115AC(1)(a & b)-Income from bonds or GDR purchased in foreign currency - non-resident | CA10: 5AC1ab | CD10: 115A(1)(a)(iiaa)-Interest as per Sec. 194LC | CG10: 115BBF-Tax on income from patent | CJ10: 115A(1)(a)(iiaa)-Interest as per Sec. 194LC | CM10: 115A(1)(a)(iiab)-Interest as per Sec. 194LD | CN10: 5A1aiiab | CQ10: PTI_115A(1)(b)(A) & PTI_115A(1)(b)(B)-Income from royalty or fees for technical services received from Government or Indian concern - chargeable u/s 115A(1)(b) | CW10: PTI_115A(1)(b)(A) & PTI_115A(1)(b)(B)-Income from royalty or fees for technical services received from Government or Indian concern - chargeable u/s 115A(1)(b) | CZ10: PTI_115AC(1)(a&b)-Income from bonds or GDR purchased in foreign currency - non-resident | DA10: PTI_5AC1ab | DD10: 2007-08 | DG10: Sec10(17A)-Award instituted by Government | DJ10: 1264-ANGUILLA | DR10: DEL | DU10: INF903J01U93 | DV10: SUNDARAM MUTUAL FUND FTP DW REGULAR PLAN QTLRY DIVI PAY 28SP16
B11: 09-DELHI | E11: 1010-ANTARCTICA | H11: AUSTRALIA | I11: 61 | L11: Sec10(10C)-Amount received on voluntary retirement or termination of service | O11: Amount deemed to be income under rule 11 of Fourth Schedule | Q11: Selection80DD | R11: (Select) | U11: Current | X11: HUF | AA11: 139(9) | AB11: 18 | AE11: No | AH11: Portugese civil code | AK11: You were a non-resident during the previous year. | AT11: A7a | AZ11: B6e-115AD | BC11: B11a2 | BF11: A7a | BG11: A7a | BJ11: B6e-115AD | BK11: B6e_115AD | BN11: 5A1bB-Income from royalty & technical services [S.115A(1)(b)(B)] | BT11: 115AC(1)(a & b)-Income from bonds or GDR purchased in foreign currency - non-resident | BW11: 115AC(1)(a & b)-Income from bonds or GDR purchased in foreign currency - non-resident | BZ11: 115ACA(1)(a)-Income from GDR purchased in foreign currency -resident | CA11: 5ACA1a | CD11: 115A(1)(a)(iiab)-Interest as per Sec. 194LD | CG11: 115BBG-Tax on income from transfer of carbon credits. | CJ11: 115A(1)(a)(iiab)-Interest as per Sec. 194LD | CM11: 115A(1)(a)(iiac)-Interest as per Sec. 194LBA | CN11: 5A1aiiac | CQ11: PTI_115AC(1)(a&b)-Income from bonds or GDR purchased in foreign currency - non-resident | CW11: PTI_115AC(1)(a&b)-Income from bonds or GDR purchased in foreign currency - non-resident | CZ11: PTI_115AD(1)(i)-Income received by an FII in respect of securities (other than units as per Sec 115AB) | DA11: PTI_5AD1i | DD11: 2008-09 | DG11: Sec10(18)-Pension received by winner of "Param Vir Chakra" or "Maha Vir Chakra" or "Vir Chakra" or such other gallantry award | DJ11: 1010-ANTARCTICA | DR11: CAL | DU11: INF903J01V01 | DV11: SUNDARAM MUTUAL FUND FTP DW REGULAR PLAN HLF YRLY DIVI PAY 28SP16
B12: 10-GOA | E12: 1268-ANTIGUA AND BARBUDA | H12: AUSTRIA | I12: 43 | L12: Sec10(10CC)-Tax paid by employer on non-monetary perquisite | O12: Amount deemed to be income under rule 6 of Fourth Schedule | R12: 1-Dependent person with Disability | AA12: 92CD-Modified return | AB12: 19 | AE12: NA | AH12: Co-owned asset | AT12: A7b | AZ12: B7c-115AD(1)(iii)proviso | BC12: B11b | BF12: A7b | BG12: A7b | BJ12: B7c-115AD(1)(iii)proviso | BK12: B7c | BN12: 5AC1ab-Income from bonds or GDR purchased in foreign currency - non-resident [S.115AC(1)(a & b)] | BT12: 115AD(1)(i)-Income received by an FII in respect of securities (other than units as per Sec 115AB) | BW12: 115ACA(1)(a)-Income from GDR purchased in foreign currency -resident | BZ12: 115AD(1)(i)-Income received by an FII in respect of securities (other than units as per Sec 115AB) | CA12: 5AD1i | CD12: 115A(1)(a)(iiac)-Interest as per Sec. 194LBA | CG12: 115BBC-Anonymous donations | CJ12: 115A(1)(a)(iiac)-Interest as per Sec. 194LBA | CM12: 115A(1)(a)(iii)-Income received in respect of units of UTI purchased in Foreign Currency | CN12: 5A1aiii | CQ12: PTI_115AD(1)(i)-Income received by an FII in respect of securities (other than units as per Sec 115AB) | CW12: PTI_115AD(1)(i)-Income received by an FII in respect of securities (other than units as per Sec 115AB) | CZ12: PTI_115AD(1)(i)-Income received by an FII in respect of bonds or government securities as per Sec 194LD | DA12: PTI_5AD1iP | DD12: 2009-10 | DG12: Defence Medical Disability Pension | DJ12: 1268-ANTIGUA AND BARBUDA | DR12: MRT | DU12: INF903J01V27 | DV12: SUNDARAM MUTUAL FUND FTP DW DIRECT PLAN QTLRY DIVI PAY 28SP16
B13: 11-GUJARAT | E13: 54-ARGENTINA | H13: AZERBAIJAN | I13: 994 | L13: Sec10(13A)-Allowance to meet expenditure incurred on house rent | O13: Annuity or pension | R13: 2-Dependent person with Severe disability | AA13: 119(2)(b)- after condonation of delay | AB13: 20 | AH13: Minor / Spouse Income Clubbed | AT13: A7c | AZ13: B8c | BF13: A7c | BG13: A7c | BJ13: B8c | BK13: B8c | BN13: 5ACA1a-Income from GDR purchased in foreign currency -resident[S.115ACA(1)(a)] | BT13: 115AD(1)(i)-Income received by an FII in respect of bonds or government securities as per Sec 194LD | BW13: 115AD(1)(i)-Income received by an FII in respect of securities (other than units as per Sec 115AB) | BZ13: 115AD(1)(i)-Income received by an FII in respect of bonds or government securities as per Sec 194LD | CA13: 5AD1iP | CD13: 115A(1)(a)(iii)-Income received in respect of units of UTI purchased in Foreign Currency | CG13: 115ACA(1)(a)-Income from GDR purchased in foreign currency -resident | CJ13: 115A(1)(a)(iii)-Income received in respect of units of UTI purchased in Foreign Currency | CM13: 115A(1)(b)(A) & 115A(1)(b)(B)-Income from royalty or fees for technical services received from Government or Indian concern - chargeable u/s 115A(1)(b) | CN13: 5A1b | CQ13: PTI_115AD(1)(i)-Income received by an FII in respect of bonds or government securities as per Sec 194LD | CW13: PTI_115AD(1)(i)-Income received by an FII in respect of bonds or government securities as per Sec 194LD | CZ13: PTI_115ACA(1)(a)-Income from GDR purchased in foreign currency -resident | DA13: PTI_5ACA1a | DD13: 2010-11 | DG13: Sec10(19)-Armed Forces Family pension in case of death during operational duty | DJ13: 54-ARGENTINA | DR13: AHM | DU13: INF903J01V35 | DV13: SUNDARAM MUTUAL FUND FTP DW DIRECT PLAN HLF YRLY DIVI PAY 28SP16
B14: 12-HARYANA | E14: 374-ARMENIA | H14: BAHAMAS | I14: 1242 | L14: Sec10(14)(i)-Allowances or benefits not in a nature of perquisite specifically granted and incurred in performance of duties of office or employment | O14: Commuted Pension | T14: createdDate | U14: =CONCATENATE(YEAR(TODAY()),"-",IF(MONTH(TODAY())<10,"0",""),MONTH(TODAY()),"-",IF(DAY(TODAY())<10,"0",""),DAY(TODAY())) -> 2020-12-02 | W14: Select | X14: (Select) | AH14: TDS in de-duplicated PAN | AZ14: B8f | BJ14: B8f | BK14: B8f | BN14: 5AD1i-Income received by an FII in respect of securities (other than units as per Sec 115AB) [S.115AD(1)(i)] | BT14: 115BBA-Tax on non-residents sportsmen or sports associations | BW14: 115AD(1)(i)-Income received by an FII in respect of bonds or government securities as per Sec 194LD | BZ14: 115BBA-Tax on non-residents sportsmen or sports associations | CA14: 5BBA | CD14: 115A(1)(b)(A) & 115A(1)(b)(B)-Income from royalty or fees for technical services received from Government or Indian concern - chargeable u/s 115A(1)(b) | CG14: 115BB-Winnings from lotteries, crossword puzzles etc. | CJ14: 115A(1)(b)(A) & 115A(1)(b)(B)-Income from royalty or fees for technical services received from Government or Indian concern - chargeable u/s 115A(1)(b) | CM14: 115AC(1)(a & b)-Income from bonds or GDR purchased in foreign currency - non-resident | CN14: 5AC1ab | CQ14: PTI_115ACA(1)(a)-Income from GDR purchased in foreign currency -resident | CW14: PTI_115BBA-Tax on non-residents sportsmen or sports associations | CZ14: PTI_115BBA-Tax on non-residents sportsmen or sports associations | DA14: PTI_5BBA | DD14: 2011-12 | DG14: Sec10(26)-Any income as referred to in section 10(26) | DJ14: 374-ARMENIA | DR14: BRD | DU14: INE121H07AH3 | DV14: IL&FS FINANCIAL SERVICES LIMITED SR-III 9.65 NCD 18SP19 FVRS1000
B15: 13-HIMACHAL PRADESH | E15: 297-ARUBA | H15: BAHRAIN | I15: 973 | L15: Sec10(14)(ii)-Allowances or benefits not in a nature of perquisite specifically granted in performance of duties of office or employment. | O15: Gratuity | T15: Today date | U15: =CONCATENATE(IF(DAY(TODAY())<10,"0",""),DAY(TODAY()),"-",IF(MONTH(TODAY())<10,"0",""),MONTH(TODAY()),"-",YEAR(TODAY())) -> 02-12-2020 | X15: Male | AH15: Deceased person's income Clubbed | AZ15: B9e | BJ15: B9e | BK15: B9e | BN15: 5AD1iP-Income received by an FII in respect of bonds or government securities as per Sec 194LD[S.115AD(1)(i)] | BT15: 115BBC-Anonymous donations | BW15: 115BBA-Tax on non-residents sportsmen or sports associations | BZ15: 115BBC-Anonymous donations | CA15: 5BBC | CD15: 115AC(1)(a & b)-Income from bonds or GDR purchased in foreign currency - non-resident | CG15: PTI_115ACA(1)(a)-Income from GDR purchased in foreign currency -resident | CJ15: 115AC(1)(a & b)-Income from bonds or GDR purchased in foreign currency - non-resident | CM15: 115AD(1)(i)-Income received by an FII in respect of securities (other than units as per Sec 115AB) | CN15: 5AD1i | CQ15: PTI_115BBA-Tax on non-residents sportsmen or sports associations | CW15: PTI_115BBC-Anonymous donations | CZ15: PTI_115BBC-Anonymous donations | DA15: PTI_5BBC | DD15: 2012-13 | DG15: Sec10(26AAA)-Any income as referred to in section 10(26AAA) | DJ15: 297-ARUBA | DR15: RKT | DU15: INE333R18023 | DV15: EARC TRUST - SC 52 SERIES II SECURITY RECEIPTS 16JL14
B16: 14-JAMMU AND KASHMIR | E16: 61-AUSTRALIA | H16: BANGLADESH | I16: 880 | L16: Any Other | O16: Fees/ commission | Q16: Selection80DDB | R16: (Select) | X16: Female | AZ16: B10 | BJ16: B10 | BK16: B10 | BN16: 5BBA-Tax on non-residents sportsmen or sports associations[S.115BBA] | BT16: 115BBG - Tax on income from transfer of carbon credits | BW16: 115BBC-Anonymous donations | BZ16: 115BBDA-(Dividend income from domestic company exceeding Rs.10lakh) | CA16: 5BBDA | CD16: 115AD(1)(i)-Income received by an FII in respect of securities (other than units as per Sec 115AB) | CG16: PTI_115AD(1)(i)-Income received by an FII in respect of securities (other than units as per Sec 115AB) | CJ16: 115AD(1)(i)-Income received by an FII in respect of securities (other than units as per Sec 115AB) | CM16: 115BBDA-Tax on certain dividends received from domestic companies. | CN16: 5BBDA | CQ16: PTI_115BBC-Anonymous donations | CW16: PTI_115BBG-Tax on income from transfer of carbon credits. | CZ16: PTI_115BBDA-Dividend Income from domestic company exceeding 10Lakh | DA16: PTI_5BBDA | DD16: 2013-14 | DG16: Any other | DJ16: 61-AUSTRALIA | DR16: SRT | DU16: INE374Q18045 | DV16: EARC TRUST - SC 28 SR IV SECURITY RECEIPTS 04AG14
B17: 15-KARNATAKA | E17: 43-AUSTRIA | H17: BARBADOS | I17: 1246 | O17: Advance of salary | R17: 1-Self or Dependent | X17: Transgender | AA17: (Select) | AB17: (Select) | AZ17: B11a1 | BJ17: B11a1 | BK17: B11a1 | BN17: 5BBC-Anonymous donations [S.115BBC] | BT17: 115E(a)-Investment income (NRI) | BW17: 115BBDA-(Dividend income from domestic company exceeding Rs.10lakh) | BZ17: 115BBE-Tax on income under S.68,69,69A,69B,69C,69D | CA17: 5BBE | CD17: 115AD(1)(i)-Income received by an FII in respect of bonds or government securities as per Sec 194LD | CG17: PTI_115AD(1)(i)-Income received by an FII in respect of bonds or government securities as per Sec 194LD | CJ17: 115AD(1)(i)-Income received by an FII in respect of bonds or government securities as per Sec 194LD | CM17: 111-Tax on accumulated balance of recognised PF | CN17: 1 | CQ17: PTI_115BBDA-Dividend Income from domestic company exceeding 10Lakh | CW17: PTI_115E(a)-Investment income | CZ17: PTI_115BBF-Tax on income from patent | DA17: PTI_5BBF | DD17: 2014-15 | DJ17: 43-AUSTRIA | DR17: BLR | DU17: INE385R18015 | DV17: ARCIL - AST - V TRUST SERIES I SECURITY RECEIPTS 28MR14
B18: 16-KERALA | E18: 994-AZERBAIJAN | H18: BELARUS | I18: 375 | O18: Leave Encashment | R18: 2-Self or Dependent(Senior Citizen) | T18: Hash_Key | U18: 7Z3mxclnABiXtYG | X18: Not applicable | AA18: 139(1)-On or before due date | AB18: 11 | AZ18: B11a2 | BJ18: B11a2 | BK18: B11a2 | BN18: 5BBE-Tax on income under S.68,69,69A,69B,69C,69D [S.115BBE] | BW18: 115BBF-Tax on income from patent | BZ18: 115BBF-Tax on income from patent | CA18: 5BBF | CD18: 115BBG-Tax on income from transfer of carbon credits. | CG18: PTI_115BBC-Anonymous donations | CJ18: 115BBG-Tax on income from transfer of carbon credits. | CM18: 115BBF-Tax on income from patent | CN18: 5BBF | CQ18: PTI_115BBF-Tax on income from patent | CZ18: PTI_115BBG-Tax on income from transfer of carbon credits. | DA18: PTI_5BBG | DD18: 2015-16 | DJ18: 994-AZERBAIJAN | DR18: AGR | DU18: INE386R18013 | DV18: ARCIL - AST - 038-I- TRUST SERIES I SECURITY RECEIPTS 30JU14
B19: 17-LAKHSWADEEP | E19: 1242-BAHAMAS | H19: BELGIUM | I19: 32 | O19: Others | T19: Hash_Iteration | U19: 1849 | AA19: 139(4)-After due date | AB19: 12 | AZ19: B11b | BJ19: B11b | BK19: B11b | BN19: 5Ea-Investment income (NRI) [S.115E(a)] | BW19: 115BBG - Tax on income from transfer of carbon credits | BZ19: 115BBG - Tax on income from transfer of carbon credits | CA19: 5BBG | CD19: 115BBA-Tax on non-residents sportsmen or sports associations | CG19: PTI_115BBDA-Dividend Income from domestic company exceeding 10Lakh | CJ19: 115BBA-Tax on non-residents sportsmen or sports associations | CM19: 115BBC-Anonymous donations | CN19: 5BBC | CQ19: PTI_115BBG-Tax on income from transfer of carbon credits. | CZ19: PTI_115E(a)-Investment income | DA19: PTI_5Ea | DD19: 2016-17 | DJ19: 1242-BAHAMAS | DR19: KNP | DU19: INE387R18011 | DV19: ALCHEMIST - XXVI TRUST SECURITY RECEIPTS 30JU14
B20: 18-MADHYA PRADESH | E20: 973-BAHRAIN | H20: BELIZE | I20: 501 | AA20: 139(5)-Revised | AB20: 17 | BN20: 1-Tax on accumulated balance of recognised PF [S.111] | BW20: 115E(a)-Investment income (NRI) | BZ20: 115E(a)-Investment income (NRI) | CA20: 5Ea | CD20: 115E(a)-Investment income | CG20: PTI_115BBF-Tax on income from patent | CJ20: 115E(a)-Investment income | CM20: 115AD(1)(i)-Income received by an FII in respect of bonds or government securities as per Sec 194LD | CN20: 5AD1iP | CQ20: PTI_115E(a)-Investment income | CZ20: PTI_115BB-Winnings from lotteries, crossword puzzles etc. | DA20: PTI_5BB | DD20: 2017-18 | DJ20: 973-BAHRAIN | DR20: CHN | DU20: INE397R01016 | DV20: BAJAJ RESOURCES LIMITED EQ
B21: 19-MAHARASHTRA | E21: 880-BANGLADESH | H21: BENIN | I21: 229 | Q21: Selection80D2 | R21: (Select) | W21: FA_A2_Nature | X21: (Select) | AA21: 92CD-Modified return | AB21: 19 | BZ21: 111-Tax on accumulated balance of recognised PF | CA21: 1 | CD21: 115BBC-Anonymous donations | CG21: PTI_115BBG-Tax on income from transfer of carbon credits. | CJ21: 115BBC-Anonymous donations | CM21: 115BBA-Tax on non-residents sportsmen or sports associations | CN21: 5BBA | CZ21: PTI_115BBE-Tax on income under section 68, 69, 69A, 69B, 69C or 69D | DA21: PTI_5BBE | DD21: 2018-19 | DJ21: 880-BANGLADESH | DR21: TVD | DU21: INE399R01012 | DV21: RUJUVALIKA INVESTMENTS LIMITED EQ
B22: 20-MANIPUR | E22: 1246-BARBADOS | H22: BHUTAN | I22: 975 | N22: Salary_Section_17_2 | O22: (Select) | R22: 1-Self & family (senior citizen) | T22: Individual | U22: (Select) | X22: Interest | AA22: 119(2)(b)- after condonation of delay | AB22: 20 | CD22: 115BB-Winnings from lotteries, crossword puzzles etc. | CJ22: 115BB-Winnings from lotteries, crossword puzzles etc. | CM22: 115BBG-Tax on income from transfer of carbon credits. | CN22: 5BBG | DD22: 2019-20 | DJ22: 1246-BARBADOS | DR22: ALD | DU22: INE687C13017 | DV22: REXNORD ELECTRONICS & CONTROLS LTD WARRANTS 22MR16
